Workbook

Sheet Sample Report (hidden)
A2: Date
A3: Hen
A4: Program
A5: Start at 999999
A6: Sequence component 1 | B6: Time 1 | C6: Seqeunce Component 2 | D6: Time 2 | E6: Seqeunce Component 3 | F6: Time 3 | G6: Correct 0 = No 1=Yes | J6: Seqeunce | K6: Time
A7: 12 | B7: 7 | C7: 12 | D7: 42 | E7: 13 | F7: 18 | G7: if 77 new line, if 31 or 41 = yes new line on 77, | J7: =string of Seqeunce compponent 1, 2 & 3 | K7: =time 3
A8: This continues until ther is a 1 on its own to indicate start of summary data
J9: 10-19 =1
A10: Summary Data | J10: 20-29 =2
A11: Correct | B11: Incorrect | C11: Rft | D11: total | E11: Av Correct | F11: Av Incorrect | G11: Percent correct | H11: Time | J11: in this example the seqeunce would be 111
A12: 40 | B12: 33 | C12: 40 | D12: 73 | E12: 23.95 | F12: 15 | G12: 54 | H12: 806

Sheet Summary
A2: Day | B2: Date | C2: Average Response Rate | D2: Target % | E2: RF for non correct sequence | F2: U Value | K2: Block 1 | L2: Block 2 | M2: Block 3 | N2: Block 4 | O2: Block 5 | P2: Block 6
A3: 1 | B3: ='!M715820.104'!B2:C2 -> <date> | C3: =('!M715820.104'!F196/60)/'!M715820.104'!Q3 -> 2.103684211 | D3: ='!M715820.104'!N20/'!M715820.104'!Q3 -> 0 | E3: =SUM('!M715820.104'!L20:Q20)/'!M715820.104'!Q3 -> 1.442105263 | F3: ='!M715820.104'!Q16 -> 0.222594193 | J3: Average Response Rate | K3: =AVERAGE(C3:C7) -> 2.567339876 | L3: =AVERAGE(C8:C12) -> 2.20223394 | M3: =AVERAGE(C13:C17) -> 1.862108265 | N3: =AVERAGE(C18:C22) -> 1.823436879 | O3: =AVERAGE(C23:C27) -> 1.800674688 | P3: =AVERAGE(C28:C32) -> 1.829696165
A4: 2 | B4: ='!M716850.104'!B2:C2 -> <date> | C4: =('!M716850.104'!F162/60)/'!M716850.104'!Q3 -> 2.550641026 | D4: ='!M716850.104'!N20/'!M716850.104'!Q3 -> 0 | E4: =SUM('!M716850.104'!L20:Q20)/'!M716850.104'!Q3 -> 1.75 | F4: ='!M716850.104'!Q16 -> 0.2467752119 | J4: Target % | K4: =AVERAGE(D3:D7) -> 0.01183773216 | L4: =AVERAGE(D8:D12) -> 0.4890170143 | M4: =AVERAGE(D13:D17) -> 0.7355541872 | N4: =AVERAGE(D18:D22) -> 0.7235087511 | O4: =AVERAGE(D23:D27) -> 0.7568907923 | P4: =AVERAGE(D28:D32) -> 0.6964093968
A5: 3 | B5: ='!M717A20.104'!B2:C2 -> <date> | C5: =('!M717A20.104'!F158/60)/'!M717A20.104'!Q3 -> 2.614583333 | D5: ='!M717A20.104'!N20/'!M717A20.104'!Q3 -> 0 | E5: =SUM('!M717A20.104'!L20:Q20)/'!M717A20.104'!Q3 -> 1.789473684 | F5: ='!M717A20.104'!Q16 -> 0.265576776 | J5: CCRF | K5: =AVERAGE(E3:E7) -> 1.76321706 | L5: =AVERAGE(E8:E12) -> 2.6225625 | M5: =AVERAGE(E13:E17) -> 3.704731527 | N5: =AVERAGE(E18:E22) -> 3.633109583 | O5: =AVERAGE(E23:E27) -> 3.44525513 | P5: =AVERAGE(E28:E32) -> 3.599071702
A6: 4 | B6: ='!M718820.104'!B2:C2 -> <date> | C6: =('!M718820.104'!F138/60)/'!M718820.104'!Q3 -> 2.990909091 | D6: ='!M718820.104'!N20/'!M718820.104'!Q3 -> 0.007575757576 | E6: =SUM('!M718820.104'!L20:Q20)/'!M718820.104'!Q3 -> 2.015151515 | F6: ='!M718820.104'!Q16 -> 0.314294459 | J6: U Value | K6: =AVERAGE(F3:F7) -> 0.271655747 | L6: =AVERAGE(F8:F12) -> 0.3032940268 | M6: =AVERAGE(F13:F17) -> 0.1869073656 | N6: =AVERAGE(F18:F22) -> 0.2037594488 | O6: =AVERAGE(F23:F27) -> 0.1700645927 | P6: =AVERAGE(F28:F32) -> 0.2156020809
A7: 5 | B7: ='!M719950.104'!B2:C2 -> <date> | C7: =('!M719950.104'!F161/60)/'!M719950.104'!Q3 -> 2.57688172 | D7: ='!M719950.104'!N20/'!M719950.104'!Q3 -> 0.05161290323 | E7: =SUM('!M719950.104'!L20:Q20)/'!M719950.104'!Q3 -> 1.819354839 | F7: ='!M719950.104'!Q16 -> 0.309038095
A8: 6 | B8: ='!M720830.104'!B2:C2 -> <date> | C8: =('!M720830.104'!F134/60)/'!M720830.104'!Q3 -> 2.365234375 | D8: ='!M720830.104'!N20/'!M720830.104'!Q3 -> 0.3046875 | E8: =SUM('!M720830.104'!L20:Q20)/'!M720830.104'!Q3 -> 1.5078125 | F8: ='!M720830.104'!Q16 -> 0.3413480579
A9: 7 | B9: ='!M721900.104'!B2:C2 -> <date> | C9: =('!M721900.104'!F80/60)/'!M721900.104'!Q3 -> 2.478603604 | D9: ='!M721900.104'!N20/'!M721900.104'!Q3 -> 0.5135135135 | E9: =SUM('!M721900.104'!L20:Q20)/'!M721900.104'!Q3 -> 2.5 | F9: ='!M721900.104'!Q16 -> 0.3251581277 | G9: =K3 -> 2.567339876 | H9: =L3 -> 2.20223394 | I9: =M3 -> 1.862108265 | J9: =N3 -> 1.823436879 | K9: =O3 -> 1.800674688 | L9: =P3 -> 1.829696165 | M9: =K4 -> 0.01183773216 | N9: =L4 -> 0.4890170143 | O9: =M4 -> 0.7355541872 | P9: =N4 -> 0.7235087511 | Q9: =O4 -> 0.7568907923 | R9: =P4 -> 0.6964093968 | S9: =K6 -> 0.271655747 | T9: =L6 -> 0.3032940268 | U9: =M6 -> 0.1869073656 | V9: =N6 -> 0.2037594488 | W9: =O6 -> 0.1700645927 | X9: =P6 -> 0.2156020809
A10: 8 | B10: ='!M722A00.104'!B2:C2 -> <date> | C10: =('!M722A00.104'!F81/60)/'!M722A00.104'!Q3 -> 2.250222222 | D10: ='!M722A00.104'!N20/'!M722A00.104'!Q3 -> 0.52 | E10: =SUM('!M722A00.104'!L20:Q20)/'!M722A00.104'!Q3 -> 2.48 | F10: ='!M722A00.104'!Q16 -> 0.3103477991
A11: 9 | B11: ='!M723A40.104'!B2:C2 -> <date> | C11: =('!M723A40.104'!F75/60)/'!M723A40.104'!Q3 -> 2.032850242 | D11: ='!M723A40.104'!N20/'!M723A40.104'!Q3 -> 0.5652173913 | E11: =SUM('!M723A40.104'!L20:Q20)/'!M723A40.104'!Q3 -> 2.666666667 | F11: ='!M723A40.104'!Q16 -> 0.2801342765
A12: 10 | B12: ='!M724930.104'!B2:C2 -> <date> | C12: =('!M724930.104'!F78/60)/'!M724930.104'!Q3 -> 1.884259259 | D12: ='!M724930.104'!N20/'!M724930.104'!Q3 -> 0.5416666667 | E12: =SUM('!M724930.104'!L20:Q20)/'!M724930.104'!Q3 -> 3.958333333 | F12: ='!M724930.104'!Q16 -> 0.2594818729
A13: 11 | B13: ='!M725A00.104'!B2:C2 -> <date> | C13: =('!M725A00.104'!F54/60)/'!M725A00.104'!Q3 -> 1.811111111 | D13: ='!M725A00.104'!N20/'!M725A00.104'!Q3 -> 0.8125 | E13: =SUM('!M725A00.104'!L20:Q20)/'!M725A00.104'!Q3 -> 3.6875 | F13: ='!M725A00.104'!Q16 -> 0.176040521
A14: 12 | B14: ='!M726840.104'!B2:C2 -> <date> | C14: =('!M726840.104'!F56/60)/'!M726840.104'!Q3 -> 1.858666667 | D14: ='!M726840.104'!N20/'!M726840.104'!Q3 -> 0.8 | E14: =SUM('!M726840.104'!L20:Q20)/'!M726840.104'!Q3 -> 3.58 | F14: ='!M726840.104'!Q16 -> 0.1279139777
A15: 13 | B15: ='!M727A30.104'!B2:C2 -> <date> | C15: =('!M727A30.104'!F62/60)/'!M727A30.104'!Q3 -> 1.849107143 | D15: ='!M727A30.104'!N20/'!M727A30.104'!Q3 -> 0.6964285714 | E15: =SUM('!M727A30.104'!L20:Q20)/'!M727A30.104'!Q3 -> 3.214285714 | F15: ='!M727A30.104'!Q16 -> 0.1859643964
A16: 14 | B16: ='!M728730.104'!B2:C2 -> <date> | C16: =('!M728730.104'!F64/60)/'!M728730.104'!Q3 -> 1.90862069 | D16: ='!M728730.104'!N20/'!M728730.104'!Q3 -> 0.6724137931 | E16: =SUM('!M728730.104'!L20:Q20)/'!M728730.104'!Q3 -> 4.827586207 | F16: ='!M728730.104'!Q16 -> 0.2325239784
A17: 15 | B17: ='!M729A40.104'!B2:C2 -> <date> | C17: =('!M729A40.104'!F62/60)/'!M729A40.104'!Q3 -> 1.883035714 | D17: ='!M729A40.104'!N20/'!M729A40.104'!Q3 -> 0.6964285714 | E17: =SUM('!M729A40.104'!L20:Q20)/'!M729A40.104'!Q3 -> 3.214285714 | F17: ='!M729A40.104'!Q16 -> 0.2120939545
A18: 16 | B18: ='!M730B00.104'!B2:C2 -> <date> | C18: =('!M730B00.104'!F61/60)/'!M730B00.104'!Q3 -> 1.819393939 | D18: ='!M730B00.104'!N20/'!M730B00.104'!Q3 -> 0.7090909091 | E18: =SUM('!M730B00.104'!L20:Q20)/'!M730B00.104'!Q3 -> 3.254545455 | F18: ='!M730B00.104'!Q16 -> 0.2192159117
A19: 17 | B19: ='!M731A50.104'!B2:C2 -> <date> | C19: =('!M731A50.104'!F65/60)/'!M731A50.104'!Q3 -> 1.877683616 | D19: ='!M731A50.104'!N20/'!M731A50.104'!Q3 -> 0.6610169492 | E19: =SUM('!M731A50.104'!L20:Q20)/'!M731A50.104'!Q3 -> 4.762711864 | F19: ='!M731A50.104'!Q16 -> 0.2330538872
A20: 18 | B20: ='!M801B50.104'!B2:C2 -> <date> | C20: =('!M801B50.104'!F66/60)/'!M801B50.104'!Q3 -> 1.791944444 | D20: ='!M801B50.104'!N20/'!M801B50.104'!Q3 -> 0.65 | E20: =SUM('!M801B50.104'!L20:Q20)/'!M801B50.104'!Q3 -> 2.833333333 | F20: ='!M801B50.104'!Q16 -> 0.2508332423
A21: 19 | B21: ='!M802920.104'!B2:C2 -> <date> | C21: =('!M802920.104'!F58/60)/'!M802920.104'!Q3 -> 1.840384615 | D21: ='!M802920.104'!N20/'!M802920.104'!Q3 -> 0.7307692308 | E21: =SUM('!M802920.104'!L20:Q20)/'!M802920.104'!Q3 -> 3.403846154 | F21: ='!M802920.104'!Q16 -> 0.2125396762
A22: 20 | B22: ='!M803A20.104'!B2:C2 -> <date> | C22: =('!M803A20.104'!F51/60)/'!M803A20.104'!Q3 -> 1.787777778 | D22: ='!M803A20.104'!N20/'!M803A20.104'!Q3 -> 0.8666666667 | E22: =SUM('!M803A20.104'!L20:Q20)/'!M803A20.104'!Q3 -> 3.911111111 | F22: ='!M803A20.104'!Q16 -> 0.1031545266
A23: 21 | B23: ='!M804B00.104'!B2:C2 -> <date> | C23: =('!M804B00.104'!F57/60)/'!M804B00.104'!Q3 -> 1.819934641 | D23: ='!M804B00.104'!N20/'!M804B00.104'!Q3 -> 0.7647058824 | E23: =SUM('!M804B00.104'!L20:Q20)/'!M804B00.104'!Q3 -> 3.490196078 | F23: ='!M804B00.104'!Q16 -> 0.1657268244
A24: 22 | B24: ='!M805A20.104'!B2:C2 -> <date> | C24: =('!M805A20.104'!F63/60)/'!M805A20.104'!Q3 -> 1.83128655 | D24: ='!M805A20.104'!N20/'!M805A20.104'!Q3 -> 0.701754386 | E24: =SUM('!M805A20.104'!L20:Q20)/'!M805A20.104'!Q3 -> 3.175438596 | F24: ='!M805A20.104'!Q16 -> 0.2017244494
A25: 23 | B25: ='!M806920.104'!B2:C2 -> <date> | C25: =('!M806920.104'!F49/60)/'!M806920.104'!Q3 -> 1.737984496 | D25: ='!M806920.104'!N20/'!M806920.104'!Q3 -> 0.9069767442 | E25: =SUM('!M806920.104'!L20:Q20)/'!M806920.104'!Q3 -> 4.069767442 | F25: ='!M806920.104'!Q16 -> 0.1079962473
A26: 24 | B26: ='!M807A20.104'!B2:C2 -> <date> | C26: =('!M807A20.104'!F58/60)/'!M807A20.104'!Q3 -> 1.788461538 | D26: ='!M807A20.104'!N20/'!M807A20.104'!Q3 -> 0.75 | E26: =SUM('!M807A20.104'!L20:Q20)/'!M807A20.104'!Q3 -> 3.423076923 | F26: ='!M807A20.104'!Q16 -> 0.1762294246
A27: 25 | B27: ='!M808B50.104'!B2:C2 -> <date> | C27: =('!M808B50.104'!F65/60)/'!M808B50.104'!Q3 -> 1.825706215 | D27: ='!M808B50.104'!N20/'!M808B50.104'!Q3 -> 0.6610169492 | E27: =SUM('!M808B50.104'!L20:Q20)/'!M808B50.104'!Q3 -> 3.06779661 | F27: ='!M808B50.104'!Q16 -> 0.1986460179
A28: 26 | B28: ='!M809A30.104'!B2:C2 -> <date> | C28: =('!M809A30.104'!F57/60)/'!M809A30.104'!Q3 -> 1.782352941 | D28: ='!M809A30.104'!N20/'!M809A30.104'!Q3 -> 0.7647058824 | E28: =SUM('!M809A30.104'!L20:Q20)/'!M809A30.104'!Q3 -> 3.490196078 | F28: ='!M809A30.104'!Q16 -> 0.2031037506
A29: 27 | B29: ='!M810B00.104'!B2:C2 -> <date> | C29: =('!M810B00.104'!F65/60)/'!M810B00.104'!Q3 -> 1.822881356 | D29: ='!M810B00.104'!N20/'!M810B00.104'!Q3 -> 0.6779661017 | E29: =SUM('!M810B00.104'!L20:Q20)/'!M810B00.104'!Q3 -> 3.084745763 | F29: ='!M810B00.104'!Q16 -> 0.1806865317
A30: 28 | B30: ='!M811950.104'!B2:C2 -> <date> | C30: =('!M811950.104'!F70/60)/'!M811950.104'!Q3 -> 1.859635417 | D30: ='!M811950.104'!N20/'!M811950.104'!Q3 -> 0.609375 | E30: =SUM('!M811950.104'!L20:Q20)/'!M811950.104'!Q3 -> 2.84375 | F30: ='!M811950.104'!Q16 -> 0.222783985
A31: 29 | B31: ='!M812B00.104'!B2:C2 -> <date> | C31: =('!M812B00.104'!F56/60)/'!M812B00.104'!Q3 -> 1.811666667 | D31: ='!M812B00.104'!N20/'!M812B00.104'!Q3 -> 0.78 | E31: =SUM('!M812B00.104'!L20:Q20)/'!M812B00.104'!Q3 -> 5.56 | F31: ='!M812B00.104'!Q16 -> 0.2044616058
A32: 30 | B32: ='!M813A30.104'!B2:C2 -> <date> | C32: =('!M813A30.104'!F66/60)/'!M813A30.104'!Q3 -> 1.871944444 | D32: ='!M813A30.104'!N20/'!M813A30.104'!Q3 -> 0.65 | E32: =SUM('!M813A30.104'!L20:Q20)/'!M813A30.104'!Q3 -> 3.016666667 | F32: ='!M813A30.104'!Q16 -> 0.2669745314
B33: ='!M814950.104'!B2:C2 -> <date> | C33: =('!M814950.104'!F57/60)/'!M814950.104'!Q3 -> 1.833333333 | D33: ='!M814950.104'!N20/'!M814950.104'!Q3 -> 0.7647058824 | E33: =SUM('!M814950.104'!L20:Q20)/'!M814950.104'!Q3 -> 3.490196078 | F33: ='!M814950.104'!Q16 -> 0.2252486231
B34: ='!M815B20.104'!B2:C2 -> <date> | C34: =('!M815B20.104'!F67/60)/'!M815B20.104'!Q3 -> 1.889071038 | D34: ='!M815B20.104'!N20/'!M815B20.104'!Q3 -> 0.6393442623 | E34: =SUM('!M815B20.104'!L20:Q20)/'!M815B20.104'!Q3 -> 2.967213115 | F34: ='!M815B20.104'!Q16 -> 0.2306165346

Sheet Start
F1: Use Folder 51 | H1: Auto Clean Up | J1: Correct sequence
F2: FALSE | H2: TRUE | J2: 122
A4: Working with Folder | G4: Process All/Or Pick A number: ALL or an integer
A5: E:\Hen Data\Raw Data\104_184\phase 2 var\ | G5: ALL
A6: Filenames:
A7: !M725A00.104 | G7: Paint Cells
A8: !M726840.104 | G8: FALSE
A9: !M727A30.104
A10: !M728730.104
A11: !M729A40.104
A12: !M730B00.104
A13: !M731A50.104
A14: !M801B50.104
A15: !M802920.104
A16: !M803A20.104
A17: !M804B00.104
A18: !M805A20.104
A19: !M806920.104
A20: !M807A20.104
A21: !M808B50.104
A22: !M809A30.104
A23: !M810B00.104
A24: !M715820.104
A25: !M716850.104
A26: !M717A20.104
A27: !M718820.104
A28: !M719950.104
A29: !M720830.104
A30: !M721900.104
A31: !M722A00.104
A32: !M723A40.104
A33: !M724930.104
A34: !M815B20.104
A35: !M811950.104
A36: !M812B00.104
A37: !M813A30.104
A38: !M814950.104

Sheet !M715820.104
A1: Report for:!M715820.104
A2: Date: | B2: <date>
A3: Hen: | B3: <hen> | F3: Correct Sequence | G3: =Start!J2 -> 122 | P3: Total Sequences in Data | Q3: =4994-COUNTBLANK(L7:L5000) -> 190 | V3: Total Sequences in Block Data | W3: =COUNTA(L7:L38) -> 32 | AA3: Total Sequences in Block Data | AB3: =COUNTA(L39:L69) -> 31 | AF3: Total Sequences in Block Data | AG3: =COUNTA(L70:L101) -> 32 | AK3: Total Sequences in Block Data | AL3: =COUNTA(L102:L133) -> 32 | AP3: Total Sequences in Block Data | AQ3: =COUNTA(L134:L164) -> 31 | AU3: Total Sequences in Block Data | AV3: =COUNTA(L165:L196) -> 32
P4: Total Sequences in Summary | Q4: =SUM(O7:O14) -> 190 | V4: Total Sequences in Block Summary | W4: =SUM(U7:U14) -> 32 | AA4: Total Sequences in Block Summary | AB4: =SUM(Z7:Z14) -> 31 | AF4: Total Sequences in Block Summary | AG4: =SUM(AE7:AE14) -> 32 | AK4: Total Sequences in Block Summary | AL4: =SUM(AJ7:AJ14) -> 32 | AP4: Total Sequences in Block Summary | AQ4: =SUM(AO7:AO14) -> 31 | AU4: Total Sequences in Block Summary | AV4: =SUM(AT7:AT14) -> 32
T5: Block 1 | Y5: Block 2 | AD5: Block 3 | AI5: Block 4 | AN5: Block 5 | AS5: Block 6
A6: Sequence Component 1 | B6: Time 1 | C6: Sequence Component 2 | D6: Time 2 | E6: Sequence Component 3 | F6: Time 3 | G6: Sequence Component 4 | H6: Time 4 | I6: Sequence Component 5 | J6: Time 5 | K6: Correct? 0=No 1=Yes | L6: Sequence | N6: Frequency | P6: Relative Frequency | Q6: Variability | T6: Frequency | V6: Relative Frequency | W6: Variability | Y6: Frequency | AA6: Relative Frequency | AB6: Variability | AD6: Frequency | AF6: Relative Frequency | AG6: Variability | AI6: Frequency | AK6: Relative Frequency | AL6: Variability | AN6: Frequency | AP6: Relative Frequency | AQ6: Variability | AS6: Frequency | AU6: Relative Frequency | AV6: Variability
A7: 22 | B7: 7 | C7: 14 | D7: 20 | E7: 14 | F7: 25 | K7: 0 | L7: 211 | N7: 111 | O7: =COUNTIF($L$7:$L$500,N7) -> 25 | P7: =O7/$Q$4 -> 0.1315789474 | Q7: =IF(P7=0,0,(P7*((LOG(P7))/LOG(2)))) -> -0.3849999235 | T7: =N7 -> 111 | U7: =COUNTIF(L7:L38,T7) -> 6 | V7: =U7/(W4-U10) -> 0.1875 | W7: =IF(V7=0,0,(V7*((LOG(V7))/LOG(2)))) -> -0.4528195311 | Y7: =N7 -> 111 | Z7: =COUNTIF(L39:L69,Y7) -> 4 | AA7: =Z7/(AB4-Z10) -> 0.1290322581 | AB7: =IF(AA7=0,0,(AA7*((LOG(AA7))/LOG(2)))) -> -0.3811866207 | AD7: =N7 -> 111 | AE7: =COUNTIF(L70:L101,AD7) -> 5 | AF7: =AE7/(AG4-AE10) -> 0.15625 | AG7: =IF(AF7=0,0,(AF7*((LOG(AF7))/LOG(2)))) -> -0.4184487352 | AI7: =N7 -> 111 | AJ7: =COUNTIF(L102:L133,AI7) -> 5 | AK7: =AJ7/(AL4-AJ10) -> 0.15625 | AL7: =IF(AK7=0,0,(AK7*((LOG(AK7))/LOG(2)))) -> -0.4184487352 | AN7: =N7 -> 111 | AO7: =COUNTIF(L134:L164,AN7) -> 2 | AP7: =AO7/(AQ4-AO10) -> 0.06451612903 | AQ7: =IF(AP7=0,0,(AP7*((LOG(AP7))/LOG(2)))) -> -0.2551094394 | AS7: =N7 -> 111 | AT7: =COUNTIF(L165:L196,AS7) -> 3 | AU7: =AT7/(AV4-AT10) -> 0.09375 | AV7: =IF(AU7=0,0,(AU7*((LOG(AU7))/LOG(2)))) -> -0.3201597656
A8: 11 | B8: 123 | C8: 12 | D8: 134 | E8: 14 | F8: 142 | K8: 0 | L8: 111 | N8: 112 | O8: =COUNTIF($L$7:$L$500,N8) -> 0 | P8: =O8/$Q$4 -> 0 | Q8: =IF(P8=0,0,(P8*((LOG(P8))/LOG(2)))) -> 0 | T8: =N8 -> 112 | U8: =COUNTIF(L7:L38,T8) -> 0 | V8: =U8/(W4-U10) -> 0 | W8: =IF(V8=0,0,(V8*((LOG(V8))/LOG(2)))) -> 0 | Y8: =N8 -> 112 | Z8: =COUNTIF(L39:L69,Y8) -> 0 | AA8: =Z8/(AB4-Z10) -> 0 | AB8: =IF(AA8=0,0,(AA8*((LOG(AA8))/LOG(2)))) -> 0 | AD8: =N8 -> 112 | AE8: =COUNTIF(L70:L101,AD8) -> 0 | AF8: =AE8/(AG4-AE10) -> 0 | AG8: =IF(AF8=0,0,(AF8*((LOG(AF8))/LOG(2)))) -> 0 | AI8: =N8 -> 112 | AJ8: =COUNTIF(L102:L133,AI8) -> 0 | AK8: =AJ8/(AL4-AJ10) -> 0 | AL8: =IF(AK8=0,0,(AK8*((LOG(AK8))/LOG(2)))) -> 0 | AN8: =N8 -> 112 | AO8: =COUNTIF(L134:L164,AN8) -> 0 | AP8: =AO8/(AQ4-AO10) -> 0 | AQ8: =IF(AP8=0,0,(AP8*((LOG(AP8))/LOG(2)))) -> 0 | AS8: =N8 -> 112 | AT8: =COUNTIF(L165:L196,AS8) -> 0 | AU8: =AT8/(AV4-AT10) -> 0 | AV8: =IF(AU8=0,0,(AU8*((LOG(AU8))/LOG(2)))) -> 0
A9: 22 | B9: 238 | C9: 14 | D9: 246 | E9: 14 | F9: 253 | K9: 0 | L9: 211 | N9: 121 | O9: =COUNTIF($L$7:$L$500,N9) -> 1 | P9: =O9/$Q$4 -> 0.005263157895 | Q9: =IF(P9=0,0,(P9*((LOG(P9))/LOG(2)))) -> -0.03984134531 | T9: =N9 -> 121 | U9: =COUNTIF(L7:L38,T9) -> 0 | V9: =U9/(W4-U10) -> 0 | W9: =IF(V9=0,0,(V9*((LOG(V9))/LOG(2)))) -> 0 | Y9: =N9 -> 121 | Z9: =COUNTIF(L39:L69,Y9) -> 0 | AA9: =Z9/(AB4-Z10) -> 0 | AB9: =IF(AA9=0,0,(AA9*((LOG(AA9))/LOG(2)))) -> 0 | AD9: =N9 -> 121 | AE9: =COUNTIF(L70:L101,AD9) -> 0 | AF9: =AE9/(AG4-AE10) -> 0 | AG9: =IF(AF9=0,0,(AF9*((LOG(AF9))/LOG(2)))) -> 0 | AI9: =N9 -> 121 | AJ9: =COUNTIF(L102:L133,AI9) -> 1 | AK9: =AJ9/(AL4-AJ10) -> 0.03125 | AL9: =IF(AK9=0,0,(AK9*((LOG(AK9))/LOG(2)))) -> -0.15625 | AN9: =N9 -> 121 | AO9: =COUNTIF(L134:L164,AN9) -> 0 | AP9: =AO9/(AQ4-AO10) -> 0 | AQ9: =IF(AP9=0,0,(AP9*((LOG(AP9))/LOG(2)))) -> 0 | AS9: =N9 -> 121 | AT9: =COUNTIF(L165:L196,AS9) -> 0 | AU9: =AT9/(AV4-AT10) -> 0 | AV9: =IF(AU9=0,0,(AU9*((LOG(AU9))/LOG(2)))) -> 0
A10: 11 | B10: 366 | C10: 12 | D10: 374 | E10: 14 | F10: 384 | K10: 0 | L10: 111 | N10: 122 | O10: =COUNTIF($L$7:$L$500,N10) -> 0 | P10: =O10/$Q$4 -> 0 | Q10: =IF(P10=0,0,(P10*((LOG(P10))/LOG(2)))) -> 0 | T10: =N10 -> 122 | U10: =COUNTIF(L7:L38,T10) -> 0 | Y10: =N10 -> 122 | Z10: =COUNTIF(L39:L69,Y10) -> 0 | AD10: =N10 -> 122 | AE10: =COUNTIF(L70:L101,AD10) -> 0 | AI10: =N10 -> 122 | AJ10: =COUNTIF(L102:L133,AI10) -> 0 | AN10: =N10 -> 122 | AO10: =COUNTIF(L134:L164,AN10) -> 0 | AS10: =N10 -> 122 | AT10: =COUNTIF(L165:L196,AS10) -> 0
A11: 22 | B11: 481 | C11: 14 | D11: 496 | E11: 14 | F11: 504 | K11: 0 | L11: 211 | N11: 211 | O11: =COUNTIF($L$7:$L$500,N11) -> 98 | P11: =O11/$Q$4 -> 0.5157894737 | Q11: =IF(P11=0,0,(P11*((LOG(P11))/LOG(2)))) -> -0.492654131 | T11: =N11 -> 211 | U11: =COUNTIF(L7:L38,T11) -> 26 | V11: =U11/(W4-U10) -> 0.8125 | W11: =IF(V11=0,0,(V11*((LOG(V11))/LOG(2)))) -> -0.243392729 | Y11: =N11 -> 211 | Z11: =COUNTIF(L39:L69,Y11) -> 21 | AA11: =Z11/(AB4-Z10) -> 0.6774193548 | AB11: =IF(AA11=0,0,(AA11*((LOG(AA11))/LOG(2)))) -> -0.3806276335 | AD11: =N11 -> 211 | AE11: =COUNTIF(L70:L101,AD11) -> 9 | AF11: =AE11/(AG4-AE10) -> 0.28125 | AG11: =IF(AF11=0,0,(AF11*((LOG(AF11))/LOG(2)))) -> -0.5147085933 | AI11: =N11 -> 211 | AJ11: =COUNTIF(L102:L133,AI11) -> 16 | AK11: =AJ11/(AL4-AJ10) -> 0.5 | AL11: =IF(AK11=0,0,(AK11*((LOG(AK11))/LOG(2)))) -> -0.5 | AN11: =N11 -> 211 | AO11: =COUNTIF(L134:L164,AN11) -> 15 | AP11: =AO11/(AQ4-AO10) -> 0.4838709677 | AQ11: =IF(AP11=0,0,(AP11*((LOG(AP11))/LOG(2)))) -> -0.5067608297 | AS11: =N11 -> 211 | AT11: =COUNTIF(L165:L196,AS11) -> 11 | AU11: =AT11/(AV4-AT10) -> 0.34375 | AV11: =IF(AU11=0,0,(AU11*((LOG(AU11))/LOG(2)))) -> -0.5295703811
A12: 22 | B12: 604 | C12: 14 | D12: 617 | E12: 14 | F12: 621 | K12: 0 | L12: 211 | N12: 212 | O12: =COUNTIF($L$7:$L$500,N12) -> 0 | P12: =O12/$Q$4 -> 0 | Q12: =IF(P12=0,0,(P12*((LOG(P12))/LOG(2)))) -> 0 | T12: =N12 -> 212 | U12: =COUNTIF(L7:L38,T12) -> 0 | V12: =U12/(W4-U10) -> 0 | W12: =IF(V12=0,0,(V12*((LOG(V12))/LOG(2)))) -> 0 | Y12: =N12 -> 212 | Z12: =COUNTIF(L39:L69,Y12) -> 0 | AA12: =Z12/(AB4-Z10) -> 0 | AB12: =IF(AA12=0,0,(AA12*((LOG(AA12))/LOG(2)))) -> 0 | AD12: =N12 -> 212 | AE12: =COUNTIF(L70:L101,AD12) -> 0 | AF12: =AE12/(AG4-AE10) -> 0 | AG12: =IF(AF12=0,0,(AF12*((LOG(AF12))/LOG(2)))) -> 0 | AI12: =N12 -> 212 | AJ12: =COUNTIF(L102:L133,AI12) -> 0 | AK12: =AJ12/(AL4-AJ10) -> 0 | AL12: =IF(AK12=0,0,(AK12*((LOG(AK12))/LOG(2)))) -> 0 | AN12: =N12 -> 212 | AO12: =COUNTIF(L134:L164,AN12) -> 0 | AP12: =AO12/(AQ4-AO10) -> 0 | AQ12: =IF(AP12=0,0,(AP12*((LOG(AP12))/LOG(2)))) -> 0 | AS12: =N12 -> 212 | AT12: =COUNTIF(L165:L196,AS12) -> 0 | AU12: =AT12/(AV4-AT10) -> 0 | AV12: =IF(AU12=0,0,(AU12*((LOG(AU12))/LOG(2)))) -> 0
A13: 22 | B13: 722 | C13: 14 | D13: 735 | E13: 14 | F13: 741 | K13: 0 | L13: 211 | N13: 221 | O13: =COUNTIF($L$7:$L$500,N13) -> 54 | P13: =O13/$Q$4 -> 0.2842105263 | Q13: =IF(P13=0,0,(P13*((LOG(P13))/LOG(2)))) -> -0.5158330407 | T13: =N13 -> 221 | U13: =COUNTIF(L7:L38,T13) -> 0 | V13: =U13/(W4-U10) -> 0 | W13: =IF(V13=0,0,(V13*((LOG(V13))/LOG(2)))) -> 0 | Y13: =N13 -> 221 | Z13: =COUNTIF(L39:L69,Y13) -> 6 | AA13: =Z13/(AB4-Z10) -> 0.1935483871 | AB13: =IF(AA13=0,0,(AA13*((LOG(AA13))/LOG(2)))) -> -0.4585613825 | AD13: =N13 -> 221 | AE13: =COUNTIF(L70:L101,AD13) -> 12 | AF13: =AE13/(AG4-AE10) -> 0.375 | AG13: =IF(AF13=0,0,(AF13*((LOG(AF13))/LOG(2)))) -> -0.5306390622 | AI13: =N13 -> 221 | AJ13: =COUNTIF(L102:L133,AI13) -> 8 | AK13: =AJ13/(AL4-AJ10) -> 0.25 | AL13: =IF(AK13=0,0,(AK13*((LOG(AK13))/LOG(2)))) -> -0.5 | AN13: =N13 -> 221 | AO13: =COUNTIF(L134:L164,AN13) -> 11 | AP13: =AO13/(AQ4-AO10) -> 0.3548387097 | AQ13: =IF(AP13=0,0,(AP13*((LOG(AP13))/LOG(2)))) -> -0.5304003745 | AS13: =N13 -> 221 | AT13: =COUNTIF(L165:L196,AS13) -> 17 | AU13: =AT13/(AV4-AT10) -> 0.53125 | AV13: =IF(AU13=0,0,(AU13*((LOG(AU13))/LOG(2)))) -> -0.4847853656
A14: 22 | B14: 844 | C14: 14 | D14: 856 | E14: 14 | F14: 862 | K14: 0 | L14: 211 | N14: 222 | O14: =COUNTIF($L$7:$L$500,N14) -> 12 | P14: =O14/$Q$4 -> 0.06315789474 | Q14: =IF(P14=0,0,(P14*((LOG(P14))/LOG(2)))) -> -0.2516774594 | T14: =N14 -> 222 | U14: =COUNTIF(L7:L38,T14) -> 0 | V14: =U14/(W4-U10) -> 0 | W14: =IF(V14=0,0,(V14*((LOG(V14))/LOG(2)))) -> 0 | Y14: =N14 -> 222 | Z14: =COUNTIF(L39:L69,Y14) -> 0 | AA14: =Z14/(AB4-Z10) -> 0 | AB14: =IF(AA14=0,0,(AA14*((LOG(AA14))/LOG(2)))) -> 0 | AD14: =N14 -> 222 | AE14: =COUNTIF(L70:L101,AD14) -> 6 | AF14: =AE14/(AG4-AE10) -> 0.1875 | AG14: =IF(AF14=0,0,(AF14*((LOG(AF14))/LOG(2)))) -> -0.4528195311 | AI14: =N14 -> 222 | AJ14: =COUNTIF(L102:L133,AI14) -> 2 | AK14: =AJ14/(AL4-AJ10) -> 0.0625 | AL14: =IF(AK14=0,0,(AK14*((LOG(AK14))/LOG(2)))) -> -0.25 | AN14: =N14 -> 222 | AO14: =COUNTIF(L134:L164,AN14) -> 3 | AP14: =AO14/(AQ4-AO10) -> 0.09677419355 | AQ14: =IF(AP14=0,0,(AP14*((LOG(AP14))/LOG(2)))) -> -0.3260548848 | AS14: =N14 -> 222 | AT14: =COUNTIF(L165:L196,AS14) -> 1 | AU14: =AT14/(AV4-AT10) -> 0.03125 | AV14: =IF(AU14=0,0,(AU14*((LOG(AU14))/LOG(2)))) -> -0.15625
A15: 22 | B15: 961 | C15: 14 | D15: 973 | E15: 14 | F15: 977 | K15: 0 | L15: 211 | P15: =SUM(P7:P14) -> 1 | Q15: =-SUM(Q7:Q14) -> 1.6850059 | V15: =SUM(V7:V14) -> 1 | W15: =-SUM(W7:W14) -> 0.6962122601 | AA15: =SUM(AA7:AA14) -> 1 | AB15: =-SUM(AB7:AB14) -> 1.220375637 | AF15: =SUM(AF7:AF14) -> 1 | AG15: =-SUM(AG7:AG14) -> 1.916615922 | AK15: =SUM(AK7:AK14) -> 1 | AL15: =-SUM(AL7:AL14) -> 1.824698735 | AP15: =SUM(AP7:AP14) -> 1 | AQ15: =-SUM(AQ7:AQ14) -> 1.618325528 | AU15: =SUM(AU7:AU14) -> 1 | AV15: =-SUM(AV7:AV14) -> 1.490765512
A16: 22 | B16: 1077 | C16: 14 | D16: 1090 | E16: 14 | F16: 1098 | K16: 0 | L16: 211 | P16: U= | Q16: =Q15/(LOG(Q4)/LOG(2)) -> 0.222594193 | V16: U1= | W16: =W15/(LOG(W4)/LOG(2)) -> 0.139242452 | AA16: U2= | AB16: =AB15/(LOG(AB4)/LOG(2)) -> 0.2463317076 | AF16: U3= | AG16: =AG15/(LOG(AG4)/LOG(2)) -> 0.3833231844 | AK16: U4= | AL16: =AL15/(LOG(AL4)/LOG(2)) -> 0.364939747 | AP16: U5= | AQ16: =AQ15/(LOG(AQ4)/LOG(2)) -> 0.3266575297 | AU16: U6= | AV16: =AV15/(LOG(AV4)/LOG(2)) -> 0.2981531024
A17: 22 | B17: 1199 | C17: 14 | D17: 1212 | E17: 14 | F17: 1220 | K17: 0 | L17: 211
A18: 22 | B18: 1320 | C18: 14 | D18: 1335 | E18: 14 | F18: 1339 | K18: 0 | L18: 211
A19: 22 | B19: 1438 | C19: 14 | D19: 1450 | E19: 14 | F19: 1458 | K19: 0 | L19: 211 | N19: Total Target Seq
A20: 22 | B20: 1557 | C20: 14 | D20: 1568 | E20: 14 | F20: 1573 | K20: 0 | L20: 211 | N20: =COUNTIF(L7:L196,G3) -> 0 | P20: 32 | Q20: 31 | R20: 32 | S20: 32 | T20: 31 | U20: 32
A21: 11 | B21: 1688 | C21: 12 | D21: 1693 | E21: 14 | F21: 1704 | K21: 0 | L21: 111 | P21: % of reinforcement given in 6 equal intervals based on number of trials
A22: 22 | B22: 1805 | C22: 14 | D22: 1818 | E22: 14 | F22: 1823 | K22: 0 | L22: 211 | P22: %_1 | Q22: %_2 | R22: %_3 | S22: %_4 | T22: %_5 | U22: %_6
A23: 22 | B23: 1924 | C23: 14 | D23: 1937 | E23: 14 | F23: 1942 | K23: 0 | L23: 211 | O23: target sequence | P23: =$G$3 -> 122 | Q23: =$G$3 -> 122 | R23: =$G$3 -> 122 | S23: =$G$3 -> 122 | T23: =$G$3 -> 122 | U23: =$G$3 -> 122
A24: 22 | B24: 2043 | C24: 14 | D24: 2056 | E24: 14 | F24: 2064 | K24: 0 | L24: 211 | O24: total reinforcement | P24: =U10 -> 0 | Q24: =Z10 -> 0 | R24: =AE10 -> 0 | S24: =AJ10 -> 0 | T24: =AO10 -> 0 | U24: =AT10 -> 0
A25: 22 | B25: 2163 | C25: 14 | D25: 2174 | E25: 14 | F25: 2179 | K25: 0 | L25: 211 | O25: % target
A26: 22 | B26: 2279 | C26: 14 | D26: 2290 | E26: 14 | F26: 2297 | K26: 0 | L26: 211 | O26: CCRF
A27: 22 | B27: 2395 | C27: 14 | D27: 2407 | E27: 14 | F27: 2411 | K27: 0 | L27: 211 | O27: % CCRf
A28: 22 | B28: 2512 | C28: 14 | D28: 2523 | E28: 14 | F28: 2530 | K28: 0 | L28: 211 | O28: average response rate | P28: =F38/P20 -> 117.375 | Q28: =(F69-F38)/Q20 -> 123.8387097 | R28: =(F101-F69)/R20 -> 130.375 | S28: =(F133-F101)/S20 -> 132.78125 | T28: =(F164-F133)/T20 -> 125.2580645 | U28: =(F196-F164)/U20 -> 127.59375
A29: 22 | B29: 2629 | C29: 14 | D29: 2641 | E29: 14 | F29: 2648 | K29: 0 | L29: 211
A30: 11 | B30: 2757 | C30: 12 | D30: 2762 | E30: 14 | F30: 2770 | K30: 0 | L30: 111
A31: 22 | B31: 2868 | C31: 14 | D31: 2880 | E31: 14 | F31: 2886 | K31: 0 | L31: 211
A32: 11 | B32: 2999 | C32: 12 | D32: 3006 | E32: 14 | F32: 3013 | K32: 0 | L32: 111
A33: 11 | B33: 3127 | C33: 12 | D33: 3134 | E33: 14 | F33: 3153 | K33: 0 | L33: 111
A34: 22 | B34: 3252 | C34: 14 | D34: 3262 | E34: 14 | F34: 3270 | K34: 0 | L34: 211
A35: 22 | B35: 3370 | C35: 14 | D35: 3384 | E35: 14 | F35: 3394 | K35: 0 | L35: 211
A36: 22 | B36: 3493 | C36: 14 | D36: 3508 | E36: 14 | F36: 3512 | K36: 0 | L36: 211
A37: 22 | B37: 3612 | C37: 14 | D37: 3624 | E37: 14 | F37: 3632 | K37: 0 | L37: 211
A38: 22 | B38: 3731 | C38: 14 | D38: 3743 | E38: 14 | F38: 3756 | K38: 0 | L38: 211
A39: 11 | B39: 3872 | C39: 12 | D39: 3879 | E39: 14 | F39: 3892 | K39: 0 | L39: 111
A40: 22 | B40: 3991 | C40: 14 | D40: 4006 | E40: 14 | F40: 4012 | K40: 0 | L40: 211
A41: 22 | B41: 4113 | C41: 14 | D41: 4126 | E41: 14 | F41: 4132 | K41: 0 | L41: 211
A42: 22 | B42: 4232 | C42: 14 | D42: 4244 | E42: 14 | F42: 4250 | K42: 0 | L42: 211
A43: 22 | B43: 4352 | C43: 14 | D43: 4360 | E43: 14 | F43: 4374 | K43: 0 | L43: 211
A44: 11 | B44: 4487 | C44: 12 | D44: 4495 | E44: 14 | F44: 4501 | K44: 0 | L44: 111
A45: 22 | B45: 4600 | C45: 14 | D45: 4612 | E45: 14 | F45: 4616 | K45: 0 | L45: 211
A46: 22 | B46: 4720 | C46: 14 | D46: 4733 | E46: 14 | F46: 4741 | K46: 0 | L46: 211
A47: 22 | B47: 4840 | C47: 14 | D47: 4862 | E47: 14 | F47: 4868 | K47: 0 | L47: 211
A48: 11 | B48: 4983 | C48: 12 | D48: 4988 | E48: 14 | F48: 4995 | K48: 0 | L48: 111
A49: 22 | B49: 5118 | C49: 14 | D49: 5130 | E49: 14 | F49: 5134 | K49: 0 | L49: 211
A50: 22 | B50: 5234 | C50: 14 | D50: 5250 | E50: 14 | F50: 5256 | K50: 0 | L50: 211
A51: 22 | B51: 5359 | C51: 14 | D51: 5372 | E51: 14 | F51: 5380 | K51: 0 | L51: 211
A52: 11 | B52: 5493 | C52: 12 | D52: 5511 | E52: 14 | F52: 5518 | K52: 0 | L52: 111
A53: 22 | B53: 5617 | C53: 14 | D53: 5628 | E53: 14 | F53: 5633 | K53: 0 | L53: 211
A54: 22 | B54: 5732 | C54: 14 | D54: 5745 | E54: 14 | F54: 5752 | K54: 0 | L54: 211
A55: 22 | B55: 5851 | C55: 14 | D55: 5863 | E55: 14 | F55: 5871 | K55: 0 | L55: 211
A56: 22 | B56: 5971 | C56: 23 | D56: 5980 | E56: 14 | F56: 5992 | K56: 0 | L56: 221
A57: 22 | B57: 6087 | C57: 14 | D57: 6099 | E57: 14 | F57: 6103 | K57: 0 | L57: 211
A58: 22 | B58: 6203 | C58: 14 | D58: 6215 | E58: 14 | F58: 6220 | K58: 0 | L58: 211
A59: 22 | B59: 6321 | C59: 14 | D59: 6334 | E59: 14 | F59: 6341 | K59: 0 | L59: 211
A60: 22 | B60: 6439 | C60: 14 | D60: 6462 | E60: 14 | F60: 6469 | K60: 0 | L60: 211
A61: 22 | B61: 6569 | C61: 23 | D61: 6577 | E61: 14 | F61: 6591 | K61: 0 | L61: 221
A62: 22 | B62: 6690 | C62: 23 | D62: 6707 | E62: 14 | F62: 6720 | K62: 0 | L62: 221
A63: 22 | B63: 6819 | C63: 14 | D63: 6831 | E63: 14 | F63: 6838 | K63: 0 | L63: 211
A64: 22 | B64: 6937 | C64: 14 | D64: 6950 | E64: 14 | F64: 6954 | K64: 0 | L64: 211
A65: 22 | B65: 7071 | C65: 14 | D65: 7086 | E65: 14 | F65: 7092 | K65: 0 | L65: 211
A66: 22 | B66: 7190 | C66: 23 | D66: 7209 | E66: 14 | F66: 7221 | K66: 0 | L66: 221
A67: 22 | B67: 7323 | C67: 23 | D67: 7345 | E67: 14 | F67: 7355 | K67: 0 | L67: 221
A68: 22 | B68: 7457 | C68: 14 | D68: 7470 | E68: 14 | F68: 7476 | K68: 0 | L68: 211
A69: 22 | B69: 7573 | C69: 23 | D69: 7582 | E69: 14 | F69: 7595 | K69: 0 | L69: 221
A70: 22 | B70: 7696 | C70: 14 | D70: 7708 | E70: 14 | F70: 7716 | K70: 0 | L70: 211
A71: 22 | B71: 7815 | C71: 23 | D71: 7826 | E71: 14 | F71: 7839 | K71: 0 | L71: 221
A72: 22 | B72: 7941 | C72: 23 | D72: 7955 | E72: 14 | F72: 7972 | K72: 0 | L72: 221
A73: 22 | B73: 8072 | C73: 23 | D73: 8082 | E73: 14 | F73: 8095 | K73: 0 | L73: 221
A74: 22 | B74: 8195 | C74: 23 | D74: 8205 | E74: 14 | F74: 8220 | K74: 0 | L74: 221
A75: 22 | B75: 8319 | C75: 23 | D75: 8340 | E75: 14 | F75: 8353 | K75: 0 | L75: 221
A76: 22 | B76: 8481 | C76: 14 | D76: 8498 | E76: 14 | F76: 8504 | K76: 0 | L76: 211
A77: 22 | B77: 8603 | C77: 23 | D77: 8612 | E77: 23 | F77: 8629 | K77: 0 | L77: 222
A78: 22 | B78: 8734 | C78: 23 | D78: 8745 | E78: 23 | F78: 8762 | K78: 0 | L78: 222
A79: 22 | B79: 8862 | C79: 23 | D79: 8870 | E79: 23 | F79: 8878 | K79: 0 | L79: 222
A80: 22 | B80: 8992 | C80: 14 | D80: 9007 | E80: 14 | F80: 9014 | K80: 0 | L80: 211
A81: 22 | B81: 9114 | C81: 23 | D81: 9124 | E81: 23 | F81: 9141 | K81: 0 | L81: 222
A82: 11 | B82: 9258 | C82: 12 | D82: 9264 | E82: 14 | F82: 9271 | K82: 0 | L82: 111
A83: 22 | B83: 9372 | C83: 23 | D83: 9382 | E83: 14 | F83: 9395 | K83: 0 | L83: 221
A84: 11 | B84: 9520 | C84: 12 | D84: 9525 | E84: 14 | F84: 9535 | K84: 0 | L84: 111
A85: 22 | B85: 9651 | C85: 14 | D85: 9666 | E85: 14 | F85: 9671 | K85: 0 | L85: 211
A86: 11 | B86: 9804 | C86: 12 | D86: 9810 | E86: 14 | F86: 9817 | K86: 0 | L86: 111
A87: 11 | B87: 9936 | C87: 12 | D87: 9946 | E87: 14 | F87: 9954 | K87: 0 | L87: 111
A88: 22 | B88: 10053 | C88: 23 | D88: 10060 | E88: 14 | F88: 10081 | K88: 0 | L88: 221
A89: 22 | B89: 10178 | C89: 23 | D89: 10186 | E89: 14 | F89: 10199 | K89: 0 | L89: 221
A90: 22 | B90: 10298 | C90: 23 | D90: 10306 | E90: 14 | F90: 10321 | K90: 0 | L90: 221
A91: 22 | B91: 10421 | C91: 23 | D91: 10434 | E91: 14 | F91: 10458 | K91: 0 | L91: 221
A92: 22 | B92: 10577 | C92: 14 | D92: 10591 | E92: 14 | F92: 10599 | K92: 0 | L92: 211
A93: 22 | B93: 10713 | C93: 14 | D93: 10727 | E93: 14 | F93: 10734 | K93: 0 | L93: 211
A94: 22 | B94: 10844 | C94: 14 | D94: 10858 | E94: 14 | F94: 10864 | K94: 0 | L94: 211
A95: 22 | B95: 10962 | C95: 23 | D95: 10974 | E95: 14 | F95: 10987 | K95: 0 | L95: 221
A96: 22 | B96: 11086 | C96: 23 | D96: 11094 | E96: 23 | F96: 11107 | K96: 0 | L96: 222
A97: 22 | B97: 11206 | C97: 23 | D97: 11217 | E97: 23 | F97: 11225 | K97: 0 | L97: 222
A98: 11 | B98: 11362 | C98: 12 | D98: 11367 | E98: 14 | F98: 11375 | K98: 0 | L98: 111
A99: 22 | B99: 11478 | C99: 23 | D99: 11486 | E99: 14 | F99: 11499 | K99: 0 | L99: 221
A100: 22 | B100: 11602 | C100: 14 | D100: 11621 | E100: 14 | F100: 11625 | K100: 0 | L100: 211
A101: 22 | B101: 11734 | C101: 14 | D101: 11753 | E101: 14 | F101: 11767 | K101: 0 | L101: 211
A102: 22 | B102: 11867 | C102: 23 | D102: 11875 | E102: 23 | F102: 11886 | K102: 0 | L102: 222
A103: 22 | B103: 11985 | C103: 23 | D103: 11993 | E103: 14 | F103: 12006 | K103: 0 | L103: 221
A104: 11 | B104: 12104 | C104: 12 | D104: 12113 | E104: 14 | F104: 12121 | K104: 0 | L104: 111
A105: 22 | B105: 12220 | C105: 23 | D105: 12227 | E105: 14 | F105: 12242 | K105: 0 | L105: 221
A106: 22 | B106: 12345 | C106: 23 | D106: 12361 | E106: 14 | F106: 12373 | K106: 0 | L106: 221
A107: 11 | B107: 12507 | C107: 12 | D107: 12514 | E107: 14 | F107: 12521 | K107: 0 | L107: 111
A108: 22 | B108: 12621 | C108: 23 | D108: 12630 | E108: 14 | F108: 12646 | K108: 0 | L108: 221
A109: 22 | B109: 12746 | C109: 14 | D109: 12761 | E109: 14 | F109: 12773 | K109: 0 | L109: 211
A110: 11 | B110: 12886 | C110: 21 | D110: 12900 | E110: 12 | F110: 12913 | K110: 0 | L110: 121
A111: 11 | B111: 13105 | C111: 12 | D111: 13117 | E111: 14 | F111: 13127 | K111: 0 | L111: 111
A112: 11 | B112: 13226 | C112: 12 | D112: 13233 | E112: 14 | F112: 13243 | K112: 0 | L112: 111
A113: 22 | B113: 13359 | C113: 14 | D113: 13387 | E113: 14 | F113: 13394 | K113: 0 | L113: 211
A114: 22 | B114: 13495 | C114: 23 | D114: 13503 | E114: 14 | F114: 13516 | K114: 0 | L114: 221
A115: 22 | B115: 13632 | C115: 14 | D115: 13656 | E115: 14 | F115: 13667 | K115: 0 | L115: 211
A116: 22 | B116: 13777 | C116: 14 | D116: 13796 | E116: 14 | F116: 13803 | K116: 0 | L116: 211
A117: 22 | B117: 13914 | C117: 14 | D117: 13943 | E117: 14 | F117: 13948 | K117: 0 | L117: 211
A118: 22 | B118: 14051 | C118: 14 | D118: 14065 | E118: 14 | F118: 14072 | K118: 0 | L118: 211
A119: 22 | B119: 14175 | C119: 14 | D119: 14195 | E119: 14 | F119: 14203 | K119: 0 | L119: 211
A120: 22 | B120: 14303 | C120: 23 | D120: 14313 | E120: 14 | F120: 14331 | K120: 0 | L120: 221
A121: 22 | B121: 14430 | C121: 23 | D121: 14440 | E121: 14 | F121: 14452 | K121: 0 | L121: 221
A122: 11 | B122: 14569 | C122: 12 | D122: 14575 | E122: 14 | F122: 14583 | K122: 0 | L122: 111
A123: 22 | B123: 14684 | C123: 23 | D123: 14715 | E123: 23 | F123: 14725 | K123: 0 | L123: 222
A124: 22 | B124: 14827 | C124: 14 | D124: 14841 | E124: 14 | F124: 14846 | K124: 0 | L124: 211
A125: 22 | B125: 14950 | C125: 14 | D125: 14963 | E125: 14 | F125: 14971 | K125: 0 | L125: 211
A126: 22 | B126: 15074 | C126: 14 | D126: 15089 | E126: 14 | F126: 15096 | K126: 0 | L126: 211
A127: 22 | B127: 15196 | C127: 14 | D127: 15211 | E127: 14 | F127: 15217 | K127: 0 | L127: 211
A128: 22 | B128: 15317 | C128: 14 | D128: 15329 | E128: 14 | F128: 15334 | K128: 0 | L128: 211
A129: 22 | B129: 15462 | C129: 14 | D129: 15475 | E129: 14 | F129: 15483 | K129: 0 | L129: 211
A130: 22 | B130: 15582 | C130: 14 | D130: 15597 | E130: 14 | F130: 15605 | K130: 0 | L130: 211
A131: 22 | B131: 15705 | C131: 23 | D131: 15712 | E131: 14 | F131: 15728 | K131: 0 | L131: 221
A132: 22 | B132: 15827 | C132: 14 | D132: 15855 | E132: 14 | F132: 15860 | K132: 0 | L132: 211
A133: 22 | B133: 15969 | C133: 14 | D133: 16008 | E133: 14 | F133: 16016 | K133: 0 | L133: 211
A134: 22 | B134: 16115 | C134: 14 | D134: 16137 | E134: 14 | F134: 16148 | K134: 0 | L134: 211
A135: 22 | B135: 16247 | C135: 14 | D135: 16261 | E135: 14 | F135: 16265 | K135: 0 | L135: 211
A136: 22 | B136: 16364 | C136: 23 | D136: 16373 | E136: 14 | F136: 16390 | K136: 0 | L136: 221
A137: 22 | B137: 16488 | C137: 14 | D137: 16502 | E137: 14 | F137: 16507 | K137: 0 | L137: 211
A138: 22 | B138: 16617 | C138: 14 | D138: 16637 | E138: 14 | F138: 16645 | K138: 0 | L138: 211
A139: 22 | B139: 16744 | C139: 23 | D139: 16755 | E139: 14 | F139: 16768 | K139: 0 | L139: 221
A140: 22 | B140: 16877 | C140: 14 | D140: 16891 | E140: 14 | F140: 16902 | K140: 0 | L140: 211
A141: 22 | B141: 17011 | C141: 23 | D141: 17018 | E141: 14 | F141: 17037 | K141: 0 | L141: 221
A142: 22 | B142: 17138 | C142: 14 | D142: 17156 | E142: 14 | F142: 17166 | K142: 0 | L142: 211
A143: 22 | B143: 17281 | C143: 14 | D143: 17298 | E143: 14 | F143: 17304 | K143: 0 | L143: 211
A144: 22 | B144: 17403 | C144: 23 | D144: 17411 | E144: 14 | F144: 17425 | K144: 0 | L144: 221
A145: 22 | B145: 17525 | C145: 14 | D145: 17538 | E145: 14 | F145: 17553 | K145: 0 | L145: 211
A146: 22 | B146: 17650 | C146: 14 | D146: 17666 | E146: 14 | F146: 17673 | K146: 0 | L146: 211
A147: 22 | B147: 17774 | C147: 14 | D147: 17786 | E147: 14 | F147: 17793 | K147: 0 | L147: 211
A148: 11 | B148: 17906 | C148: 12 | D148: 17912 | E148: 14 | F148: 17919 | K148: 0 | L148: 111
A149: 22 | B149: 18019 | C149: 14 | D149: 18032 | E149: 14 | F149: 18037 | K149: 0 | L149: 211
A150: 22 | B150: 18137 | C150: 23 | D150: 18143 | E150: 14 | F150: 18157 | K150: 0 | L150: 221
A151: 22 | B151: 18256 | C151: 23 | D151: 18263 | E151: 23 | F151: 18273 | K151: 0 | L151: 222
A152: 22 | B152: 18374 | C152: 14 | D152: 18404 | E152: 14 | F152: 18411 | K152: 0 | L152: 211
A153: 22 | B153: 18510 | C153: 23 | D153: 18517 | E153: 14 | F153: 18535 | K153: 0 | L153: 221
A154: 22 | B154: 18634 | C154: 23 | D154: 18653 | E154: 14 | F154: 18668 | K154: 0 | L154: 221
A155: 22 | B155: 18767 | C155: 14 | D155: 18780 | E155: 14 | F155: 18791 | K155: 0 | L155: 211
A156: 22 | B156: 18889 | C156: 23 | D156: 18898 | E156: 14 | F156: 18911 | K156: 0 | L156: 221
A157: 22 | B157: 19009 | C157: 23 | D157: 19019 | E157: 23 | F157: 19026 | K157: 0 | L157: 222
A158: 22 | B158: 19135 | C158: 14 | D158: 19149 | E158: 14 | F158: 19154 | K158: 0 | L158: 211
A159: 11 | B159: 19274 | C159: 12 | D159: 19281 | E159: 14 | F159: 19288 | K159: 0 | L159: 111
A160: 22 | B160: 19387 | C160: 23 | D160: 19395 | E160: 14 | F160: 19407 | K160: 0 | L160: 221
A161: 22 | B161: 19505 | C161: 23 | D161: 19513 | E161: 14 | F161: 19530 | K161: 0 | L161: 221
A162: 22 | B162: 19634 | C162: 14 | D162: 19647 | E162: 14 | F162: 19654 | K162: 0 | L162: 211
A163: 22 | B163: 19758 | C163: 23 | D163: 19766 | E163: 23 | F163: 19779 | K163: 0 | L163: 222
A164: 22 | B164: 19877 | C164: 23 | D164: 19886 | E164: 14 | F164: 19899 | K164: 0 | L164: 221
A165: 22 | B165: 19998 | C165: 14 | D165: 20012 | E165: 14 | F165: 20019 | K165: 0 | L165: 211
A166: 11 | B166: 20135 | C166: 12 | D166: 20141 | E166: 14 | F166: 20148 | K166: 0 | L166: 111
A167: 22 | B167: 20249 | C167: 14 | D167: 20282 | E167: 14 | F167: 20290 | K167: 0 | L167: 211
A168: 11 | B168: 20402 | C168: 12 | D168: 20407 | E168: 14 | F168: 20416 | K168: 0 | L168: 111
A169: 22 | B169: 20514 | C169: 23 | D169: 20525 | E169: 14 | F169: 20541 | K169: 0 | L169: 221
A170: 22 | B170: 20648 | C170: 23 | D170: 20657 | E170: 14 | F170: 20677 | K170: 0 | L170: 221
A171: 22 | B171: 20776 | C171: 23 | D171: 20784 | E171: 14 | F171: 20799 | K171: 0 | L171: 221
A172: 22 | B172: 20905 | C172: 23 | D172: 20913 | E172: 14 | F172: 20927 | K172: 0 | L172: 221
A173: 22 | B173: 21027 | C173: 23 | D173: 21045 | E173: 23 | F173: 21058 | K173: 0 | L173: 222
A174: 22 | B174: 21162 | C174: 14 | D174: 21177 | E174: 14 | F174: 21189 | K174: 0 | L174: 211
A175: 22 | B175: 21291 | C175: 23 | D175: 21298 | E175: 14 | F175: 21324 | K175: 0 | L175: 221
A176: 22 | B176: 21428 | C176: 23 | D176: 21437 | E176: 14 | F176: 21450 | K176: 0 | L176: 221
A177: 22 | B177: 21552 | C177: 23 | D177: 21560 | E177: 14 | F177: 21573 | K177: 0 | L177: 221
A178: 22 | B178: 21670 | C178: 23 | D178: 21677 | E178: 14 | F178: 21690 | K178: 0 | L178: 221
A179: 11 | B179: 21810 | C179: 12 | D179: 21818 | E179: 14 | F179: 21825 | K179: 0 | L179: 111
A180: 22 | B180: 21929 | C180: 14 | D180: 21941 | E180: 14 | F180: 21956 | K180: 0 | L180: 211
A181: 22 | B181: 22063 | C181: 14 | D181: 22077 | E181: 14 | F181: 22086 | K181: 0 | L181: 211
A182: 22 | B182: 22183 | C182: 14 | D182: 22199 | E182: 14 | F182: 22204 | K182: 0 | L182: 211
A183: 22 | B183: 22329 | C183: 14 | D183: 22341 | E183: 14 | F183: 22347 | K183: 0 | L183: 211
A184: 22 | B184: 22450 | C184: 14 | D184: 22480 | E184: 14 | F184: 22486 | K184: 0 | L184: 211
A185: 22 | B185: 22585 | C185: 14 | D185: 22599 | E185: 14 | F185: 22606 | K185: 0 | L185: 211
A186: 22 | B186: 22714 | C186: 23 | D186: 22722 | E186: 14 | F186: 22735 | K186: 0 | L186: 221
A187: 22 | B187: 22836 | C187: 14 | D187: 22851 | E187: 14 | F187: 22858 | K187: 0 | L187: 211
A188: 22 | B188: 22958 | C188: 23 | D188: 22966 | E188: 14 | F188: 22978 | K188: 0 | L188: 221
A189: 22 | B189: 23079 | C189: 23 | D189: 23087 | E189: 14 | F189: 23101 | K189: 0 | L189: 221
A190: 22 | B190: 23198 | C190: 23 | D190: 23207 | E190: 14 | F190: 23227 | K190: 0 | L190: 221
A191: 22 | B191: 23333 | C191: 14 | D191: 23345 | E191: 14 | F191: 23352 | K191: 0 | L191: 211
A192: 22 | B192: 23453 | C192: 23 | D192: 23466 | E192: 14 | F192: 23478 | K192: 0 | L192: 221
A193: 22 | B193: 23578 | C193: 23 | D193: 23585 | E193: 14 | F193: 23600 | K193: 0 | L193: 221
A194: 22 | B194: 23702 | C194: 23 | D194: 23713 | E194: 14 | F194: 23726 | K194: 0 | L194: 221
A195: 22 | B195: 23828 | C195: 23 | D195: 23835 | E195: 14 | F195: 23849 | K195: 0 | L195: 221
A196: 22 | B196: 23959 | C196: 23 | D196: 23968 | E196: 14 | F196: 23982 | L196: 221

Sheet !M716850.104
A1: Report for:!M716850.104
A2: Date: | B2: <date>
A3: Hen: | B3: <hen> | F3: Correct Sequence | G3: =Start!J2 -> 122 | P3: Total Sequences in Data | Q3: =4994-COUNTBLANK(L7:L5000) -> 156 | V3: Total Sequences in Block Data | W3: =COUNTA(L7:L32) -> 26 | AA3: Total Sequences in Block Data | AB3: =COUNTA(L33:L58) -> 26 | AF3: Total Sequences in Block Data | AG3: =COUNTA(L59:L84) -> 26 | AK3: Total Sequences in Block Data | AL3: =COUNTA(L85:L110) -> 26 | AP3: Total Sequences in Block Data | AQ3: =COUNTA(L111:L136) -> 26 | AU3: Total Sequences in Block Data | AV3: =COUNTA(L137:L162) -> 26
P4: Total Sequences in Summary | Q4: =SUM(O7:O14) -> 156 | V4: Total Sequences in Block Summary | W4: =SUM(U7:U14) -> 26 | AA4: Total Sequences in Block Summary | AB4: =SUM(Z7:Z14) -> 26 | AF4: Total Sequences in Block Summary | AG4: =SUM(AE7:AE14) -> 26 | AK4: Total Sequences in Block Summary | AL4: =SUM(AJ7:AJ14) -> 26 | AP4: Total Sequences in Block Summary | AQ4: =SUM(AO7:AO14) -> 26 | AU4: Total Sequences in Block Summary | AV4: =SUM(AT7:AT14) -> 26
T5: Block 1 | Y5: Block 2 | AD5: Block 3 | AI5: Block 4 | AN5: Block 5 | AS5: Block 6
A6: Sequence Component 1 | B6: Time 1 | C6: Sequence Component 2 | D6: Time 2 | E6: Sequence Component 3 | F6: Time 3 | G6: Sequence Component 4 | H6: Time 4 | I6: Sequence Component 5 | J6: Time 5 | K6: Correct? 0=No 1=Yes | L6: Sequence | N6: Frequency | P6: Relative Frequency | Q6: Variability | T6: Frequency | V6: Relative Frequency | W6: Variability | Y6: Frequency | AA6: Relative Frequency | AB6: Variability | AD6: Frequency | AF6: Relative Frequency | AG6: Variability | AI6: Frequency | AK6: Relative Frequency | AL6: Variability | AN6: Frequency | AP6: Relative Frequency | AQ6: Variability | AS6: Frequency | AU6: Relative Frequency | AV6: Variability
A7: 11 | B7: 19 | C7: 12 | D7: 24 | E7: 14 | F7: 31 | K7: 0 | L7: 111 | N7: 111 | O7: =COUNTIF($L$7:$L$500,N7) -> 72 | P7: =O7/$Q$4 -> 0.4615384615 | Q7: =IF(P7=0,0,(P7*((LOG(P7))/LOG(2)))) -> -0.5148356388 | T7: =N7 -> 111 | U7: =COUNTIF(L7:L32,T7) -> 5 | V7: =U7/(W4-U10) -> 0.1923076923 | W7: =IF(V7=0,0,(V7*((LOG(V7))/LOG(2)))) -> -0.4574060814 | Y7: =N7 -> 111 | Z7: =COUNTIF(L33:L58,Y7) -> 10 | AA7: =Z7/(AB4-Z10) -> 0.3846153846 | AB7: =IF(AA7=0,0,(AA7*((LOG(AA7))/LOG(2)))) -> -0.5301967782 | AD7: =N7 -> 111 | AE7: =COUNTIF(L59:L84,AD7) -> 16 | AF7: =AE7/(AG4-AE10) -> 0.6153846154 | AG7: =IF(AF7=0,0,(AF7*((LOG(AF7))/LOG(2)))) -> -0.4310398265 | AI7: =N7 -> 111 | AJ7: =COUNTIF(L85:L110,AI7) -> 7 | AK7: =AJ7/(AL4-AJ10) -> 0.2692307692 | AL7: =IF(AK7=0,0,(AK7*((LOG(AK7))/LOG(2)))) -> -0.5096766759 | AN7: =N7 -> 111 | AO7: =COUNTIF(L111:L136,AN7) -> 17 | AP7: =AO7/(AQ4-AO10) -> 0.6538461538 | AQ7: =IF(AP7=0,0,(AP7*((LOG(AP7))/LOG(2)))) -> -0.4007925734 | AS7: =N7 -> 111 | AT7: =COUNTIF(L137:L162,AS7) -> 17 | AU7: =AT7/(AV4-AT10) -> 0.6538461538 | AV7: =IF(AU7=0,0,(AU7*((LOG(AU7))/LOG(2)))) -> -0.4007925734
A8: 11 | B8: 132 | C8: 12 | D8: 140 | E8: 14 | F8: 148 | K8: 0 | L8: 111 | N8: 112 | O8: =COUNTIF($L$7:$L$500,N8) -> 1 | P8: =O8/$Q$4 -> 0.00641025641 | Q8: =IF(P8=0,0,(P8*((LOG(P8))/LOG(2)))) -> -0.04670129627 | T8: =N8 -> 112 | U8: =COUNTIF(L7:L32,T8) -> 0 | V8: =U8/(W4-U10) -> 0 | W8: =IF(V8=0,0,(V8*((LOG(V8))/LOG(2)))) -> 0 | Y8: =N8 -> 112 | Z8: =COUNTIF(L33:L58,Y8) -> 0 | AA8: =Z8/(AB4-Z10) -> 0 | AB8: =IF(AA8=0,0,(AA8*((LOG(AA8))/LOG(2)))) -> 0 | AD8: =N8 -> 112 | AE8: =COUNTIF(L59:L84,AD8) -> 0 | AF8: =AE8/(AG4-AE10) -> 0 | AG8: =IF(AF8=0,0,(AF8*((LOG(AF8))/LOG(2)))) -> 0 | AI8: =N8 -> 112 | AJ8: =COUNTIF(L85:L110,AI8) -> 1 | AK8: =AJ8/(AL4-AJ10) -> 0.03846153846 | AL8: =IF(AK8=0,0,(AK8*((LOG(AK8))/LOG(2)))) -> -0.180786143 | AN8: =N8 -> 112 | AO8: =COUNTIF(L111:L136,AN8) -> 0 | AP8: =AO8/(AQ4-AO10) -> 0 | AQ8: =IF(AP8=0,0,(AP8*((LOG(AP8))/LOG(2)))) -> 0 | AS8: =N8 -> 112 | AT8: =COUNTIF(L137:L162,AS8) -> 0 | AU8: =AT8/(AV4-AT10) -> 0 | AV8: =IF(AU8=0,0,(AU8*((LOG(AU8))/LOG(2)))) -> 0
A9: 11 | B9: 260 | C9: 12 | D9: 266 | E9: 14 | F9: 275 | K9: 0 | L9: 111 | N9: 121 | O9: =COUNTIF($L$7:$L$500,N9) -> 0 | P9: =O9/$Q$4 -> 0 | Q9: =IF(P9=0,0,(P9*((LOG(P9))/LOG(2)))) -> 0 | T9: =N9 -> 121 | U9: =COUNTIF(L7:L32,T9) -> 0 | V9: =U9/(W4-U10) -> 0 | W9: =IF(V9=0,0,(V9*((LOG(V9))/LOG(2)))) -> 0 | Y9: =N9 -> 121 | Z9: =COUNTIF(L33:L58,Y9) -> 0 | AA9: =Z9/(AB4-Z10) -> 0 | AB9: =IF(AA9=0,0,(AA9*((LOG(AA9))/LOG(2)))) -> 0 | AD9: =N9 -> 121 | AE9: =COUNTIF(L59:L84,AD9) -> 0 | AF9: =AE9/(AG4-AE10) -> 0 | AG9: =IF(AF9=0,0,(AF9*((LOG(AF9))/LOG(2)))) -> 0 | AI9: =N9 -> 121 | AJ9: =COUNTIF(L85:L110,AI9) -> 0 | AK9: =AJ9/(AL4-AJ10) -> 0 | AL9: =IF(AK9=0,0,(AK9*((LOG(AK9))/LOG(2)))) -> 0 | AN9: =N9 -> 121 | AO9: =COUNTIF(L111:L136,AN9) -> 0 | AP9: =AO9/(AQ4-AO10) -> 0 | AQ9: =IF(AP9=0,0,(AP9*((LOG(AP9))/LOG(2)))) -> 0 | AS9: =N9 -> 121 | AT9: =COUNTIF(L137:L162,AS9) -> 0 | AU9: =AT9/(AV4-AT10) -> 0 | AV9: =IF(AU9=0,0,(AU9*((LOG(AU9))/LOG(2)))) -> 0
A10: 22 | B10: 379 | C10: 14 | D10: 393 | E10: 14 | F10: 398 | K10: 0 | L10: 211 | N10: 122 | O10: =COUNTIF($L$7:$L$500,N10) -> 0 | P10: =O10/$Q$4 -> 0 | Q10: =IF(P10=0,0,(P10*((LOG(P10))/LOG(2)))) -> 0 | T10: =N10 -> 122 | U10: =COUNTIF(L7:L32,T10) -> 0 | Y10: =N10 -> 122 | Z10: =COUNTIF(L33:L58,Y10) -> 0 | AD10: =N10 -> 122 | AE10: =COUNTIF(L59:L84,AD10) -> 0 | AI10: =N10 -> 122 | AJ10: =COUNTIF(L85:L110,AI10) -> 0 | AN10: =N10 -> 122 | AO10: =COUNTIF(L111:L136,AN10) -> 0 | AS10: =N10 -> 122 | AT10: =COUNTIF(L137:L162,AS10) -> 0
A11: 22 | B11: 496 | C11: 14 | D11: 517 | E11: 14 | F11: 527 | K11: 0 | L11: 211 | N11: 211 | O11: =COUNTIF($L$7:$L$500,N11) -> 37 | P11: =O11/$Q$4 -> 0.2371794872 | Q11: =IF(P11=0,0,(P11*((LOG(P11))/LOG(2)))) -> -0.4923724844 | T11: =N11 -> 211 | U11: =COUNTIF(L7:L32,T11) -> 7 | V11: =U11/(W4-U10) -> 0.2692307692 | W11: =IF(V11=0,0,(V11*((LOG(V11))/LOG(2)))) -> -0.5096766759 | Y11: =N11 -> 211 | Z11: =COUNTIF(L33:L58,Y11) -> 6 | AA11: =Z11/(AB4-Z10) -> 0.2307692308 | AB11: =IF(AA11=0,0,(AA11*((LOG(AA11))/LOG(2)))) -> -0.4881870502 | AD11: =N11 -> 211 | AE11: =COUNTIF(L59:L84,AD11) -> 6 | AF11: =AE11/(AG4-AE10) -> 0.2307692308 | AG11: =IF(AF11=0,0,(AF11*((LOG(AF11))/LOG(2)))) -> -0.4881870502 | AI11: =N11 -> 211 | AJ11: =COUNTIF(L85:L110,AI11) -> 6 | AK11: =AJ11/(AL4-AJ10) -> 0.2307692308 | AL11: =IF(AK11=0,0,(AK11*((LOG(AK11))/LOG(2)))) -> -0.4881870502 | AN11: =N11 -> 211 | AO11: =COUNTIF(L111:L136,AN11) -> 6 | AP11: =AO11/(AQ4-AO10) -> 0.2307692308 | AQ11: =IF(AP11=0,0,(AP11*((LOG(AP11))/LOG(2)))) -> -0.4881870502 | AS11: =N11 -> 211 | AT11: =COUNTIF(L137:L162,AS11) -> 6 | AU11: =AT11/(AV4-AT10) -> 0.2307692308 | AV11: =IF(AU11=0,0,(AU11*((LOG(AU11))/LOG(2)))) -> -0.4881870502
A12: 22 | B12: 635 | C12: 23 | D12: 643 | E12: 14 | F12: 654 | K12: 0 | L12: 221 | N12: 212 | O12: =COUNTIF($L$7:$L$500,N12) -> 1 | P12: =O12/$Q$4 -> 0.00641025641 | Q12: =IF(P12=0,0,(P12*((LOG(P12))/LOG(2)))) -> -0.04670129627 | T12: =N12 -> 212 | U12: =COUNTIF(L7:L32,T12) -> 0 | V12: =U12/(W4-U10) -> 0 | W12: =IF(V12=0,0,(V12*((LOG(V12))/LOG(2)))) -> 0 | Y12: =N12 -> 212 | Z12: =COUNTIF(L33:L58,Y12) -> 0 | AA12: =Z12/(AB4-Z10) -> 0 | AB12: =IF(AA12=0,0,(AA12*((LOG(AA12))/LOG(2)))) -> 0 | AD12: =N12 -> 212 | AE12: =COUNTIF(L59:L84,AD12) -> 0 | AF12: =AE12/(AG4-AE10) -> 0 | AG12: =IF(AF12=0,0,(AF12*((LOG(AF12))/LOG(2)))) -> 0 | AI12: =N12 -> 212 | AJ12: =COUNTIF(L85:L110,AI12) -> 1 | AK12: =AJ12/(AL4-AJ10) -> 0.03846153846 | AL12: =IF(AK12=0,0,(AK12*((LOG(AK12))/LOG(2)))) -> -0.180786143 | AN12: =N12 -> 212 | AO12: =COUNTIF(L111:L136,AN12) -> 0 | AP12: =AO12/(AQ4-AO10) -> 0 | AQ12: =IF(AP12=0,0,(AP12*((LOG(AP12))/LOG(2)))) -> 0 | AS12: =N12 -> 212 | AT12: =COUNTIF(L137:L162,AS12) -> 0 | AU12: =AT12/(AV4-AT10) -> 0 | AV12: =IF(AU12=0,0,(AU12*((LOG(AU12))/LOG(2)))) -> 0
A13: 22 | B13: 759 | C13: 14 | D13: 772 | E13: 14 | F13: 776 | K13: 0 | L13: 211 | N13: 221 | O13: =COUNTIF($L$7:$L$500,N13) -> 38 | P13: =O13/$Q$4 -> 0.2435897436 | Q13: =IF(P13=0,0,(P13*((LOG(P13))/LOG(2)))) -> -0.4963079411 | T13: =N13 -> 221 | U13: =COUNTIF(L7:L32,T13) -> 13 | V13: =U13/(W4-U10) -> 0.5 | W13: =IF(V13=0,0,(V13*((LOG(V13))/LOG(2)))) -> -0.5 | Y13: =N13 -> 221 | Z13: =COUNTIF(L33:L58,Y13) -> 8 | AA13: =Z13/(AB4-Z10) -> 0.3076923077 | AB13: =IF(AA13=0,0,(AA13*((LOG(AA13))/LOG(2)))) -> -0.523212221 | AD13: =N13 -> 221 | AE13: =COUNTIF(L59:L84,AD13) -> 4 | AF13: =AE13/(AG4-AE10) -> 0.1538461538 | AG13: =IF(AF13=0,0,(AF13*((LOG(AF13))/LOG(2)))) -> -0.4154522643 | AI13: =N13 -> 221 | AJ13: =COUNTIF(L85:L110,AI13) -> 9 | AK13: =AJ13/(AL4-AJ10) -> 0.3461538462 | AL13: =IF(AK13=0,0,(AK13*((LOG(AK13))/LOG(2)))) -> -0.5297935558 | AN13: =N13 -> 221 | AO13: =COUNTIF(L111:L136,AN13) -> 3 | AP13: =AO13/(AQ4-AO10) -> 0.1153846154 | AQ13: =IF(AP13=0,0,(AP13*((LOG(AP13))/LOG(2)))) -> -0.3594781405 | AS13: =N13 -> 221 | AT13: =COUNTIF(L137:L162,AS13) -> 1 | AU13: =AT13/(AV4-AT10) -> 0.03846153846 | AV13: =IF(AU13=0,0,(AU13*((LOG(AU13))/LOG(2)))) -> -0.180786143
A14: 22 | B14: 878 | C14: 23 | D14: 886 | E14: 14 | F14: 896 | K14: 0 | L14: 221 | N14: 222 | O14: =COUNTIF($L$7:$L$500,N14) -> 7 | P14: =O14/$Q$4 -> 0.04487179487 | Q14: =IF(P14=0,0,(P14*((LOG(P14))/LOG(2)))) -> -0.2009380197 | T14: =N14 -> 222 | U14: =COUNTIF(L7:L32,T14) -> 1 | V14: =U14/(W4-U10) -> 0.03846153846 | W14: =IF(V14=0,0,(V14*((LOG(V14))/LOG(2)))) -> -0.180786143 | Y14: =N14 -> 222 | Z14: =COUNTIF(L33:L58,Y14) -> 2 | AA14: =Z14/(AB4-Z10) -> 0.07692307692 | AB14: =IF(AA14=0,0,(AA14*((LOG(AA14))/LOG(2)))) -> -0.2846492091 | AD14: =N14 -> 222 | AE14: =COUNTIF(L59:L84,AD14) -> 0 | AF14: =AE14/(AG4-AE10) -> 0 | AG14: =IF(AF14=0,0,(AF14*((LOG(AF14))/LOG(2)))) -> 0 | AI14: =N14 -> 222 | AJ14: =COUNTIF(L85:L110,AI14) -> 2 | AK14: =AJ14/(AL4-AJ10) -> 0.07692307692 | AL14: =IF(AK14=0,0,(AK14*((LOG(AK14))/LOG(2)))) -> -0.2846492091 | AN14: =N14 -> 222 | AO14: =COUNTIF(L111:L136,AN14) -> 0 | AP14: =AO14/(AQ4-AO10) -> 0 | AQ14: =IF(AP14=0,0,(AP14*((LOG(AP14))/LOG(2)))) -> 0 | AS14: =N14 -> 222 | AT14: =COUNTIF(L137:L162,AS14) -> 2 | AU14: =AT14/(AV4-AT10) -> 0.07692307692 | AV14: =IF(AU14=0,0,(AU14*((LOG(AU14))/LOG(2)))) -> -0.2846492091
A15: 22 | B15: 1001 | C15: 23 | D15: 1008 | E15: 14 | F15: 1021 | K15: 0 | L15: 221 | P15: =SUM(P7:P14) -> 1 | Q15: =-SUM(Q7:Q14) -> 1.797856677 | V15: =SUM(V7:V14) -> 1 | W15: =-SUM(W7:W14) -> 1.6478689 | AA15: =SUM(AA7:AA14) -> 1 | AB15: =-SUM(AB7:AB14) -> 1.826245258 | AF15: =SUM(AF7:AF14) -> 1 | AG15: =-SUM(AG7:AG14) -> 1.334679141 | AK15: =SUM(AK7:AK14) -> 1 | AL15: =-SUM(AL7:AL14) -> 2.173878777 | AP15: =SUM(AP7:AP14) -> 1 | AQ15: =-SUM(AQ7:AQ14) -> 1.248457764 | AU15: =SUM(AU7:AU14) -> 1 | AV15: =-SUM(AV7:AV14) -> 1.354414976
A16: 22 | B16: 1122 | C16: 23 | D16: 1134 | E16: 23 | F16: 1142 | K16: 0 | L16: 222 | P16: U= | Q16: =Q15/(LOG(Q4)/LOG(2)) -> 0.2467752119 | V16: U1= | W16: =W15/(LOG(W4)/LOG(2)) -> 0.3505776053 | AA16: U2= | AB16: =AB15/(LOG(AB4)/LOG(2)) -> 0.3885264715 | AF16: U3= | AG16: =AG15/(LOG(AG4)/LOG(2)) -> 0.28394772 | AK16: U4= | AL16: =AL15/(LOG(AL4)/LOG(2)) -> 0.4624841307 | AP16: U5= | AQ16: =AQ15/(LOG(AQ4)/LOG(2)) -> 0.2656044623 | AU16: U6= | AV16: =AV15/(LOG(AV4)/LOG(2)) -> 0.2881464409
A17: 22 | B17: 1251 | C17: 14 | D17: 1265 | E17: 14 | F17: 1273 | K17: 0 | L17: 211
A18: 22 | B18: 1370 | C18: 23 | D18: 1379 | E18: 14 | F18: 1391 | K18: 0 | L18: 221
A19: 22 | B19: 1501 | C19: 23 | D19: 1509 | E19: 14 | F19: 1522 | K19: 0 | L19: 221 | N19: Total Target Seq
A20: 22 | B20: 1622 | C20: 23 | D20: 1630 | E20: 14 | F20: 1643 | K20: 0 | L20: 221 | N20: =COUNTIF(L7:L162,G3) -> 0 | P20: 26 | Q20: 26 | R20: 26 | S20: 26 | T20: 26 | U20: 26
A21: 22 | B21: 1744 | C21: 23 | D21: 1759 | E21: 14 | F21: 1774 | K21: 0 | L21: 221 | P21: % of reinforcement given in 6 equal intervals based on number of trials
A22: 22 | B22: 1875 | C22: 23 | D22: 1882 | E22: 14 | F22: 1904 | K22: 0 | L22: 221 | P22: %_1 | Q22: %_2 | R22: %_3 | S22: %_4 | T22: %_5 | U22: %_6
A23: 22 | B23: 2004 | C23: 14 | D23: 2025 | E23: 14 | F23: 2032 | K23: 0 | L23: 211 | O23: target sequence | P23: =$G$3 -> 122 | Q23: =$G$3 -> 122 | R23: =$G$3 -> 122 | S23: =$G$3 -> 122 | T23: =$G$3 -> 122 | U23: =$G$3 -> 122
A24: 22 | B24: 2130 | C24: 23 | D24: 2145 | E24: 14 | F24: 2157 | K24: 0 | L24: 221 | O24: total reinforcement | P24: =U10 -> 0 | Q24: =Z10 -> 0 | R24: =AE10 -> 0 | S24: =AJ10 -> 0 | T24: =AO10 -> 0 | U24: =AT10 -> 0
A25: 22 | B25: 2259 | C25: 23 | D25: 2266 | E25: 14 | F25: 2279 | K25: 0 | L25: 221 | O25: % target
A26: 11 | B26: 2378 | C26: 12 | D26: 2384 | E26: 14 | F26: 2424 | K26: 0 | L26: 111 | O26: CCRF
A27: 22 | B27: 2524 | C27: 23 | D27: 2532 | E27: 14 | F27: 2544 | K27: 0 | L27: 221 | O27: % CCRf
A28: 22 | B28: 2644 | C28: 23 | D28: 2651 | E28: 14 | F28: 2665 | K28: 0 | L28: 221 | O28: average response rate | P28: =F32/P20 -> 123.2307692 | Q28: =(F58-F32)/Q20 -> 131.8461538 | R28: =(F84-F58)/R20 -> 141.2692308 | S28: =(F110-F84)/S20 -> 135.1153846 | T28: =(F136-F110)/T20 -> 205.2692308 | U28: =(F162-F136)/U20 -> 181.5
A29: 22 | B29: 2764 | C29: 23 | D29: 2774 | E29: 14 | F29: 2788 | K29: 0 | L29: 221
A30: 22 | B30: 2890 | C30: 14 | D30: 2914 | E30: 14 | F30: 2919 | K30: 0 | L30: 211
A31: 11 | B31: 3054 | C31: 12 | D31: 3061 | E31: 14 | F31: 3069 | K31: 0 | L31: 111
A32: 22 | B32: 3174 | C32: 14 | D32: 3196 | E32: 14 | F32: 3204 | K32: 0 | L32: 211
A33: 11 | B33: 3341 | C33: 12 | D33: 3348 | E33: 14 | F33: 3356 | K33: 0 | L33: 111
A34: 22 | B34: 3459 | C34: 23 | D34: 3477 | E34: 14 | F34: 3492 | K34: 0 | L34: 221
A35: 11 | B35: 3599 | C35: 12 | D35: 3607 | E35: 14 | F35: 3615 | K35: 0 | L35: 111
A36: 11 | B36: 3737 | C36: 12 | D36: 3743 | E36: 14 | F36: 3750 | K36: 0 | L36: 111
A37: 11 | B37: 3866 | C37: 12 | D37: 3873 | E37: 14 | F37: 3880 | K37: 0 | L37: 111
A38: 11 | B38: 3978 | C38: 12 | D38: 3985 | E38: 14 | F38: 3992 | K38: 0 | L38: 111
A39: 11 | B39: 4115 | C39: 12 | D39: 4121 | E39: 14 | F39: 4128 | K39: 0 | L39: 111
A40: 22 | B40: 4228 | C40: 23 | D40: 4258 | E40: 14 | F40: 4271 | K40: 0 | L40: 221
A41: 22 | B41: 4371 | C41: 23 | D41: 4377 | E41: 23 | F41: 4388 | K41: 0 | L41: 222
A42: 22 | B42: 4498 | C42: 23 | D42: 4507 | E42: 14 | F42: 4519 | K42: 0 | L42: 221
A43: 22 | B43: 4620 | C43: 23 | D43: 4628 | E43: 14 | F43: 4642 | K43: 0 | L43: 221
A44: 22 | B44: 4742 | C44: 14 | D44: 4772 | E44: 14 | F44: 4778 | K44: 0 | L44: 211
A45: 22 | B45: 4884 | C45: 23 | D45: 4890 | E45: 23 | F45: 4900 | K45: 0 | L45: 222
A46: 22 | B46: 5013 | C46: 23 | D46: 5021 | E46: 14 | F46: 5037 | K46: 0 | L46: 221
A47: 22 | B47: 5137 | C47: 14 | D47: 5166 | E47: 14 | F47: 5175 | K47: 0 | L47: 211
A48: 22 | B48: 5280 | C48: 23 | D48: 5283 | E48: 14 | F48: 5297 | K48: 0 | L48: 221
A49: 22 | B49: 5400 | C49: 14 | D49: 5414 | E49: 14 | F49: 5421 | K49: 0 | L49: 211
A50: 22 | B50: 5529 | C50: 14 | D50: 5554 | E50: 14 | F50: 5562 | K50: 0 | L50: 211
A51: 22 | B51: 5666 | C51: 14 | D51: 5680 | E51: 14 | F51: 5685 | K51: 0 | L51: 211
A52: 11 | B52: 5812 | C52: 12 | D52: 5816 | E52: 14 | F52: 5825 | K52: 0 | L52: 111
A53: 22 | B53: 5927 | C53: 23 | D53: 5935 | E53: 14 | F53: 5954 | K53: 0 | L53: 221
A54: 22 | B54: 6053 | C54: 23 | D54: 6060 | E54: 14 | F54: 6074 | K54: 0 | L54: 221
A55: 22 | B55: 6192 | C55: 14 | D55: 6206 | E55: 14 | F55: 6219 | K55: 0 | L55: 211
A56: 11 | B56: 6360 | C56: 12 | D56: 6365 | E56: 14 | F56: 6372 | K56: 0 | L56: 111
A57: 11 | B57: 6486 | C57: 12 | D57: 6491 | E57: 14 | F57: 6499 | K57: 0 | L57: 111
A58: 11 | B58: 6621 | C58: 12 | D58: 6626 | E58: 14 | F58: 6632 | K58: 0 | L58: 111
A59: 11 | B59: 6754 | C59: 12 | D59: 6761 | E59: 14 | F59: 6769 | K59: 0 | L59: 111
A60: 11 | B60: 6894 | C60: 12 | D60: 6899 | E60: 14 | F60: 6906 | K60: 0 | L60: 111
A61: 11 | B61: 7053 | C61: 12 | D61: 7062 | E61: 14 | F61: 7070 | K61: 0 | L61: 111
A62: 11 | B62: 7186 | C62: 12 | D62: 7193 | E62: 14 | F62: 7201 | K62: 0 | L62: 111
A63: 22 | B63: 7307 | C63: 14 | D63: 7320 | E63: 14 | F63: 7325 | K63: 0 | L63: 211
A64: 11 | B64: 7451 | C64: 12 | D64: 7459 | E64: 14 | F64: 7467 | K64: 0 | L64: 111
A65: 11 | B65: 7582 | C65: 12 | D65: 7586 | E65: 14 | F65: 7603 | K65: 0 | L65: 111
A66: 22 | B66: 7704 | C66: 23 | D66: 7725 | E66: 14 | F66: 7738 | K66: 0 | L66: 221
A67: 22 | B67: 7867 | C67: 23 | D67: 7875 | E67: 14 | F67: 7889 | K67: 0 | L67: 221
A68: 11 | B68: 8025 | C68: 12 | D68: 8031 | E68: 14 | F68: 8039 | K68: 0 | L68: 111
A69: 11 | B69: 8159 | C69: 12 | D69: 8166 | E69: 14 | F69: 8174 | K69: 0 | L69: 111
A70: 11 | B70: 8314 | C70: 12 | D70: 8323 | E70: 14 | F70: 8330 | K70: 0 | L70: 111
A71: 11 | B71: 8472 | C71: 12 | D71: 8479 | E71: 14 | F71: 8487 | K71: 0 | L71: 111
A72: 22 | B72: 8587 | C72: 14 | D72: 8613 | E72: 14 | F72: 8620 | K72: 0 | L72: 211
A73: 22 | B73: 8735 | C73: 14 | D73: 8760 | E73: 14 | F73: 8767 | K73: 0 | L73: 211
A74: 22 | B74: 8867 | C74: 14 | D74: 8892 | E74: 14 | F74: 8899 | K74: 0 | L74: 211
A75: 22 | B75: 9008 | C75: 14 | D75: 9021 | E75: 14 | F75: 9026 | K75: 0 | L75: 211
A76: 11 | B76: 9174 | C76: 12 | D76: 9181 | E76: 14 | F76: 9188 | K76: 0 | L76: 111
A77: 11 | B77: 9318 | C77: 12 | D77: 9325 | E77: 14 | F77: 9334 | K77: 0 | L77: 111
A78: 11 | B78: 9457 | C78: 12 | D78: 9464 | E78: 14 | F78: 9472 | K78: 0 | L78: 111
A79: 22 | B79: 9576 | C79: 14 | D79: 9607 | E79: 14 | F79: 9614 | K79: 0 | L79: 211
A80: 11 | B80: 9745 | C80: 12 | D80: 9752 | E80: 14 | F80: 9760 | K80: 0 | L80: 111
A81: 11 | B81: 9903 | C81: 12 | D81: 9907 | E81: 14 | F81: 9915 | K81: 0 | L81: 111
A82: 11 | B82: 10045 | C82: 12 | D82: 10050 | E82: 14 | F82: 10059 | K82: 0 | L82: 111
A83: 22 | B83: 10161 | C83: 23 | D83: 10170 | E83: 14 | F83: 10182 | K83: 0 | L83: 221
A84: 22 | B84: 10285 | C84: 23 | D84: 10292 | E84: 14 | F84: 10305 | K84: 0 | L84: 221
A85: 11 | B85: 10431 | C85: 12 | D85: 10441 | E85: 14 | F85: 10448 | K85: 0 | L85: 111
A86: 11 | B86: 10566 | C86: 12 | D86: 10573 | E86: 14 | F86: 10581 | K86: 0 | L86: 111
A87: 22 | B87: 10696 | C87: 14 | D87: 10714 | E87: 14 | F87: 10722 | K87: 0 | L87: 211
A88: 22 | B88: 10868 | C88: 23 | D88: 10887 | E88: 14 | F88: 10901 | K88: 0 | L88: 221
A89: 11 | B89: 11032 | C89: 12 | D89: 11037 | E89: 14 | F89: 11045 | K89: 0 | L89: 111
A90: 11 | B90: 11145 | C90: 12 | D90: 11150 | E90: 23 | F90: 11167 | K90: 0 | L90: 112
A91: 22 | B91: 11284 | C91: 14 | D91: 11295 | E91: 14 | F91: 11309 | K91: 0 | L91: 211
A92: 22 | B92: 11411 | C92: 23 | D92: 11421 | E92: 14 | F92: 11434 | K92: 0 | L92: 221
A93: 22 | B93: 11536 | C93: 23 | D93: 11543 | E93: 14 | F93: 11557 | K93: 0 | L93: 221
A94: 11 | B94: 11694 | C94: 12 | D94: 11702 | E94: 14 | F94: 11710 | K94: 0 | L94: 111
A95: 22 | B95: 11824 | C95: 14 | D95: 11849 | E95: 14 | F95: 11858 | K95: 0 | L95: 211
A96: 11 | B96: 11965 | C96: 12 | D96: 11969 | E96: 14 | F96: 11977 | K96: 0 | L96: 111
A97: 22 | B97: 12080 | C97: 23 | D97: 12087 | E97: 14 | F97: 12102 | K97: 0 | L97: 221
A98: 22 | B98: 12204 | C98: 23 | D98: 12214 | E98: 14 | F98: 12228 | K98: 0 | L98: 221
A99: 22 | B99: 12333 | C99: 23 | D99: 12340 | E99: 23 | F99: 12348 | K99: 0 | L99: 222
A100: 22 | B100: 12449 | C100: 23 | D100: 12457 | E100: 14 | F100: 12470 | K100: 0 | L100: 221
A101: 22 | B101: 12569 | C101: 23 | D101: 12579 | E101: 23 | F101: 12587 | K101: 0 | L101: 222
A102: 22 | B102: 12687 | C102: 23 | D102: 12694 | E102: 14 | F102: 12710 | K102: 0 | L102: 221
A103: 22 | B103: 12811 | C103: 23 | D103: 12818 | E103: 14 | F103: 12832 | K103: 0 | L103: 221
A104: 22 | B104: 12934 | C104: 14 | D104: 12960 | E104: 14 | F104: 12968 | K104: 0 | L104: 211
A105: 22 | B105: 13070 | C105: 14 | D105: 13088 | E105: 14 | F105: 13098 | K105: 0 | L105: 211
A106: 11 | B106: 13261 | C106: 12 | D106: 13266 | E106: 14 | F106: 13281 | K106: 0 | L106: 111
A107: 11 | B107: 13412 | C107: 12 | D107: 13421 | E107: 14 | F107: 13429 | K107: 0 | L107: 111
A108: 22 | B108: 13539 | C108: 14 | D108: 13553 | E108: 23 | F108: 13571 | K108: 0 | L108: 212
A109: 22 | B109: 13673 | C109: 14 | D109: 13686 | E109: 14 | F109: 13691 | K109: 0 | L109: 211
A110: 22 | B110: 13798 | C110: 23 | D110: 13806 | E110: 14 | F110: 13818 | K110: 0 | L110: 221
A111: 22 | B111: 13922 | C111: 14 | D111: 13936 | E111: 14 | F111: 13942 | K111: 0 | L111: 211
A112: 22 | B112: 14064 | C112: 14 | D112: 14078 | E112: 14 | F112: 14086 | K112: 0 | L112: 211
A113: 22 | B113: 14192 | C113: 23 | D113: 14203 | E113: 14 | F113: 14216 | K113: 0 | L113: 221
A114: 11 | B114: 14357 | C114: 12 | D114: 14362 | E114: 14 | F114: 14377 | K114: 0 | L114: 111
A115: 22 | B115: 14481 | C115: 14 | D115: 14497 | E115: 14 | F115: 14501 | K115: 0 | L115: 211
A116: 11 | B116: 14636 | C116: 12 | D116: 14644 | E116: 14 | F116: 14653 | K116: 0 | L116: 111
A117: 22 | B117: 14754 | C117: 23 | D117: 14760 | E117: 14 | F117: 14777 | K117: 0 | L117: 221
A118: 22 | B118: 14883 | C118: 23 | D118: 14899 | E118: 14 | F118: 14919 | K118: 0 | L118: 221
A119: 22 | B119: 15056 | C119: 14 | D119: 15075 | E119: 14 | F119: 15089 | K119: 0 | L119: 211
A120: 11 | B120: 15320 | C120: 12 | D120: 15328 | E120: 14 | F120: 15336 | K120: 0 | L120: 111
A121: 11 | B121: 15657 | C121: 12 | D121: 15698 | E121: 14 | F121: 15706 | K121: 0 | L121: 111
A122: 11 | B122: 15929 | C122: 12 | D122: 15937 | E122: 14 | F122: 15952 | K122: 0 | L122: 111
A123: 11 | B123: 16089 | C123: 12 | D123: 16146 | E123: 14 | F123: 16154 | K123: 0 | L123: 111
A124: 11 | B124: 16395 | C124: 12 | D124: 16403 | E124: 14 | F124: 16411 | K124: 0 | L124: 111
A125: 11 | B125: 16574 | C125: 12 | D125: 16579 | E125: 14 | F125: 16586 | K125: 0 | L125: 111
A126: 11 | B126: 16716 | C126: 12 | D126: 16723 | E126: 14 | F126: 16731 | K126: 0 | L126: 111
A127: 11 | B127: 16911 | C127: 12 | D127: 16985 | E127: 14 | F127: 16990 | K127: 0 | L127: 111
A128: 22 | B128: 17115 | C128: 14 | D128: 17128 | E128: 14 | F128: 17133 | K128: 0 | L128: 211
A129: 11 | B129: 17334 | C129: 12 | D129: 17343 | E129: 14 | F129: 17351 | K129: 0 | L129: 111
A130: 11 | B130: 17614 | C130: 12 | D130: 17621 | E130: 14 | F130: 17628 | K130: 0 | L130: 111
A131: 11 | B131: 17810 | C131: 12 | D131: 17816 | E131: 14 | F131: 17823 | K131: 0 | L131: 111
A132: 11 | B132: 17957 | C132: 12 | D132: 17962 | E132: 14 | F132: 17976 | K132: 0 | L132: 111
A133: 22 | B133: 18191 | C133: 14 | D133: 18205 | E133: 14 | F133: 18214 | K133: 0 | L133: 211
A134: 11 | B134: 18517 | C134: 12 | D134: 18545 | E134: 14 | F134: 18562 | K134: 0 | L134: 111
A135: 11 | B135: 18753 | C135: 12 | D135: 18763 | E135: 14 | F135: 18771 | K135: 0 | L135: 111
A136: 11 | B136: 19136 | C136: 12 | D136: 19145 | E136: 14 | F136: 19155 | K136: 0 | L136: 111
A137: 11 | B137: 19296 | C137: 12 | D137: 19308 | E137: 14 | F137: 19323 | K137: 0 | L137: 111
A138: 11 | B138: 19521 | C138: 12 | D138: 19527 | E138: 14 | F138: 19542 | K138: 0 | L138: 111
A139: 11 | B139: 19685 | C139: 12 | D139: 19692 | E139: 14 | F139: 19699 | K139: 0 | L139: 111
A140: 11 | B140: 19852 | C140: 12 | D140: 19857 | E140: 14 | F140: 19865 | K140: 0 | L140: 111
A141: 11 | B141: 20027 | C141: 12 | D141: 20035 | E141: 14 | F141: 20051 | K141: 0 | L141: 111
A142: 22 | B142: 20185 | C142: 14 | D142: 20198 | E142: 14 | F142: 20202 | K142: 0 | L142: 211
A143: 11 | B143: 20338 | C143: 12 | D143: 20347 | E143: 14 | F143: 20354 | K143: 0 | L143: 111
A144: 11 | B144: 20491 | C144: 12 | D144: 20496 | E144: 14 | F144: 20501 | K144: 0 | L144: 111
A145: 11 | B145: 20642 | C145: 12 | D145: 20670 | E145: 14 | F145: 20679 | K145: 0 | L145: 111
A146: 22 | B146: 20905 | C146: 14 | D146: 20920 | E146: 14 | F146: 20925 | K146: 0 | L146: 211
A147: 22 | B147: 21047 | C147: 23 | D147: 21067 | E147: 23 | F147: 21084 | K147: 0 | L147: 222
A148: 22 | B148: 21271 | C148: 14 | D148: 21288 | E148: 14 | F148: 21293 | K148: 0 | L148: 211
A149: 22 | B149: 21407 | C149: 23 | D149: 21431 | E149: 14 | F149: 21450 | K149: 0 | L149: 221
A150: 11 | B150: 21607 | C150: 12 | D150: 21616 | E150: 14 | F150: 21623 | K150: 0 | L150: 111
A151: 22 | B151: 21727 | C151: 23 | D151: 21741 | E151: 23 | F151: 21757 | K151: 0 | L151: 222
A152: 11 | B152: 21889 | C152: 12 | D152: 21898 | E152: 14 | F152: 21906 | K152: 0 | L152: 111
A153: 11 | B153: 22051 | C153: 12 | D153: 22055 | E153: 14 | F153: 22064 | K153: 0 | L153: 111
A154: 22 | B154: 22220 | C154: 14 | D154: 22240 | E154: 14 | F154: 22245 | K154: 0 | L154: 211
A155: 22 | B155: 22394 | C155: 14 | D155: 22409 | E155: 14 | F155: 22419 | K155: 0 | L155: 211
A156: 11 | B156: 22674 | C156: 12 | D156: 22681 | E156: 14 | F156: 22690 | K156: 0 | L156: 111
A157: 11 | B157: 22843 | C157: 12 | D157: 22850 | E157: 14 | F157: 22875 | K157: 0 | L157: 111
A158: 11 | B158: 23079 | C158: 12 | D158: 23083 | E158: 14 | F158: 23095 | K158: 0 | L158: 111
A159: 22 | B159: 23212 | C159: 14 | D159: 23225 | E159: 14 | F159: 23232 | K159: 0 | L159: 211
A160: 11 | B160: 23431 | C160: 12 | D160: 23439 | E160: 14 | F160: 23459 | K160: 0 | L160: 111
A161: 11 | B161: 23619 | C161: 12 | D161: 23625 | E161: 14 | F161: 23634 | K161: 0 | L161: 111
A162: 11 | B162: 23859 | C162: 12 | D162: 23866 | E162: 14 | F162: 23874 | K162: 0 | L162: 111

Sheet !M717A20.104
A1: Report for:!M717A20.104
A2: Date: | B2: <date>
A3: Hen: | B3: <hen> | F3: Correct Sequence | G3: =Start!J2 -> 122 | P3: Total Sequences in Data | Q3: =4994-COUNTBLANK(L7:L5000) -> 152 | V3: Total Sequences in Block Data | W3: =COUNTA(L7:L31) -> 25 | AA3: Total Sequences in Block Data | AB3: =COUNTA(L32:L57) -> 26 | AF3: Total Sequences in Block Data | AG3: =COUNTA(L58:L82) -> 25 | AK3: Total Sequences in Block Data | AL3: =COUNTA(L83:L107) -> 25 | AP3: Total Sequences in Block Data | AQ3: =COUNTA(L108:L133) -> 26 | AU3: Total Sequences in Block Data | AV3: =COUNTA(L134:L158) -> 25
P4: Total Sequences in Summary | Q4: =SUM(O7:O14) -> 152 | V4: Total Sequences in Block Summary | W4: =SUM(U7:U14) -> 25 | AA4: Total Sequences in Block Summary | AB4: =SUM(Z7:Z14) -> 26 | AF4: Total Sequences in Block Summary | AG4: =SUM(AE7:AE14) -> 25 | AK4: Total Sequences in Block Summary | AL4: =SUM(AJ7:AJ14) -> 25 | AP4: Total Sequences in Block Summary | AQ4: =SUM(AO7:AO14) -> 26 | AU4: Total Sequences in Block Summary | AV4: =SUM(AT7:AT14) -> 25
T5: Block 1 | Y5: Block 2 | AD5: Block 3 | AI5: Block 4 | AN5: Block 5 | AS5: Block 6
A6: Sequence Component 1 | B6: Time 1 | C6: Sequence Component 2 | D6: Time 2 | E6: Sequence Component 3 | F6: Time 3 | G6: Sequence Component 4 | H6: Time 4 | I6: Sequence Component 5 | J6: Time 5 | K6: Correct? 0=No 1=Yes | L6: Sequence | N6: Frequency | P6: Relative Frequency | Q6: Variability | T6: Frequency | V6: Relative Frequency | W6: Variability | Y6: Frequency | AA6: Relative Frequency | AB6: Variability | AD6: Frequency | AF6: Relative Frequency | AG6: Variability | AI6: Frequency | AK6: Relative Frequency | AL6: Variability | AN6: Frequency | AP6: Relative Frequency | AQ6: Variability | AS6: Frequency | AU6: Relative Frequency | AV6: Variability
A7: 11 | B7: 27 | C7: 12 | D7: 34 | E7: 14 | F7: 41 | K7: 0 | L7: 111 | N7: 111 | O7: =COUNTIF($L$7:$L$500,N7) -> 46 | P7: =O7/$Q$4 -> 0.3026315789 | Q7: =IF(P7=0,0,(P7*((LOG(P7))/LOG(2)))) -> -0.5218474713 | T7: =N7 -> 111 | U7: =COUNTIF(L7:L31,T7) -> 1 | V7: =U7/(W4-U10) -> 0.04 | W7: =IF(V7=0,0,(V7*((LOG(V7))/LOG(2)))) -> -0.1857542476 | Y7: =N7 -> 111 | Z7: =COUNTIF(L32:L57,Y7) -> 3 | AA7: =Z7/(AB4-Z10) -> 0.1153846154 | AB7: =IF(AA7=0,0,(AA7*((LOG(AA7))/LOG(2)))) -> -0.3594781405 | AD7: =N7 -> 111 | AE7: =COUNTIF(L58:L82,AD7) -> 15 | AF7: =AE7/(AG4-AE10) -> 0.6 | AG7: =IF(AF7=0,0,(AF7*((LOG(AF7))/LOG(2)))) -> -0.4421793565 | AI7: =N7 -> 111 | AJ7: =COUNTIF(L83:L107,AI7) -> 11 | AK7: =AJ7/(AL4-AJ10) -> 0.44 | AL7: =IF(AK7=0,0,(AK7*((LOG(AK7))/LOG(2)))) -> -0.5211468113 | AN7: =N7 -> 111 | AO7: =COUNTIF(L108:L133,AN7) -> 9 | AP7: =AO7/(AQ4-AO10) -> 0.3461538462 | AQ7: =IF(AP7=0,0,(AP7*((LOG(AP7))/LOG(2)))) -> -0.5297935558 | AS7: =N7 -> 111 | AT7: =COUNTIF(L134:L158,AS7) -> 7 | AU7: =AT7/(AV4-AT10) -> 0.28 | AV7: =IF(AU7=0,0,(AU7*((LOG(AU7))/LOG(2)))) -> -0.514220355
A8: 22 | B8: 139 | C8: 14 | D8: 153 | E8: 14 | F8: 160 | K8: 0 | L8: 211 | N8: 112 | O8: =COUNTIF($L$7:$L$500,N8) -> 1 | P8: =O8/$Q$4 -> 0.006578947368 | Q8: =IF(P8=0,0,(P8*((LOG(P8))/LOG(2)))) -> -0.04768373364 | T8: =N8 -> 112 | U8: =COUNTIF(L7:L31,T8) -> 0 | V8: =U8/(W4-U10) -> 0 | W8: =IF(V8=0,0,(V8*((LOG(V8))/LOG(2)))) -> 0 | Y8: =N8 -> 112 | Z8: =COUNTIF(L32:L57,Y8) -> 0 | AA8: =Z8/(AB4-Z10) -> 0 | AB8: =IF(AA8=0,0,(AA8*((LOG(AA8))/LOG(2)))) -> 0 | AD8: =N8 -> 112 | AE8: =COUNTIF(L58:L82,AD8) -> 0 | AF8: =AE8/(AG4-AE10) -> 0 | AG8: =IF(AF8=0,0,(AF8*((LOG(AF8))/LOG(2)))) -> 0 | AI8: =N8 -> 112 | AJ8: =COUNTIF(L83:L107,AI8) -> 1 | AK8: =AJ8/(AL4-AJ10) -> 0.04 | AL8: =IF(AK8=0,0,(AK8*((LOG(AK8))/LOG(2)))) -> -0.1857542476 | AN8: =N8 -> 112 | AO8: =COUNTIF(L108:L133,AN8) -> 0 | AP8: =AO8/(AQ4-AO10) -> 0 | AQ8: =IF(AP8=0,0,(AP8*((LOG(AP8))/LOG(2)))) -> 0 | AS8: =N8 -> 112 | AT8: =COUNTIF(L134:L158,AS8) -> 0 | AU8: =AT8/(AV4-AT10) -> 0 | AV8: =IF(AU8=0,0,(AU8*((LOG(AU8))/LOG(2)))) -> 0
A9: 22 | B9: 257 | C9: 14 | D9: 270 | E9: 14 | F9: 274 | K9: 0 | L9: 211 | N9: 121 | O9: =COUNTIF($L$7:$L$500,N9) -> 1 | P9: =O9/$Q$4 -> 0.006578947368 | Q9: =IF(P9=0,0,(P9*((LOG(P9))/LOG(2)))) -> -0.04768373364 | T9: =N9 -> 121 | U9: =COUNTIF(L7:L31,T9) -> 1 | V9: =U9/(W4-U10) -> 0.04 | W9: =IF(V9=0,0,(V9*((LOG(V9))/LOG(2)))) -> -0.1857542476 | Y9: =N9 -> 121 | Z9: =COUNTIF(L32:L57,Y9) -> 0 | AA9: =Z9/(AB4-Z10) -> 0 | AB9: =IF(AA9=0,0,(AA9*((LOG(AA9))/LOG(2)))) -> 0 | AD9: =N9 -> 121 | AE9: =COUNTIF(L58:L82,AD9) -> 0 | AF9: =AE9/(AG4-AE10) -> 0 | AG9: =IF(AF9=0,0,(AF9*((LOG(AF9))/LOG(2)))) -> 0 | AI9: =N9 -> 121 | AJ9: =COUNTIF(L83:L107,AI9) -> 0 | AK9: =AJ9/(AL4-AJ10) -> 0 | AL9: =IF(AK9=0,0,(AK9*((LOG(AK9))/LOG(2)))) -> 0 | AN9: =N9 -> 121 | AO9: =COUNTIF(L108:L133,AN9) -> 0 | AP9: =AO9/(AQ4-AO10) -> 0 | AQ9: =IF(AP9=0,0,(AP9*((LOG(AP9))/LOG(2)))) -> 0 | AS9: =N9 -> 121 | AT9: =COUNTIF(L134:L158,AS9) -> 0 | AU9: =AT9/(AV4-AT10) -> 0 | AV9: =IF(AU9=0,0,(AU9*((LOG(AU9))/LOG(2)))) -> 0
A10: 22 | B10: 374 | C10: 14 | D10: 391 | E10: 14 | F10: 396 | K10: 0 | L10: 211 | N10: 122 | O10: =COUNTIF($L$7:$L$500,N10) -> 0 | P10: =O10/$Q$4 -> 0 | Q10: =IF(P10=0,0,(P10*((LOG(P10))/LOG(2)))) -> 0 | T10: =N10 -> 122 | U10: =COUNTIF(L7:L31,T10) -> 0 | Y10: =N10 -> 122 | Z10: =COUNTIF(L32:L57,Y10) -> 0 | AD10: =N10 -> 122 | AE10: =COUNTIF(L58:L82,AD10) -> 0 | AI10: =N10 -> 122 | AJ10: =COUNTIF(L83:L107,AI10) -> 0 | AN10: =N10 -> 122 | AO10: =COUNTIF(L108:L133,AN10) -> 0 | AS10: =N10 -> 122 | AT10: =COUNTIF(L134:L158,AS10) -> 0
A11: 11 | B11: 489 | C11: 21 | D11: 502 | E11: 12 | F11: 522 | K11: 0 | L11: 121 | N11: 211 | O11: =COUNTIF($L$7:$L$500,N11) -> 57 | P11: =O11/$Q$4 -> 0.375 | Q11: =IF(P11=0,0,(P11*((LOG(P11))/LOG(2)))) -> -0.5306390622 | T11: =N11 -> 211 | U11: =COUNTIF(L7:L31,T11) -> 10 | V11: =U11/(W4-U10) -> 0.4 | W11: =IF(V11=0,0,(V11*((LOG(V11))/LOG(2)))) -> -0.528771238 | Y11: =N11 -> 211 | Z11: =COUNTIF(L32:L57,Y11) -> 13 | AA11: =Z11/(AB4-Z10) -> 0.5 | AB11: =IF(AA11=0,0,(AA11*((LOG(AA11))/LOG(2)))) -> -0.5 | AD11: =N11 -> 211 | AE11: =COUNTIF(L58:L82,AD11) -> 7 | AF11: =AE11/(AG4-AE10) -> 0.28 | AG11: =IF(AF11=0,0,(AF11*((LOG(AF11))/LOG(2)))) -> -0.514220355 | AI11: =N11 -> 211 | AJ11: =COUNTIF(L83:L107,AI11) -> 9 | AK11: =AJ11/(AL4-AJ10) -> 0.36 | AL11: =IF(AK11=0,0,(AK11*((LOG(AK11))/LOG(2)))) -> -0.5306152278 | AN11: =N11 -> 211 | AO11: =COUNTIF(L108:L133,AN11) -> 11 | AP11: =AO11/(AQ4-AO10) -> 0.4230769231 | AQ11: =IF(AP11=0,0,(AP11*((LOG(AP11))/LOG(2)))) -> -0.5250418883 | AS11: =N11 -> 211 | AT11: =COUNTIF(L134:L158,AS11) -> 7 | AU11: =AT11/(AV4-AT10) -> 0.28 | AV11: =IF(AU11=0,0,(AU11*((LOG(AU11))/LOG(2)))) -> -0.514220355
A12: 22 | B12: 677 | C12: 23 | D12: 686 | E12: 14 | F12: 699 | K12: 0 | L12: 221 | N12: 212 | O12: =COUNTIF($L$7:$L$500,N12) -> 0 | P12: =O12/$Q$4 -> 0 | Q12: =IF(P12=0,0,(P12*((LOG(P12))/LOG(2)))) -> 0 | T12: =N12 -> 212 | U12: =COUNTIF(L7:L31,T12) -> 0 | V12: =U12/(W4-U10) -> 0 | W12: =IF(V12=0,0,(V12*((LOG(V12))/LOG(2)))) -> 0 | Y12: =N12 -> 212 | Z12: =COUNTIF(L32:L57,Y12) -> 0 | AA12: =Z12/(AB4-Z10) -> 0 | AB12: =IF(AA12=0,0,(AA12*((LOG(AA12))/LOG(2)))) -> 0 | AD12: =N12 -> 212 | AE12: =COUNTIF(L58:L82,AD12) -> 0 | AF12: =AE12/(AG4-AE10) -> 0 | AG12: =IF(AF12=0,0,(AF12*((LOG(AF12))/LOG(2)))) -> 0 | AI12: =N12 -> 212 | AJ12: =COUNTIF(L83:L107,AI12) -> 0 | AK12: =AJ12/(AL4-AJ10) -> 0 | AL12: =IF(AK12=0,0,(AK12*((LOG(AK12))/LOG(2)))) -> 0 | AN12: =N12 -> 212 | AO12: =COUNTIF(L108:L133,AN12) -> 0 | AP12: =AO12/(AQ4-AO10) -> 0 | AQ12: =IF(AP12=0,0,(AP12*((LOG(AP12))/LOG(2)))) -> 0 | AS12: =N12 -> 212 | AT12: =COUNTIF(L134:L158,AS12) -> 0 | AU12: =AT12/(AV4-AT10) -> 0 | AV12: =IF(AU12=0,0,(AU12*((LOG(AU12))/LOG(2)))) -> 0
A13: 22 | B13: 797 | C13: 14 | D13: 817 | E13: 14 | F13: 825 | K13: 0 | L13: 211 | N13: 221 | O13: =COUNTIF($L$7:$L$500,N13) -> 35 | P13: =O13/$Q$4 -> 0.2302631579 | Q13: =IF(P13=0,0,(P13*((LOG(P13))/LOG(2)))) -> -0.4878457722 | T13: =N13 -> 221 | U13: =COUNTIF(L7:L31,T13) -> 10 | V13: =U13/(W4-U10) -> 0.4 | W13: =IF(V13=0,0,(V13*((LOG(V13))/LOG(2)))) -> -0.528771238 | Y13: =N13 -> 221 | Z13: =COUNTIF(L32:L57,Y13) -> 7 | AA13: =Z13/(AB4-Z10) -> 0.2692307692 | AB13: =IF(AA13=0,0,(AA13*((LOG(AA13))/LOG(2)))) -> -0.5096766759 | AD13: =N13 -> 221 | AE13: =COUNTIF(L58:L82,AD13) -> 3 | AF13: =AE13/(AG4-AE10) -> 0.12 | AG13: =IF(AF13=0,0,(AF13*((LOG(AF13))/LOG(2)))) -> -0.3670672427 | AI13: =N13 -> 221 | AJ13: =COUNTIF(L83:L107,AI13) -> 1 | AK13: =AJ13/(AL4-AJ10) -> 0.04 | AL13: =IF(AK13=0,0,(AK13*((LOG(AK13))/LOG(2)))) -> -0.1857542476 | AN13: =N13 -> 221 | AO13: =COUNTIF(L108:L133,AN13) -> 5 | AP13: =AO13/(AQ4-AO10) -> 0.1923076923 | AQ13: =IF(AP13=0,0,(AP13*((LOG(AP13))/LOG(2)))) -> -0.4574060814 | AS13: =N13 -> 221 | AT13: =COUNTIF(L134:L158,AS13) -> 9 | AU13: =AT13/(AV4-AT10) -> 0.36 | AV13: =IF(AU13=0,0,(AU13*((LOG(AU13))/LOG(2)))) -> -0.5306152278
A14: 22 | B14: 929 | C14: 14 | D14: 950 | E14: 14 | F14: 956 | K14: 0 | L14: 211 | N14: 222 | O14: =COUNTIF($L$7:$L$500,N14) -> 12 | P14: =O14/$Q$4 -> 0.07894736842 | Q14: =IF(P14=0,0,(P14*((LOG(P14))/LOG(2)))) -> -0.2891814484 | T14: =N14 -> 222 | U14: =COUNTIF(L7:L31,T14) -> 3 | V14: =U14/(W4-U10) -> 0.12 | W14: =IF(V14=0,0,(V14*((LOG(V14))/LOG(2)))) -> -0.3670672427 | Y14: =N14 -> 222 | Z14: =COUNTIF(L32:L57,Y14) -> 3 | AA14: =Z14/(AB4-Z10) -> 0.1153846154 | AB14: =IF(AA14=0,0,(AA14*((LOG(AA14))/LOG(2)))) -> -0.3594781405 | AD14: =N14 -> 222 | AE14: =COUNTIF(L58:L82,AD14) -> 0 | AF14: =AE14/(AG4-AE10) -> 0 | AG14: =IF(AF14=0,0,(AF14*((LOG(AF14))/LOG(2)))) -> 0 | AI14: =N14 -> 222 | AJ14: =COUNTIF(L83:L107,AI14) -> 3 | AK14: =AJ14/(AL4-AJ10) -> 0.12 | AL14: =IF(AK14=0,0,(AK14*((LOG(AK14))/LOG(2)))) -> -0.3670672427 | AN14: =N14 -> 222 | AO14: =COUNTIF(L108:L133,AN14) -> 1 | AP14: =AO14/(AQ4-AO10) -> 0.03846153846 | AQ14: =IF(AP14=0,0,(AP14*((LOG(AP14))/LOG(2)))) -> -0.180786143 | AS14: =N14 -> 222 | AT14: =COUNTIF(L134:L158,AS14) -> 2 | AU14: =AT14/(AV4-AT10) -> 0.08 | AV14: =IF(AU14=0,0,(AU14*((LOG(AU14))/LOG(2)))) -> -0.2915084952
A15: 22 | B15: 1056 | C15: 23 | D15: 1065 | E15: 14 | F15: 1076 | K15: 0 | L15: 221 | P15: =SUM(P7:P14) -> 1 | Q15: =-SUM(Q7:Q14) -> 1.924881221 | V15: =SUM(V7:V14) -> 1 | W15: =-SUM(W7:W14) -> 1.796118214 | AA15: =SUM(AA7:AA14) -> 1 | AB15: =-SUM(AB7:AB14) -> 1.728632957 | AF15: =SUM(AF7:AF14) -> 1 | AG15: =-SUM(AG7:AG14) -> 1.323466954 | AK15: =SUM(AK7:AK14) -> 1 | AL15: =-SUM(AL7:AL14) -> 1.790337777 | AP15: =SUM(AP7:AP14) -> 1 | AQ15: =-SUM(AQ7:AQ14) -> 1.693027668 | AU15: =SUM(AU7:AU14) -> 1 | AV15: =-SUM(AV7:AV14) -> 1.850564433
A16: 22 | B16: 1177 | C16: 14 | D16: 1196 | E16: 14 | F16: 1203 | K16: 0 | L16: 211 | P16: U= | Q16: =Q15/(LOG(Q4)/LOG(2)) -> 0.265576776 | V16: U1= | W16: =W15/(LOG(W4)/LOG(2)) -> 0.3867730051 | AA16: U2= | AB16: =AB15/(LOG(AB4)/LOG(2)) -> 0.3677598396 | AF16: U3= | AG16: =AG15/(LOG(AG4)/LOG(2)) -> 0.2849930963 | AK16: U4= | AL16: =AL15/(LOG(AL4)/LOG(2)) -> 0.3855282558 | AP16: U5= | AQ16: =AQ15/(LOG(AQ4)/LOG(2)) -> 0.360184955 | AU16: U6= | AV16: =AV15/(LOG(AV4)/LOG(2)) -> 0.3984973602
A17: 22 | B17: 1315 | C17: 14 | D17: 1328 | E17: 14 | F17: 1335 | K17: 0 | L17: 211
A18: 22 | B18: 1435 | C18: 23 | D18: 1442 | E18: 14 | F18: 1454 | K18: 0 | L18: 221
A19: 22 | B19: 1554 | C19: 14 | D19: 1582 | E19: 14 | F19: 1588 | K19: 0 | L19: 211 | N19: Total Target Seq
A20: 22 | B20: 1693 | C20: 23 | D20: 1700 | E20: 14 | F20: 1712 | K20: 0 | L20: 221 | N20: =COUNTIF(L7:L158,G3) -> 0 | P20: 25 | Q20: 26 | R20: 25 | S20: 25 | T20: 26 | U20: 25
A21: 22 | B21: 1813 | C21: 23 | D21: 1833 | E21: 14 | F21: 1847 | K21: 0 | L21: 221 | P21: % of reinforcement given in 6 equal intervals based on number of trials
A22: 22 | B22: 1954 | C22: 23 | D22: 1963 | E22: 14 | F22: 1975 | K22: 0 | L22: 221 | P22: %_1 | Q22: %_2 | R22: %_3 | S22: %_4 | T22: %_5 | U22: %_6
A23: 22 | B23: 2081 | C23: 23 | D23: 2088 | E23: 23 | F23: 2096 | K23: 0 | L23: 222 | O23: target sequence | P23: =$G$3 -> 122 | Q23: =$G$3 -> 122 | R23: =$G$3 -> 122 | S23: =$G$3 -> 122 | T23: =$G$3 -> 122 | U23: =$G$3 -> 122
A24: 22 | B24: 2212 | C24: 14 | D24: 2225 | E24: 14 | F24: 2233 | K24: 0 | L24: 211 | O24: total reinforcement | P24: =U10 -> 0 | Q24: =Z10 -> 0 | R24: =AE10 -> 0 | S24: =AJ10 -> 0 | T24: =AO10 -> 0 | U24: =AT10 -> 0
A25: 22 | B25: 2332 | C25: 23 | D25: 2340 | E25: 14 | F25: 2355 | K25: 0 | L25: 221 | O25: % target
A26: 22 | B26: 2462 | C26: 23 | D26: 2470 | E26: 14 | F26: 2484 | K26: 0 | L26: 221 | O26: CCRF
A27: 22 | B27: 2583 | C27: 23 | D27: 2594 | E27: 14 | F27: 2611 | K27: 0 | L27: 221 | O27: % CCRf
A28: 22 | B28: 2711 | C28: 23 | D28: 2714 | E28: 23 | F28: 2722 | K28: 0 | L28: 222 | O28: average response rate | P28: =F31/P20 -> 123.8 | Q28: =(F57-F31)/Q20 -> 143.7307692 | R28: =(F82-F57)/R20 -> 155.08 | S28: =(F107-F82)/S20 -> 166.12 | T28: =(F133-F107)/T20 -> 164.7307692 | U28: =(F158-F133)/U20 -> 188
A29: 22 | B29: 2821 | C29: 23 | D29: 2828 | E29: 23 | F29: 2837 | K29: 0 | L29: 222
A30: 22 | B30: 2953 | C30: 14 | D30: 2967 | E30: 14 | F30: 2975 | K30: 0 | L30: 211
A31: 22 | B31: 3075 | C31: 23 | D31: 3082 | E31: 14 | F31: 3095 | K31: 0 | L31: 221
A32: 22 | B32: 3210 | C32: 14 | D32: 3224 | E32: 14 | F32: 3229 | K32: 0 | L32: 211
A33: 22 | B33: 3339 | C33: 14 | D33: 3361 | E33: 14 | F33: 3368 | K33: 0 | L33: 211
A34: 22 | B34: 3485 | C34: 14 | D34: 3498 | E34: 14 | F34: 3506 | K34: 0 | L34: 211
A35: 22 | B35: 3625 | C35: 23 | D35: 3640 | E35: 14 | F35: 3656 | K35: 0 | L35: 221
A36: 22 | B36: 3754 | C36: 14 | D36: 3791 | E36: 14 | F36: 3796 | K36: 0 | L36: 211
A37: 11 | B37: 3937 | C37: 12 | D37: 3944 | E37: 14 | F37: 3957 | K37: 0 | L37: 111
A38: 22 | B38: 4072 | C38: 14 | D38: 4086 | E38: 14 | F38: 4093 | K38: 0 | L38: 211
A39: 22 | B39: 4193 | C39: 23 | D39: 4203 | E39: 23 | F39: 4218 | K39: 0 | L39: 222
A40: 22 | B40: 4323 | C40: 14 | D40: 4355 | E40: 14 | F40: 4362 | K40: 0 | L40: 211
A41: 22 | B41: 4492 | C41: 14 | D41: 4506 | E41: 14 | F41: 4511 | K41: 0 | L41: 211
A42: 22 | B42: 4639 | C42: 14 | D42: 4661 | E42: 14 | F42: 4669 | K42: 0 | L42: 211
A43: 22 | B43: 4809 | C43: 14 | D43: 4823 | E43: 14 | F43: 4830 | K43: 0 | L43: 211
A44: 22 | B44: 4934 | C44: 23 | D44: 4942 | E44: 14 | F44: 4956 | K44: 0 | L44: 221
A45: 22 | B45: 5069 | C45: 23 | D45: 5098 | E45: 14 | F45: 5112 | K45: 0 | L45: 221
A46: 22 | B46: 5220 | C46: 23 | D46: 5228 | E46: 23 | F46: 5241 | K46: 0 | L46: 222
A47: 22 | B47: 5344 | C47: 23 | D47: 5351 | E47: 14 | F47: 5364 | K47: 0 | L47: 221
A48: 11 | B48: 5492 | C48: 12 | D48: 5498 | E48: 14 | F48: 5505 | K48: 0 | L48: 111
A49: 11 | B49: 5647 | C49: 12 | D49: 5654 | E49: 14 | F49: 5660 | K49: 0 | L49: 111
A50: 22 | B50: 5771 | C50: 23 | D50: 5792 | E50: 14 | F50: 5809 | K50: 0 | L50: 221
A51: 22 | B51: 5912 | C51: 23 | D51: 5920 | E51: 23 | F51: 5928 | K51: 0 | L51: 222
A52: 22 | B52: 6033 | C52: 14 | D52: 6081 | E52: 14 | F52: 6085 | K52: 0 | L52: 211
A53: 22 | B53: 6203 | C53: 23 | D53: 6220 | E53: 14 | F53: 6236 | K53: 0 | L53: 221
A54: 22 | B54: 6360 | C54: 14 | D54: 6374 | E54: 14 | F54: 6381 | K54: 0 | L54: 211
A55: 22 | B55: 6493 | C55: 14 | D55: 6509 | E55: 14 | F55: 6517 | K55: 0 | L55: 211
A56: 22 | B56: 6633 | C56: 23 | D56: 6661 | E56: 14 | F56: 6675 | K56: 0 | L56: 221
A57: 22 | B57: 6795 | C57: 14 | D57: 6818 | E57: 14 | F57: 6832 | K57: 0 | L57: 211
A58: 22 | B58: 6947 | C58: 23 | D58: 6956 | E58: 14 | F58: 6971 | K58: 0 | L58: 221
A59: 11 | B59: 7111 | C59: 12 | D59: 7117 | E59: 14 | F59: 7133 | K59: 0 | L59: 111
A60: 22 | B60: 7241 | C60: 14 | D60: 7255 | E60: 14 | F60: 7262 | K60: 0 | L60: 211
A61: 22 | B61: 7370 | C61: 14 | D61: 7399 | E61: 14 | F61: 7406 | K61: 0 | L61: 211
A62: 11 | B62: 7546 | C62: 12 | D62: 7553 | E62: 14 | F62: 7560 | K62: 0 | L62: 111
A63: 11 | B63: 7689 | C63: 12 | D63: 7695 | E63: 14 | F63: 7702 | K63: 0 | L63: 111
A64: 11 | B64: 7814 | C64: 12 | D64: 7821 | E64: 14 | F64: 7828 | K64: 0 | L64: 111
A65: 11 | B65: 7960 | C65: 12 | D65: 7967 | E65: 14 | F65: 7974 | K65: 0 | L65: 111
A66: 11 | B66: 8100 | C66: 12 | D66: 8130 | E66: 14 | F66: 8137 | K66: 0 | L66: 111
A67: 22 | B67: 8253 | C67: 23 | D67: 8265 | E67: 14 | F67: 8284 | K67: 0 | L67: 221
A68: 22 | B68: 8418 | C68: 14 | D68: 8440 | E68: 14 | F68: 8447 | K68: 0 | L68: 211
A69: 11 | B69: 8553 | C69: 12 | D69: 8560 | E69: 14 | F69: 8568 | K69: 0 | L69: 111
A70: 11 | B70: 8744 | C70: 12 | D70: 8754 | E70: 14 | F70: 8763 | K70: 0 | L70: 111
A71: 11 | B71: 8917 | C71: 12 | D71: 8923 | E71: 14 | F71: 8932 | K71: 0 | L71: 111
A72: 11 | B72: 9080 | C72: 12 | D72: 9084 | E72: 14 | F72: 9099 | K72: 0 | L72: 111
A73: 11 | B73: 9239 | C73: 12 | D73: 9244 | E73: 14 | F73: 9253 | K73: 0 | L73: 111
A74: 22 | B74: 9374 | C74: 14 | D74: 9388 | E74: 14 | F74: 9394 | K74: 0 | L74: 211
A75: 22 | B75: 9553 | C75: 14 | D75: 9567 | E75: 14 | F75: 9572 | K75: 0 | L75: 211
A76: 22 | B76: 9706 | C76: 14 | D76: 9728 | E76: 14 | F76: 9734 | K76: 0 | L76: 211
A77: 11 | B77: 9870 | C77: 12 | D77: 9875 | E77: 14 | F77: 9884 | K77: 0 | L77: 111
A78: 11 | B78: 10049 | C78: 12 | D78: 10055 | E78: 14 | F78: 10077 | K78: 0 | L78: 111
A79: 11 | B79: 10220 | C79: 12 | D79: 10227 | E79: 14 | F79: 10235 | K79: 0 | L79: 111
A80: 11 | B80: 10388 | C80: 12 | D80: 10397 | E80: 14 | F80: 10404 | K80: 0 | L80: 111
A81: 22 | B81: 10542 | C81: 14 | D81: 10582 | E81: 14 | F81: 10588 | K81: 0 | L81: 211
A82: 22 | B82: 10691 | C82: 23 | D82: 10696 | E82: 14 | F82: 10709 | K82: 0 | L82: 221
A83: 11 | B83: 10845 | C83: 12 | D83: 10853 | E83: 14 | F83: 10860 | K83: 0 | L83: 111
A84: 22 | B84: 11062 | C84: 14 | D84: 11076 | E84: 14 | F84: 11082 | K84: 0 | L84: 211
A85: 22 | B85: 11198 | C85: 14 | D85: 11212 | E85: 14 | F85: 11218 | K85: 0 | L85: 211
A86: 11 | B86: 11372 | C86: 12 | D86: 11380 | E86: 14 | F86: 11387 | K86: 0 | L86: 111
A87: 11 | B87: 11566 | C87: 12 | D87: 11573 | E87: 23 | F87: 11633 | K87: 0 | L87: 112
A88: 11 | B88: 11740 | C88: 12 | D88: 11808 | E88: 14 | F88: 11815 | K88: 0 | L88: 111
A89: 11 | B89: 12001 | C89: 12 | D89: 12008 | E89: 14 | F89: 12016 | K89: 0 | L89: 111
A90: 11 | B90: 12208 | C90: 12 | D90: 12216 | E90: 14 | F90: 12223 | K90: 0 | L90: 111
A91: 22 | B91: 12364 | C91: 14 | D91: 12380 | E91: 14 | F91: 12388 | K91: 0 | L91: 211
A92: 11 | B92: 12512 | C92: 12 | D92: 12519 | E92: 14 | F92: 12527 | K92: 0 | L92: 111
A93: 22 | B93: 12703 | C93: 14 | D93: 12718 | E93: 14 | F93: 12725 | K93: 0 | L93: 211
A94: 11 | B94: 12895 | C94: 12 | D94: 12904 | E94: 14 | F94: 12911 | K94: 0 | L94: 111
A95: 11 | B95: 13055 | C95: 12 | D95: 13064 | E95: 14 | F95: 13071 | K95: 0 | L95: 111
A96: 22 | B96: 13187 | C96: 14 | D96: 13201 | E96: 14 | F96: 13208 | K96: 0 | L96: 211
A97: 22 | B97: 13323 | C97: 23 | D97: 13333 | E97: 14 | F97: 13349 | K97: 0 | L97: 221
A98: 22 | B98: 13464 | C98: 14 | D98: 13482 | E98: 14 | F98: 13489 | K98: 0 | L98: 211
A99: 22 | B99: 13591 | C99: 23 | D99: 13598 | E99: 23 | F99: 13606 | K99: 0 | L99: 222
A100: 22 | B100: 13720 | C100: 14 | D100: 13744 | E100: 14 | F100: 13749 | K100: 0 | L100: 211
A101: 11 | B101: 13893 | C101: 12 | D101: 13897 | E101: 14 | F101: 13906 | K101: 0 | L101: 111
A102: 11 | B102: 14051 | C102: 12 | D102: 14058 | E102: 14 | F102: 14065 | K102: 0 | L102: 111
A103: 22 | B103: 14185 | C103: 23 | D103: 14193 | E103: 23 | F103: 14201 | K103: 0 | L103: 222
A104: 11 | B104: 14327 | C104: 12 | D104: 14332 | E104: 14 | F104: 14340 | K104: 0 | L104: 111
A105: 22 | B105: 14477 | C105: 14 | D105: 14491 | E105: 14 | F105: 14499 | K105: 0 | L105: 211
A106: 22 | B106: 14694 | C106: 14 | D106: 14709 | E106: 14 | F106: 14715 | K106: 0 | L106: 211
A107: 22 | B107: 14837 | C107: 23 | D107: 14852 | E107: 23 | F107: 14862 | K107: 0 | L107: 222
A108: 22 | B108: 14989 | C108: 14 | D108: 15003 | E108: 14 | F108: 15010 | K108: 0 | L108: 211
A109: 11 | B109: 15154 | C109: 12 | D109: 15161 | E109: 14 | F109: 15169 | K109: 0 | L109: 111
A110: 11 | B110: 15298 | C110: 12 | D110: 15306 | E110: 14 | F110: 15315 | K110: 0 | L110: 111
A111: 22 | B111: 15450 | C111: 14 | D111: 15469 | E111: 14 | F111: 15474 | K111: 0 | L111: 211
A112: 11 | B112: 15618 | C112: 12 | D112: 15642 | E112: 14 | F112: 15651 | K112: 0 | L112: 111
A113: 22 | B113: 15782 | C113: 14 | D113: 15795 | E113: 14 | F113: 15800 | K113: 0 | L113: 211
A114: 22 | B114: 15921 | C114: 23 | D114: 15933 | E114: 14 | F114: 15952 | K114: 0 | L114: 221
A115: 11 | B115: 16137 | C115: 12 | D115: 16143 | E115: 14 | F115: 16152 | K115: 0 | L115: 111
A116: 22 | B116: 16278 | C116: 14 | D116: 16301 | E116: 14 | F116: 16305 | K116: 0 | L116: 211
A117: 22 | B117: 16438 | C117: 14 | D117: 16454 | E117: 14 | F117: 16459 | K117: 0 | L117: 211
A118: 22 | B118: 16597 | C118: 14 | D118: 16612 | E118: 14 | F118: 16617 | K118: 0 | L118: 211
A119: 11 | B119: 16766 | C119: 12 | D119: 16773 | E119: 14 | F119: 16788 | K119: 0 | L119: 111
A120: 11 | B120: 16909 | C120: 12 | D120: 16918 | E120: 14 | F120: 16926 | K120: 0 | L120: 111
A121: 11 | B121: 17066 | C121: 12 | D121: 17073 | E121: 14 | F121: 17081 | K121: 0 | L121: 111
A122: 22 | B122: 17207 | C122: 14 | D122: 17225 | E122: 14 | F122: 17233 | K122: 0 | L122: 211
A123: 22 | B123: 17378 | C123: 14 | D123: 17394 | E123: 14 | F123: 17405 | K123: 0 | L123: 211
A124: 22 | B124: 17541 | C124: 14 | D124: 17555 | E124: 14 | F124: 17562 | K124: 0 | L124: 211
A125: 11 | B125: 17736 | C125: 12 | D125: 17746 | E125: 14 | F125: 17754 | K125: 0 | L125: 111
A126: 22 | B126: 17894 | C126: 14 | D126: 17908 | E126: 14 | F126: 17913 | K126: 0 | L126: 211
A127: 22 | B127: 18094 | C127: 14 | D127: 18113 | E127: 14 | F127: 18121 | K127: 0 | L127: 211
A128: 22 | B128: 18274 | C128: 23 | D128: 18285 | E128: 14 | F128: 18300 | K128: 0 | L128: 221
A129: 22 | B129: 18403 | C129: 23 | D129: 18416 | E129: 23 | F129: 18435 | K129: 0 | L129: 222
A130: 11 | B130: 18590 | C130: 12 | D130: 18597 | E130: 14 | F130: 18655 | K130: 0 | L130: 111
A131: 22 | B131: 18775 | C131: 23 | D131: 18785 | E131: 14 | F131: 18799 | K131: 0 | L131: 221
A132: 22 | B132: 18907 | C132: 23 | D132: 18925 | E132: 14 | F132: 18948 | K132: 0 | L132: 221
A133: 22 | B133: 19093 | C133: 23 | D133: 19131 | E133: 14 | F133: 19145 | K133: 0 | L133: 221
A134: 22 | B134: 19299 | C134: 23 | D134: 19317 | E134: 14 | F134: 19337 | K134: 0 | L134: 221
A135: 22 | B135: 19456 | C135: 23 | D135: 19468 | E135: 14 | F135: 19481 | K135: 0 | L135: 221
A136: 22 | B136: 19668 | C136: 14 | D136: 19696 | E136: 14 | F136: 19707 | K136: 0 | L136: 211
A137: 22 | B137: 19857 | C137: 23 | D137: 19917 | E137: 14 | F137: 19945 | K137: 0 | L137: 221
A138: 22 | B138: 20087 | C138: 23 | D138: 20094 | E138: 23 | F138: 20106 | K138: 0 | L138: 222
A139: 11 | B139: 20297 | C139: 12 | D139: 20307 | E139: 14 | F139: 20317 | K139: 0 | L139: 111
A140: 22 | B140: 20469 | C140: 14 | D140: 20483 | E140: 14 | F140: 20491 | K140: 0 | L140: 211
A141: 22 | B141: 20600 | C141: 14 | D141: 20627 | E141: 14 | F141: 20636 | K141: 0 | L141: 211
A142: 22 | B142: 20757 | C142: 14 | D142: 20771 | E142: 14 | F142: 20778 | K142: 0 | L142: 211
A143: 22 | B143: 20960 | C143: 23 | D143: 20969 | E143: 14 | F143: 20982 | K143: 0 | L143: 221
A144: 22 | B144: 21143 | C144: 23 | D144: 21157 | E144: 14 | F144: 21171 | K144: 0 | L144: 221
A145: 11 | B145: 21312 | C145: 12 | D145: 21318 | E145: 14 | F145: 21330 | K145: 0 | L145: 111
A146: 11 | B146: 21481 | C146: 12 | D146: 21489 | E146: 14 | F146: 21498 | K146: 0 | L146: 111
A147: 11 | B147: 21672 | C147: 12 | D147: 21678 | E147: 14 | F147: 21685 | K147: 0 | L147: 111
A148: 11 | B148: 21863 | C148: 12 | D148: 21872 | E148: 14 | F148: 21889 | K148: 0 | L148: 111
A149: 22 | B149: 22008 | C149: 14 | D149: 22052 | E149: 14 | F149: 22059 | K149: 0 | L149: 211
A150: 22 | B150: 22196 | C150: 23 | D150: 22208 | E150: 14 | F150: 22222 | K150: 0 | L150: 221
A151: 22 | B151: 22374 | C151: 14 | D151: 22390 | E151: 14 | F151: 22395 | K151: 0 | L151: 211
A152: 11 | B152: 22557 | C152: 12 | D152: 22572 | E152: 14 | F152: 22581 | K152: 0 | L152: 111
A153: 22 | B153: 22814 | C153: 14 | D153: 22830 | E153: 14 | F153: 22850 | K153: 0 | L153: 211
A154: 22 | B154: 23107 | C154: 23 | D154: 23114 | E154: 14 | F154: 23131 | K154: 0 | L154: 221
A155: 22 | B155: 23275 | C155: 23 | D155: 23283 | E155: 14 | F155: 23299 | K155: 0 | L155: 221
A156: 22 | B156: 23424 | C156: 23 | D156: 23440 | E156: 14 | F156: 23456 | K156: 0 | L156: 221
A157: 11 | B157: 23676 | C157: 12 | D157: 23691 | E157: 14 | F157: 23699 | K157: 0 | L157: 111
A158: 22 | B158: 23812 | C158: 23 | D158: 23820 | E158: 23 | F158: 23845 | K158: 0 | L158: 222

Sheet !M718820.104
A1: Report for:!M718820.104
A2: Date: | B2: <date>
A3: Hen: | B3: <hen> | F3: Correct Sequence | G3: =Start!J2 -> 122 | P3: Total Sequences in Data | Q3: =4994-COUNTBLANK(L7:L5000) -> 132 | V3: Total Sequences in Block Data | W3: =COUNTA(L7:L28) -> 22 | AA3: Total Sequences in Block Data | AB3: =COUNTA(L29:L50) -> 22 | AF3: Total Sequences in Block Data | AG3: =COUNTA(L51:L72) -> 22 | AK3: Total Sequences in Block Data | AL3: =COUNTA(L73:L94) -> 22 | AP3: Total Sequences in Block Data | AQ3: =COUNTA(L95:L116) -> 22 | AU3: Total Sequences in Block Data | AV3: =COUNTA(L117:L138) -> 22
P4: Total Sequences in Summary | Q4: =SUM(O7:O14) -> 132 | V4: Total Sequences in Block Summary | W4: =SUM(U7:U14) -> 22 | AA4: Total Sequences in Block Summary | AB4: =SUM(Z7:Z14) -> 22 | AF4: Total Sequences in Block Summary | AG4: =SUM(AE7:AE14) -> 22 | AK4: Total Sequences in Block Summary | AL4: =SUM(AJ7:AJ14) -> 22 | AP4: Total Sequences in Block Summary | AQ4: =SUM(AO7:AO14) -> 22 | AU4: Total Sequences in Block Summary | AV4: =SUM(AT7:AT14) -> 22
T5: Block 1 | Y5: Block 2 | AD5: Block 3 | AI5: Block 4 | AN5: Block 5 | AS5: Block 6
A6: Sequence Component 1 | B6: Time 1 | C6: Sequence Component 2 | D6: Time 2 | E6: Sequence Component 3 | F6: Time 3 | G6: Sequence Component 4 | H6: Time 4 | I6: Sequence Component 5 | J6: Time 5 | K6: Correct? 0=No 1=Yes | L6: Sequence | N6: Frequency | P6: Relative Frequency | Q6: Variability | T6: Frequency | V6: Relative Frequency | W6: Variability | Y6: Frequency | AA6: Relative Frequency | AB6: Variability | AD6: Frequency | AF6: Relative Frequency | AG6: Variability | AI6: Frequency | AK6: Relative Frequency | AL6: Variability | AN6: Frequency | AP6: Relative Frequency | AQ6: Variability | AS6: Frequency | AU6: Relative Frequency | AV6: Variability
A7: 11 | B7: 24 | C7: 12 | D7: 29 | E7: 14 | F7: 36 | K7: 0 | L7: 111 | N7: 111 | O7: =COUNTIF($L$7:$L$500,N7) -> 27 | P7: =O7/$Q$4 -> 0.2045454545 | Q7: =IF(P7=0,0,(P7*((LOG(P7))/LOG(2)))) -> -0.4683081717 | T7: =N7 -> 111 | U7: =COUNTIF(L7:L28,T7) -> 3 | V7: =U7/(W4-U10) -> 0.1363636364 | W7: =IF(V7=0,0,(V7*((LOG(V7))/LOG(2)))) -> -0.3919730615 | Y7: =N7 -> 111 | Z7: =COUNTIF(L29:L50,Y7) -> 8 | AA7: =Z7/(AB4-Z10) -> 0.3636363636 | AB7: =IF(AA7=0,0,(AA7*((LOG(AA7))/LOG(2)))) -> -0.5307024068 | AD7: =N7 -> 111 | AE7: =COUNTIF(L51:L72,AD7) -> 8 | AF7: =AE7/(AG4-AE10) -> 0.380952381 | AG7: =IF(AF7=0,0,(AF7*((LOG(AF7))/LOG(2)))) -> -0.5304066372 | AI7: =N7 -> 111 | AJ7: =COUNTIF(L73:L94,AI7) -> 3 | AK7: =AJ7/(AL4-AJ10) -> 0.1363636364 | AL7: =IF(AK7=0,0,(AK7*((LOG(AK7))/LOG(2)))) -> -0.3919730615 | AN7: =N7 -> 111 | AO7: =COUNTIF(L95:L116,AN7) -> 1 | AP7: =AO7/(AQ4-AO10) -> 0.04545454545 | AQ7: =IF(AP7=0,0,(AP7*((LOG(AP7))/LOG(2)))) -> -0.2027014372 | AS7: =N7 -> 111 | AT7: =COUNTIF(L117:L138,AS7) -> 4 | AU7: =AT7/(AV4-AT10) -> 0.1818181818 | AV7: =IF(AU7=0,0,(AU7*((LOG(AU7))/LOG(2)))) -> -0.4471693852
A8: 22 | B8: 139 | C8: 23 | D8: 147 | E8: 14 | F8: 160 | K8: 0 | L8: 221 | N8: 112 | O8: =COUNTIF($L$7:$L$500,N8) -> 3 | P8: =O8/$Q$4 -> 0.02272727273 | Q8: =IF(P8=0,0,(P8*((LOG(P8))/LOG(2)))) -> -0.1240779913 | T8: =N8 -> 112 | U8: =COUNTIF(L7:L28,T8) -> 0 | V8: =U8/(W4-U10) -> 0 | W8: =IF(V8=0,0,(V8*((LOG(V8))/LOG(2)))) -> 0 | Y8: =N8 -> 112 | Z8: =COUNTIF(L29:L50,Y8) -> 0 | AA8: =Z8/(AB4-Z10) -> 0 | AB8: =IF(AA8=0,0,(AA8*((LOG(AA8))/LOG(2)))) -> 0 | AD8: =N8 -> 112 | AE8: =COUNTIF(L51:L72,AD8) -> 0 | AF8: =AE8/(AG4-AE10) -> 0 | AG8: =IF(AF8=0,0,(AF8*((LOG(AF8))/LOG(2)))) -> 0 | AI8: =N8 -> 112 | AJ8: =COUNTIF(L73:L94,AI8) -> 0 | AK8: =AJ8/(AL4-AJ10) -> 0 | AL8: =IF(AK8=0,0,(AK8*((LOG(AK8))/LOG(2)))) -> 0 | AN8: =N8 -> 112 | AO8: =COUNTIF(L95:L116,AN8) -> 1 | AP8: =AO8/(AQ4-AO10) -> 0.04545454545 | AQ8: =IF(AP8=0,0,(AP8*((LOG(AP8))/LOG(2)))) -> -0.2027014372 | AS8: =N8 -> 112 | AT8: =COUNTIF(L117:L138,AS8) -> 2 | AU8: =AT8/(AV4-AT10) -> 0.09090909091 | AV8: =IF(AU8=0,0,(AU8*((LOG(AU8))/LOG(2)))) -> -0.3144937835
A9: 22 | B9: 262 | C9: 23 | D9: 274 | E9: 14 | F9: 288 | K9: 0 | L9: 221 | N9: 121 | O9: =COUNTIF($L$7:$L$500,N9) -> 0 | P9: =O9/$Q$4 -> 0 | Q9: =IF(P9=0,0,(P9*((LOG(P9))/LOG(2)))) -> 0 | T9: =N9 -> 121 | U9: =COUNTIF(L7:L28,T9) -> 0 | V9: =U9/(W4-U10) -> 0 | W9: =IF(V9=0,0,(V9*((LOG(V9))/LOG(2)))) -> 0 | Y9: =N9 -> 121 | Z9: =COUNTIF(L29:L50,Y9) -> 0 | AA9: =Z9/(AB4-Z10) -> 0 | AB9: =IF(AA9=0,0,(AA9*((LOG(AA9))/LOG(2)))) -> 0 | AD9: =N9 -> 121 | AE9: =COUNTIF(L51:L72,AD9) -> 0 | AF9: =AE9/(AG4-AE10) -> 0 | AG9: =IF(AF9=0,0,(AF9*((LOG(AF9))/LOG(2)))) -> 0 | AI9: =N9 -> 121 | AJ9: =COUNTIF(L73:L94,AI9) -> 0 | AK9: =AJ9/(AL4-AJ10) -> 0 | AL9: =IF(AK9=0,0,(AK9*((LOG(AK9))/LOG(2)))) -> 0 | AN9: =N9 -> 121 | AO9: =COUNTIF(L95:L116,AN9) -> 0 | AP9: =AO9/(AQ4-AO10) -> 0 | AQ9: =IF(AP9=0,0,(AP9*((LOG(AP9))/LOG(2)))) -> 0 | AS9: =N9 -> 121 | AT9: =COUNTIF(L117:L138,AS9) -> 0 | AU9: =AT9/(AV4-AT10) -> 0 | AV9: =IF(AU9=0,0,(AU9*((LOG(AU9))/LOG(2)))) -> 0
A10: 22 | B10: 391 | C10: 14 | D10: 406 | E10: 14 | F10: 413 | K10: 0 | L10: 211 | N10: 122 | O10: =COUNTIF($L$7:$L$500,N10) -> 1 | P10: =O10/$Q$4 -> 0.007575757576 | Q10: =IF(P10=0,0,(P10*((LOG(P10))/LOG(2)))) -> -0.05336662212 | T10: =N10 -> 122 | U10: =COUNTIF(L7:L28,T10) -> 0 | Y10: =N10 -> 122 | Z10: =COUNTIF(L29:L50,Y10) -> 0 | AD10: =N10 -> 122 | AE10: =COUNTIF(L51:L72,AD10) -> 1 | AI10: =N10 -> 122 | AJ10: =COUNTIF(L73:L94,AI10) -> 0 | AN10: =N10 -> 122 | AO10: =COUNTIF(L95:L116,AN10) -> 0 | AS10: =N10 -> 122 | AT10: =COUNTIF(L117:L138,AS10) -> 0
A11: 22 | B11: 534 | C11: 14 | D11: 548 | E11: 14 | F11: 555 | K11: 0 | L11: 211 | N11: 211 | O11: =COUNTIF($L$7:$L$500,N11) -> 19 | P11: =O11/$Q$4 -> 0.1439393939 | Q11: =IF(P11=0,0,(P11*((LOG(P11))/LOG(2)))) -> -0.4025217084 | T11: =N11 -> 211 | U11: =COUNTIF(L7:L28,T11) -> 4 | V11: =U11/(W4-U10) -> 0.1818181818 | W11: =IF(V11=0,0,(V11*((LOG(V11))/LOG(2)))) -> -0.4471693852 | Y11: =N11 -> 211 | Z11: =COUNTIF(L29:L50,Y11) -> 6 | AA11: =Z11/(AB4-Z10) -> 0.2727272727 | AB11: =IF(AA11=0,0,(AA11*((LOG(AA11))/LOG(2)))) -> -0.5112188503 | AD11: =N11 -> 211 | AE11: =COUNTIF(L51:L72,AD11) -> 2 | AF11: =AE11/(AG4-AE10) -> 0.09523809524 | AG11: =IF(AF11=0,0,(AF11*((LOG(AF11))/LOG(2)))) -> -0.3230778498 | AI11: =N11 -> 211 | AJ11: =COUNTIF(L73:L94,AI11) -> 0 | AK11: =AJ11/(AL4-AJ10) -> 0 | AL11: =IF(AK11=0,0,(AK11*((LOG(AK11))/LOG(2)))) -> 0 | AN11: =N11 -> 211 | AO11: =COUNTIF(L95:L116,AN11) -> 5 | AP11: =AO11/(AQ4-AO10) -> 0.2272727273 | AQ11: =IF(AP11=0,0,(AP11*((LOG(AP11))/LOG(2)))) -> -0.4857962554 | AS11: =N11 -> 211 | AT11: =COUNTIF(L117:L138,AS11) -> 2 | AU11: =AT11/(AV4-AT10) -> 0.09090909091 | AV11: =IF(AU11=0,0,(AU11*((LOG(AU11))/LOG(2)))) -> -0.3144937835
A12: 11 | B12: 677 | C12: 12 | D12: 683 | E12: 14 | F12: 691 | K12: 0 | L12: 111 | N12: 212 | O12: =COUNTIF($L$7:$L$500,N12) -> 3 | P12: =O12/$Q$4 -> 0.02272727273 | Q12: =IF(P12=0,0,(P12*((LOG(P12))/LOG(2)))) -> -0.1240779913 | T12: =N12 -> 212 | U12: =COUNTIF(L7:L28,T12) -> 0 | V12: =U12/(W4-U10) -> 0 | W12: =IF(V12=0,0,(V12*((LOG(V12))/LOG(2)))) -> 0 | Y12: =N12 -> 212 | Z12: =COUNTIF(L29:L50,Y12) -> 0 | AA12: =Z12/(AB4-Z10) -> 0 | AB12: =IF(AA12=0,0,(AA12*((LOG(AA12))/LOG(2)))) -> 0 | AD12: =N12 -> 212 | AE12: =COUNTIF(L51:L72,AD12) -> 0 | AF12: =AE12/(AG4-AE10) -> 0 | AG12: =IF(AF12=0,0,(AF12*((LOG(AF12))/LOG(2)))) -> 0 | AI12: =N12 -> 212 | AJ12: =COUNTIF(L73:L94,AI12) -> 0 | AK12: =AJ12/(AL4-AJ10) -> 0 | AL12: =IF(AK12=0,0,(AK12*((LOG(AK12))/LOG(2)))) -> 0 | AN12: =N12 -> 212 | AO12: =COUNTIF(L95:L116,AN12) -> 1 | AP12: =AO12/(AQ4-AO10) -> 0.04545454545 | AQ12: =IF(AP12=0,0,(AP12*((LOG(AP12))/LOG(2)))) -> -0.2027014372 | AS12: =N12 -> 212 | AT12: =COUNTIF(L117:L138,AS12) -> 2 | AU12: =AT12/(AV4-AT10) -> 0.09090909091 | AV12: =IF(AU12=0,0,(AU12*((LOG(AU12))/LOG(2)))) -> -0.3144937835
A13: 22 | B13: 791 | C13: 23 | D13: 798 | E13: 14 | F13: 810 | K13: 0 | L13: 221 | N13: 221 | O13: =COUNTIF($L$7:$L$500,N13) -> 39 | P13: =O13/$Q$4 -> 0.2954545455 | Q13: =IF(P13=0,0,(P13*((LOG(P13))/LOG(2)))) -> -0.5197021524 | T13: =N13 -> 221 | U13: =COUNTIF(L7:L28,T13) -> 9 | V13: =U13/(W4-U10) -> 0.4090909091 | W13: =IF(V13=0,0,(V13*((LOG(V13))/LOG(2)))) -> -0.5275254343 | Y13: =N13 -> 221 | Z13: =COUNTIF(L29:L50,Y13) -> 4 | AA13: =Z13/(AB4-Z10) -> 0.1818181818 | AB13: =IF(AA13=0,0,(AA13*((LOG(AA13))/LOG(2)))) -> -0.4471693852 | AD13: =N13 -> 221 | AE13: =COUNTIF(L51:L72,AD13) -> 6 | AF13: =AE13/(AG4-AE10) -> 0.2857142857 | AG13: =IF(AF13=0,0,(AF13*((LOG(AF13))/LOG(2)))) -> -0.5163871206 | AI13: =N13 -> 221 | AJ13: =COUNTIF(L73:L94,AI13) -> 8 | AK13: =AJ13/(AL4-AJ10) -> 0.3636363636 | AL13: =IF(AK13=0,0,(AK13*((LOG(AK13))/LOG(2)))) -> -0.5307024068 | AN13: =N13 -> 221 | AO13: =COUNTIF(L95:L116,AN13) -> 9 | AP13: =AO13/(AQ4-AO10) -> 0.4090909091 | AQ13: =IF(AP13=0,0,(AP13*((LOG(AP13))/LOG(2)))) -> -0.5275254343 | AS13: =N13 -> 221 | AT13: =COUNTIF(L117:L138,AS13) -> 3 | AU13: =AT13/(AV4-AT10) -> 0.1363636364 | AV13: =IF(AU13=0,0,(AU13*((LOG(AU13))/LOG(2)))) -> -0.3919730615
A14: 22 | B14: 913 | C14: 23 | D14: 921 | E14: 14 | F14: 933 | K14: 0 | L14: 221 | N14: 222 | O14: =COUNTIF($L$7:$L$500,N14) -> 40 | P14: =O14/$Q$4 -> 0.303030303 | Q14: =IF(P14=0,0,(P14*((LOG(P14))/LOG(2)))) -> -0.5219594014 | T14: =N14 -> 222 | U14: =COUNTIF(L7:L28,T14) -> 6 | V14: =U14/(W4-U10) -> 0.2727272727 | W14: =IF(V14=0,0,(V14*((LOG(V14))/LOG(2)))) -> -0.5112188503 | Y14: =N14 -> 222 | Z14: =COUNTIF(L29:L50,Y14) -> 4 | AA14: =Z14/(AB4-Z10) -> 0.1818181818 | AB14: =IF(AA14=0,0,(AA14*((LOG(AA14))/LOG(2)))) -> -0.4471693852 | AD14: =N14 -> 222 | AE14: =COUNTIF(L51:L72,AD14) -> 5 | AF14: =AE14/(AG4-AE10) -> 0.2380952381 | AG14: =IF(AF14=0,0,(AF14*((LOG(AF14))/LOG(2)))) -> -0.49294984 | AI14: =N14 -> 222 | AJ14: =COUNTIF(L73:L94,AI14) -> 11 | AK14: =AJ14/(AL4-AJ10) -> 0.5 | AL14: =IF(AK14=0,0,(AK14*((LOG(AK14))/LOG(2)))) -> -0.5 | AN14: =N14 -> 222 | AO14: =COUNTIF(L95:L116,AN14) -> 5 | AP14: =AO14/(AQ4-AO10) -> 0.2272727273 | AQ14: =IF(AP14=0,0,(AP14*((LOG(AP14))/LOG(2)))) -> -0.4857962554 | AS14: =N14 -> 222 | AT14: =COUNTIF(L117:L138,AS14) -> 9 | AU14: =AT14/(AV4-AT10) -> 0.4090909091 | AV14: =IF(AU14=0,0,(AU14*((LOG(AU14))/LOG(2)))) -> -0.5275254343
A15: 11 | B15: 1065 | C15: 12 | D15: 1070 | E15: 14 | F15: 1078 | K15: 0 | L15: 111 | P15: =SUM(P7:P14) -> 1 | Q15: =-SUM(Q7:Q14) -> 2.214014039 | V15: =SUM(V7:V14) -> 1 | W15: =-SUM(W7:W14) -> 1.877886731 | AA15: =SUM(AA7:AA14) -> 1 | AB15: =-SUM(AB7:AB14) -> 1.936260028 | AF15: =SUM(AF7:AF14) -> 1 | AG15: =-SUM(AG7:AG14) -> 1.862821448 | AK15: =SUM(AK7:AK14) -> 1 | AL15: =-SUM(AL7:AL14) -> 1.422675468 | AP15: =SUM(AP7:AP14) -> 1 | AQ15: =-SUM(AQ7:AQ14) -> 2.107222257 | AU15: =SUM(AU7:AU14) -> 1 | AV15: =-SUM(AV7:AV14) -> 2.310149232
A16: 22 | B16: 1178 | C16: 14 | D16: 1208 | E16: 14 | F16: 1214 | K16: 0 | L16: 211 | P16: U= | Q16: =Q15/(LOG(Q4)/LOG(2)) -> 0.314294459 | V16: U1= | W16: =W15/(LOG(W4)/LOG(2)) -> 0.4211045021 | AA16: U2= | AB16: =AB15/(LOG(AB4)/LOG(2)) -> 0.4341943533 | AF16: U3= | AG16: =AG15/(LOG(AG4)/LOG(2)) -> 0.4177262052 | AK16: U4= | AL16: =AL15/(LOG(AL4)/LOG(2)) -> 0.3190261876 | AP16: U5= | AQ16: =AQ15/(LOG(AQ4)/LOG(2)) -> 0.4725315773 | AU16: U6= | AV16: =AV15/(LOG(AV4)/LOG(2)) -> 0.5180366982
A17: 22 | B17: 1314 | C17: 23 | D17: 1341 | E17: 14 | F17: 1354 | K17: 0 | L17: 221
A18: 22 | B18: 1452 | C18: 23 | D18: 1465 | E18: 23 | F18: 1487 | K18: 0 | L18: 222
A19: 22 | B19: 1616 | C19: 14 | D19: 1629 | E19: 14 | F19: 1637 | K19: 0 | L19: 211 | N19: Total Target Seq
A20: 22 | B20: 1738 | C20: 23 | D20: 1746 | E20: 14 | F20: 1762 | K20: 0 | L20: 221 | N20: =COUNTIF(L7:L138,G3) -> 1 | P20: 22 | Q20: 22 | R20: 22 | S20: 22 | T20: 22 | U20: 22
A21: 22 | B21: 1863 | C21: 23 | D21: 1878 | E21: 14 | F21: 1893 | K21: 0 | L21: 221 | P21: % of reinforcement given in 6 equal intervals based on number of trials
A22: 22 | B22: 1993 | C22: 23 | D22: 2000 | E22: 23 | F22: 2017 | K22: 0 | L22: 222 | P22: %_1 | Q22: %_2 | R22: %_3 | S22: %_4 | T22: %_5 | U22: %_6
A23: 22 | B23: 2114 | C23: 23 | D23: 2133 | E23: 14 | F23: 2148 | K23: 0 | L23: 221 | O23: target sequence | P23: =$G$3 -> 122 | Q23: =$G$3 -> 122 | R23: =$G$3 -> 122 | S23: =$G$3 -> 122 | T23: =$G$3 -> 122 | U23: =$G$3 -> 122
A24: 22 | B24: 2253 | C24: 23 | D24: 2266 | E24: 23 | F24: 2271 | K24: 0 | L24: 222 | O24: total reinforcement | P24: =U10 -> 0 | Q24: =Z10 -> 0 | R24: =AE10 -> 1 | S24: =AJ10 -> 0 | T24: =AO10 -> 0 | U24: =AT10 -> 0
A25: 22 | B25: 2374 | C25: 23 | D25: 2381 | E25: 23 | F25: 2389 | K25: 0 | L25: 222 | O25: % target
A26: 22 | B26: 2501 | C26: 23 | D26: 2509 | E26: 14 | F26: 2525 | K26: 0 | L26: 221 | O26: CCRF
A27: 22 | B27: 2633 | C27: 23 | D27: 2639 | E27: 23 | F27: 2649 | K27: 0 | L27: 222 | O27: % CCRf
A28: 22 | B28: 2752 | C28: 23 | D28: 2760 | E28: 23 | F28: 2768 | K28: 0 | L28: 222 | O28: average response rate | P28: =F28/P20 -> 125.8181818 | Q28: =(F50-F28)/Q20 -> 170.9545455 | R28: =(F72-F50)/R20 -> 162.6818182 | S28: =(F94-F72)/S20 -> 149.7727273 | T28: =(F116-F94)/T20 -> 177.5454545 | U28: =(F138-F116)/U20 -> 289.9545455
A29: 22 | B29: 2882 | C29: 14 | D29: 2899 | E29: 14 | F29: 2907 | K29: 0 | L29: 211
A30: 11 | B30: 3104 | C30: 12 | D30: 3111 | E30: 14 | F30: 3118 | K30: 0 | L30: 111
A31: 22 | B31: 3250 | C31: 14 | D31: 3265 | E31: 14 | F31: 3273 | K31: 0 | L31: 211
A32: 22 | B32: 3389 | C32: 14 | D32: 3403 | E32: 14 | F32: 3411 | K32: 0 | L32: 211
A33: 22 | B33: 3522 | C33: 23 | D33: 3527 | E33: 23 | F33: 3535 | K33: 0 | L33: 222
A34: 22 | B34: 3666 | C34: 23 | D34: 3670 | E34: 14 | F34: 3700 | K34: 0 | L34: 221
A35: 11 | B35: 3835 | C35: 12 | D35: 3844 | E35: 14 | F35: 3852 | K35: 0 | L35: 111
A36: 22 | B36: 3966 | C36: 14 | D36: 3988 | E36: 14 | F36: 3993 | K36: 0 | L36: 211
A37: 22 | B37: 4131 | C37: 23 | D37: 4139 | E37: 14 | F37: 4154 | K37: 0 | L37: 221
A38: 11 | B38: 4337 | C38: 12 | D38: 4344 | E38: 14 | F38: 4353 | K38: 0 | L38: 111
A39: 22 | B39: 4480 | C39: 23 | D39: 4491 | E39: 23 | F39: 4499 | K39: 0 | L39: 222
A40: 22 | B40: 4614 | C40: 23 | D40: 4628 | E40: 23 | F40: 4635 | K40: 0 | L40: 222
A41: 22 | B41: 4778 | C41: 14 | D41: 4792 | E41: 14 | F41: 4799 | K41: 0 | L41: 211
A42: 11 | B42: 4971 | C42: 12 | D42: 4978 | E42: 14 | F42: 4985 | K42: 0 | L42: 111
A43: 22 | B43: 5155 | C43: 14 | D43: 5168 | E43: 14 | F43: 5175 | K43: 0 | L43: 211
A44: 22 | B44: 5319 | C44: 23 | D44: 5350 | E44: 14 | F44: 5379 | K44: 0 | L44: 221
A45: 22 | B45: 5518 | C45: 23 | D45: 5525 | E45: 23 | F45: 5534 | K45: 0 | L45: 222
A46: 11 | B46: 5659 | C46: 12 | D46: 5667 | E46: 14 | F46: 5674 | K46: 0 | L46: 111
A47: 11 | B47: 5823 | C47: 12 | D47: 5831 | E47: 14 | F47: 5839 | K47: 0 | L47: 111
A48: 22 | B48: 6126 | C48: 23 | D48: 6136 | E48: 14 | F48: 6151 | K48: 0 | L48: 221
A49: 11 | B49: 6343 | C49: 12 | D49: 6350 | E49: 14 | F49: 6359 | K49: 0 | L49: 111
A50: 11 | B50: 6514 | C50: 12 | D50: 6521 | E50: 14 | F50: 6529 | K50: 0 | L50: 111
A51: 22 | B51: 6676 | C51: 23 | D51: 6684 | E51: 23 | F51: 6695 | K51: 0 | L51: 222
A52: 22 | B52: 6862 | C52: 14 | D52: 6878 | E52: 14 | F52: 6885 | K52: 0 | L52: 211
A53: 11 | B53: 7070 | C53: 12 | D53: 7077 | E53: 14 | F53: 7085 | K53: 0 | L53: 111
A54: 22 | B54: 7212 | C54: 23 | D54: 7253 | E54: 14 | F54: 7267 | K54: 0 | L54: 221
A55: 22 | B55: 7365 | C55: 23 | D55: 7374 | E55: 23 | F55: 7382 | K55: 0 | L55: 222
A56: 11 | B56: 7608 | C56: 21 | D56: 7630 | E56: 21 | F56: 7638 | K56: 0 | L56: 122
A57: 22 | B57: 7771 | C57: 23 | D57: 7792 | E57: 23 | F57: 7806 | K57: 0 | L57: 222
A58: 11 | B58: 8014 | C58: 12 | D58: 8022 | E58: 14 | F58: 8030 | K58: 0 | L58: 111
A59: 11 | B59: 8172 | C59: 12 | D59: 8179 | E59: 14 | F59: 8186 | K59: 0 | L59: 111
A60: 11 | B60: 8314 | C60: 12 | D60: 8321 | E60: 14 | F60: 8328 | K60: 0 | L60: 111
A61: 11 | B61: 8585 | C61: 12 | D61: 8592 | E61: 14 | F61: 8599 | K61: 0 | L61: 111
A62: 11 | B62: 8749 | C62: 12 | D62: 8756 | E62: 14 | F62: 8763 | K62: 0 | L62: 111
A63: 11 | B63: 8906 | C63: 12 | D63: 8915 | E63: 14 | F63: 8922 | K63: 0 | L63: 111
A64: 22 | B64: 9021 | C64: 23 | D64: 9029 | E64: 14 | F64: 9043 | K64: 0 | L64: 221
A65: 22 | B65: 9154 | C65: 23 | D65: 9163 | E65: 14 | F65: 9186 | K65: 0 | L65: 221
A66: 22 | B66: 9291 | C66: 23 | D66: 9299 | E66: 14 | F66: 9315 | K66: 0 | L66: 221
A67: 11 | B67: 9446 | C67: 12 | D67: 9457 | E67: 14 | F67: 9464 | K67: 0 | L67: 111
A68: 22 | B68: 9565 | C68: 23 | D68: 9572 | E68: 14 | F68: 9587 | K68: 0 | L68: 221
A69: 22 | B69: 9688 | C69: 14 | D69: 9710 | E69: 14 | F69: 9716 | K69: 0 | L69: 211
A70: 22 | B70: 9822 | C70: 23 | D70: 9830 | E70: 14 | F70: 9843 | K70: 0 | L70: 221
A71: 22 | B71: 9952 | C71: 23 | D71: 9958 | E71: 23 | F71: 9966 | K71: 0 | L71: 222
A72: 22 | B72: 10085 | C72: 23 | D72: 10100 | E72: 23 | F72: 10108 | K72: 0 | L72: 222
A73: 22 | B73: 10213 | C73: 23 | D73: 10222 | E73: 23 | F73: 10230 | K73: 0 | L73: 222
A74: 22 | B74: 10353 | C74: 23 | D74: 10363 | E74: 23 | F74: 10374 | K74: 0 | L74: 222
A75: 22 | B75: 10485 | C75: 23 | D75: 10489 | E75: 23 | F75: 10497 | K75: 0 | L75: 222
A76: 22 | B76: 10607 | C76: 23 | D76: 10618 | E76: 23 | F76: 10625 | K76: 0 | L76: 222
A77: 22 | B77: 10739 | C77: 23 | D77: 10751 | E77: 14 | F77: 10766 | K77: 0 | L77: 221
A78: 22 | B78: 10876 | C78: 23 | D78: 10881 | E78: 23 | F78: 10888 | K78: 0 | L78: 222
A79: 22 | B79: 11002 | C79: 23 | D79: 11008 | E79: 14 | F79: 11025 | K79: 0 | L79: 221
A80: 22 | B80: 11125 | C80: 23 | D80: 11148 | E80: 14 | F80: 11167 | K80: 0 | L80: 221
A81: 22 | B81: 11266 | C81: 23 | D81: 11272 | E81: 23 | F81: 11288 | K81: 0 | L81: 222
A82: 22 | B82: 11415 | C82: 23 | D82: 11424 | E82: 23 | F82: 11440 | K82: 0 | L82: 222
A83: 22 | B83: 11559 | C83: 23 | D83: 11566 | E83: 23 | F83: 11582 | K83: 0 | L83: 222
A84: 11 | B84: 11742 | C84: 12 | D84: 11755 | E84: 14 | F84: 11763 | K84: 0 | L84: 111
A85: 22 | B85: 11890 | C85: 23 | D85: 11906 | E85: 14 | F85: 11921 | K85: 0 | L85: 221
A86: 22 | B86: 12042 | C86: 23 | D86: 12049 | E86: 14 | F86: 12064 | K86: 0 | L86: 221
A87: 22 | B87: 12178 | C87: 23 | D87: 12186 | E87: 23 | F87: 12195 | K87: 0 | L87: 222
A88: 11 | B88: 12371 | C88: 12 | D88: 12380 | E88: 14 | F88: 12389 | K88: 0 | L88: 111
A89: 22 | B89: 12499 | C89: 23 | D89: 12525 | E89: 23 | F89: 12534 | K89: 0 | L89: 222
A90: 11 | B90: 12715 | C90: 12 | D90: 12723 | E90: 14 | F90: 12730 | K90: 0 | L90: 111
A91: 22 | B91: 12858 | C91: 23 | D91: 12866 | E91: 14 | F91: 12890 | K91: 0 | L91: 221
A92: 22 | B92: 13006 | C92: 23 | D92: 13014 | E92: 14 | F92: 13041 | K92: 0 | L92: 221
A93: 22 | B93: 13171 | C93: 23 | D93: 13192 | E93: 14 | F93: 13208 | K93: 0 | L93: 221
A94: 22 | B94: 13336 | C94: 23 | D94: 13385 | E94: 23 | F94: 13403 | K94: 0 | L94: 222
A95: 22 | B95: 13536 | C95: 23 | D95: 13544 | E95: 23 | F95: 13553 | K95: 0 | L95: 222
A96: 22 | B96: 13663 | C96: 23 | D96: 13679 | E96: 23 | F96: 13686 | K96: 0 | L96: 222
A97: 22 | B97: 13811 | C97: 23 | D97: 13819 | E97: 14 | F97: 13832 | K97: 0 | L97: 221
A98: 22 | B98: 14004 | C98: 14 | D98: 14032 | E98: 14 | F98: 14041 | K98: 0 | L98: 211
A99: 22 | B99: 14174 | C99: 14 | D99: 14204 | E99: 14 | F99: 14212 | K99: 0 | L99: 211
A100: 22 | B100: 14350 | C100: 14 | D100: 14383 | E100: 14 | F100: 14391 | K100: 0 | L100: 211
A101: 22 | B101: 14552 | C101: 23 | D101: 14556 | E101: 23 | F101: 14560 | K101: 0 | L101: 222
A102: 22 | B102: 14728 | C102: 23 | D102: 14738 | E102: 23 | F102: 14755 | K102: 0 | L102: 222
A103: 22 | B103: 14867 | C103: 14 | D103: 14883 | E103: 23 | F103: 14895 | K103: 0 | L103: 212
A104: 22 | B104: 15025 | C104: 14 | D104: 15041 | E104: 14 | F104: 15047 | K104: 0 | L104: 211
A105: 22 | B105: 15174 | C105: 23 | D105: 15181 | E105: 14 | F105: 15195 | K105: 0 | L105: 221
A106: 22 | B106: 15327 | C106: 14 | D106: 15347 | E106: 14 | F106: 15355 | K106: 0 | L106: 211
A107: 22 | B107: 15479 | C107: 23 | D107: 15501 | E107: 14 | F107: 15516 | K107: 0 | L107: 221
A108: 11 | B108: 15687 | C108: 12 | D108: 15693 | E108: 14 | F108: 15702 | K108: 0 | L108: 111
A109: 22 | B109: 15840 | C109: 23 | D109: 15851 | E109: 14 | F109: 15866 | K109: 0 | L109: 221
A110: 22 | B110: 16020 | C110: 23 | D110: 16027 | E110: 14 | F110: 16046 | K110: 0 | L110: 221
A111: 22 | B111: 16163 | C111: 23 | D111: 16174 | E111: 14 | F111: 16201 | K111: 0 | L111: 221
A112: 11 | B112: 16427 | C112: 12 | D112: 16435 | E112: 23 | F112: 16477 | K112: 0 | L112: 112
A113: 22 | B113: 16635 | C113: 23 | D113: 16677 | E113: 14 | F113: 16705 | K113: 0 | L113: 221
A114: 22 | B114: 16835 | C114: 23 | D114: 16844 | E114: 14 | F114: 16878 | K114: 0 | L114: 221
A115: 22 | B115: 17079 | C115: 23 | D115: 17094 | E115: 14 | F115: 17111 | K115: 0 | L115: 221
A116: 22 | B116: 17258 | C116: 23 | D116: 17296 | E116: 23 | F116: 17309 | K116: 0 | L116: 222
A117: 22 | B117: 17475 | C117: 23 | D117: 17482 | E117: 23 | F117: 17490 | K117: 0 | L117: 222
A118: 22 | B118: 17664 | C118: 23 | D118: 17671 | E118: 23 | F118: 17688 | K118: 0 | L118: 222
A119: 22 | B119: 17910 | C119: 23 | D119: 17931 | E119: 14 | F119: 17947 | K119: 0 | L119: 221
A120: 11 | B120: 18393 | C120: 12 | D120: 18418 | E120: 14 | F120: 18426 | K120: 0 | L120: 111
A121: 22 | B121: 18591 | C121: 14 | D121: 18616 | E121: 23 | F121: 19106 | K121: 0 | L121: 212
A122: 11 | B122: 19335 | C122: 12 | D122: 19343 | E122: 14 | F122: 19351 | K122: 0 | L122: 111
A123: 11 | B123: 19609 | C123: 12 | D123: 19646 | E123: 14 | F123: 19698 | K123: 0 | L123: 111
A124: 11 | B124: 19873 | C124: 12 | D124: 19883 | E124: 23 | F124: 20078 | K124: 0 | L124: 112
A125: 22 | B125: 20400 | C125: 23 | D125: 20409 | E125: 14 | F125: 20428 | K125: 0 | L125: 221
A126: 11 | B126: 20714 | C126: 12 | D126: 20722 | E126: 23 | F126: 21004 | K126: 0 | L126: 112
A127: 22 | B127: 21146 | C127: 23 | D127: 21157 | E127: 23 | F127: 21180 | K127: 0 | L127: 222
A128: 22 | B128: 21421 | C128: 23 | D128: 21447 | E128: 23 | F128: 21469 | K128: 0 | L128: 222
A129: 22 | B129: 21615 | C129: 23 | D129: 21623 | E129: 23 | F129: 21634 | K129: 0 | L129: 222
A130: 22 | B130: 21875 | C130: 23 | D130: 21882 | E130: 14 | F130: 21899 | K130: 0 | L130: 221
A131: 22 | B131: 22038 | C131: 23 | D131: 22046 | E131: 23 | F131: 22057 | K131: 0 | L131: 222
A132: 22 | B132: 22292 | C132: 14 | D132: 22329 | E132: 14 | F132: 22337 | K132: 0 | L132: 211
A133: 22 | B133: 22460 | C133: 14 | D133: 22514 | E133: 23 | F133: 22539 | K133: 0 | L133: 212
A134: 22 | B134: 22743 | C134: 23 | D134: 22778 | E134: 23 | F134: 22807 | K134: 0 | L134: 222
A135: 22 | B135: 22991 | C135: 14 | D135: 23108 | E135: 14 | F135: 23119 | K135: 0 | L135: 211
A136: 22 | B136: 23250 | C136: 23 | D136: 23258 | E136: 23 | F136: 23282 | K136: 0 | L136: 222
A137: 11 | B137: 23463 | C137: 12 | D137: 23471 | E137: 14 | F137: 23480 | K137: 0 | L137: 111
A138: 22 | B138: 23670 | C138: 23 | D138: 23676 | E138: 23 | F138: 23688 | K138: 0 | L138: 222

Sheet !M719950.104
A1: Report for:!M719950.104
A2: Date: | B2: <date>
A3: Hen: | B3: <hen> | F3: Correct Sequence | G3: =Start!J2 -> 122 | P3: Total Sequences in Data | Q3: =4994-COUNTBLANK(L7:L5000) -> 155 | V3: Total Sequences in Block Data | W3: =COUNTA(L7:L32) -> 26 | AA3: Total Sequences in Block Data | AB3: =COUNTA(L33:L58) -> 26 | AF3: Total Sequences in Block Data | AG3: =COUNTA(L59:L83) -> 25 | AK3: Total Sequences in Block Data | AL3: =COUNTA(L84:L109) -> 26 | AP3: Total Sequences in Block Data | AQ3: =COUNTA(L110:L135) -> 26 | AU3: Total Sequences in Block Data | AV3: =COUNTA(L136:L161) -> 26
P4: Total Sequences in Summary | Q4: =SUM(O7:O14) -> 155 | V4: Total Sequences in Block Summary | W4: =SUM(U7:U14) -> 26 | AA4: Total Sequences in Block Summary | AB4: =SUM(Z7:Z14) -> 26 | AF4: Total Sequences in Block Summary | AG4: =SUM(AE7:AE14) -> 25 | AK4: Total Sequences in Block Summary | AL4: =SUM(AJ7:AJ14) -> 26 | AP4: Total Sequences in Block Summary | AQ4: =SUM(AO7:AO14) -> 26 | AU4: Total Sequences in Block Summary | AV4: =SUM(AT7:AT14) -> 26
T5: Block 1 | Y5: Block 2 | AD5: Block 3 | AI5: Block 4 | AN5: Block 5 | AS5: Block 6
A6: Sequence Component 1 | B6: Time 1 | C6: Sequence Component 2 | D6: Time 2 | E6: Sequence Component 3 | F6: Time 3 | G6: Sequence Component 4 | H6: Time 4 | I6: Sequence Component 5 | J6: Time 5 | K6: Correct? 0=No 1=Yes | L6: Sequence | N6: Frequency | P6: Relative Frequency | Q6: Variability | T6: Frequency | V6: Relative Frequency | W6: Variability | Y6: Frequency | AA6: Relative Frequency | AB6: Variability | AD6: Frequency | AF6: Relative Frequency | AG6: Variability | AI6: Frequency | AK6: Relative Frequency | AL6: Variability | AN6: Frequency | AP6: Relative Frequency | AQ6: Variability | AS6: Frequency | AU6: Relative Frequency | AV6: Variability
A7: 11 | B7: 12 | C7: 12 | D7: 20 | E7: 23 | F7: 34 | K7: 0 | L7: 112 | N7: 111 | O7: =COUNTIF($L$7:$L$500,N7) -> 15 | P7: =O7/$Q$4 -> 0.09677419355 | Q7: =IF(P7=0,0,(P7*((LOG(P7))/LOG(2)))) -> -0.3260548848 | T7: =N7 -> 111 | U7: =COUNTIF(L7:L32,T7) -> 3 | V7: =U7/(W4-U10) -> 0.1153846154 | W7: =IF(V7=0,0,(V7*((LOG(V7))/LOG(2)))) -> -0.3594781405 | Y7: =N7 -> 111 | Z7: =COUNTIF(L33:L58,Y7) -> 5 | AA7: =Z7/(AB4-Z10) -> 0.2 | AB7: =IF(AA7=0,0,(AA7*((LOG(AA7))/LOG(2)))) -> -0.464385619 | AD7: =N7 -> 111 | AE7: =COUNTIF(L59:L83,AD7) -> 3 | AF7: =AE7/(AG4-AE10) -> 0.12 | AG7: =IF(AF7=0,0,(AF7*((LOG(AF7))/LOG(2)))) -> -0.3670672427 | AI7: =N7 -> 111 | AJ7: =COUNTIF(L84:L109,AI7) -> 2 | AK7: =AJ7/(AL4-AJ10) -> 0.08333333333 | AL7: =IF(AK7=0,0,(AK7*((LOG(AK7))/LOG(2)))) -> -0.2987468751 | AN7: =N7 -> 111 | AO7: =COUNTIF(L110:L135,AN7) -> 1 | AP7: =AO7/(AQ4-AO10) -> 0.04166666667 | AQ7: =IF(AP7=0,0,(AP7*((LOG(AP7))/LOG(2)))) -> -0.1910401042 | AS7: =N7 -> 111 | AT7: =COUNTIF(L136:L161,AS7) -> 1 | AU7: =AT7/(AV4-AT10) -> 0.04347826087 | AV7: =IF(AU7=0,0,(AU7*((LOG(AU7))/LOG(2)))) -> -0.1966766068
A8: 22 | B8: 142 | C8: 23 | D8: 150 | E8: 23 | F8: 159 | K8: 0 | L8: 222 | N8: 112 | O8: =COUNTIF($L$7:$L$500,N8) -> 3 | P8: =O8/$Q$4 -> 0.01935483871 | Q8: =IF(P8=0,0,(P8*((LOG(P8))/LOG(2)))) -> -0.1101515207 | T8: =N8 -> 112 | U8: =COUNTIF(L7:L32,T8) -> 1 | V8: =U8/(W4-U10) -> 0.03846153846 | W8: =IF(V8=0,0,(V8*((LOG(V8))/LOG(2)))) -> -0.180786143 | Y8: =N8 -> 112 | Z8: =COUNTIF(L33:L58,Y8) -> 0 | AA8: =Z8/(AB4-Z10) -> 0 | AB8: =IF(AA8=0,0,(AA8*((LOG(AA8))/LOG(2)))) -> 0 | AD8: =N8 -> 112 | AE8: =COUNTIF(L59:L83,AD8) -> 1 | AF8: =AE8/(AG4-AE10) -> 0.04 | AG8: =IF(AF8=0,0,(AF8*((LOG(AF8))/LOG(2)))) -> -0.1857542476 | AI8: =N8 -> 112 | AJ8: =COUNTIF(L84:L109,AI8) -> 0 | AK8: =AJ8/(AL4-AJ10) -> 0 | AL8: =IF(AK8=0,0,(AK8*((LOG(AK8))/LOG(2)))) -> 0 | AN8: =N8 -> 112 | AO8: =COUNTIF(L110:L135,AN8) -> 1 | AP8: =AO8/(AQ4-AO10) -> 0.04166666667 | AQ8: =IF(AP8=0,0,(AP8*((LOG(AP8))/LOG(2)))) -> -0.1910401042 | AS8: =N8 -> 112 | AT8: =COUNTIF(L136:L161,AS8) -> 0 | AU8: =AT8/(AV4-AT10) -> 0 | AV8: =IF(AU8=0,0,(AU8*((LOG(AU8))/LOG(2)))) -> 0
A9: 22 | B9: 260 | C9: 23 | D9: 268 | E9: 23 | F9: 277 | K9: 0 | L9: 222 | N9: 121 | O9: =COUNTIF($L$7:$L$500,N9) -> 1 | P9: =O9/$Q$4 -> 0.006451612903 | Q9: =IF(P9=0,0,(P9*((LOG(P9))/LOG(2)))) -> -0.0469427381 | T9: =N9 -> 121 | U9: =COUNTIF(L7:L32,T9) -> 0 | V9: =U9/(W4-U10) -> 0 | W9: =IF(V9=0,0,(V9*((LOG(V9))/LOG(2)))) -> 0 | Y9: =N9 -> 121 | Z9: =COUNTIF(L33:L58,Y9) -> 0 | AA9: =Z9/(AB4-Z10) -> 0 | AB9: =IF(AA9=0,0,(AA9*((LOG(AA9))/LOG(2)))) -> 0 | AD9: =N9 -> 121 | AE9: =COUNTIF(L59:L83,AD9) -> 1 | AF9: =AE9/(AG4-AE10) -> 0.04 | AG9: =IF(AF9=0,0,(AF9*((LOG(AF9))/LOG(2)))) -> -0.1857542476 | AI9: =N9 -> 121 | AJ9: =COUNTIF(L84:L109,AI9) -> 0 | AK9: =AJ9/(AL4-AJ10) -> 0 | AL9: =IF(AK9=0,0,(AK9*((LOG(AK9))/LOG(2)))) -> 0 | AN9: =N9 -> 121 | AO9: =COUNTIF(L110:L135,AN9) -> 0 | AP9: =AO9/(AQ4-AO10) -> 0 | AQ9: =IF(AP9=0,0,(AP9*((LOG(AP9))/LOG(2)))) -> 0 | AS9: =N9 -> 121 | AT9: =COUNTIF(L136:L161,AS9) -> 0 | AU9: =AT9/(AV4-AT10) -> 0 | AV9: =IF(AU9=0,0,(AU9*((LOG(AU9))/LOG(2)))) -> 0
A10: 22 | B10: 396 | C10: 14 | D10: 411 | E10: 14 | F10: 417 | K10: 0 | L10: 211 | N10: 122 | O10: =COUNTIF($L$7:$L$500,N10) -> 8 | P10: =O10/$Q$4 -> 0.05161290323 | Q10: =IF(P10=0,0,(P10*((LOG(P10))/LOG(2)))) -> -0.2207031951 | T10: =N10 -> 122 | U10: =COUNTIF(L7:L32,T10) -> 0 | Y10: =N10 -> 122 | Z10: =COUNTIF(L33:L58,Y10) -> 1 | AD10: =N10 -> 122 | AE10: =COUNTIF(L59:L83,AD10) -> 0 | AI10: =N10 -> 122 | AJ10: =COUNTIF(L84:L109,AI10) -> 2 | AN10: =N10 -> 122 | AO10: =COUNTIF(L110:L135,AN10) -> 2 | AS10: =N10 -> 122 | AT10: =COUNTIF(L136:L161,AS10) -> 3
A11: 11 | B11: 531 | C11: 12 | D11: 539 | E11: 14 | F11: 547 | K11: 0 | L11: 111 | N11: 211 | O11: =COUNTIF($L$7:$L$500,N11) -> 23 | P11: =O11/$Q$4 -> 0.1483870968 | Q11: =IF(P11=0,0,(P11*((LOG(P11))/LOG(2)))) -> -0.4084447505 | T11: =N11 -> 211 | U11: =COUNTIF(L7:L32,T11) -> 6 | V11: =U11/(W4-U10) -> 0.2307692308 | W11: =IF(V11=0,0,(V11*((LOG(V11))/LOG(2)))) -> -0.4881870502 | Y11: =N11 -> 211 | Z11: =COUNTIF(L33:L58,Y11) -> 3 | AA11: =Z11/(AB4-Z10) -> 0.12 | AB11: =IF(AA11=0,0,(AA11*((LOG(AA11))/LOG(2)))) -> -0.3670672427 | AD11: =N11 -> 211 | AE11: =COUNTIF(L59:L83,AD11) -> 7 | AF11: =AE11/(AG4-AE10) -> 0.28 | AG11: =IF(AF11=0,0,(AF11*((LOG(AF11))/LOG(2)))) -> -0.514220355 | AI11: =N11 -> 211 | AJ11: =COUNTIF(L84:L109,AI11) -> 5 | AK11: =AJ11/(AL4-AJ10) -> 0.2083333333 | AL11: =IF(AK11=0,0,(AK11*((LOG(AK11))/LOG(2)))) -> -0.4714655012 | AN11: =N11 -> 211 | AO11: =COUNTIF(L110:L135,AN11) -> 1 | AP11: =AO11/(AQ4-AO10) -> 0.04166666667 | AQ11: =IF(AP11=0,0,(AP11*((LOG(AP11))/LOG(2)))) -> -0.1910401042 | AS11: =N11 -> 211 | AT11: =COUNTIF(L136:L161,AS11) -> 1 | AU11: =AT11/(AV4-AT10) -> 0.04347826087 | AV11: =IF(AU11=0,0,(AU11*((LOG(AU11))/LOG(2)))) -> -0.1966766068
A12: 22 | B12: 650 | C12: 14 | D12: 663 | E12: 14 | F12: 670 | K12: 0 | L12: 211 | N12: 212 | O12: =COUNTIF($L$7:$L$500,N12) -> 5 | P12: =O12/$Q$4 -> 0.03225806452 | Q12: =IF(P12=0,0,(P12*((LOG(P12))/LOG(2)))) -> -0.1598127842 | T12: =N12 -> 212 | U12: =COUNTIF(L7:L32,T12) -> 2 | V12: =U12/(W4-U10) -> 0.07692307692 | W12: =IF(V12=0,0,(V12*((LOG(V12))/LOG(2)))) -> -0.2846492091 | Y12: =N12 -> 212 | Z12: =COUNTIF(L33:L58,Y12) -> 0 | AA12: =Z12/(AB4-Z10) -> 0 | AB12: =IF(AA12=0,0,(AA12*((LOG(AA12))/LOG(2)))) -> 0 | AD12: =N12 -> 212 | AE12: =COUNTIF(L59:L83,AD12) -> 1 | AF12: =AE12/(AG4-AE10) -> 0.04 | AG12: =IF(AF12=0,0,(AF12*((LOG(AF12))/LOG(2)))) -> -0.1857542476 | AI12: =N12 -> 212 | AJ12: =COUNTIF(L84:L109,AI12) -> 0 | AK12: =AJ12/(AL4-AJ10) -> 0 | AL12: =IF(AK12=0,0,(AK12*((LOG(AK12))/LOG(2)))) -> 0 | AN12: =N12 -> 212 | AO12: =COUNTIF(L110:L135,AN12) -> 1 | AP12: =AO12/(AQ4-AO10) -> 0.04166666667 | AQ12: =IF(AP12=0,0,(AP12*((LOG(AP12))/LOG(2)))) -> -0.1910401042 | AS12: =N12 -> 212 | AT12: =COUNTIF(L136:L161,AS12) -> 1 | AU12: =AT12/(AV4-AT10) -> 0.04347826087 | AV12: =IF(AU12=0,0,(AU12*((LOG(AU12))/LOG(2)))) -> -0.1966766068
A13: 22 | B13: 776 | C13: 23 | D13: 793 | E13: 14 | F13: 807 | K13: 0 | L13: 221 | N13: 221 | O13: =COUNTIF($L$7:$L$500,N13) -> 30 | P13: =O13/$Q$4 -> 0.1935483871 | Q13: =IF(P13=0,0,(P13*((LOG(P13))/LOG(2)))) -> -0.4585613825 | T13: =N13 -> 221 | U13: =COUNTIF(L7:L32,T13) -> 6 | V13: =U13/(W4-U10) -> 0.2307692308 | W13: =IF(V13=0,0,(V13*((LOG(V13))/LOG(2)))) -> -0.4881870502 | Y13: =N13 -> 221 | Z13: =COUNTIF(L33:L58,Y13) -> 6 | AA13: =Z13/(AB4-Z10) -> 0.24 | AB13: =IF(AA13=0,0,(AA13*((LOG(AA13))/LOG(2)))) -> -0.4941344854 | AD13: =N13 -> 221 | AE13: =COUNTIF(L59:L83,AD13) -> 2 | AF13: =AE13/(AG4-AE10) -> 0.08 | AG13: =IF(AF13=0,0,(AF13*((LOG(AF13))/LOG(2)))) -> -0.2915084952 | AI13: =N13 -> 221 | AJ13: =COUNTIF(L84:L109,AI13) -> 4 | AK13: =AJ13/(AL4-AJ10) -> 0.1666666667 | AL13: =IF(AK13=0,0,(AK13*((LOG(AK13))/LOG(2)))) -> -0.4308270835 | AN13: =N13 -> 221 | AO13: =COUNTIF(L110:L135,AN13) -> 2 | AP13: =AO13/(AQ4-AO10) -> 0.08333333333 | AQ13: =IF(AP13=0,0,(AP13*((LOG(AP13))/LOG(2)))) -> -0.2987468751 | AS13: =N13 -> 221 | AT13: =COUNTIF(L136:L161,AS13) -> 10 | AU13: =AT13/(AV4-AT10) -> 0.4347826087 | AV13: =IF(AU13=0,0,(AU13*((LOG(AU13))/LOG(2)))) -> -0.5224495049
A14: 22 | B14: 914 | C14: 14 | D14: 929 | E14: 14 | F14: 936 | K14: 0 | L14: 211 | N14: 222 | O14: =COUNTIF($L$7:$L$500,N14) -> 70 | P14: =O14/$Q$4 -> 0.4516129032 | Q14: =IF(P14=0,0,(P14*((LOG(P14))/LOG(2)))) -> -0.5179283689 | T14: =N14 -> 222 | U14: =COUNTIF(L7:L32,T14) -> 8 | V14: =U14/(W4-U10) -> 0.3076923077 | W14: =IF(V14=0,0,(V14*((LOG(V14))/LOG(2)))) -> -0.523212221 | Y14: =N14 -> 222 | Z14: =COUNTIF(L33:L58,Y14) -> 11 | AA14: =Z14/(AB4-Z10) -> 0.44 | AB14: =IF(AA14=0,0,(AA14*((LOG(AA14))/LOG(2)))) -> -0.5211468113 | AD14: =N14 -> 222 | AE14: =COUNTIF(L59:L83,AD14) -> 10 | AF14: =AE14/(AG4-AE10) -> 0.4 | AG14: =IF(AF14=0,0,(AF14*((LOG(AF14))/LOG(2)))) -> -0.528771238 | AI14: =N14 -> 222 | AJ14: =COUNTIF(L84:L109,AI14) -> 13 | AK14: =AJ14/(AL4-AJ10) -> 0.5416666667 | AL14: =IF(AK14=0,0,(AK14*((LOG(AK14))/LOG(2)))) -> -0.4791165072 | AN14: =N14 -> 222 | AO14: =COUNTIF(L110:L135,AN14) -> 18 | AP14: =AO14/(AQ4-AO10) -> 0.75 | AQ14: =IF(AP14=0,0,(AP14*((LOG(AP14))/LOG(2)))) -> -0.3112781245 | AS14: =N14 -> 222 | AT14: =COUNTIF(L136:L161,AS14) -> 10 | AU14: =AT14/(AV4-AT10) -> 0.4347826087 | AV14: =IF(AU14=0,0,(AU14*((LOG(AU14))/LOG(2)))) -> -0.5224495049
A15: 22 | B15: 1047 | C15: 23 | D15: 1055 | E15: 14 | F15: 1069 | K15: 0 | L15: 221 | P15: =SUM(P7:P14) -> 1 | Q15: =-SUM(Q7:Q14) -> 2.248599625 | V15: =SUM(V7:V14) -> 1 | W15: =-SUM(W7:W14) -> 2.324499814 | AA15: =SUM(AA7:AA14) -> 1 | AB15: =-SUM(AB7:AB14) -> 1.846734158 | AF15: =SUM(AF7:AF14) -> 1 | AG15: =-SUM(AG7:AG14) -> 2.258830074 | AK15: =SUM(AK7:AK14) -> 1 | AL15: =-SUM(AL7:AL14) -> 1.680155967 | AP15: =SUM(AP7:AP14) -> 1 | AQ15: =-SUM(AQ7:AQ14) -> 1.374185416 | AU15: =SUM(AU7:AU14) -> 1 | AV15: =-SUM(AV7:AV14) -> 1.63492883
A16: 11 | B16: 1213 | C16: 12 | D16: 1219 | E16: 14 | F16: 1227 | K16: 0 | L16: 111 | P16: U= | Q16: =Q15/(LOG(Q4)/LOG(2)) -> 0.309038095 | V16: U1= | W16: =W15/(LOG(W4)/LOG(2)) -> 0.4945281619 | AA16: U2= | AB16: =AB15/(LOG(AB4)/LOG(2)) -> 0.3928854041 | AF16: U3= | AG16: =AG15/(LOG(AG4)/LOG(2)) -> 0.4864125807 | AK16: U4= | AL16: =AL15/(LOG(AL4)/LOG(2)) -> 0.3574465513 | AP16: U5= | AQ16: =AQ15/(LOG(AQ4)/LOG(2)) -> 0.2923525242 | AU16: U6= | AV16: =AV15/(LOG(AV4)/LOG(2)) -> 0.3478246564
A17: 22 | B17: 1331 | C17: 23 | D17: 1353 | E17: 23 | F17: 1362 | K17: 0 | L17: 222
A18: 22 | B18: 1528 | C18: 14 | D18: 1547 | E18: 14 | F18: 1553 | K18: 0 | L18: 211
A19: 22 | B19: 1663 | C19: 23 | D19: 1670 | E19: 23 | F19: 1678 | K19: 0 | L19: 222 | N19: Total Target Seq
A20: 22 | B20: 1797 | C20: 23 | D20: 1826 | E20: 23 | F20: 1834 | K20: 0 | L20: 222 | N20: =COUNTIF(L7:L161,G3) -> 8 | P20: 26 | Q20: 26 | R20: 25 | S20: 26 | T20: 26 | U20: 26
A21: 11 | B21: 1969 | C21: 12 | D21: 1976 | E21: 14 | F21: 1985 | K21: 0 | L21: 111 | P21: % of reinforcement given in 6 equal intervals based on number of trials
A22: 22 | B22: 2104 | C22: 14 | D22: 2129 | E22: 14 | F22: 2134 | K22: 0 | L22: 211 | P22: %_1 | Q22: %_2 | R22: %_3 | S22: %_4 | T22: %_5 | U22: %_6
A23: 22 | B23: 2270 | C23: 23 | D23: 2278 | E23: 14 | F23: 2292 | K23: 0 | L23: 221 | O23: target sequence | P23: =$G$3 -> 122 | Q23: =$G$3 -> 122 | R23: =$G$3 -> 122 | S23: =$G$3 -> 122 | T23: =$G$3 -> 122 | U23: =$G$3 -> 122
A24: 22 | B24: 2417 | C24: 23 | D24: 2462 | E24: 14 | F24: 2481 | K24: 0 | L24: 221 | O24: total reinforcement | P24: =U10 -> 0 | Q24: =Z10 -> 1 | R24: =AE10 -> 0 | S24: =AJ10 -> 2 | T24: =AO10 -> 2 | U24: =AT10 -> 3
A25: 22 | B25: 2624 | C25: 14 | D25: 2638 | E25: 14 | F25: 2663 | K25: 0 | L25: 211 | O25: % target
A26: 22 | B26: 2777 | C26: 23 | D26: 2797 | E26: 14 | F26: 2817 | K26: 0 | L26: 221 | O26: CCRF
A27: 22 | B27: 2948 | C27: 23 | D27: 2957 | E27: 14 | F27: 2971 | K27: 0 | L27: 221 | O27: % CCRf
A28: 22 | B28: 3109 | C28: 23 | D28: 3118 | E28: 23 | F28: 3132 | K28: 0 | L28: 222 | O28: average response rate | P28: =F32/P20 -> 143.4230769 | Q28: =(F58-F32)/Q20 -> 155.5 | R28: =(F83-F58)/R20 -> 156.04 | S28: =(F109-F83)/S20 -> 143.6538462 | T28: =(F135-F109)/T20 -> 156.9230769 | U28: =(F161-F135)/U20 -> 172.1923077
A29: 22 | B29: 3259 | C29: 14 | D29: 3284 | E29: 23 | F29: 3298 | K29: 0 | L29: 212
A30: 22 | B30: 3415 | C30: 23 | D30: 3432 | E30: 23 | F30: 3440 | K30: 0 | L30: 222
A31: 22 | B31: 3552 | C31: 14 | D31: 3571 | E31: 23 | F31: 3591 | K31: 0 | L31: 212
A32: 22 | B32: 3714 | C32: 23 | D32: 3721 | E32: 23 | F32: 3729 | K32: 0 | L32: 222
A33: 22 | B33: 3838 | C33: 23 | D33: 3846 | E33: 23 | F33: 3853 | K33: 0 | L33: 222
A34: 22 | B34: 3969 | C34: 23 | D34: 3977 | E34: 23 | F34: 3985 | K34: 0 | L34: 222
A35: 22 | B35: 4111 | C35: 23 | D35: 4135 | E35: 23 | F35: 4155 | K35: 0 | L35: 222
A36: 22 | B36: 4266 | C36: 23 | D36: 4274 | E36: 23 | F36: 4282 | K36: 0 | L36: 222
A37: 22 | B37: 4395 | C37: 23 | D37: 4409 | E37: 14 | F37: 4426 | K37: 0 | L37: 221
A38: 22 | B38: 4570 | C38: 14 | D38: 4641 | E38: 14 | F38: 4652 | K38: 0 | L38: 211
A39: 11 | B39: 4826 | C39: 12 | D39: 4834 | E39: 14 | F39: 4846 | K39: 0 | L39: 111
A40: 22 | B40: 4975 | C40: 23 | D40: 4982 | E40: 14 | F40: 4999 | K40: 0 | L40: 221
A41: 22 | B41: 5120 | C41: 23 | D41: 5129 | E41: 23 | F41: 5137 | K41: 0 | L41: 222
A42: 22 | B42: 5283 | C42: 23 | D42: 5298 | E42: 23 | F42: 5318 | K42: 0 | L42: 222
A43: 22 | B43: 5424 | C43: 23 | D43: 5445 | E43: 23 | F43: 5457 | K43: 0 | L43: 222
A44: 22 | B44: 5599 | C44: 23 | D44: 5613 | E44: 14 | F44: 5627 | K44: 0 | L44: 221
A45: 11 | B45: 5788 | C45: 12 | D45: 5797 | E45: 14 | F45: 5807 | K45: 0 | L45: 111
A46: 11 | B46: 5939 | C46: 12 | D46: 5948 | E46: 14 | F46: 5955 | K46: 0 | L46: 111
A47: 11 | B47: 6069 | C47: 12 | D47: 6146 | E47: 14 | F47: 6154 | K47: 0 | L47: 111
A48: 11 | B48: 6295 | C48: 21 | D48: 6333 | E48: 21 | F48: 6345 | K48: 0 | L48: 122
A49: 22 | B49: 6441 | C49: 23 | D49: 6449 | E49: 23 | F49: 6478 | K49: 0 | L49: 222
A50: 22 | B50: 6609 | C50: 23 | D50: 6616 | E50: 14 | F50: 6628 | K50: 0 | L50: 221
A51: 11 | B51: 6763 | C51: 12 | D51: 6777 | E51: 14 | F51: 6786 | K51: 0 | L51: 111
A52: 22 | B52: 6893 | C52: 23 | D52: 6900 | E52: 23 | F52: 6907 | K52: 0 | L52: 222
A53: 22 | B53: 7026 | C53: 14 | D53: 7039 | E53: 14 | F53: 7047 | K53: 0 | L53: 211
A54: 22 | B54: 7172 | C54: 23 | D54: 7185 | E54: 23 | F54: 7192 | K54: 0 | L54: 222
A55: 22 | B55: 7312 | C55: 14 | D55: 7329 | E55: 14 | F55: 7335 | K55: 0 | L55: 211
A56: 22 | B56: 7486 | C56: 23 | D56: 7502 | E56: 14 | F56: 7516 | K56: 0 | L56: 221
A57: 22 | B57: 7621 | C57: 23 | D57: 7627 | E57: 23 | F57: 7647 | K57: 0 | L57: 222
A58: 22 | B58: 7748 | C58: 23 | D58: 7757 | E58: 14 | F58: 7772 | K58: 0 | L58: 221
A59: 22 | B59: 7928 | C59: 14 | D59: 7942 | E59: 14 | F59: 7950 | K59: 0 | L59: 211
A60: 22 | B60: 8069 | C60: 14 | D60: 8085 | E60: 14 | F60: 8092 | K60: 0 | L60: 211
A61: 22 | B61: 8217 | C61: 23 | D61: 8239 | E61: 14 | F61: 8253 | K61: 0 | L61: 221
A62: 22 | B62: 8363 | C62: 23 | D62: 8377 | E62: 23 | F62: 8384 | K62: 0 | L62: 222
A63: 22 | B63: 8510 | C63: 23 | D63: 8517 | E63: 23 | F63: 8534 | K63: 0 | L63: 222
A64: 22 | B64: 8642 | C64: 23 | D64: 8649 | E64: 23 | F64: 8657 | K64: 0 | L64: 222
A65: 11 | B65: 8766 | C65: 21 | D65: 8790 | E65: 12 | F65: 8827 | K65: 0 | L65: 121
A66: 22 | B66: 8930 | C66: 23 | D66: 8943 | E66: 23 | F66: 8950 | K66: 0 | L66: 222
A67: 11 | B67: 9055 | C67: 12 | D67: 9060 | E67: 14 | F67: 9067 | K67: 0 | L67: 111
A68: 22 | B68: 9172 | C68: 23 | D68: 9181 | E68: 14 | F68: 9197 | K68: 0 | L68: 221
A69: 22 | B69: 9348 | C69: 14 | D69: 9361 | E69: 14 | F69: 9368 | K69: 0 | L69: 211
A70: 22 | B70: 9480 | C70: 23 | D70: 9490 | E70: 23 | F70: 9497 | K70: 0 | L70: 222
A71: 22 | B71: 9615 | C71: 14 | D71: 9629 | E71: 14 | F71: 9637 | K71: 0 | L71: 211
A72: 22 | B72: 9790 | C72: 14 | D72: 9865 | E72: 14 | F72: 9873 | K72: 0 | L72: 211
A73: 22 | B73: 10005 | C73: 23 | D73: 10025 | E73: 23 | F73: 10032 | K73: 0 | L73: 222
A74: 11 | B74: 10147 | C74: 12 | D74: 10155 | E74: 14 | F74: 10162 | K74: 0 | L74: 111
A75: 22 | B75: 10277 | C75: 14 | D75: 10315 | E75: 14 | F75: 10321 | K75: 0 | L75: 211
A76: 11 | B76: 10449 | C76: 12 | D76: 10457 | E76: 14 | F76: 10465 | K76: 0 | L76: 111
A77: 22 | B77: 10609 | C77: 23 | D77: 10616 | E77: 23 | F77: 10624 | K77: 0 | L77: 222
A78: 22 | B78: 10777 | C78: 14 | D78: 10797 | E78: 23 | F78: 10833 | K78: 0 | L78: 212
A79: 22 | B79: 10942 | C79: 23 | D79: 10950 | E79: 23 | F79: 10972 | K79: 0 | L79: 222
A80: 22 | B80: 11102 | C80: 14 | D80: 11125 | E80: 14 | F80: 11132 | K80: 0 | L80: 211
A81: 22 | B81: 11295 | C81: 23 | D81: 11319 | E81: 23 | F81: 11335 | K81: 0 | L81: 222
A82: 11 | B82: 11463 | C82: 12 | D82: 11471 | E82: 23 | F82: 11491 | K82: 0 | L82: 112
A83: 22 | B83: 11647 | C83: 23 | D83: 11654 | E83: 23 | F83: 11673 | K83: 0 | L83: 222
A84: 22 | B84: 11840 | C84: 14 | D84: 11864 | E84: 14 | F84: 11870 | K84: 0 | L84: 211
A85: 11 | B85: 12090 | C85: 12 | D85: 12097 | E85: 14 | F85: 12105 | K85: 0 | L85: 111
A86: 11 | B86: 12239 | C86: 21 | D86: 12256 | E86: 21 | F86: 12263 | K86: 0 | L86: 122
A87: 22 | B87: 12378 | C87: 23 | D87: 12400 | E87: 14 | F87: 12415 | K87: 0 | L87: 221
A88: 22 | B88: 12515 | C88: 23 | D88: 12522 | E88: 14 | F88: 12550 | K88: 0 | L88: 221
A89: 22 | B89: 12685 | C89: 23 | D89: 12709 | E89: 23 | F89: 12717 | K89: 0 | L89: 222
A90: 22 | B90: 12816 | C90: 23 | D90: 12823 | E90: 23 | F90: 12842 | K90: 0 | L90: 222
A91: 22 | B91: 12943 | C91: 23 | D91: 12973 | E91: 23 | F91: 12980 | K91: 0 | L91: 222
A92: 22 | B92: 13094 | C92: 23 | D92: 13112 | E92: 23 | F92: 13119 | K92: 0 | L92: 222
A93: 11 | B93: 13221 | C93: 21 | D93: 13241 | E93: 21 | F93: 13248 | K93: 0 | L93: 122
A94: 22 | B94: 13340 | C94: 14 | D94: 13377 | E94: 14 | F94: 13386 | K94: 0 | L94: 211
A95: 22 | B95: 13512 | C95: 14 | D95: 13528 | E95: 14 | F95: 13536 | K95: 0 | L95: 211
A96: 22 | B96: 13675 | C96: 23 | D96: 13691 | E96: 23 | F96: 13714 | K96: 0 | L96: 222
A97: 22 | B97: 13823 | C97: 23 | D97: 13854 | E97: 23 | F97: 13910 | K97: 0 | L97: 222
A98: 22 | B98: 14012 | C98: 23 | D98: 14019 | E98: 23 | F98: 14026 | K98: 0 | L98: 222
A99: 22 | B99: 14129 | C99: 23 | D99: 14137 | E99: 23 | F99: 14145 | K99: 0 | L99: 222
A100: 22 | B100: 14244 | C100: 23 | D100: 14252 | E100: 23 | F100: 14261 | K100: 0 | L100: 222
A101: 22 | B101: 14361 | C101: 23 | D101: 14368 | E101: 23 | F101: 14378 | K101: 0 | L101: 222
A102: 22 | B102: 14514 | C102: 14 | D102: 14527 | E102: 14 | F102: 14534 | K102: 0 | L102: 211
A103: 22 | B103: 14631 | C103: 14 | D103: 14656 | E103: 14 | F103: 14660 | K103: 0 | L103: 211
A104: 22 | B104: 14759 | C104: 23 | D104: 14766 | E104: 23 | F104: 14784 | K104: 0 | L104: 222
A105: 22 | B105: 14883 | C105: 23 | D105: 14892 | E105: 14 | F105: 14905 | K105: 0 | L105: 221
A106: 22 | B106: 15005 | C106: 23 | D106: 15011 | E106: 23 | F106: 15030 | K106: 0 | L106: 222
A107: 22 | B107: 15129 | C107: 23 | D107: 15136 | E107: 14 | F107: 15150 | K107: 0 | L107: 221
A108: 22 | B108: 15254 | C108: 23 | D108: 15261 | E108: 23 | F108: 15269 | K108: 0 | L108: 222
A109: 11 | B109: 15393 | C109: 12 | D109: 15400 | E109: 14 | F109: 15408 | K109: 0 | L109: 111
A110: 22 | B110: 15508 | C110: 14 | D110: 15521 | E110: 23 | F110: 15533 | K110: 0 | L110: 212
A111: 22 | B111: 15641 | C111: 23 | D111: 15648 | E111: 23 | F111: 15656 | K111: 0 | L111: 222
A112: 22 | B112: 15767 | C112: 23 | D112: 15774 | E112: 23 | F112: 15781 | K112: 0 | L112: 222
A113: 22 | B113: 15915 | C113: 23 | D113: 15923 | E113: 14 | F113: 15940 | K113: 0 | L113: 221
A114: 22 | B114: 16059 | C114: 23 | D114: 16065 | E114: 23 | F114: 16072 | K114: 0 | L114: 222
A115: 22 | B115: 16212 | C115: 23 | D115: 16220 | E115: 14 | F115: 16236 | K115: 0 | L115: 221
A116: 22 | B116: 16366 | C116: 23 | D116: 16372 | E116: 23 | F116: 16385 | K116: 0 | L116: 222
A117: 22 | B117: 16513 | C117: 23 | D117: 16520 | E117: 23 | F117: 16527 | K117: 0 | L117: 222
A118: 11 | B118: 16660 | C118: 12 | D118: 16664 | E118: 14 | F118: 16676 | K118: 0 | L118: 111
A119: 22 | B119: 16781 | C119: 23 | D119: 16789 | E119: 23 | F119: 16797 | K119: 0 | L119: 222
A120: 22 | B120: 16925 | C120: 14 | D120: 16939 | E120: 14 | F120: 16950 | K120: 0 | L120: 211
A121: 22 | B121: 17054 | C121: 23 | D121: 17068 | E121: 23 | F121: 17083 | K121: 0 | L121: 222
A122: 22 | B122: 17230 | C122: 23 | D122: 17246 | E122: 23 | F122: 17253 | K122: 0 | L122: 222
A123: 22 | B123: 17388 | C123: 23 | D123: 17409 | E123: 23 | F123: 17418 | K123: 0 | L123: 222
A124: 11 | B124: 17540 | C124: 12 | D124: 17547 | E124: 23 | F124: 17570 | K124: 0 | L124: 112
A125: 22 | B125: 17679 | C125: 23 | D125: 17686 | E125: 23 | F125: 17708 | K125: 0 | L125: 222
A126: 22 | B126: 17821 | C126: 23 | D126: 17829 | E126: 23 | F126: 17870 | K126: 0 | L126: 222
A127: 11 | B127: 17962 | C127: 21 | D127: 18017 | E127: 21 | F127: 18028 | K127: 0 | L127: 122
A128: 22 | B128: 18185 | C128: 23 | D128: 18220 | E128: 23 | F128: 18243 | K128: 0 | L128: 222
A129: 11 | B129: 18401 | C129: 21 | D129: 18413 | E129: 21 | F129: 18435 | K129: 0 | L129: 122
A130: 22 | B130: 18551 | C130: 23 | D130: 18558 | E130: 23 | F130: 18626 | K130: 0 | L130: 222
A131: 22 | B131: 18729 | C131: 23 | D131: 18737 | E131: 23 | F131: 18838 | K131: 0 | L131: 222
A132: 22 | B132: 18945 | C132: 23 | D132: 18952 | E132: 23 | F132: 18964 | K132: 0 | L132: 222
A133: 22 | B133: 19067 | C133: 23 | D133: 19108 | E133: 23 | F133: 19115 | K133: 0 | L133: 222
A134: 22 | B134: 19215 | C134: 23 | D134: 19221 | E134: 23 | F134: 19229 | K134: 0 | L134: 222
A135: 22 | B135: 19365 | C135: 23 | D135: 19447 | E135: 23 | F135: 19488 | K135: 0 | L135: 222
A136: 22 | B136: 19587 | C136: 23 | D136: 19594 | E136: 14 | F136: 19607 | K136: 0 | L136: 221
A137: 22 | B137: 19727 | C137: 23 | D137: 19734 | E137: 14 | F137: 19748 | K137: 0 | L137: 221
A138: 22 | B138: 19868 | C138: 23 | D138: 19875 | E138: 23 | F138: 19888 | K138: 0 | L138: 222
A139: 22 | B139: 20003 | C139: 23 | D139: 20009 | E139: 23 | F139: 20017 | K139: 0 | L139: 222
A140: 22 | B140: 20146 | C140: 23 | D140: 20154 | E140: 14 | F140: 20183 | K140: 0 | L140: 221
A141: 22 | B141: 20283 | C141: 14 | D141: 20303 | E141: 14 | F141: 20310 | K141: 0 | L141: 211
A142: 22 | B142: 20409 | C142: 23 | D142: 20414 | E142: 14 | F142: 20427 | K142: 0 | L142: 221
A143: 22 | B143: 20567 | C143: 23 | D143: 20618 | E143: 23 | F143: 20648 | K143: 0 | L143: 222
A144: 22 | B144: 20786 | C144: 23 | D144: 20793 | E144: 14 | F144: 20811 | K144: 0 | L144: 221
A145: 11 | B145: 20914 | C145: 21 | D145: 20926 | E145: 21 | F145: 20932 | K145: 0 | L145: 122
A146: 22 | B146: 21040 | C146: 23 | D146: 21047 | E146: 23 | F146: 21096 | K146: 0 | L146: 222
A147: 22 | B147: 21217 | C147: 23 | D147: 21279 | E147: 23 | F147: 21382 | K147: 0 | L147: 222
A148: 22 | B148: 21484 | C148: 23 | D148: 21490 | E148: 23 | F148: 21498 | K148: 0 | L148: 222
A149: 22 | B149: 21597 | C149: 23 | D149: 21604 | E149: 14 | F149: 21618 | K149: 0 | L149: 221
A150: 22 | B150: 21760 | C150: 14 | D150: 21819 | E150: 23 | F150: 21837 | K150: 0 | L150: 212
A151: 22 | B151: 21937 | C151: 23 | D151: 21944 | E151: 14 | F151: 21957 | K151: 0 | L151: 221
A152: 11 | B152: 22091 | C152: 21 | D152: 22122 | E152: 21 | F152: 22138 | K152: 0 | L152: 122
A153: 22 | B153: 22242 | C153: 23 | D153: 22251 | E153: 14 | F153: 22267 | K153: 0 | L153: 221
A154: 22 | B154: 22366 | C154: 23 | D154: 22388 | E154: 23 | F154: 22397 | K154: 0 | L154: 222
A155: 22 | B155: 22506 | C155: 23 | D155: 22514 | E155: 14 | F155: 22528 | K155: 0 | L155: 221
A156: 22 | B156: 22629 | C156: 23 | D156: 22637 | E156: 14 | F156: 22649 | K156: 0 | L156: 221
A157: 22 | B157: 22755 | C157: 23 | D157: 22763 | E157: 23 | F157: 22788 | K157: 0 | L157: 222
A158: 22 | B158: 22956 | C158: 23 | D158: 22986 | E158: 23 | F158: 23004 | K158: 0 | L158: 222
A159: 11 | B159: 23472 | C159: 12 | D159: 23480 | E159: 14 | F159: 23490 | K159: 0 | L159: 111
A160: 11 | B160: 23716 | C160: 21 | D160: 23766 | E160: 21 | F160: 23776 | K160: 0 | L160: 122
A161: 22 | B161: 23914 | C161: 23 | D161: 23940 | E161: 23 | F161: 23965 | L161: 222

Sheet !M720830.104
A1: Report for:!M720830.104
A2: Date: | B2: <date>
A3: Hen: | B3: <hen> | F3: Correct Sequence | G3: =Start!J2 -> 122 | P3: Total Sequences in Data | Q3: =4994-COUNTBLANK(L7:L5000) -> 128 | V3: Total Sequences in Block Data | W3: =COUNTA(L7:L27) -> 21 | AA3: Total Sequences in Block Data | AB3: =COUNTA(L28:L49) -> 22 | AF3: Total Sequences in Block Data | AG3: =COUNTA(L50:L70) -> 21 | AK3: Total Sequences in Block Data | AL3: =COUNTA(L71:L91) -> 21 | AP3: Total Sequences in Block Data | AQ3: =COUNTA(L92:L113) -> 22 | AU3: Total Sequences in Block Data | AV3: =COUNTA(L114:L134) -> 21
P4: Total Sequences in Summary | Q4: =SUM(O7:O14) -> 128 | V4: Total Sequences in Block Summary | W4: =SUM(U7:U14) -> 21 | AA4: Total Sequences in Block Summary | AB4: =SUM(Z7:Z14) -> 22 | AF4: Total Sequences in Block Summary | AG4: =SUM(AE7:AE14) -> 21 | AK4: Total Sequences in Block Summary | AL4: =SUM(AJ7:AJ14) -> 21 | AP4: Total Sequences in Block Summary | AQ4: =SUM(AO7:AO14) -> 22 | AU4: Total Sequences in Block Summary | AV4: =SUM(AT7:AT14) -> 21
T5: Block 1 | Y5: Block 2 | AD5: Block 3 | AI5: Block 4 | AN5: Block 5 | AS5: Block 6
A6: Sequence Component 1 | B6: Time 1 | C6: Sequence Component 2 | D6: Time 2 | E6: Sequence Component 3 | F6: Time 3 | G6: Sequence Component 4 | H6: Time 4 | I6: Sequence Component 5 | J6: Time 5 | K6: Correct? 0=No 1=Yes | L6: Sequence | N6: Frequency | P6: Relative Frequency | Q6: Variability | T6: Frequency | V6: Relative Frequency | W6: Variability | Y6: Frequency | AA6: Relative Frequency | AB6: Variability | AD6: Frequency | AF6: Relative Frequency | AG6: Variability | AI6: Frequency | AK6: Relative Frequency | AL6: Variability | AN6: Frequency | AP6: Relative Frequency | AQ6: Variability | AS6: Frequency | AU6: Relative Frequency | AV6: Variability
A7: 22 | B7: 11 | C7: 23 | D7: 26 | E7: 23 | F7: 36 | K7: 0 | L7: 222 | N7: 111 | O7: =COUNTIF($L$7:$L$500,N7) -> 8 | P7: =O7/$Q$4 -> 0.0625 | Q7: =IF(P7=0,0,(P7*((LOG(P7))/LOG(2)))) -> -0.25 | T7: =N7 -> 111 | U7: =COUNTIF(L7:L27,T7) -> 3 | V7: =U7/(W4-U10) -> 0.1666666667 | W7: =IF(V7=0,0,(V7*((LOG(V7))/LOG(2)))) -> -0.4308270835 | Y7: =N7 -> 111 | Z7: =COUNTIF(L28:L49,Y7) -> 0 | AA7: =Z7/(AB4-Z10) -> 0 | AB7: =IF(AA7=0,0,(AA7*((LOG(AA7))/LOG(2)))) -> 0 | AD7: =N7 -> 111 | AE7: =COUNTIF(L50:L70,AD7) -> 1 | AF7: =AE7/(AG4-AE10) -> 0.0625 | AG7: =IF(AF7=0,0,(AF7*((LOG(AF7))/LOG(2)))) -> -0.25 | AI7: =N7 -> 111 | AJ7: =COUNTIF(L71:L91,AI7) -> 2 | AK7: =AJ7/(AL4-AJ10) -> 0.1538461538 | AL7: =IF(AK7=0,0,(AK7*((LOG(AK7))/LOG(2)))) -> -0.4154522643 | AN7: =N7 -> 111 | AO7: =COUNTIF(L92:L113,AN7) -> 2 | AP7: =AO7/(AQ4-AO10) -> 0.1538461538 | AQ7: =IF(AP7=0,0,(AP7*((LOG(AP7))/LOG(2)))) -> -0.4154522643 | AS7: =N7 -> 111 | AT7: =COUNTIF(L114:L134,AS7) -> 0 | AU7: =AT7/(AV4-AT10) -> 0 | AV7: =IF(AU7=0,0,(AU7*((LOG(AU7))/LOG(2)))) -> 0
A8: 22 | B8: 179 | C8: 23 | D8: 187 | E8: 23 | F8: 194 | K8: 0 | L8: 222 | N8: 112 | O8: =COUNTIF($L$7:$L$500,N8) -> 9 | P8: =O8/$Q$4 -> 0.0703125 | Q8: =IF(P8=0,0,(P8*((LOG(P8))/LOG(2)))) -> -0.2693021483 | T8: =N8 -> 112 | U8: =COUNTIF(L7:L27,T8) -> 0 | V8: =U8/(W4-U10) -> 0 | W8: =IF(V8=0,0,(V8*((LOG(V8))/LOG(2)))) -> 0 | Y8: =N8 -> 112 | Z8: =COUNTIF(L28:L49,Y8) -> 0 | AA8: =Z8/(AB4-Z10) -> 0 | AB8: =IF(AA8=0,0,(AA8*((LOG(AA8))/LOG(2)))) -> 0 | AD8: =N8 -> 112 | AE8: =COUNTIF(L50:L70,AD8) -> 1 | AF8: =AE8/(AG4-AE10) -> 0.0625 | AG8: =IF(AF8=0,0,(AF8*((LOG(AF8))/LOG(2)))) -> -0.25 | AI8: =N8 -> 112 | AJ8: =COUNTIF(L71:L91,AI8) -> 2 | AK8: =AJ8/(AL4-AJ10) -> 0.1538461538 | AL8: =IF(AK8=0,0,(AK8*((LOG(AK8))/LOG(2)))) -> -0.4154522643 | AN8: =N8 -> 112 | AO8: =COUNTIF(L92:L113,AN8) -> 3 | AP8: =AO8/(AQ4-AO10) -> 0.2307692308 | AQ8: =IF(AP8=0,0,(AP8*((LOG(AP8))/LOG(2)))) -> -0.4881870502 | AS8: =N8 -> 112 | AT8: =COUNTIF(L114:L134,AS8) -> 3 | AU8: =AT8/(AV4-AT10) -> 0.375 | AV8: =IF(AU8=0,0,(AU8*((LOG(AU8))/LOG(2)))) -> -0.5306390622
A9: 22 | B9: 310 | C9: 23 | D9: 319 | E9: 23 | F9: 326 | K9: 0 | L9: 222 | N9: 121 | O9: =COUNTIF($L$7:$L$500,N9) -> 1 | P9: =O9/$Q$4 -> 0.0078125 | Q9: =IF(P9=0,0,(P9*((LOG(P9))/LOG(2)))) -> -0.0546875 | T9: =N9 -> 121 | U9: =COUNTIF(L7:L27,T9) -> 0 | V9: =U9/(W4-U10) -> 0 | W9: =IF(V9=0,0,(V9*((LOG(V9))/LOG(2)))) -> 0 | Y9: =N9 -> 121 | Z9: =COUNTIF(L28:L49,Y9) -> 0 | AA9: =Z9/(AB4-Z10) -> 0 | AB9: =IF(AA9=0,0,(AA9*((LOG(AA9))/LOG(2)))) -> 0 | AD9: =N9 -> 121 | AE9: =COUNTIF(L50:L70,AD9) -> 0 | AF9: =AE9/(AG4-AE10) -> 0 | AG9: =IF(AF9=0,0,(AF9*((LOG(AF9))/LOG(2)))) -> 0 | AI9: =N9 -> 121 | AJ9: =COUNTIF(L71:L91,AI9) -> 1 | AK9: =AJ9/(AL4-AJ10) -> 0.07692307692 | AL9: =IF(AK9=0,0,(AK9*((LOG(AK9))/LOG(2)))) -> -0.2846492091 | AN9: =N9 -> 121 | AO9: =COUNTIF(L92:L113,AN9) -> 0 | AP9: =AO9/(AQ4-AO10) -> 0 | AQ9: =IF(AP9=0,0,(AP9*((LOG(AP9))/LOG(2)))) -> 0 | AS9: =N9 -> 121 | AT9: =COUNTIF(L114:L134,AS9) -> 0 | AU9: =AT9/(AV4-AT10) -> 0 | AV9: =IF(AU9=0,0,(AU9*((LOG(AU9))/LOG(2)))) -> 0
A10: 22 | B10: 426 | C10: 23 | D10: 435 | E10: 23 | F10: 450 | K10: 0 | L10: 222 | N10: 122 | O10: =COUNTIF($L$7:$L$500,N10) -> 39 | P10: =O10/$Q$4 -> 0.3046875 | Q10: =IF(P10=0,0,(P10*((LOG(P10))/LOG(2)))) -> -0.5224165114 | T10: =N10 -> 122 | U10: =COUNTIF(L7:L27,T10) -> 3 | Y10: =N10 -> 122 | Z10: =COUNTIF(L28:L49,Y10) -> 1 | AD10: =N10 -> 122 | AE10: =COUNTIF(L50:L70,AD10) -> 5 | AI10: =N10 -> 122 | AJ10: =COUNTIF(L71:L91,AI10) -> 8 | AN10: =N10 -> 122 | AO10: =COUNTIF(L92:L113,AN10) -> 9 | AS10: =N10 -> 122 | AT10: =COUNTIF(L114:L134,AS10) -> 13
A11: 22 | B11: 553 | C11: 23 | D11: 560 | E11: 23 | F11: 644 | K11: 0 | L11: 222 | N11: 211 | O11: =COUNTIF($L$7:$L$500,N11) -> 10 | P11: =O11/$Q$4 -> 0.078125 | Q11: =IF(P11=0,0,(P11*((LOG(P11))/LOG(2)))) -> -0.2873493676 | T11: =N11 -> 211 | U11: =COUNTIF(L7:L27,T11) -> 1 | V11: =U11/(W4-U10) -> 0.05555555556 | W11: =IF(V11=0,0,(V11*((LOG(V11))/LOG(2)))) -> -0.2316625001 | Y11: =N11 -> 211 | Z11: =COUNTIF(L28:L49,Y11) -> 3 | AA11: =Z11/(AB4-Z10) -> 0.1428571429 | AB11: =IF(AA11=0,0,(AA11*((LOG(AA11))/LOG(2)))) -> -0.4010507032 | AD11: =N11 -> 211 | AE11: =COUNTIF(L50:L70,AD11) -> 2 | AF11: =AE11/(AG4-AE10) -> 0.125 | AG11: =IF(AF11=0,0,(AF11*((LOG(AF11))/LOG(2)))) -> -0.375 | AI11: =N11 -> 211 | AJ11: =COUNTIF(L71:L91,AI11) -> 3 | AK11: =AJ11/(AL4-AJ10) -> 0.2307692308 | AL11: =IF(AK11=0,0,(AK11*((LOG(AK11))/LOG(2)))) -> -0.4881870502 | AN11: =N11 -> 211 | AO11: =COUNTIF(L92:L113,AN11) -> 1 | AP11: =AO11/(AQ4-AO10) -> 0.07692307692 | AQ11: =IF(AP11=0,0,(AP11*((LOG(AP11))/LOG(2)))) -> -0.2846492091 | AS11: =N11 -> 211 | AT11: =COUNTIF(L114:L134,AS11) -> 0 | AU11: =AT11/(AV4-AT10) -> 0 | AV11: =IF(AU11=0,0,(AU11*((LOG(AU11))/LOG(2)))) -> 0
A12: 22 | B12: 747 | C12: 23 | D12: 755 | E12: 23 | F12: 769 | K12: 0 | L12: 222 | N12: 212 | O12: =COUNTIF($L$7:$L$500,N12) -> 3 | P12: =O12/$Q$4 -> 0.0234375 | Q12: =IF(P12=0,0,(P12*((LOG(P12))/LOG(2)))) -> -0.1269149414 | T12: =N12 -> 212 | U12: =COUNTIF(L7:L27,T12) -> 1 | V12: =U12/(W4-U10) -> 0.05555555556 | W12: =IF(V12=0,0,(V12*((LOG(V12))/LOG(2)))) -> -0.2316625001 | Y12: =N12 -> 212 | Z12: =COUNTIF(L28:L49,Y12) -> 0 | AA12: =Z12/(AB4-Z10) -> 0 | AB12: =IF(AA12=0,0,(AA12*((LOG(AA12))/LOG(2)))) -> 0 | AD12: =N12 -> 212 | AE12: =COUNTIF(L50:L70,AD12) -> 1 | AF12: =AE12/(AG4-AE10) -> 0.0625 | AG12: =IF(AF12=0,0,(AF12*((LOG(AF12))/LOG(2)))) -> -0.25 | AI12: =N12 -> 212 | AJ12: =COUNTIF(L71:L91,AI12) -> 0 | AK12: =AJ12/(AL4-AJ10) -> 0 | AL12: =IF(AK12=0,0,(AK12*((LOG(AK12))/LOG(2)))) -> 0 | AN12: =N12 -> 212 | AO12: =COUNTIF(L92:L113,AN12) -> 0 | AP12: =AO12/(AQ4-AO10) -> 0 | AQ12: =IF(AP12=0,0,(AP12*((LOG(AP12))/LOG(2)))) -> 0 | AS12: =N12 -> 212 | AT12: =COUNTIF(L114:L134,AS12) -> 1 | AU12: =AT12/(AV4-AT10) -> 0.125 | AV12: =IF(AU12=0,0,(AU12*((LOG(AU12))/LOG(2)))) -> -0.375
A13: 22 | B13: 872 | C13: 23 | D13: 879 | E13: 23 | F13: 896 | K13: 0 | L13: 222 | N13: 221 | O13: =COUNTIF($L$7:$L$500,N13) -> 14 | P13: =O13/$Q$4 -> 0.109375 | Q13: =IF(P13=0,0,(P13*((LOG(P13))/LOG(2)))) -> -0.3491955554 | T13: =N13 -> 221 | U13: =COUNTIF(L7:L27,T13) -> 3 | V13: =U13/(W4-U10) -> 0.1666666667 | W13: =IF(V13=0,0,(V13*((LOG(V13))/LOG(2)))) -> -0.4308270835 | Y13: =N13 -> 221 | Z13: =COUNTIF(L28:L49,Y13) -> 6 | AA13: =Z13/(AB4-Z10) -> 0.2857142857 | AB13: =IF(AA13=0,0,(AA13*((LOG(AA13))/LOG(2)))) -> -0.5163871206 | AD13: =N13 -> 221 | AE13: =COUNTIF(L50:L70,AD13) -> 2 | AF13: =AE13/(AG4-AE10) -> 0.125 | AG13: =IF(AF13=0,0,(AF13*((LOG(AF13))/LOG(2)))) -> -0.375 | AI13: =N13 -> 221 | AJ13: =COUNTIF(L71:L91,AI13) -> 2 | AK13: =AJ13/(AL4-AJ10) -> 0.1538461538 | AL13: =IF(AK13=0,0,(AK13*((LOG(AK13))/LOG(2)))) -> -0.4154522643 | AN13: =N13 -> 221 | AO13: =COUNTIF(L92:L113,AN13) -> 0 | AP13: =AO13/(AQ4-AO10) -> 0 | AQ13: =IF(AP13=0,0,(AP13*((LOG(AP13))/LOG(2)))) -> 0 | AS13: =N13 -> 221 | AT13: =COUNTIF(L114:L134,AS13) -> 1 | AU13: =AT13/(AV4-AT10) -> 0.125 | AV13: =IF(AU13=0,0,(AU13*((LOG(AU13))/LOG(2)))) -> -0.375
A14: 22 | B14: 1018 | C14: 23 | D14: 1026 | E14: 23 | F14: 1043 | K14: 0 | L14: 222 | N14: 222 | O14: =COUNTIF($L$7:$L$500,N14) -> 44 | P14: =O14/$Q$4 -> 0.34375 | Q14: =IF(P14=0,0,(P14*((LOG(P14))/LOG(2)))) -> -0.5295703811 | T14: =N14 -> 222 | U14: =COUNTIF(L7:L27,T14) -> 10 | V14: =U14/(W4-U10) -> 0.5555555556 | W14: =IF(V14=0,0,(V14*((LOG(V14))/LOG(2)))) -> -0.4711093925 | Y14: =N14 -> 222 | Z14: =COUNTIF(L28:L49,Y14) -> 12 | AA14: =Z14/(AB4-Z10) -> 0.5714285714 | AB14: =IF(AA14=0,0,(AA14*((LOG(AA14))/LOG(2)))) -> -0.4613456697 | AD14: =N14 -> 222 | AE14: =COUNTIF(L50:L70,AD14) -> 9 | AF14: =AE14/(AG4-AE10) -> 0.5625 | AG14: =IF(AF14=0,0,(AF14*((LOG(AF14))/LOG(2)))) -> -0.4669171867 | AI14: =N14 -> 222 | AJ14: =COUNTIF(L71:L91,AI14) -> 3 | AK14: =AJ14/(AL4-AJ10) -> 0.2307692308 | AL14: =IF(AK14=0,0,(AK14*((LOG(AK14))/LOG(2)))) -> -0.4881870502 | AN14: =N14 -> 222 | AO14: =COUNTIF(L92:L113,AN14) -> 7 | AP14: =AO14/(AQ4-AO10) -> 0.5384615385 | AQ14: =IF(AP14=0,0,(AP14*((LOG(AP14))/LOG(2)))) -> -0.4808918133 | AS14: =N14 -> 222 | AT14: =COUNTIF(L114:L134,AS14) -> 3 | AU14: =AT14/(AV4-AT10) -> 0.375 | AV14: =IF(AU14=0,0,(AU14*((LOG(AU14))/LOG(2)))) -> -0.5306390622
A15: 22 | B15: 1153 | C15: 23 | D15: 1161 | E15: 14 | F15: 1174 | K15: 0 | L15: 221 | P15: =SUM(P7:P14) -> 1 | Q15: =-SUM(Q7:Q14) -> 2.389436405 | V15: =SUM(V7:V14) -> 1 | W15: =-SUM(W7:W14) -> 1.79608856 | AA15: =SUM(AA7:AA14) -> 1 | AB15: =-SUM(AB7:AB14) -> 1.378783493 | AF15: =SUM(AF7:AF14) -> 1 | AG15: =-SUM(AG7:AG14) -> 1.966917187 | AK15: =SUM(AK7:AK14) -> 1 | AL15: =-SUM(AL7:AL14) -> 2.507380102 | AP15: =SUM(AP7:AP14) -> 1 | AQ15: =-SUM(AQ7:AQ14) -> 1.669180337 | AU15: =SUM(AU7:AU14) -> 1 | AV15: =-SUM(AV7:AV14) -> 1.811278124
A16: 22 | B16: 1276 | C16: 23 | D16: 1283 | E16: 23 | F16: 1290 | K16: 0 | L16: 222 | P16: U= | Q16: =Q15/(LOG(Q4)/LOG(2)) -> 0.3413480579 | V16: U1= | W16: =W15/(LOG(W4)/LOG(2)) -> 0.408915929 | AA16: U2= | AB16: =AB15/(LOG(AB4)/LOG(2)) -> 0.3091836833 | AF16: U3= | AG16: =AG15/(LOG(AG4)/LOG(2)) -> 0.4478085251 | AK16: U4= | AL16: =AL15/(LOG(AL4)/LOG(2)) -> 0.5708558515 | AP16: U5= | AQ16: =AQ15/(LOG(AQ4)/LOG(2)) -> 0.374303382 | AU16: U6= | AV16: =AV15/(LOG(AV4)/LOG(2)) -> 0.4123741411
A17: 11 | B17: 1407 | C17: 12 | D17: 1416 | E17: 14 | F17: 1424 | K17: 0 | L17: 111
A18: 22 | B18: 1545 | C18: 23 | D18: 1553 | E18: 23 | F18: 1575 | K18: 0 | L18: 222
A19: 22 | B19: 1701 | C19: 14 | D19: 1715 | E19: 23 | F19: 1734 | K19: 0 | L19: 212 | N19: Total Target Seq
A20: 11 | B20: 1862 | C20: 12 | D20: 1867 | E20: 14 | F20: 1874 | K20: 0 | L20: 111 | N20: =COUNTIF(L7:L134,G3) -> 39 | P20: 21 | Q20: 22 | R20: 21 | S20: 21 | T20: 22 | U20: 21
A21: 11 | B21: 2000 | C21: 21 | D21: 2012 | E21: 21 | F21: 2044 | K21: 0 | L21: 122 | P21: % of reinforcement given in 6 equal intervals based on number of trials
A22: 22 | B22: 2146 | C22: 23 | D22: 2156 | E22: 14 | F22: 2169 | K22: 0 | L22: 221 | P22: %_1 | Q22: %_2 | R22: %_3 | S22: %_4 | T22: %_5 | U22: %_6
A23: 22 | B23: 2282 | C23: 14 | D23: 2297 | E23: 14 | F23: 2305 | K23: 0 | L23: 211 | O23: target sequence | P23: =$G$3 -> 122 | Q23: =$G$3 -> 122 | R23: =$G$3 -> 122 | S23: =$G$3 -> 122 | T23: =$G$3 -> 122 | U23: =$G$3 -> 122
A24: 11 | B24: 2420 | C24: 21 | D24: 2448 | E24: 21 | F24: 2467 | K24: 0 | L24: 122 | O24: total reinforcement | P24: =U10 -> 3 | Q24: =Z10 -> 1 | R24: =AE10 -> 5 | S24: =AJ10 -> 8 | T24: =AO10 -> 9 | U24: =AT10 -> 13
A25: 11 | B25: 2584 | C25: 21 | D25: 2631 | E25: 21 | F25: 2639 | K25: 0 | L25: 122 | O25: % target
A26: 11 | B26: 2773 | C26: 12 | D26: 2781 | E26: 14 | F26: 2787 | K26: 0 | L26: 111 | O26: CCRF
A27: 22 | B27: 2892 | C27: 23 | D27: 2899 | E27: 14 | F27: 2911 | K27: 0 | L27: 221 | O27: % CCRf
A28: 22 | B28: 3019 | C28: 14 | D28: 3038 | E28: 14 | F28: 3048 | K28: 0 | L28: 211 | O28: average response rate | P28: =F27/P20 -> 138.6190476 | Q28: =(F49-F27)/Q20 -> 142.3636364 | R28: =(F70-F49)/R20 -> 148.4285714 | S28: =(F91-F70)/S20 -> 161.7142857 | T28: =(F113-F91)/T20 -> 131.0909091 | U28: =(F134-F113)/U20 -> 129.7619048
A29: 22 | B29: 3160 | C29: 23 | D29: 3177 | E29: 23 | F29: 3186 | K29: 0 | L29: 222
A30: 22 | B30: 3301 | C30: 23 | D30: 3309 | E30: 23 | F30: 3346 | K30: 0 | L30: 222
A31: 22 | B31: 3454 | C31: 14 | D31: 3467 | E31: 14 | F31: 3474 | K31: 0 | L31: 211
A32: 22 | B32: 3578 | C32: 23 | D32: 3585 | E32: 14 | F32: 3607 | K32: 0 | L32: 221
A33: 22 | B33: 3716 | C33: 23 | D33: 3728 | E33: 14 | F33: 3741 | K33: 0 | L33: 221
A34: 22 | B34: 3874 | C34: 23 | D34: 3933 | E34: 23 | F34: 3941 | K34: 0 | L34: 222
A35: 22 | B35: 4042 | C35: 23 | D35: 4048 | E35: 14 | F35: 4061 | K35: 0 | L35: 221
A36: 22 | B36: 4160 | C36: 23 | D36: 4171 | E36: 14 | F36: 4183 | K36: 0 | L36: 221
A37: 22 | B37: 4293 | C37: 23 | D37: 4301 | E37: 23 | F37: 4307 | K37: 0 | L37: 222
A38: 11 | B38: 4400 | C38: 21 | D38: 4417 | E38: 21 | F38: 4438 | K38: 0 | L38: 122
A39: 22 | B39: 4549 | C39: 23 | D39: 4555 | E39: 14 | F39: 4569 | K39: 0 | L39: 221
A40: 22 | B40: 4680 | C40: 23 | D40: 4684 | E40: 23 | F40: 4700 | K40: 0 | L40: 222
A41: 22 | B41: 4807 | C41: 23 | D41: 4835 | E41: 23 | F41: 4842 | K41: 0 | L41: 222
A42: 22 | B42: 4956 | C42: 23 | D42: 4963 | E42: 23 | F42: 4978 | K42: 0 | L42: 222
A43: 22 | B43: 5083 | C43: 23 | D43: 5091 | E43: 14 | F43: 5103 | K43: 0 | L43: 221
A44: 22 | B44: 5272 | C44: 23 | D44: 5293 | E44: 23 | F44: 5309 | K44: 0 | L44: 222
A45: 22 | B45: 5420 | C45: 23 | D45: 5432 | E45: 23 | F45: 5452 | K45: 0 | L45: 222
A46: 22 | B46: 5554 | C46: 23 | D46: 5558 | E46: 23 | F46: 5566 | K46: 0 | L46: 222
A47: 22 | B47: 5686 | C47: 23 | D47: 5736 | E47: 23 | F47: 5765 | K47: 0 | L47: 222
A48: 22 | B48: 5874 | C48: 14 | D48: 5922 | E48: 14 | F48: 5931 | K48: 0 | L48: 211
A49: 22 | B49: 6033 | C49: 23 | D49: 6037 | E49: 23 | F49: 6043 | K49: 0 | L49: 222
A50: 22 | B50: 6154 | C50: 14 | D50: 6182 | E50: 14 | F50: 6190 | K50: 0 | L50: 211
A51: 22 | B51: 6304 | C51: 14 | D51: 6318 | E51: 23 | F51: 6330 | K51: 0 | L51: 212
A52: 11 | B52: 6442 | C52: 21 | D52: 6453 | E52: 21 | F52: 6482 | K52: 0 | L52: 122
A53: 11 | B53: 6647 | C53: 12 | D53: 6658 | E53: 14 | F53: 6666 | K53: 0 | L53: 111
A54: 22 | B54: 6802 | C54: 23 | D54: 6826 | E54: 23 | F54: 6841 | K54: 0 | L54: 222
A55: 22 | B55: 6954 | C55: 14 | D55: 6976 | E55: 14 | F55: 6983 | K55: 0 | L55: 211
A56: 11 | B56: 7081 | C56: 21 | D56: 7092 | E56: 21 | F56: 7104 | K56: 0 | L56: 122
A57: 11 | B57: 7213 | C57: 21 | D57: 7239 | E57: 21 | F57: 7302 | K57: 0 | L57: 122
A58: 11 | B58: 7400 | C58: 12 | D58: 7407 | E58: 23 | F58: 7423 | K58: 0 | L58: 112
A59: 22 | B59: 7542 | C59: 23 | D59: 7546 | E59: 23 | F59: 7587 | K59: 0 | L59: 222
A60: 22 | B60: 7687 | C60: 23 | D60: 7691 | E60: 23 | F60: 7698 | K60: 0 | L60: 222
A61: 22 | B61: 7803 | C61: 23 | D61: 7815 | E61: 23 | F61: 7824 | K61: 0 | L61: 222
A62: 22 | B62: 7933 | C62: 23 | D62: 7985 | E62: 14 | F62: 8026 | K62: 0 | L62: 221
A63: 11 | B63: 8123 | C63: 21 | D63: 8133 | E63: 21 | F63: 8169 | K63: 0 | L63: 122
A64: 22 | B64: 8285 | C64: 23 | D64: 8300 | E64: 23 | F64: 8315 | K64: 0 | L64: 222
A65: 22 | B65: 8417 | C65: 23 | D65: 8423 | E65: 23 | F65: 8439 | K65: 0 | L65: 222
A66: 22 | B66: 8539 | C66: 23 | D66: 8551 | E66: 23 | F66: 8568 | K66: 0 | L66: 222
A67: 22 | B67: 8695 | C67: 23 | D67: 8728 | E67: 14 | F67: 8743 | K67: 0 | L67: 221
A68: 11 | B68: 8841 | C68: 21 | D68: 8852 | E68: 21 | F68: 8858 | K68: 0 | L68: 122
A69: 22 | B69: 8951 | C69: 23 | D69: 8987 | E69: 23 | F69: 9014 | K69: 0 | L69: 222
A70: 22 | B70: 9115 | C70: 23 | D70: 9144 | E70: 23 | F70: 9160 | K70: 0 | L70: 222
A71: 11 | B71: 9263 | C71: 12 | D71: 9267 | E71: 14 | F71: 9272 | K71: 0 | L71: 111
A72: 11 | B72: 9374 | C72: 21 | D72: 9417 | E72: 21 | F72: 9442 | K72: 0 | L72: 122
A73: 11 | B73: 9536 | C73: 21 | D73: 9547 | E73: 21 | F73: 9573 | K73: 0 | L73: 122
A74: 22 | B74: 9670 | C74: 23 | D74: 9711 | E74: 14 | F74: 9744 | K74: 0 | L74: 221
A75: 11 | B75: 9843 | C75: 12 | D75: 9848 | E75: 23 | F75: 9881 | K75: 0 | L75: 112
A76: 11 | B76: 9978 | C76: 21 | D76: 9993 | E76: 21 | F76: 9999 | K76: 0 | L76: 122
A77: 11 | B77: 10107 | C77: 12 | D77: 10112 | E77: 23 | F77: 10168 | K77: 0 | L77: 112
A78: 22 | B78: 10278 | C78: 14 | D78: 10293 | E78: 14 | F78: 10297 | K78: 0 | L78: 211
A79: 22 | B79: 10417 | C79: 23 | D79: 10427 | E79: 23 | F79: 10443 | K79: 0 | L79: 222
A80: 22 | B80: 10558 | C80: 14 | D80: 10570 | E80: 14 | F80: 10575 | K80: 0 | L80: 211
A81: 11 | B81: 10731 | C81: 21 | D81: 10746 | E81: 21 | F81: 10768 | K81: 0 | L81: 122
A82: 22 | B82: 10884 | C82: 14 | D82: 10900 | E82: 14 | F82: 10907 | K82: 0 | L82: 211
A83: 11 | B83: 11208 | C83: 12 | D83: 11215 | E83: 14 | F83: 11228 | K83: 0 | L83: 111
A84: 22 | B84: 11339 | C84: 23 | D84: 11346 | E84: 23 | F84: 11358 | K84: 0 | L84: 222
A85: 11 | B85: 11464 | C85: 21 | D85: 11474 | E85: 21 | F85: 11481 | K85: 0 | L85: 122
A86: 22 | B86: 11576 | C86: 23 | D86: 11582 | E86: 14 | F86: 11595 | K86: 0 | L86: 221
A87: 22 | B87: 11717 | C87: 23 | D87: 11781 | E87: 23 | F87: 11825 | K87: 0 | L87: 222
A88: 11 | B88: 11923 | C88: 21 | D88: 11943 | E88: 21 | F88: 11984 | K88: 0 | L88: 122
A89: 11 | B89: 12076 | C89: 21 | D89: 12110 | E89: 21 | F89: 12138 | K89: 0 | L89: 122
A90: 11 | B90: 12228 | C90: 21 | D90: 12393 | E90: 12 | F90: 12437 | K90: 0 | L90: 121
A91: 11 | B91: 12534 | C91: 21 | D91: 12544 | E91: 21 | F91: 12556 | K91: 0 | L91: 122
A92: 22 | B92: 12653 | C92: 23 | D92: 12679 | E92: 23 | F92: 12686 | K92: 0 | L92: 222
A93: 11 | B93: 12783 | C93: 12 | D93: 12789 | E93: 14 | F93: 12797 | K93: 0 | L93: 111
A94: 22 | B94: 12899 | C94: 23 | D94: 12904 | E94: 23 | F94: 12911 | K94: 0 | L94: 222
A95: 22 | B95: 13024 | C95: 23 | D95: 13029 | E95: 23 | F95: 13036 | K95: 0 | L95: 222
A96: 11 | B96: 13136 | C96: 21 | D96: 13146 | E96: 21 | F96: 13158 | K96: 0 | L96: 122
A97: 11 | B97: 13265 | C97: 12 | D97: 13272 | E97: 23 | F97: 13290 | K97: 0 | L97: 112
A98: 22 | B98: 13396 | C98: 23 | D98: 13402 | E98: 23 | F98: 13410 | K98: 0 | L98: 222
A99: 11 | B99: 13507 | C99: 12 | D99: 13514 | E99: 23 | F99: 13533 | K99: 0 | L99: 112
A100: 11 | B100: 13637 | C100: 21 | D100: 13654 | E100: 21 | F100: 13663 | K100: 0 | L100: 122
A101: 11 | B101: 13756 | C101: 21 | D101: 13766 | E101: 21 | F101: 13799 | K101: 0 | L101: 122
A102: 11 | B102: 13889 | C102: 21 | D102: 13898 | E102: 21 | F102: 13972 | K102: 0 | L102: 122
A103: 11 | B103: 14072 | C103: 21 | D103: 14081 | E103: 21 | F103: 14095 | K103: 0 | L103: 122
A104: 22 | B104: 14229 | C104: 14 | D104: 14249 | E104: 14 | F104: 14278 | K104: 0 | L104: 211
A105: 11 | B105: 14389 | C105: 21 | D105: 14400 | E105: 21 | F105: 14411 | K105: 0 | L105: 122
A106: 11 | B106: 14501 | C106: 12 | D106: 14509 | E106: 14 | F106: 14527 | K106: 0 | L106: 111
A107: 11 | B107: 14624 | C107: 12 | D107: 14628 | E107: 23 | F107: 14642 | K107: 0 | L107: 112
A108: 22 | B108: 14749 | C108: 23 | D108: 14756 | E108: 23 | F108: 14767 | K108: 0 | L108: 222
A109: 11 | B109: 14864 | C109: 21 | D109: 14909 | E109: 21 | F109: 14924 | K109: 0 | L109: 122
A110: 11 | B110: 15018 | C110: 21 | D110: 15032 | E110: 21 | F110: 15047 | K110: 0 | L110: 122
A111: 22 | B111: 15157 | C111: 23 | D111: 15161 | E111: 23 | F111: 15201 | K111: 0 | L111: 222
A112: 11 | B112: 15307 | C112: 21 | D112: 15324 | E112: 21 | F112: 15332 | K112: 0 | L112: 122
A113: 22 | B113: 15424 | C113: 23 | D113: 15431 | E113: 23 | F113: 15440 | K113: 0 | L113: 222
A114: 11 | B114: 15537 | C114: 21 | D114: 15546 | E114: 21 | F114: 15553 | K114: 0 | L114: 122
A115: 11 | B115: 15647 | C115: 21 | D115: 15657 | E115: 21 | F115: 15663 | K115: 0 | L115: 122
A116: 22 | B116: 15818 | C116: 14 | D116: 15837 | E116: 23 | F116: 15853 | K116: 0 | L116: 212
A117: 11 | B117: 15956 | C117: 21 | D117: 15969 | E117: 21 | F117: 16026 | K117: 0 | L117: 122
A118: 11 | B118: 16115 | C118: 21 | D118: 16131 | E118: 21 | F118: 16146 | K118: 0 | L118: 122
A119: 22 | B119: 16239 | C119: 23 | D119: 16250 | E119: 23 | F119: 16266 | K119: 0 | L119: 222
A120: 11 | B120: 16363 | C120: 21 | D120: 16377 | E120: 21 | F120: 16391 | K120: 0 | L120: 122
A121: 11 | B121: 16484 | C121: 21 | D121: 16494 | E121: 21 | F121: 16500 | K121: 0 | L121: 122
A122: 11 | B122: 16591 | C122: 21 | D122: 16603 | E122: 21 | F122: 16610 | K122: 0 | L122: 122
A123: 11 | B123: 16704 | C123: 12 | D123: 16708 | E123: 23 | F123: 16723 | K123: 0 | L123: 112
A124: 11 | B124: 16820 | C124: 21 | D124: 16836 | E124: 21 | F124: 16862 | K124: 0 | L124: 122
A125: 22 | B125: 16996 | C125: 23 | D125: 17003 | E125: 14 | F125: 17103 | K125: 0 | L125: 221
A126: 11 | B126: 17202 | C126: 21 | D126: 17213 | E126: 21 | F126: 17233 | K126: 0 | L126: 122
A127: 11 | B127: 17322 | C127: 21 | D127: 17331 | E127: 21 | F127: 17337 | K127: 0 | L127: 122
A128: 11 | B128: 17428 | C128: 12 | D128: 17432 | E128: 23 | F128: 17443 | K128: 0 | L128: 112
A129: 11 | B129: 17541 | C129: 21 | D129: 17564 | E129: 21 | F129: 17572 | K129: 0 | L129: 122
A130: 22 | B130: 17667 | C130: 23 | D130: 17673 | E130: 23 | F130: 17684 | K130: 0 | L130: 222
A131: 11 | B131: 17784 | C131: 21 | D131: 17794 | E131: 21 | F131: 17801 | K131: 0 | L131: 122
A132: 22 | B132: 17897 | C132: 23 | D132: 17903 | E132: 23 | F132: 17910 | K132: 0 | L132: 222
A133: 11 | B133: 18007 | C133: 12 | D133: 18015 | E133: 23 | F133: 18025 | K133: 0 | L133: 112
A134: 11 | B134: 18122 | C134: 21 | D134: 18137 | E134: 21 | F134: 18165 | K134: 1 | L134: 122

Sheet !M721900.104
A1: Report for:!M721900.104
A2: Date: | B2: <date>
A3: Hen: | B3: <hen> | F3: Correct Sequence | G3: =Start!J2 -> 122 | P3: Total Sequences in Data | Q3: =4994-COUNTBLANK(L7:L5000) -> 74 | V3: Total Sequences in Block Data | W3: =COUNTA(L7:L18) -> 12 | AA3: Total Sequences in Block Data | AB3: =COUNTA(L19:L31) -> 13 | AF3: Total Sequences in Block Data | AG3: =COUNTA(L32:L43) -> 12 | AK3: Total Sequences in Block Data | AL3: =COUNTA(L44:L55) -> 12 | AP3: Total Sequences in Block Data | AQ3: =COUNTA(L56:L68) -> 13 | AU3: Total Sequences in Block Data | AV3: =COUNTA(L69:L80) -> 12
P4: Total Sequences in Summary | Q4: =SUM(O7:O14) -> 74 | V4: Total Sequences in Block Summary | W4: =SUM(U7:U14) -> 12 | AA4: Total Sequences in Block Summary | AB4: =SUM(Z7:Z14) -> 13 | AF4: Total Sequences in Block Summary | AG4: =SUM(AE7:AE14) -> 12 | AK4: Total Sequences in Block Summary | AL4: =SUM(AJ7:AJ14) -> 12 | AP4: Total Sequences in Block Summary | AQ4: =SUM(AO7:AO14) -> 13 | AU4: Total Sequences in Block Summary | AV4: =SUM(AT7:AT14) -> 12
T5: Block 1 | Y5: Block 2 | AD5: Block 3 | AI5: Block 4 | AN5: Block 5 | AS5: Block 6
A6: Sequence Component 1 | B6: Time 1 | C6: Sequence Component 2 | D6: Time 2 | E6: Sequence Component 3 | F6: Time 3 | G6: Sequence Component 4 | H6: Time 4 | I6: Sequence Component 5 | J6: Time 5 | K6: Correct? 0=No 1=Yes | L6: Sequence | N6: Frequency | P6: Relative Frequency | Q6: Variability | T6: Frequency | V6: Relative Frequency | W6: Variability | Y6: Frequency | AA6: Relative Frequency | AB6: Variability | AD6: Frequency | AF6: Relative Frequency | AG6: Variability | AI6: Frequency | AK6: Relative Frequency | AL6: Variability | AN6: Frequency | AP6: Relative Frequency | AQ6: Variability | AS6: Frequency | AU6: Relative Frequency | AV6: Variability
A7: 11 | B7: 22 | C7: 21 | D7: 31 | E7: 12 | F7: 53 | K7: 0 | L7: 121 | N7: 111 | O7: =COUNTIF($L$7:$L$500,N7) -> 5 | P7: =O7/$Q$4 -> 0.06756756757 | Q7: =IF(P7=0,0,(P7*((LOG(P7))/LOG(2)))) -> -0.2626706264 | T7: =N7 -> 111 | U7: =COUNTIF(L7:L18,T7) -> 0 | V7: =U7/(W4-U10) -> 0 | W7: =IF(V7=0,0,(V7*((LOG(V7))/LOG(2)))) -> 0 | Y7: =N7 -> 111 | Z7: =COUNTIF(L19:L31,Y7) -> 1 | AA7: =Z7/(AB4-Z10) -> 0.1428571429 | AB7: =IF(AA7=0,0,(AA7*((LOG(AA7))/LOG(2)))) -> -0.4010507032 | AD7: =N7 -> 111 | AE7: =COUNTIF(L32:L43,AD7) -> 0 | AF7: =AE7/(AG4-AE10) -> 0 | AG7: =IF(AF7=0,0,(AF7*((LOG(AF7))/LOG(2)))) -> 0 | AI7: =N7 -> 111 | AJ7: =COUNTIF(L44:L55,AI7) -> 0 | AK7: =AJ7/(AL4-AJ10) -> 0 | AL7: =IF(AK7=0,0,(AK7*((LOG(AK7))/LOG(2)))) -> 0 | AN7: =N7 -> 111 | AO7: =COUNTIF(L56:L68,AN7) -> 1 | AP7: =AO7/(AQ4-AO10) -> 0.2 | AQ7: =IF(AP7=0,0,(AP7*((LOG(AP7))/LOG(2)))) -> -0.464385619 | AS7: =N7 -> 111 | AT7: =COUNTIF(L69:L80,AS7) -> 3 | AU7: =AT7/(AV4-AT10) -> 0.3333333333 | AV7: =IF(AU7=0,0,(AU7*((LOG(AU7))/LOG(2)))) -> -0.5283208336
A8: 22 | B8: 160 | C8: 14 | D8: 179 | E8: 14 | F8: 194 | K8: 0 | L8: 211 | N8: 112 | O8: =COUNTIF($L$7:$L$500,N8) -> 1 | P8: =O8/$Q$4 -> 0.01351351351 | Q8: =IF(P8=0,0,(P8*((LOG(P8))/LOG(2)))) -> -0.08391153197 | T8: =N8 -> 112 | U8: =COUNTIF(L7:L18,T8) -> 0 | V8: =U8/(W4-U10) -> 0 | W8: =IF(V8=0,0,(V8*((LOG(V8))/LOG(2)))) -> 0 | Y8: =N8 -> 112 | Z8: =COUNTIF(L19:L31,Y8) -> 0 | AA8: =Z8/(AB4-Z10) -> 0 | AB8: =IF(AA8=0,0,(AA8*((LOG(AA8))/LOG(2)))) -> 0 | AD8: =N8 -> 112 | AE8: =COUNTIF(L32:L43,AD8) -> 0 | AF8: =AE8/(AG4-AE10) -> 0 | AG8: =IF(AF8=0,0,(AF8*((LOG(AF8))/LOG(2)))) -> 0 | AI8: =N8 -> 112 | AJ8: =COUNTIF(L44:L55,AI8) -> 0 | AK8: =AJ8/(AL4-AJ10) -> 0 | AL8: =IF(AK8=0,0,(AK8*((LOG(AK8))/LOG(2)))) -> 0 | AN8: =N8 -> 112 | AO8: =COUNTIF(L56:L68,AN8) -> 0 | AP8: =AO8/(AQ4-AO10) -> 0 | AQ8: =IF(AP8=0,0,(AP8*((LOG(AP8))/LOG(2)))) -> 0 | AS8: =N8 -> 112 | AT8: =COUNTIF(L69:L80,AS8) -> 1 | AU8: =AT8/(AV4-AT10) -> 0.1111111111 | AV8: =IF(AU8=0,0,(AU8*((LOG(AU8))/LOG(2)))) -> -0.352213889
A9: 11 | B9: 291 | C9: 21 | D9: 302 | E9: 21 | F9: 348 | K9: 0 | L9: 122 | N9: 121 | O9: =COUNTIF($L$7:$L$500,N9) -> 4 | P9: =O9/$Q$4 -> 0.05405405405 | Q9: =IF(P9=0,0,(P9*((LOG(P9))/LOG(2)))) -> -0.2275380198 | T9: =N9 -> 121 | U9: =COUNTIF(L7:L18,T9) -> 1 | V9: =U9/(W4-U10) -> 0.1111111111 | W9: =IF(V9=0,0,(V9*((LOG(V9))/LOG(2)))) -> -0.352213889 | Y9: =N9 -> 121 | Z9: =COUNTIF(L19:L31,Y9) -> 2 | AA9: =Z9/(AB4-Z10) -> 0.2857142857 | AB9: =IF(AA9=0,0,(AA9*((LOG(AA9))/LOG(2)))) -> -0.5163871206 | AD9: =N9 -> 121 | AE9: =COUNTIF(L32:L43,AD9) -> 0 | AF9: =AE9/(AG4-AE10) -> 0 | AG9: =IF(AF9=0,0,(AF9*((LOG(AF9))/LOG(2)))) -> 0 | AI9: =N9 -> 121 | AJ9: =COUNTIF(L44:L55,AI9) -> 0 | AK9: =AJ9/(AL4-AJ10) -> 0 | AL9: =IF(AK9=0,0,(AK9*((LOG(AK9))/LOG(2)))) -> 0 | AN9: =N9 -> 121 | AO9: =COUNTIF(L56:L68,AN9) -> 0 | AP9: =AO9/(AQ4-AO10) -> 0 | AQ9: =IF(AP9=0,0,(AP9*((LOG(AP9))/LOG(2)))) -> 0 | AS9: =N9 -> 121 | AT9: =COUNTIF(L69:L80,AS9) -> 1 | AU9: =AT9/(AV4-AT10) -> 0.1111111111 | AV9: =IF(AU9=0,0,(AU9*((LOG(AU9))/LOG(2)))) -> -0.352213889
A10: 22 | B10: 448 | C10: 14 | D10: 464 | E10: 14 | F10: 471 | K10: 0 | L10: 211 | N10: 122 | O10: =COUNTIF($L$7:$L$500,N10) -> 38 | P10: =O10/$Q$4 -> 0.5135135135 | Q10: =IF(P10=0,0,(P10*((LOG(P10))/LOG(2)))) -> -0.4937565187 | T10: =N10 -> 122 | U10: =COUNTIF(L7:L18,T10) -> 3 | Y10: =N10 -> 122 | Z10: =COUNTIF(L19:L31,Y10) -> 6 | AD10: =N10 -> 122 | AE10: =COUNTIF(L32:L43,AD10) -> 8 | AI10: =N10 -> 122 | AJ10: =COUNTIF(L44:L55,AI10) -> 10 | AN10: =N10 -> 122 | AO10: =COUNTIF(L56:L68,AN10) -> 8 | AS10: =N10 -> 122 | AT10: =COUNTIF(L69:L80,AS10) -> 3
A11: 22 | B11: 580 | C11: 14 | D11: 619 | E11: 14 | F11: 627 | K11: 0 | L11: 211 | N11: 211 | O11: =COUNTIF($L$7:$L$500,N11) -> 4 | P11: =O11/$Q$4 -> 0.05405405405 | Q11: =IF(P11=0,0,(P11*((LOG(P11))/LOG(2)))) -> -0.2275380198 | T11: =N11 -> 211 | U11: =COUNTIF(L7:L18,T11) -> 3 | V11: =U11/(W4-U10) -> 0.3333333333 | W11: =IF(V11=0,0,(V11*((LOG(V11))/LOG(2)))) -> -0.5283208336 | Y11: =N11 -> 211 | Z11: =COUNTIF(L19:L31,Y11) -> 0 | AA11: =Z11/(AB4-Z10) -> 0 | AB11: =IF(AA11=0,0,(AA11*((LOG(AA11))/LOG(2)))) -> 0 | AD11: =N11 -> 211 | AE11: =COUNTIF(L32:L43,AD11) -> 1 | AF11: =AE11/(AG4-AE10) -> 0.25 | AG11: =IF(AF11=0,0,(AF11*((LOG(AF11))/LOG(2)))) -> -0.5 | AI11: =N11 -> 211 | AJ11: =COUNTIF(L44:L55,AI11) -> 0 | AK11: =AJ11/(AL4-AJ10) -> 0 | AL11: =IF(AK11=0,0,(AK11*((LOG(AK11))/LOG(2)))) -> 0 | AN11: =N11 -> 211 | AO11: =COUNTIF(L56:L68,AN11) -> 0 | AP11: =AO11/(AQ4-AO10) -> 0 | AQ11: =IF(AP11=0,0,(AP11*((LOG(AP11))/LOG(2)))) -> 0 | AS11: =N11 -> 211 | AT11: =COUNTIF(L69:L80,AS11) -> 0 | AU11: =AT11/(AV4-AT10) -> 0 | AV11: =IF(AU11=0,0,(AU11*((LOG(AU11))/LOG(2)))) -> 0
A12: 11 | B12: 728 | C12: 21 | D12: 735 | E12: 21 | F12: 740 | K12: 0 | L12: 122 | N12: 212 | O12: =COUNTIF($L$7:$L$500,N12) -> 0 | P12: =O12/$Q$4 -> 0 | Q12: =IF(P12=0,0,(P12*((LOG(P12))/LOG(2)))) -> 0 | T12: =N12 -> 212 | U12: =COUNTIF(L7:L18,T12) -> 0 | V12: =U12/(W4-U10) -> 0 | W12: =IF(V12=0,0,(V12*((LOG(V12))/LOG(2)))) -> 0 | Y12: =N12 -> 212 | Z12: =COUNTIF(L19:L31,Y12) -> 0 | AA12: =Z12/(AB4-Z10) -> 0 | AB12: =IF(AA12=0,0,(AA12*((LOG(AA12))/LOG(2)))) -> 0 | AD12: =N12 -> 212 | AE12: =COUNTIF(L32:L43,AD12) -> 0 | AF12: =AE12/(AG4-AE10) -> 0 | AG12: =IF(AF12=0,0,(AF12*((LOG(AF12))/LOG(2)))) -> 0 | AI12: =N12 -> 212 | AJ12: =COUNTIF(L44:L55,AI12) -> 0 | AK12: =AJ12/(AL4-AJ10) -> 0 | AL12: =IF(AK12=0,0,(AK12*((LOG(AK12))/LOG(2)))) -> 0 | AN12: =N12 -> 212 | AO12: =COUNTIF(L56:L68,AN12) -> 0 | AP12: =AO12/(AQ4-AO10) -> 0 | AQ12: =IF(AP12=0,0,(AP12*((LOG(AP12))/LOG(2)))) -> 0 | AS12: =N12 -> 212 | AT12: =COUNTIF(L69:L80,AS12) -> 0 | AU12: =AT12/(AV4-AT10) -> 0 | AV12: =IF(AU12=0,0,(AU12*((LOG(AU12))/LOG(2)))) -> 0
A13: 22 | B13: 850 | C13: 23 | D13: 872 | E13: 14 | F13: 919 | K13: 0 | L13: 221 | N13: 221 | O13: =COUNTIF($L$7:$L$500,N13) -> 4 | P13: =O13/$Q$4 -> 0.05405405405 | Q13: =IF(P13=0,0,(P13*((LOG(P13))/LOG(2)))) -> -0.2275380198 | T13: =N13 -> 221 | U13: =COUNTIF(L7:L18,T13) -> 1 | V13: =U13/(W4-U10) -> 0.1111111111 | W13: =IF(V13=0,0,(V13*((LOG(V13))/LOG(2)))) -> -0.352213889 | Y13: =N13 -> 221 | Z13: =COUNTIF(L19:L31,Y13) -> 0 | AA13: =Z13/(AB4-Z10) -> 0 | AB13: =IF(AA13=0,0,(AA13*((LOG(AA13))/LOG(2)))) -> 0 | AD13: =N13 -> 221 | AE13: =COUNTIF(L32:L43,AD13) -> 1 | AF13: =AE13/(AG4-AE10) -> 0.25 | AG13: =IF(AF13=0,0,(AF13*((LOG(AF13))/LOG(2)))) -> -0.5 | AI13: =N13 -> 221 | AJ13: =COUNTIF(L44:L55,AI13) -> 0 | AK13: =AJ13/(AL4-AJ10) -> 0 | AL13: =IF(AK13=0,0,(AK13*((LOG(AK13))/LOG(2)))) -> 0 | AN13: =N13 -> 221 | AO13: =COUNTIF(L56:L68,AN13) -> 0 | AP13: =AO13/(AQ4-AO10) -> 0 | AQ13: =IF(AP13=0,0,(AP13*((LOG(AP13))/LOG(2)))) -> 0 | AS13: =N13 -> 221 | AT13: =COUNTIF(L69:L80,AS13) -> 2 | AU13: =AT13/(AV4-AT10) -> 0.2222222222 | AV13: =IF(AU13=0,0,(AU13*((LOG(AU13))/LOG(2)))) -> -0.4822055559
A14: 22 | B14: 1022 | C14: 23 | D14: 1055 | E14: 23 | F14: 1066 | K14: 0 | L14: 222 | N14: 222 | O14: =COUNTIF($L$7:$L$500,N14) -> 18 | P14: =O14/$Q$4 -> 0.2432432432 | Q14: =IF(P14=0,0,(P14*((LOG(P14))/LOG(2)))) -> -0.496101494 | T14: =N14 -> 222 | U14: =COUNTIF(L7:L18,T14) -> 4 | V14: =U14/(W4-U10) -> 0.4444444444 | W14: =IF(V14=0,0,(V14*((LOG(V14))/LOG(2)))) -> -0.5199666673 | Y14: =N14 -> 222 | Z14: =COUNTIF(L19:L31,Y14) -> 4 | AA14: =Z14/(AB4-Z10) -> 0.5714285714 | AB14: =IF(AA14=0,0,(AA14*((LOG(AA14))/LOG(2)))) -> -0.4613456697 | AD14: =N14 -> 222 | AE14: =COUNTIF(L32:L43,AD14) -> 2 | AF14: =AE14/(AG4-AE10) -> 0.5 | AG14: =IF(AF14=0,0,(AF14*((LOG(AF14))/LOG(2)))) -> -0.5 | AI14: =N14 -> 222 | AJ14: =COUNTIF(L44:L55,AI14) -> 2 | AK14: =AJ14/(AL4-AJ10) -> 1 | AL14: =IF(AK14=0,0,(AK14*((LOG(AK14))/LOG(2)))) -> 0 | AN14: =N14 -> 222 | AO14: =COUNTIF(L56:L68,AN14) -> 4 | AP14: =AO14/(AQ4-AO10) -> 0.8 | AQ14: =IF(AP14=0,0,(AP14*((LOG(AP14))/LOG(2)))) -> -0.2575424759 | AS14: =N14 -> 222 | AT14: =COUNTIF(L69:L80,AS14) -> 2 | AU14: =AT14/(AV4-AT10) -> 0.2222222222 | AV14: =IF(AU14=0,0,(AU14*((LOG(AU14))/LOG(2)))) -> -0.4822055559
A15: 11 | B15: 1166 | C15: 21 | D15: 1175 | E15: 21 | F15: 1182 | K15: 0 | L15: 122 | P15: =SUM(P7:P14) -> 1 | Q15: =-SUM(Q7:Q14) -> 2.01905423 | V15: =SUM(V7:V14) -> 1 | W15: =-SUM(W7:W14) -> 1.752715279 | AA15: =SUM(AA7:AA14) -> 1 | AB15: =-SUM(AB7:AB14) -> 1.378783493 | AF15: =SUM(AF7:AF14) -> 1 | AG15: =-SUM(AG7:AG14) -> 1.5 | AK15: =SUM(AK7:AK14) -> 1 | AL15: =-SUM(AL7:AL14) -> 0 | AP15: =SUM(AP7:AP14) -> 1 | AQ15: =-SUM(AQ7:AQ14) -> 0.7219280949 | AU15: =SUM(AU7:AU14) -> 1 | AV15: =-SUM(AV7:AV14) -> 2.197159723
A16: 22 | B16: 1281 | C16: 23 | D16: 1285 | E16: 23 | F16: 1305 | K16: 0 | L16: 222 | P16: U= | Q16: =Q15/(LOG(Q4)/LOG(2)) -> 0.3251581277 | V16: U1= | W16: =W15/(LOG(W4)/LOG(2)) -> 0.4889075628 | AA16: U2= | AB16: =AB15/(LOG(AB4)/LOG(2)) -> 0.3725999066 | AF16: U3= | AG16: =AG15/(LOG(AG4)/LOG(2)) -> 0.4184144185 | AK16: U4= | AL16: =AL15/(LOG(AL4)/LOG(2)) -> 0 | AP16: U5= | AQ16: =AQ15/(LOG(AQ4)/LOG(2)) -> 0.195092516 | AU16: U6= | AV16: =AV15/(LOG(AV4)/LOG(2)) -> 0.6128822053
A17: 22 | B17: 1412 | C17: 23 | D17: 1417 | E17: 23 | F17: 1430 | K17: 0 | L17: 222
A18: 22 | B18: 1540 | C18: 23 | D18: 1545 | E18: 23 | F18: 1552 | K18: 0 | L18: 222
A19: 11 | B19: 1680 | C19: 12 | D19: 1688 | E19: 14 | F19: 1703 | K19: 0 | L19: 111 | N19: Total Target Seq
A20: 11 | B20: 1809 | C20: 21 | D20: 1832 | E20: 21 | F20: 1860 | K20: 0 | L20: 122 | N20: =COUNTIF(L7:L80,G3) -> 38 | P20: 12 | Q20: 13 | R20: 12 | S20: 12 | T20: 13 | U20: 12
A21: 22 | B21: 2013 | C21: 23 | D21: 2038 | E21: 23 | F21: 2044 | K21: 0 | L21: 222 | P21: % of reinforcement given in 6 equal intervals based on number of trials
A22: 11 | B22: 2141 | C22: 21 | D22: 2165 | E22: 12 | F22: 2180 | K22: 0 | L22: 121 | P22: %_1 | Q22: %_2 | R22: %_3 | S22: %_4 | T22: %_5 | U22: %_6
A23: 22 | B23: 2294 | C23: 23 | D23: 2301 | E23: 23 | F23: 2338 | K23: 0 | L23: 222 | O23: target sequence | P23: =$G$3 -> 122 | Q23: =$G$3 -> 122 | R23: =$G$3 -> 122 | S23: =$G$3 -> 122 | T23: =$G$3 -> 122 | U23: =$G$3 -> 122
A24: 22 | B24: 2492 | C24: 23 | D24: 2530 | E24: 23 | F24: 2602 | K24: 0 | L24: 222 | O24: total reinforcement | P24: =U10 -> 3 | Q24: =Z10 -> 6 | R24: =AE10 -> 8 | S24: =AJ10 -> 10 | T24: =AO10 -> 8 | U24: =AT10 -> 3
A25: 22 | B25: 2703 | C25: 23 | D25: 2710 | E25: 23 | F25: 2736 | K25: 0 | L25: 222 | O25: % target
A26: 11 | B26: 2836 | C26: 21 | D26: 2846 | E26: 21 | F26: 2853 | K26: 0 | L26: 122 | O26: CCRF
A27: 11 | B27: 2948 | C27: 21 | D27: 2957 | E27: 21 | F27: 2962 | K27: 0 | L27: 122 | O27: % CCRf
A28: 11 | B28: 3050 | C28: 21 | D28: 3061 | E28: 21 | F28: 3121 | K28: 0 | L28: 122 | O28: average response rate | P28: =F18/P20 -> 129.3333333 | Q28: =(F31-F18)/Q20 -> 145.6153846 | R28: =(F43-F31)/R20 -> 189.75 | S28: =(F55-F43)/S20 -> 136.1666667 | T28: =(F68-F55)/T20 -> 123 | U28: =(F80-F68)/U20 -> 170.8333333
A29: 11 | B29: 3208 | C29: 21 | D29: 3218 | E29: 21 | F29: 3225 | K29: 0 | L29: 122
A30: 11 | B30: 3313 | C30: 21 | D30: 3323 | E30: 21 | F30: 3327 | K30: 0 | L30: 122
A31: 11 | B31: 3414 | C31: 21 | D31: 3422 | E31: 12 | F31: 3445 | K31: 0 | L31: 121
A32: 11 | B32: 3545 | C32: 21 | D32: 3555 | E32: 21 | F32: 3559 | K32: 0 | L32: 122
A33: 11 | B33: 3650 | C33: 21 | D33: 3661 | E33: 21 | F33: 3665 | K33: 0 | L33: 122
A34: 22 | B34: 3765 | C34: 14 | D34: 3851 | E34: 14 | F34: 3860 | K34: 0 | L34: 211
A35: 11 | B35: 3956 | C35: 21 | D35: 3965 | E35: 21 | F35: 4163 | K35: 0 | L35: 122
A36: 22 | B36: 4292 | C36: 23 | D36: 4435 | E36: 14 | F36: 4466 | K36: 0 | L36: 221
A37: 11 | B37: 4561 | C37: 21 | D37: 4578 | E37: 21 | F37: 4586 | K37: 0 | L37: 122
A38: 11 | B38: 4673 | C38: 21 | D38: 4683 | E38: 21 | F38: 4705 | K38: 0 | L38: 122
A39: 11 | B39: 4799 | C39: 21 | D39: 4966 | E39: 21 | F39: 4973 | K39: 0 | L39: 122
A40: 11 | B40: 5066 | C40: 21 | D40: 5077 | E40: 21 | F40: 5084 | K40: 0 | L40: 122
A41: 22 | B41: 5189 | C41: 23 | D41: 5196 | E41: 23 | F41: 5205 | K41: 0 | L41: 222
A42: 22 | B42: 5344 | C42: 23 | D42: 5429 | E42: 23 | F42: 5436 | K42: 0 | L42: 222
A43: 11 | B43: 5535 | C43: 21 | D43: 5545 | E43: 21 | F43: 5722 | K43: 0 | L43: 122
A44: 11 | B44: 5813 | C44: 21 | D44: 5823 | E44: 21 | F44: 5831 | K44: 0 | L44: 122
A45: 11 | B45: 5926 | C45: 21 | D45: 5936 | E45: 21 | F45: 5967 | K45: 0 | L45: 122
A46: 11 | B46: 6060 | C46: 21 | D46: 6070 | E46: 21 | F46: 6076 | K46: 0 | L46: 122
A47: 11 | B47: 6163 | C47: 21 | D47: 6194 | E47: 21 | F47: 6221 | K47: 0 | L47: 122
A48: 11 | B48: 6310 | C48: 21 | D48: 6319 | E48: 21 | F48: 6335 | K48: 0 | L48: 122
A49: 11 | B49: 6423 | C49: 21 | D49: 6455 | E49: 21 | F49: 6461 | K49: 0 | L49: 122
A50: 22 | B50: 6587 | C50: 23 | D50: 6680 | E50: 23 | F50: 6695 | K50: 0 | L50: 222
A51: 11 | B51: 6791 | C51: 21 | D51: 6801 | E51: 21 | F51: 6826 | K51: 0 | L51: 122
A52: 11 | B52: 6918 | C52: 21 | D52: 6929 | E52: 21 | F52: 6943 | K52: 0 | L52: 122
A53: 22 | B53: 7049 | C53: 23 | D53: 7086 | E53: 23 | F53: 7128 | K53: 0 | L53: 222
A54: 11 | B54: 7224 | C54: 21 | D54: 7233 | E54: 21 | F54: 7239 | K54: 0 | L54: 122
A55: 11 | B55: 7326 | C55: 21 | D55: 7335 | E55: 21 | F55: 7356 | K55: 0 | L55: 122
A56: 11 | B56: 7444 | C56: 21 | D56: 7457 | E56: 21 | F56: 7464 | K56: 0 | L56: 122
A57: 11 | B57: 7552 | C57: 21 | D57: 7561 | E57: 21 | F57: 7565 | K57: 0 | L57: 122
A58: 22 | B58: 7664 | C58: 23 | D58: 7670 | E58: 23 | F58: 7679 | K58: 0 | L58: 222
A59: 11 | B59: 7774 | C59: 21 | D59: 7783 | E59: 21 | F59: 7790 | K59: 0 | L59: 122
A60: 11 | B60: 7878 | C60: 21 | D60: 7891 | E60: 21 | F60: 7898 | K60: 0 | L60: 122
A61: 22 | B61: 7997 | C61: 23 | D61: 8005 | E61: 23 | F61: 8016 | K61: 0 | L61: 222
A62: 11 | B62: 8112 | C62: 21 | D62: 8121 | E62: 21 | F62: 8129 | K62: 0 | L62: 122
A63: 11 | B63: 8216 | C63: 21 | D63: 8223 | E63: 21 | F63: 8227 | K63: 0 | L63: 122
A64: 11 | B64: 8315 | C64: 21 | D64: 8325 | E64: 21 | F64: 8331 | K64: 0 | L64: 122
A65: 11 | B65: 8422 | C65: 21 | D65: 8433 | E65: 21 | F65: 8450 | K65: 0 | L65: 122
A66: 11 | B66: 8544 | C66: 12 | D66: 8579 | E66: 14 | F66: 8695 | K66: 0 | L66: 111
A67: 22 | B67: 8809 | C67: 23 | D67: 8817 | E67: 23 | F67: 8831 | K67: 0 | L67: 222
A68: 22 | B68: 8940 | C68: 23 | D68: 8947 | E68: 23 | F68: 8955 | K68: 0 | L68: 222
A69: 11 | B69: 9051 | C69: 12 | D69: 9212 | E69: 14 | F69: 9220 | K69: 0 | L69: 111
A70: 22 | B70: 9350 | C70: 23 | D70: 9361 | E70: 14 | F70: 9501 | K70: 0 | L70: 221
A71: 22 | B71: 9605 | C71: 23 | D71: 9610 | E71: 23 | F71: 9617 | K71: 0 | L71: 222
A72: 11 | B72: 9713 | C72: 21 | D72: 9752 | E72: 12 | F72: 9851 | K72: 0 | L72: 121
A73: 11 | B73: 9986 | C73: 12 | D73: 9993 | E73: 14 | F73: 10005 | K73: 0 | L73: 111
A74: 11 | B74: 10109 | C74: 12 | D74: 10132 | E74: 23 | F74: 10143 | K74: 0 | L74: 112
A75: 22 | B75: 10250 | C75: 23 | D75: 10261 | E75: 23 | F75: 10270 | K75: 0 | L75: 222
A76: 11 | B76: 10502 | C76: 12 | D76: 10513 | E76: 14 | F76: 10520 | K76: 0 | L76: 111
A77: 22 | B77: 10626 | C77: 23 | D77: 10632 | E77: 14 | F77: 10650 | K77: 0 | L77: 221
A78: 11 | B78: 10746 | C78: 21 | D78: 10755 | E78: 21 | F78: 10759 | K78: 0 | L78: 122
A79: 11 | B79: 10848 | C79: 21 | D79: 10857 | E79: 21 | F79: 10880 | K79: 0 | L79: 122
A80: 11 | B80: 10991 | C80: 21 | D80: 11001 | E80: 21 | F80: 11005 | K80: 1 | L80: 122

Sheet !M722A00.104
A1: Report for:!M722A00.104
A2: Date: | B2: <date>
A3: Hen: | B3: <hen> | F3: Correct Sequence | G3: =Start!J2 -> 122 | P3: Total Sequences in Data | Q3: =4994-COUNTBLANK(L7:L5000) -> 75 | V3: Total Sequences in Block Data | W3: =COUNTA(L7:L19) -> 13 | AA3: Total Sequences in Block Data | AB3: =COUNTA(L20:L31) -> 12 | AF3: Total Sequences in Block Data | AG3: =COUNTA(L32:L44) -> 13 | AK3: Total Sequences in Block Data | AL3: =COUNTA(L45:L56) -> 12 | AP3: Total Sequences in Block Data | AQ3: =COUNTA(L57:L69) -> 13 | AU3: Total Sequences in Block Data | AV3: =COUNTA(L70:L81) -> 12
P4: Total Sequences in Summary | Q4: =SUM(O7:O14) -> 75 | V4: Total Sequences in Block Summary | W4: =SUM(U7:U14) -> 13 | AA4: Total Sequences in Block Summary | AB4: =SUM(Z7:Z14) -> 12 | AF4: Total Sequences in Block Summary | AG4: =SUM(AE7:AE14) -> 13 | AK4: Total Sequences in Block Summary | AL4: =SUM(AJ7:AJ14) -> 12 | AP4: Total Sequences in Block Summary | AQ4: =SUM(AO7:AO14) -> 13 | AU4: Total Sequences in Block Summary | AV4: =SUM(AT7:AT14) -> 12
T5: Block 1 | Y5: Block 2 | AD5: Block 3 | AI5: Block 4 | AN5: Block 5 | AS5: Block 6
A6: Sequence Component 1 | B6: Time 1 | C6: Sequence Component 2 | D6: Time 2 | E6: Sequence Component 3 | F6: Time 3 | G6: Sequence Component 4 | H6: Time 4 | I6: Sequence Component 5 | J6: Time 5 | K6: Correct? 0=No 1=Yes | L6: Sequence | N6: Frequency | P6: Relative Frequency | Q6: Variability | T6: Frequency | V6: Relative Frequency | W6: Variability | Y6: Frequency | AA6: Relative Frequency | AB6: Variability | AD6: Frequency | AF6: Relative Frequency | AG6: Variability | AI6: Frequency | AK6: Relative Frequency | AL6: Variability | AN6: Frequency | AP6: Relative Frequency | AQ6: Variability | AS6: Frequency | AU6: Relative Frequency | AV6: Variability
A7: 22 | B7: 25 | C7: 23 | D7: 30 | E7: 14 | F7: 43 | K7: 0 | L7: 221 | N7: 111 | O7: =COUNTIF($L$7:$L$500,N7) -> 4 | P7: =O7/$Q$4 -> 0.05333333333 | Q7: =IF(P7=0,0,(P7*((LOG(P7))/LOG(2)))) -> -0.2255369968 | T7: =N7 -> 111 | U7: =COUNTIF(L7:L19,T7) -> 0 | V7: =U7/(W4-U10) -> 0 | W7: =IF(V7=0,0,(V7*((LOG(V7))/LOG(2)))) -> 0 | Y7: =N7 -> 111 | Z7: =COUNTIF(L20:L31,Y7) -> 2 | AA7: =Z7/(AB4-Z10) -> 0.6666666667 | AB7: =IF(AA7=0,0,(AA7*((LOG(AA7))/LOG(2)))) -> -0.3899750005 | AD7: =N7 -> 111 | AE7: =COUNTIF(L32:L44,AD7) -> 1 | AF7: =AE7/(AG4-AE10) -> 0.1 | AG7: =IF(AF7=0,0,(AF7*((LOG(AF7))/LOG(2)))) -> -0.3321928095 | AI7: =N7 -> 111 | AJ7: =COUNTIF(L45:L56,AI7) -> 0 | AK7: =AJ7/(AL4-AJ10) -> 0 | AL7: =IF(AK7=0,0,(AK7*((LOG(AK7))/LOG(2)))) -> 0 | AN7: =N7 -> 111 | AO7: =COUNTIF(L57:L69,AN7) -> 0 | AP7: =AO7/(AQ4-AO10) -> 0 | AQ7: =IF(AP7=0,0,(AP7*((LOG(AP7))/LOG(2)))) -> 0 | AS7: =N7 -> 111 | AT7: =COUNTIF(L70:L81,AS7) -> 1 | AU7: =AT7/(AV4-AT10) -> 0.25 | AV7: =IF(AU7=0,0,(AU7*((LOG(AU7))/LOG(2)))) -> -0.5
A8: 11 | B8: 166 | C8: 21 | D8: 178 | E8: 21 | F8: 263 | K8: 0 | L8: 122 | N8: 112 | O8: =COUNTIF($L$7:$L$500,N8) -> 2 | P8: =O8/$Q$4 -> 0.02666666667 | Q8: =IF(P8=0,0,(P8*((LOG(P8))/LOG(2)))) -> -0.1394351651 | T8: =N8 -> 112 | U8: =COUNTIF(L7:L19,T8) -> 0 | V8: =U8/(W4-U10) -> 0 | W8: =IF(V8=0,0,(V8*((LOG(V8))/LOG(2)))) -> 0 | Y8: =N8 -> 112 | Z8: =COUNTIF(L20:L31,Y8) -> 0 | AA8: =Z8/(AB4-Z10) -> 0 | AB8: =IF(AA8=0,0,(AA8*((LOG(AA8))/LOG(2)))) -> 0 | AD8: =N8 -> 112 | AE8: =COUNTIF(L32:L44,AD8) -> 0 | AF8: =AE8/(AG4-AE10) -> 0 | AG8: =IF(AF8=0,0,(AF8*((LOG(AF8))/LOG(2)))) -> 0 | AI8: =N8 -> 112 | AJ8: =COUNTIF(L45:L56,AI8) -> 1 | AK8: =AJ8/(AL4-AJ10) -> 0.2 | AL8: =IF(AK8=0,0,(AK8*((LOG(AK8))/LOG(2)))) -> -0.464385619 | AN8: =N8 -> 112 | AO8: =COUNTIF(L57:L69,AN8) -> 0 | AP8: =AO8/(AQ4-AO10) -> 0 | AQ8: =IF(AP8=0,0,(AP8*((LOG(AP8))/LOG(2)))) -> 0 | AS8: =N8 -> 112 | AT8: =COUNTIF(L70:L81,AS8) -> 1 | AU8: =AT8/(AV4-AT10) -> 0.25 | AV8: =IF(AU8=0,0,(AU8*((LOG(AU8))/LOG(2)))) -> -0.5
A9: 22 | B9: 359 | C9: 23 | D9: 365 | E9: 14 | F9: 378 | K9: 0 | L9: 221 | N9: 121 | O9: =COUNTIF($L$7:$L$500,N9) -> 4 | P9: =O9/$Q$4 -> 0.05333333333 | Q9: =IF(P9=0,0,(P9*((LOG(P9))/LOG(2)))) -> -0.2255369968 | T9: =N9 -> 121 | U9: =COUNTIF(L7:L19,T9) -> 0 | V9: =U9/(W4-U10) -> 0 | W9: =IF(V9=0,0,(V9*((LOG(V9))/LOG(2)))) -> 0 | Y9: =N9 -> 121 | Z9: =COUNTIF(L20:L31,Y9) -> 0 | AA9: =Z9/(AB4-Z10) -> 0 | AB9: =IF(AA9=0,0,(AA9*((LOG(AA9))/LOG(2)))) -> 0 | AD9: =N9 -> 121 | AE9: =COUNTIF(L32:L44,AD9) -> 2 | AF9: =AE9/(AG4-AE10) -> 0.2 | AG9: =IF(AF9=0,0,(AF9*((LOG(AF9))/LOG(2)))) -> -0.464385619 | AI9: =N9 -> 121 | AJ9: =COUNTIF(L45:L56,AI9) -> 1 | AK9: =AJ9/(AL4-AJ10) -> 0.2 | AL9: =IF(AK9=0,0,(AK9*((LOG(AK9))/LOG(2)))) -> -0.464385619 | AN9: =N9 -> 121 | AO9: =COUNTIF(L57:L69,AN9) -> 1 | AP9: =AO9/(AQ4-AO10) -> 0.25 | AQ9: =IF(AP9=0,0,(AP9*((LOG(AP9))/LOG(2)))) -> -0.5 | AS9: =N9 -> 121 | AT9: =COUNTIF(L70:L81,AS9) -> 0 | AU9: =AT9/(AV4-AT10) -> 0 | AV9: =IF(AU9=0,0,(AU9*((LOG(AU9))/LOG(2)))) -> 0
A10: 22 | B10: 488 | C10: 23 | D10: 512 | E10: 23 | F10: 527 | K10: 0 | L10: 222 | N10: 122 | O10: =COUNTIF($L$7:$L$500,N10) -> 39 | P10: =O10/$Q$4 -> 0.52 | Q10: =IF(P10=0,0,(P10*((LOG(P10))/LOG(2)))) -> -0.4905765652 | T10: =N10 -> 122 | U10: =COUNTIF(L7:L19,T10) -> 3 | Y10: =N10 -> 122 | Z10: =COUNTIF(L20:L31,Y10) -> 9 | AD10: =N10 -> 122 | AE10: =COUNTIF(L32:L44,AD10) -> 3 | AI10: =N10 -> 122 | AJ10: =COUNTIF(L45:L56,AI10) -> 7 | AN10: =N10 -> 122 | AO10: =COUNTIF(L57:L69,AN10) -> 9 | AS10: =N10 -> 122 | AT10: =COUNTIF(L70:L81,AS10) -> 8
A11: 11 | B11: 623 | C11: 21 | D11: 632 | E11: 21 | F11: 649 | K11: 0 | L11: 122 | N11: 211 | O11: =COUNTIF($L$7:$L$500,N11) -> 1 | P11: =O11/$Q$4 -> 0.01333333333 | Q11: =IF(P11=0,0,(P11*((LOG(P11))/LOG(2)))) -> -0.08305091587 | T11: =N11 -> 211 | U11: =COUNTIF(L7:L19,T11) -> 0 | V11: =U11/(W4-U10) -> 0 | W11: =IF(V11=0,0,(V11*((LOG(V11))/LOG(2)))) -> 0 | Y11: =N11 -> 211 | Z11: =COUNTIF(L20:L31,Y11) -> 0 | AA11: =Z11/(AB4-Z10) -> 0 | AB11: =IF(AA11=0,0,(AA11*((LOG(AA11))/LOG(2)))) -> 0 | AD11: =N11 -> 211 | AE11: =COUNTIF(L32:L44,AD11) -> 0 | AF11: =AE11/(AG4-AE10) -> 0 | AG11: =IF(AF11=0,0,(AF11*((LOG(AF11))/LOG(2)))) -> 0 | AI11: =N11 -> 211 | AJ11: =COUNTIF(L45:L56,AI11) -> 0 | AK11: =AJ11/(AL4-AJ10) -> 0 | AL11: =IF(AK11=0,0,(AK11*((LOG(AK11))/LOG(2)))) -> 0 | AN11: =N11 -> 211 | AO11: =COUNTIF(L57:L69,AN11) -> 1 | AP11: =AO11/(AQ4-AO10) -> 0.25 | AQ11: =IF(AP11=0,0,(AP11*((LOG(AP11))/LOG(2)))) -> -0.5 | AS11: =N11 -> 211 | AT11: =COUNTIF(L70:L81,AS11) -> 0 | AU11: =AT11/(AV4-AT10) -> 0 | AV11: =IF(AU11=0,0,(AU11*((LOG(AU11))/LOG(2)))) -> 0
A12: 22 | B12: 784 | C12: 23 | D12: 799 | E12: 23 | F12: 806 | K12: 0 | L12: 222 | N12: 212 | O12: =COUNTIF($L$7:$L$500,N12) -> 0 | P12: =O12/$Q$4 -> 0 | Q12: =IF(P12=0,0,(P12*((LOG(P12))/LOG(2)))) -> 0 | T12: =N12 -> 212 | U12: =COUNTIF(L7:L19,T12) -> 0 | V12: =U12/(W4-U10) -> 0 | W12: =IF(V12=0,0,(V12*((LOG(V12))/LOG(2)))) -> 0 | Y12: =N12 -> 212 | Z12: =COUNTIF(L20:L31,Y12) -> 0 | AA12: =Z12/(AB4-Z10) -> 0 | AB12: =IF(AA12=0,0,(AA12*((LOG(AA12))/LOG(2)))) -> 0 | AD12: =N12 -> 212 | AE12: =COUNTIF(L32:L44,AD12) -> 0 | AF12: =AE12/(AG4-AE10) -> 0 | AG12: =IF(AF12=0,0,(AF12*((LOG(AF12))/LOG(2)))) -> 0 | AI12: =N12 -> 212 | AJ12: =COUNTIF(L45:L56,AI12) -> 0 | AK12: =AJ12/(AL4-AJ10) -> 0 | AL12: =IF(AK12=0,0,(AK12*((LOG(AK12))/LOG(2)))) -> 0 | AN12: =N12 -> 212 | AO12: =COUNTIF(L57:L69,AN12) -> 0 | AP12: =AO12/(AQ4-AO10) -> 0 | AQ12: =IF(AP12=0,0,(AP12*((LOG(AP12))/LOG(2)))) -> 0 | AS12: =N12 -> 212 | AT12: =COUNTIF(L70:L81,AS12) -> 0 | AU12: =AT12/(AV4-AT10) -> 0 | AV12: =IF(AU12=0,0,(AU12*((LOG(AU12))/LOG(2)))) -> 0
A13: 22 | B13: 914 | C13: 23 | D13: 921 | E13: 23 | F13: 929 | K13: 0 | L13: 222 | N13: 221 | O13: =COUNTIF($L$7:$L$500,N13) -> 5 | P13: =O13/$Q$4 -> 0.06666666667 | Q13: =IF(P13=0,0,(P13*((LOG(P13))/LOG(2)))) -> -0.260459373 | T13: =N13 -> 221 | U13: =COUNTIF(L7:L19,T13) -> 3 | V13: =U13/(W4-U10) -> 0.3 | W13: =IF(V13=0,0,(V13*((LOG(V13))/LOG(2)))) -> -0.5210896782 | Y13: =N13 -> 221 | Z13: =COUNTIF(L20:L31,Y13) -> 0 | AA13: =Z13/(AB4-Z10) -> 0 | AB13: =IF(AA13=0,0,(AA13*((LOG(AA13))/LOG(2)))) -> 0 | AD13: =N13 -> 221 | AE13: =COUNTIF(L32:L44,AD13) -> 0 | AF13: =AE13/(AG4-AE10) -> 0 | AG13: =IF(AF13=0,0,(AF13*((LOG(AF13))/LOG(2)))) -> 0 | AI13: =N13 -> 221 | AJ13: =COUNTIF(L45:L56,AI13) -> 1 | AK13: =AJ13/(AL4-AJ10) -> 0.2 | AL13: =IF(AK13=0,0,(AK13*((LOG(AK13))/LOG(2)))) -> -0.464385619 | AN13: =N13 -> 221 | AO13: =COUNTIF(L57:L69,AN13) -> 1 | AP13: =AO13/(AQ4-AO10) -> 0.25 | AQ13: =IF(AP13=0,0,(AP13*((LOG(AP13))/LOG(2)))) -> -0.5 | AS13: =N13 -> 221 | AT13: =COUNTIF(L70:L81,AS13) -> 0 | AU13: =AT13/(AV4-AT10) -> 0 | AV13: =IF(AU13=0,0,(AU13*((LOG(AU13))/LOG(2)))) -> 0
A14: 22 | B14: 1052 | C14: 23 | D14: 1062 | E14: 23 | F14: 1074 | K14: 0 | L14: 222 | N14: 222 | O14: =COUNTIF($L$7:$L$500,N14) -> 20 | P14: =O14/$Q$4 -> 0.2666666667 | Q14: =IF(P14=0,0,(P14*((LOG(P14))/LOG(2)))) -> -0.5085041588 | T14: =N14 -> 222 | U14: =COUNTIF(L7:L19,T14) -> 7 | V14: =U14/(W4-U10) -> 0.7 | W14: =IF(V14=0,0,(V14*((LOG(V14))/LOG(2)))) -> -0.360201221 | Y14: =N14 -> 222 | Z14: =COUNTIF(L20:L31,Y14) -> 1 | AA14: =Z14/(AB4-Z10) -> 0.3333333333 | AB14: =IF(AA14=0,0,(AA14*((LOG(AA14))/LOG(2)))) -> -0.5283208336 | AD14: =N14 -> 222 | AE14: =COUNTIF(L32:L44,AD14) -> 7 | AF14: =AE14/(AG4-AE10) -> 0.7 | AG14: =IF(AF14=0,0,(AF14*((LOG(AF14))/LOG(2)))) -> -0.360201221 | AI14: =N14 -> 222 | AJ14: =COUNTIF(L45:L56,AI14) -> 2 | AK14: =AJ14/(AL4-AJ10) -> 0.4 | AL14: =IF(AK14=0,0,(AK14*((LOG(AK14))/LOG(2)))) -> -0.528771238 | AN14: =N14 -> 222 | AO14: =COUNTIF(L57:L69,AN14) -> 1 | AP14: =AO14/(AQ4-AO10) -> 0.25 | AQ14: =IF(AP14=0,0,(AP14*((LOG(AP14))/LOG(2)))) -> -0.5 | AS14: =N14 -> 222 | AT14: =COUNTIF(L70:L81,AS14) -> 2 | AU14: =AT14/(AV4-AT10) -> 0.5 | AV14: =IF(AU14=0,0,(AU14*((LOG(AU14))/LOG(2)))) -> -0.5
A15: 22 | B15: 1198 | C15: 23 | D15: 1218 | E15: 23 | F15: 1228 | K15: 0 | L15: 222 | P15: =SUM(P7:P14) -> 1 | Q15: =-SUM(Q7:Q14) -> 1.933100172 | V15: =SUM(V7:V14) -> 1 | W15: =-SUM(W7:W14) -> 0.8812908992 | AA15: =SUM(AA7:AA14) -> 1 | AB15: =-SUM(AB7:AB14) -> 0.9182958341 | AF15: =SUM(AF7:AF14) -> 1 | AG15: =-SUM(AG7:AG14) -> 1.156779649 | AK15: =SUM(AK7:AK14) -> 1 | AL15: =-SUM(AL7:AL14) -> 1.921928095 | AP15: =SUM(AP7:AP14) -> 1 | AQ15: =-SUM(AQ7:AQ14) -> 2 | AU15: =SUM(AU7:AU14) -> 1 | AV15: =-SUM(AV7:AV14) -> 1.5
A16: 22 | B16: 1338 | C16: 23 | D16: 1345 | E16: 23 | F16: 1353 | K16: 0 | L16: 222 | P16: U= | Q16: =Q15/(LOG(Q4)/LOG(2)) -> 0.3103477991 | V16: U1= | W16: =W15/(LOG(W4)/LOG(2)) -> 0.2381584261 | AA16: U2= | AB16: =AB15/(LOG(AB4)/LOG(2)) -> 0.2561521449 | AF16: U3= | AG16: =AG15/(LOG(AG4)/LOG(2)) -> 0.3126059975 | AK16: U4= | AL16: =AL15/(LOG(AL4)/LOG(2)) -> 0.5361082841 | AP16: U5= | AQ16: =AQ15/(LOG(AQ4)/LOG(2)) -> 0.5404763089 | AU16: U6= | AV16: =AV15/(LOG(AV4)/LOG(2)) -> 0.4184144185
A17: 11 | B17: 1451 | C17: 21 | D17: 1459 | E17: 21 | F17: 1467 | K17: 0 | L17: 122
A18: 22 | B18: 1575 | C18: 23 | D18: 1583 | E18: 14 | F18: 1599 | K18: 0 | L18: 221
A19: 22 | B19: 1708 | C19: 23 | D19: 1731 | E19: 23 | F19: 1746 | K19: 0 | L19: 222 | N19: Total Target Seq
A20: 11 | B20: 1843 | C20: 21 | D20: 1852 | E20: 21 | F20: 1867 | K20: 0 | L20: 122 | N20: =COUNTIF(L7:L81,G3) -> 39 | P20: 13 | Q20: 12 | R20: 13 | S20: 12 | T20: 13 | U20: 12
A21: 11 | B21: 1997 | C21: 12 | D21: 2005 | E21: 14 | F21: 2012 | K21: 0 | L21: 111 | P21: % of reinforcement given in 6 equal intervals based on number of trials
A22: 11 | B22: 2104 | C22: 12 | D22: 2111 | E22: 14 | F22: 2118 | K22: 0 | L22: 111 | P22: %_1 | Q22: %_2 | R22: %_3 | S22: %_4 | T22: %_5 | U22: %_6
A23: 11 | B23: 2214 | C23: 21 | D23: 2229 | E23: 21 | F23: 2244 | K23: 0 | L23: 122 | O23: target sequence | P23: =$G$3 -> 122 | Q23: =$G$3 -> 122 | R23: =$G$3 -> 122 | S23: =$G$3 -> 122 | T23: =$G$3 -> 122 | U23: =$G$3 -> 122
A24: 11 | B24: 2342 | C24: 21 | D24: 2367 | E24: 21 | F24: 2408 | K24: 0 | L24: 122 | O24: total reinforcement | P24: =U10 -> 3 | Q24: =Z10 -> 9 | R24: =AE10 -> 3 | S24: =AJ10 -> 7 | T24: =AO10 -> 9 | U24: =AT10 -> 8
A25: 22 | B25: 2506 | C25: 23 | D25: 2525 | E25: 23 | F25: 2556 | K25: 0 | L25: 222 | O25: % target
A26: 11 | B26: 2654 | C26: 21 | D26: 2671 | E26: 21 | F26: 2681 | K26: 0 | L26: 122 | O26: CCRF
A27: 11 | B27: 2768 | C27: 21 | D27: 2777 | E27: 21 | F27: 2806 | K27: 0 | L27: 122 | O27: % CCRf
A28: 11 | B28: 2893 | C28: 21 | D28: 2903 | E28: 21 | F28: 2909 | K28: 0 | L28: 122 | O28: average response rate | P28: =F19/P20 -> 134.3076923 | Q28: =(F31-F19)/Q20 -> 134.25 | R28: =(F44-F31)/R20 -> 139.2307692 | S28: =(F56-F44)/S20 -> 125.4166667 | T28: =(F69-F56)/T20 -> 144.3076923 | U28: =(F81-F69)/U20 -> 131.5
A29: 11 | B29: 3033 | C29: 21 | D29: 3071 | E29: 21 | F29: 3096 | K29: 0 | L29: 122
A30: 11 | B30: 3189 | C30: 21 | D30: 3213 | E30: 21 | F30: 3227 | K30: 0 | L30: 122
A31: 11 | B31: 3312 | C31: 21 | D31: 3328 | E31: 21 | F31: 3357 | K31: 0 | L31: 122
A32: 22 | B32: 3454 | C32: 23 | D32: 3460 | E32: 23 | F32: 3476 | K32: 0 | L32: 222
A33: 22 | B33: 3584 | C33: 23 | D33: 3617 | E33: 23 | F33: 3623 | K33: 0 | L33: 222
A34: 11 | B34: 3719 | C34: 21 | D34: 3729 | E34: 21 | F34: 3733 | K34: 0 | L34: 122
A35: 22 | B35: 3844 | C35: 23 | D35: 3880 | E35: 23 | F35: 3908 | K35: 0 | L35: 222
A36: 11 | B36: 4004 | C36: 21 | D36: 4013 | E36: 21 | F36: 4021 | K36: 0 | L36: 122
A37: 22 | B37: 4143 | C37: 23 | D37: 4151 | E37: 23 | F37: 4166 | K37: 0 | L37: 222
A38: 11 | B38: 4262 | C38: 21 | D38: 4272 | E38: 21 | F38: 4286 | K38: 0 | L38: 122
A39: 22 | B39: 4382 | C39: 23 | D39: 4387 | E39: 23 | F39: 4397 | K39: 0 | L39: 222
A40: 11 | B40: 4522 | C40: 12 | D40: 4529 | E40: 14 | F40: 4535 | K40: 0 | L40: 111
A41: 22 | B41: 4678 | C41: 23 | D41: 4688 | E41: 23 | F41: 4711 | K41: 0 | L41: 222
A42: 11 | B42: 4810 | C42: 21 | D42: 4822 | E42: 12 | F42: 4848 | K42: 0 | L42: 121
A43: 22 | B43: 4954 | C43: 23 | D43: 4977 | E43: 23 | F43: 5010 | K43: 0 | L43: 222
A44: 11 | B44: 5105 | C44: 21 | D44: 5125 | E44: 12 | F44: 5167 | K44: 0 | L44: 121
A45: 11 | B45: 5263 | C45: 21 | D45: 5273 | E45: 21 | F45: 5287 | K45: 0 | L45: 122
A46: 22 | B46: 5383 | C46: 23 | D46: 5387 | E46: 23 | F46: 5401 | K46: 0 | L46: 222
A47: 11 | B47: 5497 | C47: 12 | D47: 5501 | E47: 23 | F47: 5510 | K47: 0 | L47: 112
A48: 11 | B48: 5606 | C48: 21 | D48: 5616 | E48: 21 | F48: 5628 | K48: 0 | L48: 122
A49: 11 | B49: 5721 | C49: 21 | D49: 5734 | E49: 21 | F49: 5752 | K49: 0 | L49: 122
A50: 22 | B50: 5852 | C50: 23 | D50: 5874 | E50: 23 | F50: 5909 | K50: 0 | L50: 222
A51: 11 | B51: 6003 | C51: 21 | D51: 6014 | E51: 21 | F51: 6036 | K51: 0 | L51: 122
A52: 22 | B52: 6133 | C52: 23 | D52: 6148 | E52: 14 | F52: 6161 | K52: 0 | L52: 221
A53: 11 | B53: 6257 | C53: 21 | D53: 6268 | E53: 21 | F53: 6275 | K53: 0 | L53: 122
A54: 11 | B54: 6363 | C54: 21 | D54: 6374 | E54: 21 | F54: 6388 | K54: 0 | L54: 122
A55: 11 | B55: 6474 | C55: 21 | D55: 6487 | E55: 21 | F55: 6494 | K55: 0 | L55: 122
A56: 11 | B56: 6583 | C56: 21 | D56: 6607 | E56: 12 | F56: 6672 | K56: 0 | L56: 121
A57: 22 | B57: 6809 | C57: 14 | D57: 6826 | E57: 14 | F57: 6833 | K57: 0 | L57: 211
A58: 11 | B58: 6928 | C58: 21 | D58: 6938 | E58: 21 | F58: 6945 | K58: 0 | L58: 122
A59: 11 | B59: 7038 | C59: 21 | D59: 7049 | E59: 21 | F59: 7056 | K59: 0 | L59: 122
A60: 22 | B60: 7155 | C60: 23 | D60: 7160 | E60: 23 | F60: 7174 | K60: 0 | L60: 222
A61: 22 | B61: 7281 | C61: 23 | D61: 7367 | E61: 14 | F61: 7383 | K61: 0 | L61: 221
A62: 11 | B62: 7479 | C62: 21 | D62: 7489 | E62: 21 | F62: 7503 | K62: 0 | L62: 122
A63: 11 | B63: 7593 | C63: 21 | D63: 7604 | E63: 21 | F63: 7610 | K63: 0 | L63: 122
A64: 11 | B64: 7697 | C64: 21 | D64: 7706 | E64: 21 | F64: 7713 | K64: 0 | L64: 122
A65: 11 | B65: 7801 | C65: 21 | D65: 7814 | E65: 21 | F65: 7845 | K65: 0 | L65: 122
A66: 11 | B66: 7933 | C66: 21 | D66: 7943 | E66: 21 | F66: 8081 | K66: 0 | L66: 122
A67: 11 | B67: 8167 | C67: 21 | D67: 8181 | E67: 21 | F67: 8254 | K67: 0 | L67: 122
A68: 11 | B68: 8373 | C68: 21 | D68: 8384 | E68: 12 | F68: 8424 | K68: 0 | L68: 121
A69: 11 | B69: 8519 | C69: 21 | D69: 8531 | E69: 21 | F69: 8548 | K69: 0 | L69: 122
A70: 11 | B70: 8637 | C70: 12 | D70: 8648 | E70: 14 | F70: 8652 | K70: 0 | L70: 111
A71: 11 | B71: 8751 | C71: 21 | D71: 8760 | E71: 21 | F71: 8786 | K71: 0 | L71: 122
A72: 11 | B72: 8876 | C72: 21 | D72: 8892 | E72: 21 | F72: 8900 | K72: 0 | L72: 122
A73: 22 | B73: 9005 | C73: 23 | D73: 9013 | E73: 23 | F73: 9021 | K73: 0 | L73: 222
A74: 22 | B74: 9136 | C74: 23 | D74: 9148 | E74: 23 | F74: 9159 | K74: 0 | L74: 222
A75: 11 | B75: 9258 | C75: 21 | D75: 9275 | E75: 21 | F75: 9303 | K75: 0 | L75: 122
A76: 11 | B76: 9389 | C76: 21 | D76: 9398 | E76: 21 | F76: 9413 | K76: 0 | L76: 122
A77: 11 | B77: 9500 | C77: 21 | D77: 9510 | E77: 21 | F77: 9516 | K77: 0 | L77: 122
A78: 11 | B78: 9610 | C78: 21 | D78: 9618 | E78: 21 | F78: 9622 | K78: 0 | L78: 122
A79: 11 | B79: 9729 | C79: 12 | D79: 9869 | E79: 23 | F79: 9903 | K79: 0 | L79: 112
A80: 11 | B80: 9998 | C80: 21 | D80: 10007 | E80: 21 | F80: 10013 | K80: 0 | L80: 122
A81: 11 | B81: 10109 | C81: 21 | D81: 10120 | E81: 21 | F81: 10126 | K81: 1 | L81: 122

Sheet !M723A40.104
A1: Report for:!M723A40.104
A2: Date: | B2: <date>
A3: Hen: | B3: <hen> | F3: Correct Sequence | G3: =Start!J2 -> 122 | P3: Total Sequences in Data | Q3: =4994-COUNTBLANK(L7:L5000) -> 69 | V3: Total Sequences in Block Data | W3: =COUNTA(L7:L18) -> 12 | AA3: Total Sequences in Block Data | AB3: =COUNTA(L19:L29) -> 11 | AF3: Total Sequences in Block Data | AG3: =COUNTA(L30:L41) -> 12 | AK3: Total Sequences in Block Data | AL3: =COUNTA(L42:L52) -> 11 | AP3: Total Sequences in Block Data | AQ3: =COUNTA(L53:L64) -> 12 | AU3: Total Sequences in Block Data | AV3: =COUNTA(L65:L75) -> 11
P4: Total Sequences in Summary | Q4: =SUM(O7:O14) -> 69 | V4: Total Sequences in Block Summary | W4: =SUM(U7:U14) -> 12 | AA4: Total Sequences in Block Summary | AB4: =SUM(Z7:Z14) -> 11 | AF4: Total Sequences in Block Summary | AG4: =SUM(AE7:AE14) -> 12 | AK4: Total Sequences in Block Summary | AL4: =SUM(AJ7:AJ14) -> 11 | AP4: Total Sequences in Block Summary | AQ4: =SUM(AO7:AO14) -> 12 | AU4: Total Sequences in Block Summary | AV4: =SUM(AT7:AT14) -> 11
T5: Block 1 | Y5: Block 2 | AD5: Block 3 | AI5: Block 4 | AN5: Block 5 | AS5: Block 6
A6: Sequence Component 1 | B6: Time 1 | C6: Sequence Component 2 | D6: Time 2 | E6: Sequence Component 3 | F6: Time 3 | G6: Sequence Component 4 | H6: Time 4 | I6: Sequence Component 5 | J6: Time 5 | K6: Correct? 0=No 1=Yes | L6: Sequence | N6: Frequency | P6: Relative Frequency | Q6: Variability | T6: Frequency | V6: Relative Frequency | W6: Variability | Y6: Frequency | AA6: Relative Frequency | AB6: Variability | AD6: Frequency | AF6: Relative Frequency | AG6: Variability | AI6: Frequency | AK6: Relative Frequency | AL6: Variability | AN6: Frequency | AP6: Relative Frequency | AQ6: Variability | AS6: Frequency | AU6: Relative Frequency | AV6: Variability
A7: 22 | B7: 17 | C7: 23 | D7: 24 | E7: 23 | F7: 62 | K7: 0 | L7: 222 | N7: 111 | O7: =COUNTIF($L$7:$L$500,N7) -> 3 | P7: =O7/$Q$4 -> 0.04347826087 | Q7: =IF(P7=0,0,(P7*((LOG(P7))/LOG(2)))) -> -0.1966766068 | T7: =N7 -> 111 | U7: =COUNTIF(L7:L18,T7) -> 0 | V7: =U7/(W4-U10) -> 0 | W7: =IF(V7=0,0,(V7*((LOG(V7))/LOG(2)))) -> 0 | Y7: =N7 -> 111 | Z7: =COUNTIF(L19:L29,Y7) -> 0 | AA7: =Z7/(AB4-Z10) -> 0 | AB7: =IF(AA7=0,0,(AA7*((LOG(AA7))/LOG(2)))) -> 0 | AD7: =N7 -> 111 | AE7: =COUNTIF(L30:L41,AD7) -> 1 | AF7: =AE7/(AG4-AE10) -> 0.125 | AG7: =IF(AF7=0,0,(AF7*((LOG(AF7))/LOG(2)))) -> -0.375 | AI7: =N7 -> 111 | AJ7: =COUNTIF(L42:L52,AI7) -> 1 | AK7: =AJ7/(AL4-AJ10) -> 0.5 | AL7: =IF(AK7=0,0,(AK7*((LOG(AK7))/LOG(2)))) -> -0.5 | AN7: =N7 -> 111 | AO7: =COUNTIF(L53:L64,AN7) -> 0 | AP7: =AO7/(AQ4-AO10) -> 0 | AQ7: =IF(AP7=0,0,(AP7*((LOG(AP7))/LOG(2)))) -> 0 | AS7: =N7 -> 111 | AT7: =COUNTIF(L65:L75,AS7) -> 1 | AU7: =AT7/(AV4-AT10) -> 0.3333333333 | AV7: =IF(AU7=0,0,(AU7*((LOG(AU7))/LOG(2)))) -> -0.5283208336
A8: 22 | B8: 172 | C8: 23 | D8: 181 | E8: 23 | F8: 197 | K8: 0 | L8: 222 | N8: 112 | O8: =COUNTIF($L$7:$L$500,N8) -> 9 | P8: =O8/$Q$4 -> 0.1304347826 | Q8: =IF(P8=0,0,(P8*((LOG(P8))/LOG(2)))) -> -0.3832955811 | T8: =N8 -> 112 | U8: =COUNTIF(L7:L18,T8) -> 0 | V8: =U8/(W4-U10) -> 0 | W8: =IF(V8=0,0,(V8*((LOG(V8))/LOG(2)))) -> 0 | Y8: =N8 -> 112 | Z8: =COUNTIF(L19:L29,Y8) -> 1 | AA8: =Z8/(AB4-Z10) -> 0.25 | AB8: =IF(AA8=0,0,(AA8*((LOG(AA8))/LOG(2)))) -> -0.5 | AD8: =N8 -> 112 | AE8: =COUNTIF(L30:L41,AD8) -> 5 | AF8: =AE8/(AG4-AE10) -> 0.625 | AG8: =IF(AF8=0,0,(AF8*((LOG(AF8))/LOG(2)))) -> -0.4237949407 | AI8: =N8 -> 112 | AJ8: =COUNTIF(L42:L52,AI8) -> 0 | AK8: =AJ8/(AL4-AJ10) -> 0 | AL8: =IF(AK8=0,0,(AK8*((LOG(AK8))/LOG(2)))) -> 0 | AN8: =N8 -> 112 | AO8: =COUNTIF(L53:L64,AN8) -> 3 | AP8: =AO8/(AQ4-AO10) -> 0.5 | AQ8: =IF(AP8=0,0,(AP8*((LOG(AP8))/LOG(2)))) -> -0.5 | AS8: =N8 -> 112 | AT8: =COUNTIF(L65:L75,AS8) -> 0 | AU8: =AT8/(AV4-AT10) -> 0 | AV8: =IF(AU8=0,0,(AU8*((LOG(AU8))/LOG(2)))) -> 0
A9: 22 | B9: 311 | C9: 23 | D9: 316 | E9: 23 | F9: 338 | K9: 0 | L9: 222 | N9: 121 | O9: =COUNTIF($L$7:$L$500,N9) -> 0 | P9: =O9/$Q$4 -> 0 | Q9: =IF(P9=0,0,(P9*((LOG(P9))/LOG(2)))) -> 0 | T9: =N9 -> 121 | U9: =COUNTIF(L7:L18,T9) -> 0 | V9: =U9/(W4-U10) -> 0 | W9: =IF(V9=0,0,(V9*((LOG(V9))/LOG(2)))) -> 0 | Y9: =N9 -> 121 | Z9: =COUNTIF(L19:L29,Y9) -> 0 | AA9: =Z9/(AB4-Z10) -> 0 | AB9: =IF(AA9=0,0,(AA9*((LOG(AA9))/LOG(2)))) -> 0 | AD9: =N9 -> 121 | AE9: =COUNTIF(L30:L41,AD9) -> 0 | AF9: =AE9/(AG4-AE10) -> 0 | AG9: =IF(AF9=0,0,(AF9*((LOG(AF9))/LOG(2)))) -> 0 | AI9: =N9 -> 121 | AJ9: =COUNTIF(L42:L52,AI9) -> 0 | AK9: =AJ9/(AL4-AJ10) -> 0 | AL9: =IF(AK9=0,0,(AK9*((LOG(AK9))/LOG(2)))) -> 0 | AN9: =N9 -> 121 | AO9: =COUNTIF(L53:L64,AN9) -> 0 | AP9: =AO9/(AQ4-AO10) -> 0 | AQ9: =IF(AP9=0,0,(AP9*((LOG(AP9))/LOG(2)))) -> 0 | AS9: =N9 -> 121 | AT9: =COUNTIF(L65:L75,AS9) -> 0 | AU9: =AT9/(AV4-AT10) -> 0 | AV9: =IF(AU9=0,0,(AU9*((LOG(AU9))/LOG(2)))) -> 0
A10: 22 | B10: 445 | C10: 23 | D10: 452 | E10: 23 | F10: 492 | K10: 0 | L10: 222 | N10: 122 | O10: =COUNTIF($L$7:$L$500,N10) -> 39 | P10: =O10/$Q$4 -> 0.5652173913 | Q10: =IF(P10=0,0,(P10*((LOG(P10))/LOG(2)))) -> -0.465243004 | T10: =N10 -> 122 | U10: =COUNTIF(L7:L18,T10) -> 5 | Y10: =N10 -> 122 | Z10: =COUNTIF(L19:L29,Y10) -> 7 | AD10: =N10 -> 122 | AE10: =COUNTIF(L30:L41,AD10) -> 4 | AI10: =N10 -> 122 | AJ10: =COUNTIF(L42:L52,AI10) -> 9 | AN10: =N10 -> 122 | AO10: =COUNTIF(L53:L64,AN10) -> 6 | AS10: =N10 -> 122 | AT10: =COUNTIF(L65:L75,AS10) -> 8
A11: 22 | B11: 597 | C11: 23 | D11: 604 | E11: 23 | F11: 636 | K11: 0 | L11: 222 | N11: 211 | O11: =COUNTIF($L$7:$L$500,N11) -> 1 | P11: =O11/$Q$4 -> 0.01449275362 | Q11: =IF(P11=0,0,(P11*((LOG(P11))/LOG(2)))) -> -0.08852933995 | T11: =N11 -> 211 | U11: =COUNTIF(L7:L18,T11) -> 0 | V11: =U11/(W4-U10) -> 0 | W11: =IF(V11=0,0,(V11*((LOG(V11))/LOG(2)))) -> 0 | Y11: =N11 -> 211 | Z11: =COUNTIF(L19:L29,Y11) -> 1 | AA11: =Z11/(AB4-Z10) -> 0.25 | AB11: =IF(AA11=0,0,(AA11*((LOG(AA11))/LOG(2)))) -> -0.5 | AD11: =N11 -> 211 | AE11: =COUNTIF(L30:L41,AD11) -> 0 | AF11: =AE11/(AG4-AE10) -> 0 | AG11: =IF(AF11=0,0,(AF11*((LOG(AF11))/LOG(2)))) -> 0 | AI11: =N11 -> 211 | AJ11: =COUNTIF(L42:L52,AI11) -> 0 | AK11: =AJ11/(AL4-AJ10) -> 0 | AL11: =IF(AK11=0,0,(AK11*((LOG(AK11))/LOG(2)))) -> 0 | AN11: =N11 -> 211 | AO11: =COUNTIF(L53:L64,AN11) -> 0 | AP11: =AO11/(AQ4-AO10) -> 0 | AQ11: =IF(AP11=0,0,(AP11*((LOG(AP11))/LOG(2)))) -> 0 | AS11: =N11 -> 211 | AT11: =COUNTIF(L65:L75,AS11) -> 0 | AU11: =AT11/(AV4-AT10) -> 0 | AV11: =IF(AU11=0,0,(AU11*((LOG(AU11))/LOG(2)))) -> 0
A12: 11 | B12: 739 | C12: 21 | D12: 749 | E12: 21 | F12: 756 | K12: 0 | L12: 122 | N12: 212 | O12: =COUNTIF($L$7:$L$500,N12) -> 1 | P12: =O12/$Q$4 -> 0.01449275362 | Q12: =IF(P12=0,0,(P12*((LOG(P12))/LOG(2)))) -> -0.08852933995 | T12: =N12 -> 212 | U12: =COUNTIF(L7:L18,T12) -> 0 | V12: =U12/(W4-U10) -> 0 | W12: =IF(V12=0,0,(V12*((LOG(V12))/LOG(2)))) -> 0 | Y12: =N12 -> 212 | Z12: =COUNTIF(L19:L29,Y12) -> 1 | AA12: =Z12/(AB4-Z10) -> 0.25 | AB12: =IF(AA12=0,0,(AA12*((LOG(AA12))/LOG(2)))) -> -0.5 | AD12: =N12 -> 212 | AE12: =COUNTIF(L30:L41,AD12) -> 0 | AF12: =AE12/(AG4-AE10) -> 0 | AG12: =IF(AF12=0,0,(AF12*((LOG(AF12))/LOG(2)))) -> 0 | AI12: =N12 -> 212 | AJ12: =COUNTIF(L42:L52,AI12) -> 0 | AK12: =AJ12/(AL4-AJ10) -> 0 | AL12: =IF(AK12=0,0,(AK12*((LOG(AK12))/LOG(2)))) -> 0 | AN12: =N12 -> 212 | AO12: =COUNTIF(L53:L64,AN12) -> 0 | AP12: =AO12/(AQ4-AO10) -> 0 | AQ12: =IF(AP12=0,0,(AP12*((LOG(AP12))/LOG(2)))) -> 0 | AS12: =N12 -> 212 | AT12: =COUNTIF(L65:L75,AS12) -> 0 | AU12: =AT12/(AV4-AT10) -> 0 | AV12: =IF(AU12=0,0,(AU12*((LOG(AU12))/LOG(2)))) -> 0
A13: 22 | B13: 858 | C13: 23 | D13: 864 | E13: 23 | F13: 880 | K13: 0 | L13: 222 | N13: 221 | O13: =COUNTIF($L$7:$L$500,N13) -> 0 | P13: =O13/$Q$4 -> 0 | Q13: =IF(P13=0,0,(P13*((LOG(P13))/LOG(2)))) -> 0 | T13: =N13 -> 221 | U13: =COUNTIF(L7:L18,T13) -> 0 | V13: =U13/(W4-U10) -> 0 | W13: =IF(V13=0,0,(V13*((LOG(V13))/LOG(2)))) -> 0 | Y13: =N13 -> 221 | Z13: =COUNTIF(L19:L29,Y13) -> 0 | AA13: =Z13/(AB4-Z10) -> 0 | AB13: =IF(AA13=0,0,(AA13*((LOG(AA13))/LOG(2)))) -> 0 | AD13: =N13 -> 221 | AE13: =COUNTIF(L30:L41,AD13) -> 0 | AF13: =AE13/(AG4-AE10) -> 0 | AG13: =IF(AF13=0,0,(AF13*((LOG(AF13))/LOG(2)))) -> 0 | AI13: =N13 -> 221 | AJ13: =COUNTIF(L42:L52,AI13) -> 0 | AK13: =AJ13/(AL4-AJ10) -> 0 | AL13: =IF(AK13=0,0,(AK13*((LOG(AK13))/LOG(2)))) -> 0 | AN13: =N13 -> 221 | AO13: =COUNTIF(L53:L64,AN13) -> 0 | AP13: =AO13/(AQ4-AO10) -> 0 | AQ13: =IF(AP13=0,0,(AP13*((LOG(AP13))/LOG(2)))) -> 0 | AS13: =N13 -> 221 | AT13: =COUNTIF(L65:L75,AS13) -> 0 | AU13: =AT13/(AV4-AT10) -> 0 | AV13: =IF(AU13=0,0,(AU13*((LOG(AU13))/LOG(2)))) -> 0
A14: 11 | B14: 981 | C14: 21 | D14: 1000 | E14: 21 | F14: 1007 | K14: 0 | L14: 122 | N14: 222 | O14: =COUNTIF($L$7:$L$500,N14) -> 16 | P14: =O14/$Q$4 -> 0.231884058 | Q14: =IF(P14=0,0,(P14*((LOG(P14))/LOG(2)))) -> -0.4889332074 | T14: =N14 -> 222 | U14: =COUNTIF(L7:L18,T14) -> 7 | V14: =U14/(W4-U10) -> 1 | W14: =IF(V14=0,0,(V14*((LOG(V14))/LOG(2)))) -> 0 | Y14: =N14 -> 222 | Z14: =COUNTIF(L19:L29,Y14) -> 1 | AA14: =Z14/(AB4-Z10) -> 0.25 | AB14: =IF(AA14=0,0,(AA14*((LOG(AA14))/LOG(2)))) -> -0.5 | AD14: =N14 -> 222 | AE14: =COUNTIF(L30:L41,AD14) -> 2 | AF14: =AE14/(AG4-AE10) -> 0.25 | AG14: =IF(AF14=0,0,(AF14*((LOG(AF14))/LOG(2)))) -> -0.5 | AI14: =N14 -> 222 | AJ14: =COUNTIF(L42:L52,AI14) -> 1 | AK14: =AJ14/(AL4-AJ10) -> 0.5 | AL14: =IF(AK14=0,0,(AK14*((LOG(AK14))/LOG(2)))) -> -0.5 | AN14: =N14 -> 222 | AO14: =COUNTIF(L53:L64,AN14) -> 3 | AP14: =AO14/(AQ4-AO10) -> 0.5 | AQ14: =IF(AP14=0,0,(AP14*((LOG(AP14))/LOG(2)))) -> -0.5 | AS14: =N14 -> 222 | AT14: =COUNTIF(L65:L75,AS14) -> 2 | AU14: =AT14/(AV4-AT10) -> 0.6666666667 | AV14: =IF(AU14=0,0,(AU14*((LOG(AU14))/LOG(2)))) -> -0.3899750005
A15: 11 | B15: 1099 | C15: 21 | D15: 1110 | E15: 21 | F15: 1124 | K15: 0 | L15: 122 | P15: =SUM(P7:P14) -> 1 | Q15: =-SUM(Q7:Q14) -> 1.711207079 | V15: =SUM(V7:V14) -> 1 | W15: =-SUM(W7:W14) -> 0 | AA15: =SUM(AA7:AA14) -> 1 | AB15: =-SUM(AB7:AB14) -> 2 | AF15: =SUM(AF7:AF14) -> 1 | AG15: =-SUM(AG7:AG14) -> 1.298794941 | AK15: =SUM(AK7:AK14) -> 1 | AL15: =-SUM(AL7:AL14) -> 1 | AP15: =SUM(AP7:AP14) -> 1 | AQ15: =-SUM(AQ7:AQ14) -> 1 | AU15: =SUM(AU7:AU14) -> 1 | AV15: =-SUM(AV7:AV14) -> 0.9182958341
A16: 22 | B16: 1254 | C16: 23 | D16: 1262 | E16: 23 | F16: 1277 | K16: 0 | L16: 222 | P16: U= | Q16: =Q15/(LOG(Q4)/LOG(2)) -> 0.2801342765 | V16: U1= | W16: =W15/(LOG(W4)/LOG(2)) -> 0 | AA16: U2= | AB16: =AB15/(LOG(AB4)/LOG(2)) -> 0.5781296526 | AF16: U3= | AG16: =AG15/(LOG(AG4)/LOG(2)) -> 0.3622896866 | AK16: U4= | AL16: =AL15/(LOG(AL4)/LOG(2)) -> 0.2890648263 | AP16: U5= | AQ16: =AQ15/(LOG(AQ4)/LOG(2)) -> 0.2789429457 | AU16: U6= | AV16: =AV15/(LOG(AV4)/LOG(2)) -> 0.2654470258
A17: 11 | B17: 1374 | C17: 21 | D17: 1385 | E17: 21 | F17: 1394 | K17: 0 | L17: 122
A18: 11 | B18: 1482 | C18: 21 | D18: 1493 | E18: 21 | F18: 1515 | K18: 0 | L18: 122
A19: 11 | B19: 1604 | C19: 21 | D19: 1614 | E19: 21 | F19: 1634 | K19: 0 | L19: 122 | N19: Total Target Seq
A20: 11 | B20: 1724 | C20: 21 | D20: 1734 | E20: 21 | F20: 1741 | K20: 0 | L20: 122 | N20: =COUNTIF(L7:L75,G3) -> 39 | P20: 12 | Q20: 11 | R20: 12 | S20: 11 | T20: 12 | U20: 11
A21: 11 | B21: 1829 | C21: 12 | D21: 1836 | E21: 23 | F21: 1847 | K21: 0 | L21: 112 | P21: % of reinforcement given in 6 equal intervals based on number of trials
A22: 22 | B22: 1954 | C22: 23 | D22: 1975 | E22: 23 | F22: 1989 | K22: 0 | L22: 222 | P22: %_1 | Q22: %_2 | R22: %_3 | S22: %_4 | T22: %_5 | U22: %_6
A23: 11 | B23: 2085 | C23: 21 | D23: 2094 | E23: 21 | F23: 2101 | K23: 0 | L23: 122 | O23: target sequence | P23: =$G$3 -> 122 | Q23: =$G$3 -> 122 | R23: =$G$3 -> 122 | S23: =$G$3 -> 122 | T23: =$G$3 -> 122 | U23: =$G$3 -> 122
A24: 22 | B24: 2219 | C24: 14 | D24: 2232 | E24: 23 | F24: 2249 | K24: 0 | L24: 212 | O24: total reinforcement | P24: =U10 -> 5 | Q24: =Z10 -> 7 | R24: =AE10 -> 4 | S24: =AJ10 -> 9 | T24: =AO10 -> 6 | U24: =AT10 -> 8
A25: 22 | B25: 2374 | C25: 14 | D25: 2401 | E25: 14 | F25: 2408 | K25: 0 | L25: 211 | O25: % target
A26: 11 | B26: 2504 | C26: 21 | D26: 2512 | E26: 21 | F26: 2541 | K26: 0 | L26: 122 | O26: CCRF
A27: 11 | B27: 2629 | C27: 21 | D27: 2639 | E27: 21 | F27: 2696 | K27: 0 | L27: 122 | O27: % CCRf
A28: 11 | B28: 2783 | C28: 21 | D28: 2793 | E28: 21 | F28: 2821 | K28: 0 | L28: 122 | O28: average response rate | P28: =F18/P20 -> 126.25 | Q28: =(F29-F18)/Q20 -> 130.0909091 | R28: =(F41-F29)/R20 -> 115.8333333 | S28: =(F52-F41)/S20 -> 122.9090909 | T28: =(F64-F52)/T20 -> 116.25 | U28: =(F75-F64)/U20 -> 121.1818182
A29: 11 | B29: 2931 | C29: 21 | D29: 2939 | E29: 21 | F29: 2946 | K29: 0 | L29: 122
A30: 11 | B30: 3051 | C30: 12 | D30: 3072 | E30: 23 | F30: 3082 | K30: 0 | L30: 112
A31: 11 | B31: 3177 | C31: 12 | D31: 3184 | E31: 14 | F31: 3191 | K31: 0 | L31: 111
A32: 11 | B32: 3287 | C32: 21 | D32: 3299 | E32: 21 | F32: 3307 | K32: 0 | L32: 122
A33: 11 | B33: 3397 | C33: 12 | D33: 3406 | E33: 23 | F33: 3417 | K33: 0 | L33: 112
A34: 11 | B34: 3512 | C34: 21 | D34: 3522 | E34: 21 | F34: 3529 | K34: 0 | L34: 122
A35: 11 | B35: 3618 | C35: 21 | D35: 3626 | E35: 21 | F35: 3634 | K35: 0 | L35: 122
A36: 11 | B36: 3724 | C36: 12 | D36: 3728 | E36: 23 | F36: 3739 | K36: 0 | L36: 112
A37: 22 | B37: 3843 | C37: 23 | D37: 3857 | E37: 23 | F37: 3871 | K37: 0 | L37: 222
A38: 11 | B38: 3967 | C38: 21 | D38: 3976 | E38: 21 | F38: 3998 | K38: 0 | L38: 122
A39: 11 | B39: 4085 | C39: 12 | D39: 4093 | E39: 23 | F39: 4102 | K39: 0 | L39: 112
A40: 22 | B40: 4213 | C40: 23 | D40: 4221 | E40: 23 | F40: 4229 | K40: 0 | L40: 222
A41: 11 | B41: 4323 | C41: 12 | D41: 4326 | E41: 23 | F41: 4336 | K41: 0 | L41: 112
A42: 22 | B42: 4440 | C42: 23 | D42: 4455 | E42: 23 | F42: 4486 | K42: 0 | L42: 222
A43: 11 | B43: 4583 | C43: 21 | D43: 4592 | E43: 21 | F43: 4599 | K43: 0 | L43: 122
A44: 11 | B44: 4688 | C44: 21 | D44: 4698 | E44: 21 | F44: 4705 | K44: 0 | L44: 122
A45: 11 | B45: 4793 | C45: 21 | D45: 4801 | E45: 21 | F45: 4808 | K45: 0 | L45: 122
A46: 11 | B46: 4899 | C46: 21 | D46: 4909 | E46: 21 | F46: 4916 | K46: 0 | L46: 122
A47: 11 | B47: 5004 | C47: 21 | D47: 5014 | E47: 21 | F47: 5029 | K47: 0 | L47: 122
A48: 11 | B48: 5118 | C48: 21 | D48: 5129 | E48: 21 | F48: 5144 | K48: 0 | L48: 122
A49: 11 | B49: 5233 | C49: 21 | D49: 5241 | E49: 21 | F49: 5280 | K49: 0 | L49: 122
A50: 11 | B50: 5445 | C50: 12 | D50: 5451 | E50: 14 | F50: 5459 | K50: 0 | L50: 111
A51: 11 | B51: 5555 | C51: 21 | D51: 5563 | E51: 21 | F51: 5582 | K51: 0 | L51: 122
A52: 11 | B52: 5671 | C52: 21 | D52: 5681 | E52: 21 | F52: 5688 | K52: 0 | L52: 122
A53: 11 | B53: 5777 | C53: 21 | D53: 5787 | E53: 21 | F53: 5801 | K53: 0 | L53: 122
A54: 11 | B54: 5894 | C54: 12 | D54: 5900 | E54: 23 | F54: 5941 | K54: 0 | L54: 112
A55: 11 | B55: 6036 | C55: 21 | D55: 6046 | E55: 21 | F55: 6052 | K55: 0 | L55: 122
A56: 11 | B56: 6138 | C56: 12 | D56: 6144 | E56: 23 | F56: 6154 | K56: 0 | L56: 112
A57: 22 | B57: 6261 | C57: 23 | D57: 6268 | E57: 23 | F57: 6278 | K57: 0 | L57: 222
A58: 11 | B58: 6374 | C58: 21 | D58: 6384 | E58: 21 | F58: 6391 | K58: 0 | L58: 122
A59: 22 | B59: 6492 | C59: 23 | D59: 6498 | E59: 23 | F59: 6506 | K59: 0 | L59: 222
A60: 11 | B60: 6601 | C60: 12 | D60: 6606 | E60: 23 | F60: 6616 | K60: 0 | L60: 112
A61: 11 | B61: 6712 | C61: 21 | D61: 6722 | E61: 21 | F61: 6729 | K61: 0 | L61: 122
A62: 11 | B62: 6820 | C62: 21 | D62: 6831 | E62: 21 | F62: 6837 | K62: 0 | L62: 122
A63: 22 | B63: 6937 | C63: 23 | D63: 6950 | E63: 23 | F63: 6958 | K63: 0 | L63: 222
A64: 11 | B64: 7053 | C64: 21 | D64: 7069 | E64: 21 | F64: 7083 | K64: 0 | L64: 122
A65: 11 | B65: 7172 | C65: 21 | D65: 7184 | E65: 21 | F65: 7191 | K65: 0 | L65: 122
A66: 11 | B66: 7280 | C66: 21 | D66: 7291 | E66: 21 | F66: 7315 | K66: 0 | L66: 122
A67: 11 | B67: 7401 | C67: 21 | D67: 7417 | E67: 21 | F67: 7433 | K67: 0 | L67: 122
A68: 22 | B68: 7532 | C68: 23 | D68: 7538 | E68: 23 | F68: 7571 | K68: 0 | L68: 222
A69: 22 | B69: 7675 | C69: 23 | D69: 7681 | E69: 23 | F69: 7689 | K69: 0 | L69: 222
A70: 11 | B70: 7790 | C70: 12 | D70: 7794 | E70: 14 | F70: 7802 | K70: 0 | L70: 111
A71: 11 | B71: 7897 | C71: 21 | D71: 7906 | E71: 21 | F71: 7913 | K71: 0 | L71: 122
A72: 11 | B72: 7999 | C72: 21 | D72: 8008 | E72: 21 | F72: 8029 | K72: 0 | L72: 122
A73: 11 | B73: 8117 | C73: 21 | D73: 8150 | E73: 21 | F73: 8181 | K73: 0 | L73: 122
A74: 11 | B74: 8271 | C74: 21 | D74: 8284 | E74: 21 | F74: 8311 | K74: 0 | L74: 122
A75: 11 | B75: 8399 | C75: 21 | D75: 8409 | E75: 21 | F75: 8416 | K75: 1 | L75: 122

Sheet !M724930.104
A1: Report for:!M724930.104
A2: Date: | B2: <date>
A3: Hen: | B3: <hen> | F3: Correct Sequence | G3: =Start!J2 -> 122 | P3: Total Sequences in Data | Q3: =4994-COUNTBLANK(L7:L5000) -> 72 | V3: Total Sequences in Block Data | W3: =COUNTA(L7:L18) -> 12 | AA3: Total Sequences in Block Data | AB3: =COUNTA(L19:L30) -> 12 | AF3: Total Sequences in Block Data | AG3: =COUNTA(L31:L42) -> 12 | AK3: Total Sequences in Block Data | AL3: =COUNTA(L43:L54) -> 12 | AP3: Total Sequences in Block Data | AQ3: =COUNTA(L55:L66) -> 12 | AU3: Total Sequences in Block Data | AV3: =COUNTA(L67:L78) -> 12
P4: Total Sequences in Summary | Q4: =SUM(O7:O14) -> 72 | V4: Total Sequences in Block Summary | W4: =SUM(U7:U14) -> 12 | AA4: Total Sequences in Block Summary | AB4: =SUM(Z7:Z14) -> 12 | AF4: Total Sequences in Block Summary | AG4: =SUM(AE7:AE14) -> 12 | AK4: Total Sequences in Block Summary | AL4: =SUM(AJ7:AJ14) -> 12 | AP4: Total Sequences in Block Summary | AQ4: =SUM(AO7:AO14) -> 12 | AU4: Total Sequences in Block Summary | AV4: =SUM(AT7:AT14) -> 12
T5: Block 1 | Y5: Block 2 | AD5: Block 3 | AI5: Block 4 | AN5: Block 5 | AS5: Block 6
A6: Sequence Component 1 | B6: Time 1 | C6: Sequence Component 2 | D6: Time 2 | E6: Sequence Component 3 | F6: Time 3 | G6: Sequence Component 4 | H6: Time 4 | I6: Sequence Component 5 | J6: Time 5 | K6: Correct? 0=No 1=Yes | L6: Sequence | N6: Frequency | P6: Relative Frequency | Q6: Variability | T6: Frequency | V6: Relative Frequency | W6: Variability | Y6: Frequency | AA6: Relative Frequency | AB6: Variability | AD6: Frequency | AF6: Relative Frequency | AG6: Variability | AI6: Frequency | AK6: Relative Frequency | AL6: Variability | AN6: Frequency | AP6: Relative Frequency | AQ6: Variability | AS6: Frequency | AU6: Relative Frequency | AV6: Variability
A7: 22 | B7: 15 | C7: 23 | D7: 29 | E7: 23 | F7: 40 | K7: 0 | L7: 222 | N7: 111 | O7: =COUNTIF($L$7:$L$500,N7) -> 3 | P7: =O7/$Q$4 -> 0.04166666667 | Q7: =IF(P7=0,0,(P7*((LOG(P7))/LOG(2)))) -> -0.1910401042 | T7: =N7 -> 111 | U7: =COUNTIF(L7:L18,T7) -> 0 | V7: =U7/(W4-U10) -> 0 | W7: =IF(V7=0,0,(V7*((LOG(V7))/LOG(2)))) -> 0 | Y7: =N7 -> 111 | Z7: =COUNTIF(L19:L30,Y7) -> 0 | AA7: =Z7/(AB4-Z10) -> 0 | AB7: =IF(AA7=0,0,(AA7*((LOG(AA7))/LOG(2)))) -> 0 | AD7: =N7 -> 111 | AE7: =COUNTIF(L31:L42,AD7) -> 1 | AF7: =AE7/(AG4-AE10) -> 0.3333333333 | AG7: =IF(AF7=0,0,(AF7*((LOG(AF7))/LOG(2)))) -> -0.5283208336 | AI7: =N7 -> 111 | AJ7: =COUNTIF(L43:L54,AI7) -> 0 | AK7: =AJ7/(AL4-AJ10) -> 0 | AL7: =IF(AK7=0,0,(AK7*((LOG(AK7))/LOG(2)))) -> 0 | AN7: =N7 -> 111 | AO7: =COUNTIF(L55:L66,AN7) -> 1 | AP7: =AO7/(AQ4-AO10) -> 0.1428571429 | AQ7: =IF(AP7=0,0,(AP7*((LOG(AP7))/LOG(2)))) -> -0.4010507032 | AS7: =N7 -> 111 | AT7: =COUNTIF(L67:L78,AS7) -> 1 | AU7: =AT7/(AV4-AT10) -> 0.1428571429 | AV7: =IF(AU7=0,0,(AU7*((LOG(AU7))/LOG(2)))) -> -0.4010507032
A8: 22 | B8: 150 | C8: 23 | D8: 158 | E8: 23 | F8: 165 | K8: 0 | L8: 222 | N8: 112 | O8: =COUNTIF($L$7:$L$500,N8) -> 18 | P8: =O8/$Q$4 -> 0.25 | Q8: =IF(P8=0,0,(P8*((LOG(P8))/LOG(2)))) -> -0.5 | T8: =N8 -> 112 | U8: =COUNTIF(L7:L18,T8) -> 1 | V8: =U8/(W4-U10) -> 0.1666666667 | W8: =IF(V8=0,0,(V8*((LOG(V8))/LOG(2)))) -> -0.4308270835 | Y8: =N8 -> 112 | Z8: =COUNTIF(L19:L30,Y8) -> 1 | AA8: =Z8/(AB4-Z10) -> 0.2 | AB8: =IF(AA8=0,0,(AA8*((LOG(AA8))/LOG(2)))) -> -0.464385619 | AD8: =N8 -> 112 | AE8: =COUNTIF(L31:L42,AD8) -> 2 | AF8: =AE8/(AG4-AE10) -> 0.6666666667 | AG8: =IF(AF8=0,0,(AF8*((LOG(AF8))/LOG(2)))) -> -0.3899750005 | AI8: =N8 -> 112 | AJ8: =COUNTIF(L43:L54,AI8) -> 3 | AK8: =AJ8/(AL4-AJ10) -> 0.6 | AL8: =IF(AK8=0,0,(AK8*((LOG(AK8))/LOG(2)))) -> -0.4421793565 | AN8: =N8 -> 112 | AO8: =COUNTIF(L55:L66,AN8) -> 6 | AP8: =AO8/(AQ4-AO10) -> 0.8571428571 | AQ8: =IF(AP8=0,0,(AP8*((LOG(AP8))/LOG(2)))) -> -0.1906220754 | AS8: =N8 -> 112 | AT8: =COUNTIF(L67:L78,AS8) -> 5 | AU8: =AT8/(AV4-AT10) -> 0.7142857143 | AV8: =IF(AU8=0,0,(AU8*((LOG(AU8))/LOG(2)))) -> -0.346733448
A9: 22 | B9: 267 | C9: 23 | D9: 274 | E9: 23 | F9: 282 | K9: 0 | L9: 222 | N9: 121 | O9: =COUNTIF($L$7:$L$500,N9) -> 0 | P9: =O9/$Q$4 -> 0 | Q9: =IF(P9=0,0,(P9*((LOG(P9))/LOG(2)))) -> 0 | T9: =N9 -> 121 | U9: =COUNTIF(L7:L18,T9) -> 0 | V9: =U9/(W4-U10) -> 0 | W9: =IF(V9=0,0,(V9*((LOG(V9))/LOG(2)))) -> 0 | Y9: =N9 -> 121 | Z9: =COUNTIF(L19:L30,Y9) -> 0 | AA9: =Z9/(AB4-Z10) -> 0 | AB9: =IF(AA9=0,0,(AA9*((LOG(AA9))/LOG(2)))) -> 0 | AD9: =N9 -> 121 | AE9: =COUNTIF(L31:L42,AD9) -> 0 | AF9: =AE9/(AG4-AE10) -> 0 | AG9: =IF(AF9=0,0,(AF9*((LOG(AF9))/LOG(2)))) -> 0 | AI9: =N9 -> 121 | AJ9: =COUNTIF(L43:L54,AI9) -> 0 | AK9: =AJ9/(AL4-AJ10) -> 0 | AL9: =IF(AK9=0,0,(AK9*((LOG(AK9))/LOG(2)))) -> 0 | AN9: =N9 -> 121 | AO9: =COUNTIF(L55:L66,AN9) -> 0 | AP9: =AO9/(AQ4-AO10) -> 0 | AQ9: =IF(AP9=0,0,(AP9*((LOG(AP9))/LOG(2)))) -> 0 | AS9: =N9 -> 121 | AT9: =COUNTIF(L67:L78,AS9) -> 0 | AU9: =AT9/(AV4-AT10) -> 0 | AV9: =IF(AU9=0,0,(AU9*((LOG(AU9))/LOG(2)))) -> 0
A10: 11 | B10: 378 | C10: 21 | D10: 390 | E10: 21 | F10: 398 | K10: 0 | L10: 122 | N10: 122 | O10: =COUNTIF($L$7:$L$500,N10) -> 39 | P10: =O10/$Q$4 -> 0.5416666667 | Q10: =IF(P10=0,0,(P10*((LOG(P10))/LOG(2)))) -> -0.4791165072 | T10: =N10 -> 122 | U10: =COUNTIF(L7:L18,T10) -> 6 | Y10: =N10 -> 122 | Z10: =COUNTIF(L19:L30,Y10) -> 7 | AD10: =N10 -> 122 | AE10: =COUNTIF(L31:L42,AD10) -> 9 | AI10: =N10 -> 122 | AJ10: =COUNTIF(L43:L54,AI10) -> 7 | AN10: =N10 -> 122 | AO10: =COUNTIF(L55:L66,AN10) -> 5 | AS10: =N10 -> 122 | AT10: =COUNTIF(L67:L78,AS10) -> 5
A11: 11 | B11: 487 | C11: 21 | D11: 495 | E11: 21 | F11: 502 | K11: 0 | L11: 122 | N11: 211 | O11: =COUNTIF($L$7:$L$500,N11) -> 0 | P11: =O11/$Q$4 -> 0 | Q11: =IF(P11=0,0,(P11*((LOG(P11))/LOG(2)))) -> 0 | T11: =N11 -> 211 | U11: =COUNTIF(L7:L18,T11) -> 0 | V11: =U11/(W4-U10) -> 0 | W11: =IF(V11=0,0,(V11*((LOG(V11))/LOG(2)))) -> 0 | Y11: =N11 -> 211 | Z11: =COUNTIF(L19:L30,Y11) -> 0 | AA11: =Z11/(AB4-Z10) -> 0 | AB11: =IF(AA11=0,0,(AA11*((LOG(AA11))/LOG(2)))) -> 0 | AD11: =N11 -> 211 | AE11: =COUNTIF(L31:L42,AD11) -> 0 | AF11: =AE11/(AG4-AE10) -> 0 | AG11: =IF(AF11=0,0,(AF11*((LOG(AF11))/LOG(2)))) -> 0 | AI11: =N11 -> 211 | AJ11: =COUNTIF(L43:L54,AI11) -> 0 | AK11: =AJ11/(AL4-AJ10) -> 0 | AL11: =IF(AK11=0,0,(AK11*((LOG(AK11))/LOG(2)))) -> 0 | AN11: =N11 -> 211 | AO11: =COUNTIF(L55:L66,AN11) -> 0 | AP11: =AO11/(AQ4-AO10) -> 0 | AQ11: =IF(AP11=0,0,(AP11*((LOG(AP11))/LOG(2)))) -> 0 | AS11: =N11 -> 211 | AT11: =COUNTIF(L67:L78,AS11) -> 0 | AU11: =AT11/(AV4-AT10) -> 0 | AV11: =IF(AU11=0,0,(AU11*((LOG(AU11))/LOG(2)))) -> 0
A12: 11 | B12: 591 | C12: 21 | D12: 600 | E12: 21 | F12: 607 | K12: 0 | L12: 122 | N12: 212 | O12: =COUNTIF($L$7:$L$500,N12) -> 0 | P12: =O12/$Q$4 -> 0 | Q12: =IF(P12=0,0,(P12*((LOG(P12))/LOG(2)))) -> 0 | T12: =N12 -> 212 | U12: =COUNTIF(L7:L18,T12) -> 0 | V12: =U12/(W4-U10) -> 0 | W12: =IF(V12=0,0,(V12*((LOG(V12))/LOG(2)))) -> 0 | Y12: =N12 -> 212 | Z12: =COUNTIF(L19:L30,Y12) -> 0 | AA12: =Z12/(AB4-Z10) -> 0 | AB12: =IF(AA12=0,0,(AA12*((LOG(AA12))/LOG(2)))) -> 0 | AD12: =N12 -> 212 | AE12: =COUNTIF(L31:L42,AD12) -> 0 | AF12: =AE12/(AG4-AE10) -> 0 | AG12: =IF(AF12=0,0,(AF12*((LOG(AF12))/LOG(2)))) -> 0 | AI12: =N12 -> 212 | AJ12: =COUNTIF(L43:L54,AI12) -> 0 | AK12: =AJ12/(AL4-AJ10) -> 0 | AL12: =IF(AK12=0,0,(AK12*((LOG(AK12))/LOG(2)))) -> 0 | AN12: =N12 -> 212 | AO12: =COUNTIF(L55:L66,AN12) -> 0 | AP12: =AO12/(AQ4-AO10) -> 0 | AQ12: =IF(AP12=0,0,(AP12*((LOG(AP12))/LOG(2)))) -> 0 | AS12: =N12 -> 212 | AT12: =COUNTIF(L67:L78,AS12) -> 0 | AU12: =AT12/(AV4-AT10) -> 0 | AV12: =IF(AU12=0,0,(AU12*((LOG(AU12))/LOG(2)))) -> 0
A13: 11 | B13: 717 | C13: 12 | D13: 723 | E13: 23 | F13: 738 | K13: 0 | L13: 112 | N13: 221 | O13: =COUNTIF($L$7:$L$500,N13) -> 0 | P13: =O13/$Q$4 -> 0 | Q13: =IF(P13=0,0,(P13*((LOG(P13))/LOG(2)))) -> 0 | T13: =N13 -> 221 | U13: =COUNTIF(L7:L18,T13) -> 0 | V13: =U13/(W4-U10) -> 0 | W13: =IF(V13=0,0,(V13*((LOG(V13))/LOG(2)))) -> 0 | Y13: =N13 -> 221 | Z13: =COUNTIF(L19:L30,Y13) -> 0 | AA13: =Z13/(AB4-Z10) -> 0 | AB13: =IF(AA13=0,0,(AA13*((LOG(AA13))/LOG(2)))) -> 0 | AD13: =N13 -> 221 | AE13: =COUNTIF(L31:L42,AD13) -> 0 | AF13: =AE13/(AG4-AE10) -> 0 | AG13: =IF(AF13=0,0,(AF13*((LOG(AF13))/LOG(2)))) -> 0 | AI13: =N13 -> 221 | AJ13: =COUNTIF(L43:L54,AI13) -> 0 | AK13: =AJ13/(AL4-AJ10) -> 0 | AL13: =IF(AK13=0,0,(AK13*((LOG(AK13))/LOG(2)))) -> 0 | AN13: =N13 -> 221 | AO13: =COUNTIF(L55:L66,AN13) -> 0 | AP13: =AO13/(AQ4-AO10) -> 0 | AQ13: =IF(AP13=0,0,(AP13*((LOG(AP13))/LOG(2)))) -> 0 | AS13: =N13 -> 221 | AT13: =COUNTIF(L67:L78,AS13) -> 0 | AU13: =AT13/(AV4-AT10) -> 0 | AV13: =IF(AU13=0,0,(AU13*((LOG(AU13))/LOG(2)))) -> 0
A14: 11 | B14: 827 | C14: 21 | D14: 838 | E14: 21 | F14: 846 | K14: 0 | L14: 122 | N14: 222 | O14: =COUNTIF($L$7:$L$500,N14) -> 12 | P14: =O14/$Q$4 -> 0.1666666667 | Q14: =IF(P14=0,0,(P14*((LOG(P14))/LOG(2)))) -> -0.4308270835 | T14: =N14 -> 222 | U14: =COUNTIF(L7:L18,T14) -> 5 | V14: =U14/(W4-U10) -> 0.8333333333 | W14: =IF(V14=0,0,(V14*((LOG(V14))/LOG(2)))) -> -0.2191953382 | Y14: =N14 -> 222 | Z14: =COUNTIF(L19:L30,Y14) -> 4 | AA14: =Z14/(AB4-Z10) -> 0.8 | AB14: =IF(AA14=0,0,(AA14*((LOG(AA14))/LOG(2)))) -> -0.2575424759 | AD14: =N14 -> 222 | AE14: =COUNTIF(L31:L42,AD14) -> 0 | AF14: =AE14/(AG4-AE10) -> 0 | AG14: =IF(AF14=0,0,(AF14*((LOG(AF14))/LOG(2)))) -> 0 | AI14: =N14 -> 222 | AJ14: =COUNTIF(L43:L54,AI14) -> 2 | AK14: =AJ14/(AL4-AJ10) -> 0.4 | AL14: =IF(AK14=0,0,(AK14*((LOG(AK14))/LOG(2)))) -> -0.528771238 | AN14: =N14 -> 222 | AO14: =COUNTIF(L55:L66,AN14) -> 0 | AP14: =AO14/(AQ4-AO10) -> 0 | AQ14: =IF(AP14=0,0,(AP14*((LOG(AP14))/LOG(2)))) -> 0 | AS14: =N14 -> 222 | AT14: =COUNTIF(L67:L78,AS14) -> 1 | AU14: =AT14/(AV4-AT10) -> 0.1428571429 | AV14: =IF(AU14=0,0,(AU14*((LOG(AU14))/LOG(2)))) -> -0.4010507032
A15: 22 | B15: 945 | C15: 23 | D15: 952 | E15: 23 | F15: 966 | K15: 0 | L15: 222 | P15: =SUM(P7:P14) -> 1 | Q15: =-SUM(Q7:Q14) -> 1.600983695 | V15: =SUM(V7:V14) -> 1 | W15: =-SUM(W7:W14) -> 0.6500224216 | AA15: =SUM(AA7:AA14) -> 1 | AB15: =-SUM(AB7:AB14) -> 0.7219280949 | AF15: =SUM(AF7:AF14) -> 1 | AG15: =-SUM(AG7:AG14) -> 0.9182958341 | AK15: =SUM(AK7:AK14) -> 1 | AL15: =-SUM(AL7:AL14) -> 0.9709505945 | AP15: =SUM(AP7:AP14) -> 1 | AQ15: =-SUM(AQ7:AQ14) -> 0.5916727786 | AU15: =SUM(AU7:AU14) -> 1 | AV15: =-SUM(AV7:AV14) -> 1.148834854
A16: 22 | B16: 1071 | C16: 23 | D16: 1081 | E16: 23 | F16: 1092 | K16: 0 | L16: 222 | P16: U= | Q16: =Q15/(LOG(Q4)/LOG(2)) -> 0.2594818729 | V16: U1= | W16: =W15/(LOG(W4)/LOG(2)) -> 0.181319169 | AA16: U2= | AB16: =AB15/(LOG(AB4)/LOG(2)) -> 0.2013767493 | AF16: U3= | AG16: =AG15/(LOG(AG4)/LOG(2)) -> 0.2561521449 | AK16: U4= | AL16: =AL15/(LOG(AL4)/LOG(2)) -> 0.2708398189 | AP16: U5= | AQ16: =AQ15/(LOG(AQ4)/LOG(2)) -> 0.1650429477 | AU16: U6= | AV16: =AV15/(LOG(AV4)/LOG(2)) -> 0.3204593783
A17: 11 | B17: 1189 | C17: 21 | D17: 1200 | E17: 21 | F17: 1206 | K17: 0 | L17: 122
A18: 11 | B18: 1296 | C18: 21 | D18: 1307 | E18: 21 | F18: 1317 | K18: 0 | L18: 122
A19: 22 | B19: 1416 | C19: 23 | D19: 1423 | E19: 23 | F19: 1431 | K19: 0 | L19: 222 | N19: Total Target Seq
A20: 22 | B20: 1538 | C20: 23 | D20: 1545 | E20: 23 | F20: 1567 | K20: 0 | L20: 222 | N20: =COUNTIF(L7:L78,G3) -> 39 | P20: 12 | Q20: 12 | R20: 12 | S20: 12 | T20: 12 | U20: 12
A21: 11 | B21: 1664 | C21: 21 | D21: 1675 | E21: 21 | F21: 1683 | K21: 0 | L21: 122 | P21: % of reinforcement given in 6 equal intervals based on number of trials
A22: 11 | B22: 1771 | C22: 21 | D22: 1785 | E22: 21 | F22: 1795 | K22: 0 | L22: 122 | P22: %_1 | Q22: %_2 | R22: %_3 | S22: %_4 | T22: %_5 | U22: %_6
A23: 11 | B23: 1882 | C23: 21 | D23: 1894 | E23: 21 | F23: 1901 | K23: 0 | L23: 122 | O23: target sequence | P23: =$G$3 -> 122 | Q23: =$G$3 -> 122 | R23: =$G$3 -> 122 | S23: =$G$3 -> 122 | T23: =$G$3 -> 122 | U23: =$G$3 -> 122
A24: 11 | B24: 2006 | C24: 21 | D24: 2018 | E24: 21 | F24: 2025 | K24: 0 | L24: 122 | O24: total reinforcement | P24: =U10 -> 6 | Q24: =Z10 -> 7 | R24: =AE10 -> 9 | S24: =AJ10 -> 7 | T24: =AO10 -> 5 | U24: =AT10 -> 5
A25: 11 | B25: 2114 | C25: 12 | D25: 2121 | E25: 23 | F25: 2131 | K25: 0 | L25: 112 | O25: % target
A26: 11 | B26: 2227 | C26: 21 | D26: 2237 | E26: 21 | F26: 2245 | K26: 0 | L26: 122 | O26: CCRF
A27: 11 | B27: 2352 | C27: 21 | D27: 2362 | E27: 21 | F27: 2369 | K27: 0 | L27: 122 | O27: % CCRf
A28: 22 | B28: 2469 | C28: 23 | D28: 2476 | E28: 23 | F28: 2486 | K28: 0 | L28: 222 | O28: average response rate | P28: =F18/P20 -> 109.75 | Q28: =(F30-F18)/Q20 -> 117.25 | R28: =(F42-F30)/R20 -> 113.0833333 | S28: =(F54-F42)/S20 -> 114.6666667 | T28: =(F66-F54)/T20 -> 110.5833333 | U28: =(F78-F66)/U20 -> 113
A29: 11 | B29: 2583 | C29: 21 | D29: 2593 | E29: 21 | F29: 2600 | K29: 0 | L29: 122
A30: 22 | B30: 2710 | C30: 23 | D30: 2716 | E30: 23 | F30: 2724 | K30: 0 | L30: 222
A31: 11 | B31: 2820 | C31: 21 | D31: 2831 | E31: 21 | F31: 2838 | K31: 0 | L31: 122
A32: 11 | B32: 2927 | C32: 21 | D32: 2937 | E32: 21 | F32: 2944 | K32: 0 | L32: 122
A33: 11 | B33: 3044 | C33: 21 | D33: 3055 | E33: 21 | F33: 3062 | K33: 0 | L33: 122
A34: 11 | B34: 3150 | C34: 21 | D34: 3162 | E34: 21 | F34: 3168 | K34: 0 | L34: 122
A35: 11 | B35: 3254 | C35: 12 | D35: 3265 | E35: 23 | F35: 3276 | K35: 0 | L35: 112
A36: 11 | B36: 3379 | C36: 12 | D36: 3387 | E36: 14 | F36: 3395 | K36: 0 | L36: 111
A37: 11 | B37: 3491 | C37: 21 | D37: 3501 | E37: 21 | F37: 3509 | K37: 0 | L37: 122
A38: 11 | B38: 3597 | C38: 21 | D38: 3608 | E38: 21 | F38: 3619 | K38: 0 | L38: 122
A39: 11 | B39: 3730 | C39: 21 | D39: 3740 | E39: 21 | F39: 3748 | K39: 0 | L39: 122
A40: 11 | B40: 3836 | C40: 21 | D40: 3846 | E40: 21 | F40: 3853 | K40: 0 | L40: 122
A41: 11 | B41: 3940 | C41: 21 | D41: 3951 | E41: 21 | F41: 3958 | K41: 0 | L41: 122
A42: 11 | B42: 4043 | C42: 12 | D42: 4070 | E42: 23 | F42: 4081 | K42: 0 | L42: 112
A43: 11 | B43: 4177 | C43: 21 | D43: 4188 | E43: 21 | F43: 4195 | K43: 0 | L43: 122
A44: 11 | B44: 4283 | C44: 21 | D44: 4297 | E44: 21 | F44: 4304 | K44: 0 | L44: 122
A45: 11 | B45: 4392 | C45: 21 | D45: 4406 | E45: 21 | F45: 4412 | K45: 0 | L45: 122
A46: 11 | B46: 4501 | C46: 12 | D46: 4507 | E46: 23 | F46: 4518 | K46: 0 | L46: 112
A47: 22 | B47: 4627 | C47: 23 | D47: 4634 | E47: 23 | F47: 4642 | K47: 0 | L47: 222
A48: 11 | B48: 4744 | C48: 21 | D48: 4774 | E48: 21 | F48: 4781 | K48: 0 | L48: 122
A49: 11 | B49: 4868 | C49: 21 | D49: 4879 | E49: 21 | F49: 4886 | K49: 0 | L49: 122
A50: 11 | B50: 4973 | C50: 21 | D50: 4983 | E50: 21 | F50: 4990 | K50: 0 | L50: 122
A51: 11 | B51: 5078 | C51: 12 | D51: 5085 | E51: 23 | F51: 5096 | K51: 0 | L51: 112
A52: 22 | B52: 5206 | C52: 23 | D52: 5214 | E52: 23 | F52: 5226 | K52: 0 | L52: 222
A53: 11 | B53: 5325 | C53: 12 | D53: 5329 | E53: 23 | F53: 5343 | K53: 0 | L53: 112
A54: 11 | B54: 5439 | C54: 21 | D54: 5450 | E54: 21 | F54: 5457 | K54: 0 | L54: 122
A55: 11 | B55: 5548 | C55: 12 | D55: 5552 | E55: 23 | F55: 5566 | K55: 0 | L55: 112
A56: 11 | B56: 5662 | C56: 21 | D56: 5673 | E56: 21 | F56: 5678 | K56: 0 | L56: 122
A57: 11 | B57: 5767 | C57: 12 | D57: 5776 | E57: 14 | F57: 5784 | K57: 0 | L57: 111
A58: 11 | B58: 5881 | C58: 12 | D58: 5885 | E58: 23 | F58: 5898 | K58: 0 | L58: 112
A59: 11 | B59: 5994 | C59: 21 | D59: 6004 | E59: 21 | F59: 6011 | K59: 0 | L59: 122
A60: 11 | B60: 6097 | C60: 21 | D60: 6108 | E60: 21 | F60: 6115 | K60: 0 | L60: 122
A61: 11 | B61: 6203 | C61: 21 | D61: 6226 | E61: 21 | F61: 6237 | K61: 0 | L61: 122
A62: 11 | B62: 6324 | C62: 12 | D62: 6328 | E62: 23 | F62: 6342 | K62: 0 | L62: 112
A63: 11 | B63: 6438 | C63: 21 | D63: 6450 | E63: 21 | F63: 6457 | K63: 0 | L63: 122
A64: 11 | B64: 6545 | C64: 12 | D64: 6549 | E64: 23 | F64: 6563 | K64: 0 | L64: 112
A65: 11 | B65: 6659 | C65: 12 | D65: 6663 | E65: 23 | F65: 6674 | K65: 0 | L65: 112
A66: 11 | B66: 6769 | C66: 12 | D66: 6773 | E66: 23 | F66: 6784 | K66: 0 | L66: 112
A67: 11 | B67: 6880 | C67: 12 | D67: 6883 | E67: 23 | F67: 6897 | K67: 0 | L67: 112
A68: 22 | B68: 7008 | C68: 23 | D68: 7016 | E68: 23 | F68: 7027 | K68: 0 | L68: 222
A69: 11 | B69: 7123 | C69: 21 | D69: 7134 | E69: 21 | F69: 7140 | K69: 0 | L69: 122
A70: 11 | B70: 7227 | C70: 21 | D70: 7240 | E70: 21 | F70: 7247 | K70: 0 | L70: 122
A71: 11 | B71: 7334 | C71: 21 | D71: 7354 | E71: 21 | F71: 7361 | K71: 0 | L71: 122
A72: 11 | B72: 7449 | C72: 21 | D72: 7460 | E72: 21 | F72: 7467 | K72: 0 | L72: 122
A73: 11 | B73: 7561 | C73: 12 | D73: 7565 | E73: 23 | F73: 7580 | K73: 0 | L73: 112
A74: 11 | B74: 7676 | C74: 12 | D74: 7682 | E74: 14 | F74: 7690 | K74: 0 | L74: 111
A75: 11 | B75: 7788 | C75: 12 | D75: 7792 | E75: 23 | F75: 7803 | K75: 0 | L75: 112
A76: 11 | B76: 7898 | C76: 12 | D76: 7903 | E76: 23 | F76: 7914 | K76: 0 | L76: 112
A77: 11 | B77: 8010 | C77: 12 | D77: 8013 | E77: 23 | F77: 8023 | K77: 0 | L77: 112
A78: 11 | B78: 8119 | C78: 21 | D78: 8133 | E78: 21 | F78: 8140 | K78: 1 | L78: 122

Sheet !M725A00.104
A1: Report for:!M725A00.104
A2: Date: | B2: <date>
A3: Hen: | B3: <hen> | F3: Correct Sequence | G3: =Start!J2 -> 122 | P3: Total Sequences in Data | Q3: =4994-COUNTBLANK(L7:L5000) -> 48 | V3: Total Sequences in Block Data | W3: =COUNTA(L7:L14) -> 8 | AA3: Total Sequences in Block Data | AB3: =COUNTA(L15:L22) -> 8 | AF3: Total Sequences in Block Data | AG3: =COUNTA(L23:L30) -> 8 | AK3: Total Sequences in Block Data | AL3: =COUNTA(L31:L38) -> 8 | AP3: Total Sequences in Block Data | AQ3: =COUNTA(L39:L46) -> 8 | AU3: Total Sequences in Block Data | AV3: =COUNTA(L47:L54) -> 8
P4: Total Sequences in Summary | Q4: =SUM(O7:O14) -> 48 | V4: Total Sequences in Block Summary | W4: =SUM(U7:U14) -> 8 | AA4: Total Sequences in Block Summary | AB4: =SUM(Z7:Z14) -> 8 | AF4: Total Sequences in Block Summary | AG4: =SUM(AE7:AE14) -> 8 | AK4: Total Sequences in Block Summary | AL4: =SUM(AJ7:AJ14) -> 8 | AP4: Total Sequences in Block Summary | AQ4: =SUM(AO7:AO14) -> 8 | AU4: Total Sequences in Block Summary | AV4: =SUM(AT7:AT14) -> 8
T5: Block 1 | Y5: Block 2 | AD5: Block 3 | AI5: Block 4 | AN5: Block 5 | AS5: Block 6
A6: Sequence Component 1 | B6: Time 1 | C6: Sequence Component 2 | D6: Time 2 | E6: Sequence Component 3 | F6: Time 3 | G6: Sequence Component 4 | H6: Time 4 | I6: Sequence Component 5 | J6: Time 5 | K6: Correct? 0=No 1=Yes | L6: Sequence | N6: Frequency | P6: Relative Frequency | Q6: Variability | T6: Frequency | V6: Relative Frequency | W6: Variability | Y6: Frequency | AA6: Relative Frequency | AB6: Variability | AD6: Frequency | AF6: Relative Frequency | AG6: Variability | AI6: Frequency | AK6: Relative Frequency | AL6: Variability | AN6: Frequency | AP6: Relative Frequency | AQ6: Variability | AS6: Frequency | AU6: Relative Frequency | AV6: Variability
A7: 22 | B7: 11 | C7: 23 | D7: 36 | E7: 23 | F7: 44 | K7: 0 | L7: 222 | N7: 111 | O7: =COUNTIF($L$7:$L$500,N7) -> 2 | P7: =O7/$Q$4 -> 0.04166666667 | Q7: =IF(P7=0,0,(P7*((LOG(P7))/LOG(2)))) -> -0.1910401042 | T7: =N7 -> 111 | U7: =COUNTIF(L7:L14,T7) -> 0 | V7: =U7/(W4-U10) -> 0 | W7: =IF(V7=0,0,(V7*((LOG(V7))/LOG(2)))) -> 0 | Y7: =N7 -> 111 | Z7: =COUNTIF(L15:L22,Y7) -> 0 | AA7: =Z7/(AB4-Z10) -> 0 | AB7: =IF(AA7=0,0,(AA7*((LOG(AA7))/LOG(2)))) -> 0 | AD7: =N7 -> 111 | AE7: =COUNTIF(L23:L30,AD7) -> 2 | AF7: =AE7/(AG4-AE10) -> 0.6666666667 | AG7: =IF(AF7=0,0,(AF7*((LOG(AF7))/LOG(2)))) -> -0.3899750005 | AI7: =N7 -> 111 | AJ7: =COUNTIF(L31:L38,AI7) -> 0 | AK7: =AJ7/(AL4-AJ10) -> 0 | AL7: =IF(AK7=0,0,(AK7*((LOG(AK7))/LOG(2)))) -> 0 | AN7: =N7 -> 111 | AO7: =COUNTIF(L39:L46,AN7) -> 0 | AP7: =AO7/(AQ4-AO10) -> 0 | AQ7: =IF(AP7=0,0,(AP7*((LOG(AP7))/LOG(2)))) -> 0 | AS7: =N7 -> 111 | AT7: =COUNTIF(L47:L54,AS7) -> 0 | AU7: =AT7/(AV4-AT10) ->  | AV7: =IF(AU7=0,0,(AU7*((LOG(AU7))/LOG(2)))) -> 
A8: 11 | B8: 146 | C8: 21 | D8: 154 | E8: 21 | F8: 161 | K8: 0 | L8: 122 | N8: 112 | O8: =COUNTIF($L$7:$L$500,N8) -> 4 | P8: =O8/$Q$4 -> 0.08333333333 | Q8: =IF(P8=0,0,(P8*((LOG(P8))/LOG(2)))) -> -0.2987468751 | T8: =N8 -> 112 | U8: =COUNTIF(L7:L14,T8) -> 0 | V8: =U8/(W4-U10) -> 0 | W8: =IF(V8=0,0,(V8*((LOG(V8))/LOG(2)))) -> 0 | Y8: =N8 -> 112 | Z8: =COUNTIF(L15:L22,Y8) -> 2 | AA8: =Z8/(AB4-Z10) -> 0.6666666667 | AB8: =IF(AA8=0,0,(AA8*((LOG(AA8))/LOG(2)))) -> -0.3899750005 | AD8: =N8 -> 112 | AE8: =COUNTIF(L23:L30,AD8) -> 1 | AF8: =AE8/(AG4-AE10) -> 0.3333333333 | AG8: =IF(AF8=0,0,(AF8*((LOG(AF8))/LOG(2)))) -> -0.5283208336 | AI8: =N8 -> 112 | AJ8: =COUNTIF(L31:L38,AI8) -> 1 | AK8: =AJ8/(AL4-AJ10) -> 1 | AL8: =IF(AK8=0,0,(AK8*((LOG(AK8))/LOG(2)))) -> 0 | AN8: =N8 -> 112 | AO8: =COUNTIF(L39:L46,AN8) -> 0 | AP8: =AO8/(AQ4-AO10) -> 0 | AQ8: =IF(AP8=0,0,(AP8*((LOG(AP8))/LOG(2)))) -> 0 | AS8: =N8 -> 112 | AT8: =COUNTIF(L47:L54,AS8) -> 0 | AU8: =AT8/(AV4-AT10) ->  | AV8: =IF(AU8=0,0,(AU8*((LOG(AU8))/LOG(2)))) -> 
A9: 11 | B9: 254 | C9: 21 | D9: 265 | E9: 21 | F9: 272 | K9: 0 | L9: 122 | N9: 121 | O9: =COUNTIF($L$7:$L$500,N9) -> 0 | P9: =O9/$Q$4 -> 0 | Q9: =IF(P9=0,0,(P9*((LOG(P9))/LOG(2)))) -> 0 | T9: =N9 -> 121 | U9: =COUNTIF(L7:L14,T9) -> 0 | V9: =U9/(W4-U10) -> 0 | W9: =IF(V9=0,0,(V9*((LOG(V9))/LOG(2)))) -> 0 | Y9: =N9 -> 121 | Z9: =COUNTIF(L15:L22,Y9) -> 0 | AA9: =Z9/(AB4-Z10) -> 0 | AB9: =IF(AA9=0,0,(AA9*((LOG(AA9))/LOG(2)))) -> 0 | AD9: =N9 -> 121 | AE9: =COUNTIF(L23:L30,AD9) -> 0 | AF9: =AE9/(AG4-AE10) -> 0 | AG9: =IF(AF9=0,0,(AF9*((LOG(AF9))/LOG(2)))) -> 0 | AI9: =N9 -> 121 | AJ9: =COUNTIF(L31:L38,AI9) -> 0 | AK9: =AJ9/(AL4-AJ10) -> 0 | AL9: =IF(AK9=0,0,(AK9*((LOG(AK9))/LOG(2)))) -> 0 | AN9: =N9 -> 121 | AO9: =COUNTIF(L39:L46,AN9) -> 0 | AP9: =AO9/(AQ4-AO10) -> 0 | AQ9: =IF(AP9=0,0,(AP9*((LOG(AP9))/LOG(2)))) -> 0 | AS9: =N9 -> 121 | AT9: =COUNTIF(L47:L54,AS9) -> 0 | AU9: =AT9/(AV4-AT10) ->  | AV9: =IF(AU9=0,0,(AU9*((LOG(AU9))/LOG(2)))) -> 
A10: 11 | B10: 367 | C10: 21 | D10: 386 | E10: 21 | F10: 393 | K10: 0 | L10: 122 | N10: 122 | O10: =COUNTIF($L$7:$L$500,N10) -> 39 | P10: =O10/$Q$4 -> 0.8125 | Q10: =IF(P10=0,0,(P10*((LOG(P10))/LOG(2)))) -> -0.243392729 | T10: =N10 -> 122 | U10: =COUNTIF(L7:L14,T10) -> 7 | Y10: =N10 -> 122 | Z10: =COUNTIF(L15:L22,Y10) -> 5 | AD10: =N10 -> 122 | AE10: =COUNTIF(L23:L30,AD10) -> 5 | AI10: =N10 -> 122 | AJ10: =COUNTIF(L31:L38,AI10) -> 7 | AN10: =N10 -> 122 | AO10: =COUNTIF(L39:L46,AN10) -> 7 | AS10: =N10 -> 122 | AT10: =COUNTIF(L47:L54,AS10) -> 8
A11: 11 | B11: 486 | C11: 21 | D11: 498 | E11: 21 | F11: 505 | K11: 0 | L11: 122 | N11: 211 | O11: =COUNTIF($L$7:$L$500,N11) -> 0 | P11: =O11/$Q$4 -> 0 | Q11: =IF(P11=0,0,(P11*((LOG(P11))/LOG(2)))) -> 0 | T11: =N11 -> 211 | U11: =COUNTIF(L7:L14,T11) -> 0 | V11: =U11/(W4-U10) -> 0 | W11: =IF(V11=0,0,(V11*((LOG(V11))/LOG(2)))) -> 0 | Y11: =N11 -> 211 | Z11: =COUNTIF(L15:L22,Y11) -> 0 | AA11: =Z11/(AB4-Z10) -> 0 | AB11: =IF(AA11=0,0,(AA11*((LOG(AA11))/LOG(2)))) -> 0 | AD11: =N11 -> 211 | AE11: =COUNTIF(L23:L30,AD11) -> 0 | AF11: =AE11/(AG4-AE10) -> 0 | AG11: =IF(AF11=0,0,(AF11*((LOG(AF11))/LOG(2)))) -> 0 | AI11: =N11 -> 211 | AJ11: =COUNTIF(L31:L38,AI11) -> 0 | AK11: =AJ11/(AL4-AJ10) -> 0 | AL11: =IF(AK11=0,0,(AK11*((LOG(AK11))/LOG(2)))) -> 0 | AN11: =N11 -> 211 | AO11: =COUNTIF(L39:L46,AN11) -> 0 | AP11: =AO11/(AQ4-AO10) -> 0 | AQ11: =IF(AP11=0,0,(AP11*((LOG(AP11))/LOG(2)))) -> 0 | AS11: =N11 -> 211 | AT11: =COUNTIF(L47:L54,AS11) -> 0 | AU11: =AT11/(AV4-AT10) ->  | AV11: =IF(AU11=0,0,(AU11*((LOG(AU11))/LOG(2)))) -> 
A12: 11 | B12: 598 | C12: 21 | D12: 610 | E12: 21 | F12: 617 | K12: 0 | L12: 122 | N12: 212 | O12: =COUNTIF($L$7:$L$500,N12) -> 0 | P12: =O12/$Q$4 -> 0 | Q12: =IF(P12=0,0,(P12*((LOG(P12))/LOG(2)))) -> 0 | T12: =N12 -> 212 | U12: =COUNTIF(L7:L14,T12) -> 0 | V12: =U12/(W4-U10) -> 0 | W12: =IF(V12=0,0,(V12*((LOG(V12))/LOG(2)))) -> 0 | Y12: =N12 -> 212 | Z12: =COUNTIF(L15:L22,Y12) -> 0 | AA12: =Z12/(AB4-Z10) -> 0 | AB12: =IF(AA12=0,0,(AA12*((LOG(AA12))/LOG(2)))) -> 0 | AD12: =N12 -> 212 | AE12: =COUNTIF(L23:L30,AD12) -> 0 | AF12: =AE12/(AG4-AE10) -> 0 | AG12: =IF(AF12=0,0,(AF12*((LOG(AF12))/LOG(2)))) -> 0 | AI12: =N12 -> 212 | AJ12: =COUNTIF(L31:L38,AI12) -> 0 | AK12: =AJ12/(AL4-AJ10) -> 0 | AL12: =IF(AK12=0,0,(AK12*((LOG(AK12))/LOG(2)))) -> 0 | AN12: =N12 -> 212 | AO12: =COUNTIF(L39:L46,AN12) -> 0 | AP12: =AO12/(AQ4-AO10) -> 0 | AQ12: =IF(AP12=0,0,(AP12*((LOG(AP12))/LOG(2)))) -> 0 | AS12: =N12 -> 212 | AT12: =COUNTIF(L47:L54,AS12) -> 0 | AU12: =AT12/(AV4-AT10) ->  | AV12: =IF(AU12=0,0,(AU12*((LOG(AU12))/LOG(2)))) -> 
A13: 11 | B13: 706 | C13: 21 | D13: 715 | E13: 21 | F13: 722 | K13: 0 | L13: 122 | N13: 221 | O13: =COUNTIF($L$7:$L$500,N13) -> 0 | P13: =O13/$Q$4 -> 0 | Q13: =IF(P13=0,0,(P13*((LOG(P13))/LOG(2)))) -> 0 | T13: =N13 -> 221 | U13: =COUNTIF(L7:L14,T13) -> 0 | V13: =U13/(W4-U10) -> 0 | W13: =IF(V13=0,0,(V13*((LOG(V13))/LOG(2)))) -> 0 | Y13: =N13 -> 221 | Z13: =COUNTIF(L15:L22,Y13) -> 0 | AA13: =Z13/(AB4-Z10) -> 0 | AB13: =IF(AA13=0,0,(AA13*((LOG(AA13))/LOG(2)))) -> 0 | AD13: =N13 -> 221 | AE13: =COUNTIF(L23:L30,AD13) -> 0 | AF13: =AE13/(AG4-AE10) -> 0 | AG13: =IF(AF13=0,0,(AF13*((LOG(AF13))/LOG(2)))) -> 0 | AI13: =N13 -> 221 | AJ13: =COUNTIF(L31:L38,AI13) -> 0 | AK13: =AJ13/(AL4-AJ10) -> 0 | AL13: =IF(AK13=0,0,(AK13*((LOG(AK13))/LOG(2)))) -> 0 | AN13: =N13 -> 221 | AO13: =COUNTIF(L39:L46,AN13) -> 0 | AP13: =AO13/(AQ4-AO10) -> 0 | AQ13: =IF(AP13=0,0,(AP13*((LOG(AP13))/LOG(2)))) -> 0 | AS13: =N13 -> 221 | AT13: =COUNTIF(L47:L54,AS13) -> 0 | AU13: =AT13/(AV4-AT10) ->  | AV13: =IF(AU13=0,0,(AU13*((LOG(AU13))/LOG(2)))) -> 
A14: 11 | B14: 812 | C14: 21 | D14: 824 | E14: 21 | F14: 831 | K14: 0 | L14: 122 | N14: 222 | O14: =COUNTIF($L$7:$L$500,N14) -> 3 | P14: =O14/$Q$4 -> 0.0625 | Q14: =IF(P14=0,0,(P14*((LOG(P14))/LOG(2)))) -> -0.25 | T14: =N14 -> 222 | U14: =COUNTIF(L7:L14,T14) -> 1 | V14: =U14/(W4-U10) -> 1 | W14: =IF(V14=0,0,(V14*((LOG(V14))/LOG(2)))) -> 0 | Y14: =N14 -> 222 | Z14: =COUNTIF(L15:L22,Y14) -> 1 | AA14: =Z14/(AB4-Z10) -> 0.3333333333 | AB14: =IF(AA14=0,0,(AA14*((LOG(AA14))/LOG(2)))) -> -0.5283208336 | AD14: =N14 -> 222 | AE14: =COUNTIF(L23:L30,AD14) -> 0 | AF14: =AE14/(AG4-AE10) -> 0 | AG14: =IF(AF14=0,0,(AF14*((LOG(AF14))/LOG(2)))) -> 0 | AI14: =N14 -> 222 | AJ14: =COUNTIF(L31:L38,AI14) -> 0 | AK14: =AJ14/(AL4-AJ10) -> 0 | AL14: =IF(AK14=0,0,(AK14*((LOG(AK14))/LOG(2)))) -> 0 | AN14: =N14 -> 222 | AO14: =COUNTIF(L39:L46,AN14) -> 1 | AP14: =AO14/(AQ4-AO10) -> 1 | AQ14: =IF(AP14=0,0,(AP14*((LOG(AP14))/LOG(2)))) -> 0 | AS14: =N14 -> 222 | AT14: =COUNTIF(L47:L54,AS14) -> 0 | AU14: =AT14/(AV4-AT10) ->  | AV14: =IF(AU14=0,0,(AU14*((LOG(AU14))/LOG(2)))) -> 
A15: 11 | B15: 919 | C15: 21 | D15: 930 | E15: 21 | F15: 938 | K15: 0 | L15: 122 | P15: =SUM(P7:P14) -> 1 | Q15: =-SUM(Q7:Q14) -> 0.9831797083 | V15: =SUM(V7:V14) -> 1 | W15: =-SUM(W7:W14) -> 0 | AA15: =SUM(AA7:AA14) -> 1 | AB15: =-SUM(AB7:AB14) -> 0.9182958341 | AF15: =SUM(AF7:AF14) -> 1 | AG15: =-SUM(AG7:AG14) -> 0.9182958341 | AK15: =SUM(AK7:AK14) -> 1 | AL15: =-SUM(AL7:AL14) -> 0 | AP15: =SUM(AP7:AP14) -> 1 | AQ15: =-SUM(AQ7:AQ14) -> 0 | AU15: =SUM(AU7:AU14) ->  | AV15: =-SUM(AV7:AV14) -> 
A16: 22 | B16: 1039 | C16: 23 | D16: 1046 | E16: 23 | F16: 1058 | K16: 0 | L16: 222 | P16: U= | Q16: =Q15/(LOG(Q4)/LOG(2)) -> 0.176040521 | V16: U1= | W16: =W15/(LOG(W4)/LOG(2)) -> 0 | AA16: U2= | AB16: =AB15/(LOG(AB4)/LOG(2)) -> 0.3060986114 | AF16: U3= | AG16: =AG15/(LOG(AG4)/LOG(2)) -> 0.3060986114 | AK16: U4= | AL16: =AL15/(LOG(AL4)/LOG(2)) -> 0 | AP16: U5= | AQ16: =AQ15/(LOG(AQ4)/LOG(2)) -> 0 | AU16: U6= | AV16: =AV15/(LOG(AV4)/LOG(2)) -> 
A17: 11 | B17: 1154 | C17: 21 | D17: 1165 | E17: 21 | F17: 1173 | K17: 0 | L17: 122
A18: 11 | B18: 1261 | C18: 21 | D18: 1272 | E18: 21 | F18: 1287 | K18: 0 | L18: 122
A19: 11 | B19: 1381 | C19: 12 | D19: 1385 | E19: 23 | F19: 1401 | K19: 0 | L19: 112 | N19: Total Target Seq
A20: 11 | B20: 1493 | C20: 21 | D20: 1504 | E20: 21 | F20: 1512 | K20: 0 | L20: 122 | N20: =COUNTIF(L7:L54,G3) -> 39 | P20: 8 | Q20: 8 | R20: 8 | S20: 8 | T20: 8 | U20: 8
A21: 11 | B21: 1601 | C21: 21 | D21: 1612 | E21: 21 | F21: 1619 | K21: 0 | L21: 122 | P21: % of reinforcement given in 6 equal intervals based on number of trials
A22: 11 | B22: 1708 | C22: 12 | D22: 1719 | E22: 23 | F22: 1735 | K22: 0 | L22: 112 | P22: %_1 | Q22: %_2 | R22: %_3 | S22: %_4 | T22: %_5 | U22: %_6
A23: 11 | B23: 1834 | C23: 21 | D23: 1844 | E23: 21 | F23: 1852 | K23: 0 | L23: 122 | O23: target sequence | P23: =$G$3 -> 122 | Q23: =$G$3 -> 122 | R23: =$G$3 -> 122 | S23: =$G$3 -> 122 | T23: =$G$3 -> 122 | U23: =$G$3 -> 122
A24: 11 | B24: 1946 | C24: 21 | D24: 1960 | E24: 21 | F24: 1967 | K24: 0 | L24: 122 | O24: total reinforcement | P24: =U10 -> 7 | Q24: =Z10 -> 5 | R24: =AE10 -> 5 | S24: =AJ10 -> 7 | T24: =AO10 -> 7 | U24: =AT10 -> 8
A25: 11 | B25: 2055 | C25: 12 | D25: 2062 | E25: 14 | F25: 2070 | K25: 0 | L25: 111 | O25: % target
A26: 11 | B26: 2166 | C26: 12 | D26: 2171 | E26: 14 | F26: 2181 | K26: 0 | L26: 111 | O26: CCRF
A27: 11 | B27: 2277 | C27: 12 | D27: 2281 | E27: 23 | F27: 2290 | K27: 0 | L27: 112 | O27: % CCRf
A28: 11 | B28: 2386 | C28: 21 | D28: 2397 | E28: 21 | F28: 2402 | K28: 0 | L28: 122 | O28: average response rate | P28: =F14/P20 -> 103.875 | Q28: =(F22-F14)/Q20 -> 113 | R28: =(F30-F22)/R20 -> 110.125 | S28: =(F38-F30)/S20 -> 110.75 | T28: =(F46-F38)/T20 -> 108.375 | U28: =(F54-F46)/U20 -> 105.875
A29: 11 | B29: 2492 | C29: 21 | D29: 2504 | E29: 21 | F29: 2511 | K29: 0 | L29: 122
A30: 11 | B30: 2598 | C30: 21 | D30: 2609 | E30: 21 | F30: 2616 | K30: 0 | L30: 122
A31: 11 | B31: 2704 | C31: 21 | D31: 2715 | E31: 21 | F31: 2722 | K31: 0 | L31: 122
A32: 11 | B32: 2811 | C32: 21 | D32: 2823 | E32: 21 | F32: 2830 | K32: 0 | L32: 122
A33: 11 | B33: 2919 | C33: 12 | D33: 2923 | E33: 23 | F33: 2935 | K33: 0 | L33: 112
A34: 11 | B34: 3031 | C34: 21 | D34: 3041 | E34: 21 | F34: 3051 | K34: 0 | L34: 122
A35: 11 | B35: 3144 | C35: 21 | D35: 3155 | E35: 21 | F35: 3163 | K35: 0 | L35: 122
A36: 11 | B36: 3254 | C36: 21 | D36: 3265 | E36: 21 | F36: 3271 | K36: 0 | L36: 122
A37: 11 | B37: 3365 | C37: 21 | D37: 3379 | E37: 21 | F37: 3390 | K37: 0 | L37: 122
A38: 11 | B38: 3483 | C38: 21 | D38: 3495 | E38: 21 | F38: 3502 | K38: 0 | L38: 122
A39: 11 | B39: 3589 | C39: 21 | D39: 3602 | E39: 21 | F39: 3611 | K39: 0 | L39: 122
A40: 11 | B40: 3701 | C40: 21 | D40: 3711 | E40: 21 | F40: 3718 | K40: 0 | L40: 122
A41: 11 | B41: 3806 | C41: 21 | D41: 3818 | E41: 21 | F41: 3825 | K41: 0 | L41: 122
A42: 11 | B42: 3913 | C42: 21 | D42: 3924 | E42: 21 | F42: 3931 | K42: 0 | L42: 122
A43: 11 | B43: 4018 | C43: 21 | D43: 4035 | E43: 21 | F43: 4042 | K43: 0 | L43: 122
A44: 11 | B44: 4129 | C44: 21 | D44: 4141 | E44: 21 | F44: 4148 | K44: 0 | L44: 122
A45: 22 | B45: 4241 | C45: 23 | D45: 4246 | E45: 23 | F45: 4256 | K45: 0 | L45: 222
A46: 11 | B46: 4352 | C46: 21 | D46: 4363 | E46: 21 | F46: 4369 | K46: 0 | L46: 122
A47: 11 | B47: 4458 | C47: 21 | D47: 4470 | E47: 21 | F47: 4477 | K47: 0 | L47: 122
A48: 11 | B48: 4565 | C48: 21 | D48: 4576 | E48: 21 | F48: 4583 | K48: 0 | L48: 122
A49: 11 | B49: 4670 | C49: 21 | D49: 4680 | E49: 21 | F49: 4687 | K49: 0 | L49: 122
A50: 11 | B50: 4773 | C50: 21 | D50: 4786 | E50: 21 | F50: 4792 | K50: 0 | L50: 122
A51: 11 | B51: 4882 | C51: 21 | D51: 4892 | E51: 21 | F51: 4899 | K51: 0 | L51: 122
A52: 11 | B52: 4987 | C52: 21 | D52: 4998 | E52: 21 | F52: 5005 | K52: 0 | L52: 122
A53: 11 | B53: 5092 | C53: 21 | D53: 5103 | E53: 21 | F53: 5110 | K53: 0 | L53: 122
A54: 11 | B54: 5198 | C54: 21 | D54: 5209 | E54: 21 | F54: 5216 | K54: 1 | L54: 122

Sheet !M726840.104
A1: Report for:!M726840.104
A2: Date: | B2: <date>
A3: Hen: | B3: <hen> | F3: Correct Sequence | G3: =Start!J2 -> 122 | P3: Total Sequences in Data | Q3: =4994-COUNTBLANK(L7:L5000) -> 50 | V3: Total Sequences in Block Data | W3: =COUNTA(L7:L14) -> 8 | AA3: Total Sequences in Block Data | AB3: =COUNTA(L15:L23) -> 9 | AF3: Total Sequences in Block Data | AG3: =COUNTA(L24:L31) -> 8 | AK3: Total Sequences in Block Data | AL3: =COUNTA(L32:L39) -> 8 | AP3: Total Sequences in Block Data | AQ3: =COUNTA(L40:L48) -> 9 | AU3: Total Sequences in Block Data | AV3: =COUNTA(L49:L56) -> 8
P4: Total Sequences in Summary | Q4: =SUM(O7:O14) -> 50 | V4: Total Sequences in Block Summary | W4: =SUM(U7:U14) -> 8 | AA4: Total Sequences in Block Summary | AB4: =SUM(Z7:Z14) -> 9 | AF4: Total Sequences in Block Summary | AG4: =SUM(AE7:AE14) -> 8 | AK4: Total Sequences in Block Summary | AL4: =SUM(AJ7:AJ14) -> 8 | AP4: Total Sequences in Block Summary | AQ4: =SUM(AO7:AO14) -> 9 | AU4: Total Sequences in Block Summary | AV4: =SUM(AT7:AT14) -> 8
T5: Block 1 | Y5: Block 2 | AD5: Block 3 | AI5: Block 4 | AN5: Block 5 | AS5: Block 6
A6: Sequence Component 1 | B6: Time 1 | C6: Sequence Component 2 | D6: Time 2 | E6: Sequence Component 3 | F6: Time 3 | G6: Sequence Component 4 | H6: Time 4 | I6: Sequence Component 5 | J6: Time 5 | K6: Correct? 0=No 1=Yes | L6: Sequence | N6: Frequency | P6: Relative Frequency | Q6: Variability | T6: Frequency | V6: Relative Frequency | W6: Variability | Y6: Frequency | AA6: Relative Frequency | AB6: Variability | AD6: Frequency | AF6: Relative Frequency | AG6: Variability | AI6: Frequency | AK6: Relative Frequency | AL6: Variability | AN6: Frequency | AP6: Relative Frequency | AQ6: Variability | AS6: Frequency | AU6: Relative Frequency | AV6: Variability
A7: 22 | B7: 24 | C7: 23 | D7: 32 | E7: 23 | F7: 40 | K7: 0 | L7: 222 | N7: 111 | O7: =COUNTIF($L$7:$L$500,N7) -> 0 | P7: =O7/$Q$4 -> 0 | Q7: =IF(P7=0,0,(P7*((LOG(P7))/LOG(2)))) -> 0 | T7: =N7 -> 111 | U7: =COUNTIF(L7:L14,T7) -> 0 | V7: =U7/(W4-U10) -> 0 | W7: =IF(V7=0,0,(V7*((LOG(V7))/LOG(2)))) -> 0 | Y7: =N7 -> 111 | Z7: =COUNTIF(L15:L23,Y7) -> 0 | AA7: =Z7/(AB4-Z10) -> 0 | AB7: =IF(AA7=0,0,(AA7*((LOG(AA7))/LOG(2)))) -> 0 | AD7: =N7 -> 111 | AE7: =COUNTIF(L24:L31,AD7) -> 0 | AF7: =AE7/(AG4-AE10) -> 0 | AG7: =IF(AF7=0,0,(AF7*((LOG(AF7))/LOG(2)))) -> 0 | AI7: =N7 -> 111 | AJ7: =COUNTIF(L32:L39,AI7) -> 0 | AK7: =AJ7/(AL4-AJ10) -> 0 | AL7: =IF(AK7=0,0,(AK7*((LOG(AK7))/LOG(2)))) -> 0 | AN7: =N7 -> 111 | AO7: =COUNTIF(L40:L48,AN7) -> 0 | AP7: =AO7/(AQ4-AO10) -> 0 | AQ7: =IF(AP7=0,0,(AP7*((LOG(AP7))/LOG(2)))) -> 0 | AS7: =N7 -> 111 | AT7: =COUNTIF(L49:L56,AS7) -> 0 | AU7: =AT7/(AV4-AT10) -> 0 | AV7: =IF(AU7=0,0,(AU7*((LOG(AU7))/LOG(2)))) -> 0
A8: 22 | B8: 144 | C8: 23 | D8: 154 | E8: 23 | F8: 161 | K8: 0 | L8: 222 | N8: 112 | O8: =COUNTIF($L$7:$L$500,N8) -> 0 | P8: =O8/$Q$4 -> 0 | Q8: =IF(P8=0,0,(P8*((LOG(P8))/LOG(2)))) -> 0 | T8: =N8 -> 112 | U8: =COUNTIF(L7:L14,T8) -> 0 | V8: =U8/(W4-U10) -> 0 | W8: =IF(V8=0,0,(V8*((LOG(V8))/LOG(2)))) -> 0 | Y8: =N8 -> 112 | Z8: =COUNTIF(L15:L23,Y8) -> 0 | AA8: =Z8/(AB4-Z10) -> 0 | AB8: =IF(AA8=0,0,(AA8*((LOG(AA8))/LOG(2)))) -> 0 | AD8: =N8 -> 112 | AE8: =COUNTIF(L24:L31,AD8) -> 0 | AF8: =AE8/(AG4-AE10) -> 0 | AG8: =IF(AF8=0,0,(AF8*((LOG(AF8))/LOG(2)))) -> 0 | AI8: =N8 -> 112 | AJ8: =COUNTIF(L32:L39,AI8) -> 0 | AK8: =AJ8/(AL4-AJ10) -> 0 | AL8: =IF(AK8=0,0,(AK8*((LOG(AK8))/LOG(2)))) -> 0 | AN8: =N8 -> 112 | AO8: =COUNTIF(L40:L48,AN8) -> 0 | AP8: =AO8/(AQ4-AO10) -> 0 | AQ8: =IF(AP8=0,0,(AP8*((LOG(AP8))/LOG(2)))) -> 0 | AS8: =N8 -> 112 | AT8: =COUNTIF(L49:L56,AS8) -> 0 | AU8: =AT8/(AV4-AT10) -> 0 | AV8: =IF(AU8=0,0,(AU8*((LOG(AU8))/LOG(2)))) -> 0
A9: 11 | B9: 259 | C9: 21 | D9: 270 | E9: 21 | F9: 279 | K9: 0 | L9: 122 | N9: 121 | O9: =COUNTIF($L$7:$L$500,N9) -> 0 | P9: =O9/$Q$4 -> 0 | Q9: =IF(P9=0,0,(P9*((LOG(P9))/LOG(2)))) -> 0 | T9: =N9 -> 121 | U9: =COUNTIF(L7:L14,T9) -> 0 | V9: =U9/(W4-U10) -> 0 | W9: =IF(V9=0,0,(V9*((LOG(V9))/LOG(2)))) -> 0 | Y9: =N9 -> 121 | Z9: =COUNTIF(L15:L23,Y9) -> 0 | AA9: =Z9/(AB4-Z10) -> 0 | AB9: =IF(AA9=0,0,(AA9*((LOG(AA9))/LOG(2)))) -> 0 | AD9: =N9 -> 121 | AE9: =COUNTIF(L24:L31,AD9) -> 0 | AF9: =AE9/(AG4-AE10) -> 0 | AG9: =IF(AF9=0,0,(AF9*((LOG(AF9))/LOG(2)))) -> 0 | AI9: =N9 -> 121 | AJ9: =COUNTIF(L32:L39,AI9) -> 0 | AK9: =AJ9/(AL4-AJ10) -> 0 | AL9: =IF(AK9=0,0,(AK9*((LOG(AK9))/LOG(2)))) -> 0 | AN9: =N9 -> 121 | AO9: =COUNTIF(L40:L48,AN9) -> 0 | AP9: =AO9/(AQ4-AO10) -> 0 | AQ9: =IF(AP9=0,0,(AP9*((LOG(AP9))/LOG(2)))) -> 0 | AS9: =N9 -> 121 | AT9: =COUNTIF(L49:L56,AS9) -> 0 | AU9: =AT9/(AV4-AT10) -> 0 | AV9: =IF(AU9=0,0,(AU9*((LOG(AU9))/LOG(2)))) -> 0
A10: 11 | B10: 372 | C10: 21 | D10: 386 | E10: 21 | F10: 394 | K10: 0 | L10: 122 | N10: 122 | O10: =COUNTIF($L$7:$L$500,N10) -> 40 | P10: =O10/$Q$4 -> 0.8 | Q10: =IF(P10=0,0,(P10*((LOG(P10))/LOG(2)))) -> -0.2575424759 | T10: =N10 -> 122 | U10: =COUNTIF(L7:L14,T10) -> 5 | Y10: =N10 -> 122 | Z10: =COUNTIF(L15:L23,Y10) -> 7 | AD10: =N10 -> 122 | AE10: =COUNTIF(L24:L31,AD10) -> 7 | AI10: =N10 -> 122 | AJ10: =COUNTIF(L32:L39,AI10) -> 7 | AN10: =N10 -> 122 | AO10: =COUNTIF(L40:L48,AN10) -> 8 | AS10: =N10 -> 122 | AT10: =COUNTIF(L49:L56,AS10) -> 6
A11: 11 | B11: 482 | C11: 21 | D11: 495 | E11: 21 | F11: 503 | K11: 0 | L11: 122 | N11: 211 | O11: =COUNTIF($L$7:$L$500,N11) -> 0 | P11: =O11/$Q$4 -> 0 | Q11: =IF(P11=0,0,(P11*((LOG(P11))/LOG(2)))) -> 0 | T11: =N11 -> 211 | U11: =COUNTIF(L7:L14,T11) -> 0 | V11: =U11/(W4-U10) -> 0 | W11: =IF(V11=0,0,(V11*((LOG(V11))/LOG(2)))) -> 0 | Y11: =N11 -> 211 | Z11: =COUNTIF(L15:L23,Y11) -> 0 | AA11: =Z11/(AB4-Z10) -> 0 | AB11: =IF(AA11=0,0,(AA11*((LOG(AA11))/LOG(2)))) -> 0 | AD11: =N11 -> 211 | AE11: =COUNTIF(L24:L31,AD11) -> 0 | AF11: =AE11/(AG4-AE10) -> 0 | AG11: =IF(AF11=0,0,(AF11*((LOG(AF11))/LOG(2)))) -> 0 | AI11: =N11 -> 211 | AJ11: =COUNTIF(L32:L39,AI11) -> 0 | AK11: =AJ11/(AL4-AJ10) -> 0 | AL11: =IF(AK11=0,0,(AK11*((LOG(AK11))/LOG(2)))) -> 0 | AN11: =N11 -> 211 | AO11: =COUNTIF(L40:L48,AN11) -> 0 | AP11: =AO11/(AQ4-AO10) -> 0 | AQ11: =IF(AP11=0,0,(AP11*((LOG(AP11))/LOG(2)))) -> 0 | AS11: =N11 -> 211 | AT11: =COUNTIF(L49:L56,AS11) -> 0 | AU11: =AT11/(AV4-AT10) -> 0 | AV11: =IF(AU11=0,0,(AU11*((LOG(AU11))/LOG(2)))) -> 0
A12: 11 | B12: 591 | C12: 21 | D12: 602 | E12: 21 | F12: 610 | K12: 0 | L12: 122 | N12: 212 | O12: =COUNTIF($L$7:$L$500,N12) -> 0 | P12: =O12/$Q$4 -> 0 | Q12: =IF(P12=0,0,(P12*((LOG(P12))/LOG(2)))) -> 0 | T12: =N12 -> 212 | U12: =COUNTIF(L7:L14,T12) -> 0 | V12: =U12/(W4-U10) -> 0 | W12: =IF(V12=0,0,(V12*((LOG(V12))/LOG(2)))) -> 0 | Y12: =N12 -> 212 | Z12: =COUNTIF(L15:L23,Y12) -> 0 | AA12: =Z12/(AB4-Z10) -> 0 | AB12: =IF(AA12=0,0,(AA12*((LOG(AA12))/LOG(2)))) -> 0 | AD12: =N12 -> 212 | AE12: =COUNTIF(L24:L31,AD12) -> 0 | AF12: =AE12/(AG4-AE10) -> 0 | AG12: =IF(AF12=0,0,(AF12*((LOG(AF12))/LOG(2)))) -> 0 | AI12: =N12 -> 212 | AJ12: =COUNTIF(L32:L39,AI12) -> 0 | AK12: =AJ12/(AL4-AJ10) -> 0 | AL12: =IF(AK12=0,0,(AK12*((LOG(AK12))/LOG(2)))) -> 0 | AN12: =N12 -> 212 | AO12: =COUNTIF(L40:L48,AN12) -> 0 | AP12: =AO12/(AQ4-AO10) -> 0 | AQ12: =IF(AP12=0,0,(AP12*((LOG(AP12))/LOG(2)))) -> 0 | AS12: =N12 -> 212 | AT12: =COUNTIF(L49:L56,AS12) -> 0 | AU12: =AT12/(AV4-AT10) -> 0 | AV12: =IF(AU12=0,0,(AU12*((LOG(AU12))/LOG(2)))) -> 0
A13: 22 | B13: 708 | C13: 23 | D13: 716 | E13: 23 | F13: 723 | K13: 0 | L13: 222 | N13: 221 | O13: =COUNTIF($L$7:$L$500,N13) -> 0 | P13: =O13/$Q$4 -> 0 | Q13: =IF(P13=0,0,(P13*((LOG(P13))/LOG(2)))) -> 0 | T13: =N13 -> 221 | U13: =COUNTIF(L7:L14,T13) -> 0 | V13: =U13/(W4-U10) -> 0 | W13: =IF(V13=0,0,(V13*((LOG(V13))/LOG(2)))) -> 0 | Y13: =N13 -> 221 | Z13: =COUNTIF(L15:L23,Y13) -> 0 | AA13: =Z13/(AB4-Z10) -> 0 | AB13: =IF(AA13=0,0,(AA13*((LOG(AA13))/LOG(2)))) -> 0 | AD13: =N13 -> 221 | AE13: =COUNTIF(L24:L31,AD13) -> 0 | AF13: =AE13/(AG4-AE10) -> 0 | AG13: =IF(AF13=0,0,(AF13*((LOG(AF13))/LOG(2)))) -> 0 | AI13: =N13 -> 221 | AJ13: =COUNTIF(L32:L39,AI13) -> 0 | AK13: =AJ13/(AL4-AJ10) -> 0 | AL13: =IF(AK13=0,0,(AK13*((LOG(AK13))/LOG(2)))) -> 0 | AN13: =N13 -> 221 | AO13: =COUNTIF(L40:L48,AN13) -> 0 | AP13: =AO13/(AQ4-AO10) -> 0 | AQ13: =IF(AP13=0,0,(AP13*((LOG(AP13))/LOG(2)))) -> 0 | AS13: =N13 -> 221 | AT13: =COUNTIF(L49:L56,AS13) -> 0 | AU13: =AT13/(AV4-AT10) -> 0 | AV13: =IF(AU13=0,0,(AU13*((LOG(AU13))/LOG(2)))) -> 0
A14: 11 | B14: 820 | C14: 21 | D14: 831 | E14: 21 | F14: 839 | K14: 0 | L14: 122 | N14: 222 | O14: =COUNTIF($L$7:$L$500,N14) -> 10 | P14: =O14/$Q$4 -> 0.2 | Q14: =IF(P14=0,0,(P14*((LOG(P14))/LOG(2)))) -> -0.464385619 | T14: =N14 -> 222 | U14: =COUNTIF(L7:L14,T14) -> 3 | V14: =U14/(W4-U10) -> 1 | W14: =IF(V14=0,0,(V14*((LOG(V14))/LOG(2)))) -> 0 | Y14: =N14 -> 222 | Z14: =COUNTIF(L15:L23,Y14) -> 2 | AA14: =Z14/(AB4-Z10) -> 1 | AB14: =IF(AA14=0,0,(AA14*((LOG(AA14))/LOG(2)))) -> 0 | AD14: =N14 -> 222 | AE14: =COUNTIF(L24:L31,AD14) -> 1 | AF14: =AE14/(AG4-AE10) -> 1 | AG14: =IF(AF14=0,0,(AF14*((LOG(AF14))/LOG(2)))) -> 0 | AI14: =N14 -> 222 | AJ14: =COUNTIF(L32:L39,AI14) -> 1 | AK14: =AJ14/(AL4-AJ10) -> 1 | AL14: =IF(AK14=0,0,(AK14*((LOG(AK14))/LOG(2)))) -> 0 | AN14: =N14 -> 222 | AO14: =COUNTIF(L40:L48,AN14) -> 1 | AP14: =AO14/(AQ4-AO10) -> 1 | AQ14: =IF(AP14=0,0,(AP14*((LOG(AP14))/LOG(2)))) -> 0 | AS14: =N14 -> 222 | AT14: =COUNTIF(L49:L56,AS14) -> 2 | AU14: =AT14/(AV4-AT10) -> 1 | AV14: =IF(AU14=0,0,(AU14*((LOG(AU14))/LOG(2)))) -> 0
A15: 22 | B15: 945 | C15: 23 | D15: 952 | E15: 23 | F15: 963 | K15: 0 | L15: 222 | P15: =SUM(P7:P14) -> 1 | Q15: =-SUM(Q7:Q14) -> 0.7219280949 | V15: =SUM(V7:V14) -> 1 | W15: =-SUM(W7:W14) -> 0 | AA15: =SUM(AA7:AA14) -> 1 | AB15: =-SUM(AB7:AB14) -> 0 | AF15: =SUM(AF7:AF14) -> 1 | AG15: =-SUM(AG7:AG14) -> 0 | AK15: =SUM(AK7:AK14) -> 1 | AL15: =-SUM(AL7:AL14) -> 0 | AP15: =SUM(AP7:AP14) -> 1 | AQ15: =-SUM(AQ7:AQ14) -> 0 | AU15: =SUM(AU7:AU14) -> 1 | AV15: =-SUM(AV7:AV14) -> 0
A16: 11 | B16: 1062 | C16: 21 | D16: 1073 | E16: 21 | F16: 1081 | K16: 0 | L16: 122 | P16: U= | Q16: =Q15/(LOG(Q4)/LOG(2)) -> 0.1279139777 | V16: U1= | W16: =W15/(LOG(W4)/LOG(2)) -> 0 | AA16: U2= | AB16: =AB15/(LOG(AB4)/LOG(2)) -> 0 | AF16: U3= | AG16: =AG15/(LOG(AG4)/LOG(2)) -> 0 | AK16: U4= | AL16: =AL15/(LOG(AL4)/LOG(2)) -> 0 | AP16: U5= | AQ16: =AQ15/(LOG(AQ4)/LOG(2)) -> 0 | AU16: U6= | AV16: =AV15/(LOG(AV4)/LOG(2)) -> 0
A17: 11 | B17: 1172 | C17: 21 | D17: 1184 | E17: 21 | F17: 1196 | K17: 0 | L17: 122
A18: 11 | B18: 1288 | C18: 21 | D18: 1314 | E18: 21 | F18: 1322 | K18: 0 | L18: 122
A19: 11 | B19: 1410 | C19: 21 | D19: 1421 | E19: 21 | F19: 1428 | K19: 0 | L19: 122 | N19: Total Target Seq
A20: 11 | B20: 1518 | C20: 21 | D20: 1530 | E20: 21 | F20: 1537 | K20: 0 | L20: 122 | N20: =COUNTIF(L7:L56,G3) -> 40 | P20: 8 | Q20: 9 | R20: 8 | S20: 8 | T20: 9 | U20: 8
A21: 22 | B21: 1639 | C21: 23 | D21: 1646 | E21: 23 | F21: 1654 | K21: 0 | L21: 222 | P21: % of reinforcement given in 6 equal intervals based on number of trials
A22: 11 | B22: 1751 | C22: 21 | D22: 1763 | E22: 21 | F22: 1768 | K22: 0 | L22: 122 | P22: %_1 | Q22: %_2 | R22: %_3 | S22: %_4 | T22: %_5 | U22: %_6
A23: 11 | B23: 1857 | C23: 21 | D23: 1870 | E23: 21 | F23: 1877 | K23: 0 | L23: 122 | O23: target sequence | P23: =$G$3 -> 122 | Q23: =$G$3 -> 122 | R23: =$G$3 -> 122 | S23: =$G$3 -> 122 | T23: =$G$3 -> 122 | U23: =$G$3 -> 122
A24: 11 | B24: 1965 | C24: 21 | D24: 1978 | E24: 21 | F24: 1987 | K24: 0 | L24: 122 | O24: total reinforcement | P24: =U10 -> 5 | Q24: =Z10 -> 7 | R24: =AE10 -> 7 | S24: =AJ10 -> 7 | T24: =AO10 -> 8 | U24: =AT10 -> 6
A25: 11 | B25: 2077 | C25: 21 | D25: 2089 | E25: 21 | F25: 2100 | K25: 0 | L25: 122 | O25: % target
A26: 11 | B26: 2189 | C26: 21 | D26: 2200 | E26: 21 | F26: 2208 | K26: 0 | L26: 122 | O26: CCRF
A27: 11 | B27: 2296 | C27: 21 | D27: 2312 | E27: 21 | F27: 2319 | K27: 0 | L27: 122 | O27: % CCRf
A28: 11 | B28: 2409 | C28: 21 | D28: 2420 | E28: 21 | F28: 2424 | K28: 0 | L28: 122 | O28: average response rate | P28: =F14/P20 -> 104.875 | Q28: =(F23-F14)/Q20 -> 115.3333333 | R28: =(F31-F23)/R20 -> 111.875 | S28: =(F39-F31)/S20 -> 113.375 | T28: =(F48-F39)/T20 -> 108.2222222 | U28: =(F56-F48)/U20 -> 115.375
A29: 11 | B29: 2516 | C29: 21 | D29: 2528 | E29: 21 | F29: 2544 | K29: 0 | L29: 122
A30: 22 | B30: 2644 | C30: 23 | D30: 2649 | E30: 23 | F30: 2656 | K30: 0 | L30: 222
A31: 11 | B31: 2752 | C31: 21 | D31: 2763 | E31: 21 | F31: 2772 | K31: 0 | L31: 122
A32: 22 | B32: 2873 | C32: 23 | D32: 2882 | E32: 23 | F32: 2896 | K32: 0 | L32: 222
A33: 11 | B33: 2993 | C33: 21 | D33: 3002 | E33: 21 | F33: 3007 | K33: 0 | L33: 122
A34: 11 | B34: 3097 | C34: 21 | D34: 3108 | E34: 21 | F34: 3118 | K34: 0 | L34: 122
A35: 11 | B35: 3209 | C35: 21 | D35: 3218 | E35: 21 | F35: 3225 | K35: 0 | L35: 122
A36: 11 | B36: 3315 | C36: 21 | D36: 3324 | E36: 21 | F36: 3337 | K36: 0 | L36: 122
A37: 11 | B37: 3425 | C37: 21 | D37: 3437 | E37: 21 | F37: 3453 | K37: 0 | L37: 122
A38: 11 | B38: 3541 | C38: 21 | D38: 3560 | E38: 21 | F38: 3567 | K38: 0 | L38: 122
A39: 11 | B39: 3661 | C39: 21 | D39: 3672 | E39: 21 | F39: 3679 | K39: 0 | L39: 122
A40: 11 | B40: 3768 | C40: 21 | D40: 3779 | E40: 21 | F40: 3784 | K40: 0 | L40: 122
A41: 11 | B41: 3873 | C41: 21 | D41: 3884 | E41: 21 | F41: 3891 | K41: 0 | L41: 122
A42: 11 | B42: 3979 | C42: 21 | D42: 3990 | E42: 21 | F42: 3998 | K42: 0 | L42: 122
A43: 11 | B43: 4087 | C43: 21 | D43: 4098 | E43: 21 | F43: 4106 | K43: 0 | L43: 122
A44: 11 | B44: 4194 | C44: 21 | D44: 4205 | E44: 21 | F44: 4210 | K44: 0 | L44: 122
A45: 11 | B45: 4301 | C45: 21 | D45: 4312 | E45: 21 | F45: 4321 | K45: 0 | L45: 122
A46: 11 | B46: 4414 | C46: 21 | D46: 4427 | E46: 21 | F46: 4434 | K46: 0 | L46: 122
A47: 11 | B47: 4523 | C47: 21 | D47: 4533 | E47: 21 | F47: 4540 | K47: 0 | L47: 122
A48: 22 | B48: 4634 | C48: 23 | D48: 4645 | E48: 23 | F48: 4653 | K48: 0 | L48: 222
A49: 11 | B49: 4750 | C49: 21 | D49: 4758 | E49: 21 | F49: 4765 | K49: 0 | L49: 122
A50: 11 | B50: 4858 | C50: 21 | D50: 4870 | E50: 21 | F50: 4876 | K50: 0 | L50: 122
A51: 11 | B51: 4966 | C51: 21 | D51: 4984 | E51: 21 | F51: 4995 | K51: 0 | L51: 122
A52: 11 | B52: 5084 | C52: 21 | D52: 5095 | E52: 21 | F52: 5103 | K52: 0 | L52: 122
A53: 22 | B53: 5205 | C53: 23 | D53: 5212 | E53: 23 | F53: 5226 | K53: 0 | L53: 222
A54: 11 | B54: 5321 | C54: 21 | D54: 5332 | E54: 21 | F54: 5339 | K54: 0 | L54: 122
A55: 22 | B55: 5441 | C55: 23 | D55: 5448 | E55: 23 | F55: 5459 | K55: 0 | L55: 222
A56: 11 | B56: 5555 | C56: 21 | D56: 5569 | E56: 21 | F56: 5576 | K56: 1 | L56: 122

Sheet !M727A30.104
A1: Report for:!M727A30.104
A2: Date: | B2: <date>
A3: Hen: | B3: <hen> | F3: Correct Sequence | G3: =Start!J2 -> 122 | P3: Total Sequences in Data | Q3: =4994-COUNTBLANK(L7:L5000) -> 56 | V3: Total Sequences in Block Data | W3: =COUNTA(L7:L15) -> 9 | AA3: Total Sequences in Block Data | AB3: =COUNTA(L16:L25) -> 10 | AF3: Total Sequences in Block Data | AG3: =COUNTA(L26:L34) -> 9 | AK3: Total Sequences in Block Data | AL3: =COUNTA(L35:L43) -> 9 | AP3: Total Sequences in Block Data | AQ3: =COUNTA(L44:L53) -> 10 | AU3: Total Sequences in Block Data | AV3: =COUNTA(L54:L62) -> 9
P4: Total Sequences in Summary | Q4: =SUM(O7:O14) -> 56 | V4: Total Sequences in Block Summary | W4: =SUM(U7:U14) -> 9 | AA4: Total Sequences in Block Summary | AB4: =SUM(Z7:Z14) -> 10 | AF4: Total Sequences in Block Summary | AG4: =SUM(AE7:AE14) -> 9 | AK4: Total Sequences in Block Summary | AL4: =SUM(AJ7:AJ14) -> 9 | AP4: Total Sequences in Block Summary | AQ4: =SUM(AO7:AO14) -> 10 | AU4: Total Sequences in Block Summary | AV4: =SUM(AT7:AT14) -> 9
T5: Block 1 | Y5: Block 2 | AD5: Block 3 | AI5: Block 4 | AN5: Block 5 | AS5: Block 6
A6: Sequence Component 1 | B6: Time 1 | C6: Sequence Component 2 | D6: Time 2 | E6: Sequence Component 3 | F6: Time 3 | G6: Sequence Component 4 | H6: Time 4 | I6: Sequence Component 5 | J6: Time 5 | K6: Correct? 0=No 1=Yes | L6: Sequence | N6: Frequency | P6: Relative Frequency | Q6: Variability | T6: Frequency | V6: Relative Frequency | W6: Variability | Y6: Frequency | AA6: Relative Frequency | AB6: Variability | AD6: Frequency | AF6: Relative Frequency | AG6: Variability | AI6: Frequency | AK6: Relative Frequency | AL6: Variability | AN6: Frequency | AP6: Relative Frequency | AQ6: Variability | AS6: Frequency | AU6: Relative Frequency | AV6: Variability
A7: 11 | B7: 7 | C7: 21 | D7: 15 | E7: 21 | F7: 22 | K7: 0 | L7: 122 | N7: 111 | O7: =COUNTIF($L$7:$L$500,N7) -> 0 | P7: =O7/$Q$4 -> 0 | Q7: =IF(P7=0,0,(P7*((LOG(P7))/LOG(2)))) -> 0 | T7: =N7 -> 111 | U7: =COUNTIF(L7:L15,T7) -> 0 | V7: =U7/(W4-U10) -> 0 | W7: =IF(V7=0,0,(V7*((LOG(V7))/LOG(2)))) -> 0 | Y7: =N7 -> 111 | Z7: =COUNTIF(L16:L25,Y7) -> 0 | AA7: =Z7/(AB4-Z10) -> 0 | AB7: =IF(AA7=0,0,(AA7*((LOG(AA7))/LOG(2)))) -> 0 | AD7: =N7 -> 111 | AE7: =COUNTIF(L26:L34,AD7) -> 0 | AF7: =AE7/(AG4-AE10) -> 0 | AG7: =IF(AF7=0,0,(AF7*((LOG(AF7))/LOG(2)))) -> 0 | AI7: =N7 -> 111 | AJ7: =COUNTIF(L35:L43,AI7) -> 0 | AK7: =AJ7/(AL4-AJ10) -> 0 | AL7: =IF(AK7=0,0,(AK7*((LOG(AK7))/LOG(2)))) -> 0 | AN7: =N7 -> 111 | AO7: =COUNTIF(L44:L53,AN7) -> 0 | AP7: =AO7/(AQ4-AO10) -> 0 | AQ7: =IF(AP7=0,0,(AP7*((LOG(AP7))/LOG(2)))) -> 0 | AS7: =N7 -> 111 | AT7: =COUNTIF(L54:L62,AS7) -> 0 | AU7: =AT7/(AV4-AT10) -> 0 | AV7: =IF(AU7=0,0,(AU7*((LOG(AU7))/LOG(2)))) -> 0
A8: 11 | B8: 111 | C8: 21 | D8: 119 | E8: 21 | F8: 127 | K8: 0 | L8: 122 | N8: 112 | O8: =COUNTIF($L$7:$L$500,N8) -> 1 | P8: =O8/$Q$4 -> 0.01785714286 | Q8: =IF(P8=0,0,(P8*((LOG(P8))/LOG(2)))) -> -0.1037027665 | T8: =N8 -> 112 | U8: =COUNTIF(L7:L15,T8) -> 0 | V8: =U8/(W4-U10) -> 0 | W8: =IF(V8=0,0,(V8*((LOG(V8))/LOG(2)))) -> 0 | Y8: =N8 -> 112 | Z8: =COUNTIF(L16:L25,Y8) -> 0 | AA8: =Z8/(AB4-Z10) -> 0 | AB8: =IF(AA8=0,0,(AA8*((LOG(AA8))/LOG(2)))) -> 0 | AD8: =N8 -> 112 | AE8: =COUNTIF(L26:L34,AD8) -> 0 | AF8: =AE8/(AG4-AE10) -> 0 | AG8: =IF(AF8=0,0,(AF8*((LOG(AF8))/LOG(2)))) -> 0 | AI8: =N8 -> 112 | AJ8: =COUNTIF(L35:L43,AI8) -> 0 | AK8: =AJ8/(AL4-AJ10) -> 0 | AL8: =IF(AK8=0,0,(AK8*((LOG(AK8))/LOG(2)))) -> 0 | AN8: =N8 -> 112 | AO8: =COUNTIF(L44:L53,AN8) -> 1 | AP8: =AO8/(AQ4-AO10) -> 0.25 | AQ8: =IF(AP8=0,0,(AP8*((LOG(AP8))/LOG(2)))) -> -0.5 | AS8: =N8 -> 112 | AT8: =COUNTIF(L54:L62,AS8) -> 0 | AU8: =AT8/(AV4-AT10) -> 0 | AV8: =IF(AU8=0,0,(AU8*((LOG(AU8))/LOG(2)))) -> 0
A9: 22 | B9: 218 | C9: 23 | D9: 226 | E9: 23 | F9: 233 | K9: 0 | L9: 222 | N9: 121 | O9: =COUNTIF($L$7:$L$500,N9) -> 1 | P9: =O9/$Q$4 -> 0.01785714286 | Q9: =IF(P9=0,0,(P9*((LOG(P9))/LOG(2)))) -> -0.1037027665 | T9: =N9 -> 121 | U9: =COUNTIF(L7:L15,T9) -> 0 | V9: =U9/(W4-U10) -> 0 | W9: =IF(V9=0,0,(V9*((LOG(V9))/LOG(2)))) -> 0 | Y9: =N9 -> 121 | Z9: =COUNTIF(L16:L25,Y9) -> 0 | AA9: =Z9/(AB4-Z10) -> 0 | AB9: =IF(AA9=0,0,(AA9*((LOG(AA9))/LOG(2)))) -> 0 | AD9: =N9 -> 121 | AE9: =COUNTIF(L26:L34,AD9) -> 1 | AF9: =AE9/(AG4-AE10) -> 0.3333333333 | AG9: =IF(AF9=0,0,(AF9*((LOG(AF9))/LOG(2)))) -> -0.5283208336 | AI9: =N9 -> 121 | AJ9: =COUNTIF(L35:L43,AI9) -> 0 | AK9: =AJ9/(AL4-AJ10) -> 0 | AL9: =IF(AK9=0,0,(AK9*((LOG(AK9))/LOG(2)))) -> 0 | AN9: =N9 -> 121 | AO9: =COUNTIF(L44:L53,AN9) -> 0 | AP9: =AO9/(AQ4-AO10) -> 0 | AQ9: =IF(AP9=0,0,(AP9*((LOG(AP9))/LOG(2)))) -> 0 | AS9: =N9 -> 121 | AT9: =COUNTIF(L54:L62,AS9) -> 0 | AU9: =AT9/(AV4-AT10) -> 0 | AV9: =IF(AU9=0,0,(AU9*((LOG(AU9))/LOG(2)))) -> 0
A10: 11 | B10: 330 | C10: 21 | D10: 340 | E10: 21 | F10: 347 | K10: 0 | L10: 122 | N10: 122 | O10: =COUNTIF($L$7:$L$500,N10) -> 39 | P10: =O10/$Q$4 -> 0.6964285714 | Q10: =IF(P10=0,0,(P10*((LOG(P10))/LOG(2)))) -> -0.3635027754 | T10: =N10 -> 122 | U10: =COUNTIF(L7:L15,T10) -> 8 | Y10: =N10 -> 122 | Z10: =COUNTIF(L16:L25,Y10) -> 9 | AD10: =N10 -> 122 | AE10: =COUNTIF(L26:L34,AD10) -> 6 | AI10: =N10 -> 122 | AJ10: =COUNTIF(L35:L43,AI10) -> 5 | AN10: =N10 -> 122 | AO10: =COUNTIF(L44:L53,AN10) -> 6 | AS10: =N10 -> 122 | AT10: =COUNTIF(L54:L62,AS10) -> 5
A11: 11 | B11: 437 | C11: 21 | D11: 448 | E11: 21 | F11: 452 | K11: 0 | L11: 122 | N11: 211 | O11: =COUNTIF($L$7:$L$500,N11) -> 0 | P11: =O11/$Q$4 -> 0 | Q11: =IF(P11=0,0,(P11*((LOG(P11))/LOG(2)))) -> 0 | T11: =N11 -> 211 | U11: =COUNTIF(L7:L15,T11) -> 0 | V11: =U11/(W4-U10) -> 0 | W11: =IF(V11=0,0,(V11*((LOG(V11))/LOG(2)))) -> 0 | Y11: =N11 -> 211 | Z11: =COUNTIF(L16:L25,Y11) -> 0 | AA11: =Z11/(AB4-Z10) -> 0 | AB11: =IF(AA11=0,0,(AA11*((LOG(AA11))/LOG(2)))) -> 0 | AD11: =N11 -> 211 | AE11: =COUNTIF(L26:L34,AD11) -> 0 | AF11: =AE11/(AG4-AE10) -> 0 | AG11: =IF(AF11=0,0,(AF11*((LOG(AF11))/LOG(2)))) -> 0 | AI11: =N11 -> 211 | AJ11: =COUNTIF(L35:L43,AI11) -> 0 | AK11: =AJ11/(AL4-AJ10) -> 0 | AL11: =IF(AK11=0,0,(AK11*((LOG(AK11))/LOG(2)))) -> 0 | AN11: =N11 -> 211 | AO11: =COUNTIF(L44:L53,AN11) -> 0 | AP11: =AO11/(AQ4-AO10) -> 0 | AQ11: =IF(AP11=0,0,(AP11*((LOG(AP11))/LOG(2)))) -> 0 | AS11: =N11 -> 211 | AT11: =COUNTIF(L54:L62,AS11) -> 0 | AU11: =AT11/(AV4-AT10) -> 0 | AV11: =IF(AU11=0,0,(AU11*((LOG(AU11))/LOG(2)))) -> 0
A12: 11 | B12: 541 | C12: 21 | D12: 552 | E12: 21 | F12: 561 | K12: 0 | L12: 122 | N12: 212 | O12: =COUNTIF($L$7:$L$500,N12) -> 0 | P12: =O12/$Q$4 -> 0 | Q12: =IF(P12=0,0,(P12*((LOG(P12))/LOG(2)))) -> 0 | T12: =N12 -> 212 | U12: =COUNTIF(L7:L15,T12) -> 0 | V12: =U12/(W4-U10) -> 0 | W12: =IF(V12=0,0,(V12*((LOG(V12))/LOG(2)))) -> 0 | Y12: =N12 -> 212 | Z12: =COUNTIF(L16:L25,Y12) -> 0 | AA12: =Z12/(AB4-Z10) -> 0 | AB12: =IF(AA12=0,0,(AA12*((LOG(AA12))/LOG(2)))) -> 0 | AD12: =N12 -> 212 | AE12: =COUNTIF(L26:L34,AD12) -> 0 | AF12: =AE12/(AG4-AE10) -> 0 | AG12: =IF(AF12=0,0,(AF12*((LOG(AF12))/LOG(2)))) -> 0 | AI12: =N12 -> 212 | AJ12: =COUNTIF(L35:L43,AI12) -> 0 | AK12: =AJ12/(AL4-AJ10) -> 0 | AL12: =IF(AK12=0,0,(AK12*((LOG(AK12))/LOG(2)))) -> 0 | AN12: =N12 -> 212 | AO12: =COUNTIF(L44:L53,AN12) -> 0 | AP12: =AO12/(AQ4-AO10) -> 0 | AQ12: =IF(AP12=0,0,(AP12*((LOG(AP12))/LOG(2)))) -> 0 | AS12: =N12 -> 212 | AT12: =COUNTIF(L54:L62,AS12) -> 0 | AU12: =AT12/(AV4-AT10) -> 0 | AV12: =IF(AU12=0,0,(AU12*((LOG(AU12))/LOG(2)))) -> 0
A13: 11 | B13: 648 | C13: 21 | D13: 656 | E13: 21 | F13: 663 | K13: 0 | L13: 122 | N13: 221 | O13: =COUNTIF($L$7:$L$500,N13) -> 0 | P13: =O13/$Q$4 -> 0 | Q13: =IF(P13=0,0,(P13*((LOG(P13))/LOG(2)))) -> 0 | T13: =N13 -> 221 | U13: =COUNTIF(L7:L15,T13) -> 0 | V13: =U13/(W4-U10) -> 0 | W13: =IF(V13=0,0,(V13*((LOG(V13))/LOG(2)))) -> 0 | Y13: =N13 -> 221 | Z13: =COUNTIF(L16:L25,Y13) -> 0 | AA13: =Z13/(AB4-Z10) -> 0 | AB13: =IF(AA13=0,0,(AA13*((LOG(AA13))/LOG(2)))) -> 0 | AD13: =N13 -> 221 | AE13: =COUNTIF(L26:L34,AD13) -> 0 | AF13: =AE13/(AG4-AE10) -> 0 | AG13: =IF(AF13=0,0,(AF13*((LOG(AF13))/LOG(2)))) -> 0 | AI13: =N13 -> 221 | AJ13: =COUNTIF(L35:L43,AI13) -> 0 | AK13: =AJ13/(AL4-AJ10) -> 0 | AL13: =IF(AK13=0,0,(AK13*((LOG(AK13))/LOG(2)))) -> 0 | AN13: =N13 -> 221 | AO13: =COUNTIF(L44:L53,AN13) -> 0 | AP13: =AO13/(AQ4-AO10) -> 0 | AQ13: =IF(AP13=0,0,(AP13*((LOG(AP13))/LOG(2)))) -> 0 | AS13: =N13 -> 221 | AT13: =COUNTIF(L54:L62,AS13) -> 0 | AU13: =AT13/(AV4-AT10) -> 0 | AV13: =IF(AU13=0,0,(AU13*((LOG(AU13))/LOG(2)))) -> 0
A14: 11 | B14: 751 | C14: 21 | D14: 760 | E14: 21 | F14: 767 | K14: 0 | L14: 122 | N14: 222 | O14: =COUNTIF($L$7:$L$500,N14) -> 15 | P14: =O14/$Q$4 -> 0.2678571429 | Q14: =IF(P14=0,0,(P14*((LOG(P14))/LOG(2)))) -> -0.5090529446 | T14: =N14 -> 222 | U14: =COUNTIF(L7:L15,T14) -> 1 | V14: =U14/(W4-U10) -> 1 | W14: =IF(V14=0,0,(V14*((LOG(V14))/LOG(2)))) -> 0 | Y14: =N14 -> 222 | Z14: =COUNTIF(L16:L25,Y14) -> 1 | AA14: =Z14/(AB4-Z10) -> 1 | AB14: =IF(AA14=0,0,(AA14*((LOG(AA14))/LOG(2)))) -> 0 | AD14: =N14 -> 222 | AE14: =COUNTIF(L26:L34,AD14) -> 2 | AF14: =AE14/(AG4-AE10) -> 0.6666666667 | AG14: =IF(AF14=0,0,(AF14*((LOG(AF14))/LOG(2)))) -> -0.3899750005 | AI14: =N14 -> 222 | AJ14: =COUNTIF(L35:L43,AI14) -> 4 | AK14: =AJ14/(AL4-AJ10) -> 1 | AL14: =IF(AK14=0,0,(AK14*((LOG(AK14))/LOG(2)))) -> 0 | AN14: =N14 -> 222 | AO14: =COUNTIF(L44:L53,AN14) -> 3 | AP14: =AO14/(AQ4-AO10) -> 0.75 | AQ14: =IF(AP14=0,0,(AP14*((LOG(AP14))/LOG(2)))) -> -0.3112781245 | AS14: =N14 -> 222 | AT14: =COUNTIF(L54:L62,AS14) -> 4 | AU14: =AT14/(AV4-AT10) -> 1 | AV14: =IF(AU14=0,0,(AU14*((LOG(AU14))/LOG(2)))) -> 0
A15: 11 | B15: 860 | C15: 21 | D15: 872 | E15: 21 | F15: 880 | K15: 0 | L15: 122 | P15: =SUM(P7:P14) -> 1 | Q15: =-SUM(Q7:Q14) -> 1.079961253 | V15: =SUM(V7:V14) -> 1 | W15: =-SUM(W7:W14) -> 0 | AA15: =SUM(AA7:AA14) -> 1 | AB15: =-SUM(AB7:AB14) -> 0 | AF15: =SUM(AF7:AF14) -> 1 | AG15: =-SUM(AG7:AG14) -> 0.9182958341 | AK15: =SUM(AK7:AK14) -> 1 | AL15: =-SUM(AL7:AL14) -> 0 | AP15: =SUM(AP7:AP14) -> 1 | AQ15: =-SUM(AQ7:AQ14) -> 0.8112781245 | AU15: =SUM(AU7:AU14) -> 1 | AV15: =-SUM(AV7:AV14) -> 0
A16: 11 | B16: 969 | C16: 21 | D16: 979 | E16: 21 | F16: 986 | K16: 0 | L16: 122 | P16: U= | Q16: =Q15/(LOG(Q4)/LOG(2)) -> 0.1859643964 | V16: U1= | W16: =W15/(LOG(W4)/LOG(2)) -> 0 | AA16: U2= | AB16: =AB15/(LOG(AB4)/LOG(2)) -> 0 | AF16: U3= | AG16: =AG15/(LOG(AG4)/LOG(2)) -> 0.2896900821 | AK16: U4= | AL16: =AL15/(LOG(AL4)/LOG(2)) -> 0 | AP16: U5= | AQ16: =AQ15/(LOG(AQ4)/LOG(2)) -> 0.2442190503 | AU16: U6= | AV16: =AV15/(LOG(AV4)/LOG(2)) -> 0
A17: 11 | B17: 1075 | C17: 21 | D17: 1086 | E17: 21 | F17: 1094 | K17: 0 | L17: 122
A18: 11 | B18: 1181 | C18: 21 | D18: 1191 | E18: 21 | F18: 1199 | K18: 0 | L18: 122
A19: 11 | B19: 1287 | C19: 21 | D19: 1298 | E19: 21 | F19: 1306 | K19: 0 | L19: 122 | N19: Total Target Seq
A20: 11 | B20: 1395 | C20: 21 | D20: 1406 | E20: 21 | F20: 1413 | K20: 0 | L20: 122 | N20: =COUNTIF(L7:L62,G3) -> 39 | P20: 9 | Q20: 10 | R20: 9 | S20: 9 | T20: 10 | U20: 9
A21: 11 | B21: 1502 | C21: 21 | D21: 1510 | E21: 21 | F21: 1515 | K21: 0 | L21: 122 | P21: % of reinforcement given in 6 equal intervals based on number of trials
A22: 11 | B22: 1603 | C22: 21 | D22: 1614 | E22: 21 | F22: 1622 | K22: 0 | L22: 122 | P22: %_1 | Q22: %_2 | R22: %_3 | S22: %_4 | T22: %_5 | U22: %_6
A23: 11 | B23: 1711 | C23: 21 | D23: 1722 | E23: 21 | F23: 1730 | K23: 0 | L23: 122 | O23: target sequence | P23: =$G$3 -> 122 | Q23: =$G$3 -> 122 | R23: =$G$3 -> 122 | S23: =$G$3 -> 122 | T23: =$G$3 -> 122 | U23: =$G$3 -> 122
A24: 22 | B24: 1838 | C24: 23 | D24: 1842 | E24: 23 | F24: 1850 | K24: 0 | L24: 222 | O24: total reinforcement | P24: =U10 -> 8 | Q24: =Z10 -> 9 | R24: =AE10 -> 6 | S24: =AJ10 -> 5 | T24: =AO10 -> 6 | U24: =AT10 -> 5
A25: 11 | B25: 1947 | C25: 21 | D25: 1957 | E25: 21 | F25: 1964 | K25: 0 | L25: 122 | O25: % target
A26: 11 | B26: 2050 | C26: 21 | D26: 2059 | E26: 21 | F26: 2063 | K26: 0 | L26: 122 | O26: CCRF
A27: 22 | B27: 2161 | C27: 23 | D27: 2168 | E27: 23 | F27: 2175 | K27: 0 | L27: 222 | O27: % CCRf
A28: 11 | B28: 2272 | C28: 21 | D28: 2283 | E28: 21 | F28: 2291 | K28: 0 | L28: 122 | O28: average response rate | P28: =F15/P20 -> 97.77777778 | Q28: =(F25-F15)/Q20 -> 108.4 | R28: =(F34-F25)/R20 -> 119.1111111 | S28: =(F43-F34)/S20 -> 112.1111111 | T28: =(F53-F43)/T20 -> 114.8 | U28: =(F62-F53)/U20 -> 113.3333333
A29: 11 | B29: 2379 | C29: 21 | D29: 2390 | E29: 12 | F29: 2450 | K29: 0 | L29: 121
A30: 11 | B30: 2543 | C30: 21 | D30: 2564 | E30: 21 | F30: 2585 | K30: 0 | L30: 122
A31: 22 | B31: 2690 | C31: 23 | D31: 2699 | E31: 23 | F31: 2711 | K31: 0 | L31: 222
A32: 11 | B32: 2807 | C32: 21 | D32: 2816 | E32: 21 | F32: 2821 | K32: 0 | L32: 122
A33: 11 | B33: 2910 | C33: 21 | D33: 2922 | E33: 21 | F33: 2929 | K33: 0 | L33: 122
A34: 11 | B34: 3017 | C34: 21 | D34: 3028 | E34: 21 | F34: 3036 | K34: 0 | L34: 122
A35: 22 | B35: 3132 | C35: 23 | D35: 3139 | E35: 23 | F35: 3147 | K35: 0 | L35: 222
A36: 11 | B36: 3243 | C36: 21 | D36: 3253 | E36: 21 | F36: 3260 | K36: 0 | L36: 122
A37: 22 | B37: 3356 | C37: 23 | D37: 3362 | E37: 23 | F37: 3370 | K37: 0 | L37: 222
A38: 11 | B38: 3466 | C38: 21 | D38: 3475 | E38: 21 | F38: 3483 | K38: 0 | L38: 122
A39: 11 | B39: 3570 | C39: 21 | D39: 3583 | E39: 21 | F39: 3590 | K39: 0 | L39: 122
A40: 22 | B40: 3693 | C40: 23 | D40: 3700 | E40: 23 | F40: 3710 | K40: 0 | L40: 222
A41: 11 | B41: 3809 | C41: 21 | D41: 3817 | E41: 21 | F41: 3825 | K41: 0 | L41: 122
A42: 11 | B42: 3913 | C42: 21 | D42: 3924 | E42: 21 | F42: 3932 | K42: 0 | L42: 122
A43: 22 | B43: 4029 | C43: 23 | D43: 4036 | E43: 23 | F43: 4045 | K43: 0 | L43: 222
A44: 22 | B44: 4156 | C44: 23 | D44: 4164 | E44: 23 | F44: 4180 | K44: 0 | L44: 222
A45: 11 | B45: 4276 | C45: 21 | D45: 4284 | E45: 21 | F45: 4288 | K45: 0 | L45: 122
A46: 11 | B46: 4379 | C46: 12 | D46: 4383 | E46: 23 | F46: 4393 | K46: 0 | L46: 112
A47: 11 | B47: 4489 | C47: 21 | D47: 4501 | E47: 21 | F47: 4509 | K47: 0 | L47: 122
A48: 22 | B48: 4614 | C48: 23 | D48: 4622 | E48: 23 | F48: 4629 | K48: 0 | L48: 222
A49: 11 | B49: 4725 | C49: 21 | D49: 4736 | E49: 21 | F49: 4744 | K49: 0 | L49: 122
A50: 11 | B50: 4832 | C50: 21 | D50: 4843 | E50: 21 | F50: 4855 | K50: 0 | L50: 122
A51: 11 | B51: 4941 | C51: 21 | D51: 4952 | E51: 21 | F51: 4958 | K51: 0 | L51: 122
A52: 22 | B52: 5055 | C52: 23 | D52: 5062 | E52: 23 | F52: 5079 | K52: 0 | L52: 222
A53: 11 | B53: 5174 | C53: 21 | D53: 5185 | E53: 21 | F53: 5193 | K53: 0 | L53: 122
A54: 22 | B54: 5293 | C54: 23 | D54: 5301 | E54: 23 | F54: 5309 | K54: 0 | L54: 222
A55: 22 | B55: 5413 | C55: 23 | D55: 5420 | E55: 23 | F55: 5429 | K55: 0 | L55: 222
A56: 11 | B56: 5525 | C56: 21 | D56: 5533 | E56: 21 | F56: 5544 | K56: 0 | L56: 122
A57: 22 | B57: 5647 | C57: 23 | D57: 5654 | E57: 23 | F57: 5663 | K57: 0 | L57: 222
A58: 22 | B58: 5766 | C58: 23 | D58: 5770 | E58: 23 | F58: 5778 | K58: 0 | L58: 222
A59: 11 | B59: 5880 | C59: 21 | D59: 5892 | E59: 21 | F59: 5899 | K59: 0 | L59: 122
A60: 11 | B60: 5986 | C60: 21 | D60: 5996 | E60: 21 | F60: 6003 | K60: 0 | L60: 122
A61: 11 | B61: 6088 | C61: 21 | D61: 6100 | E61: 21 | F61: 6104 | K61: 0 | L61: 122
A62: 11 | B62: 6196 | C62: 21 | D62: 6206 | E62: 21 | F62: 6213 | K62: 1 | L62: 122

Sheet !M728730.104
A1: Report for:!M728730.104
A2: Date: | B2: <date>
A3: Hen: | B3: <hen> | F3: Correct Sequence | G3: =Start!J2 -> 122 | P3: Total Sequences in Data | Q3: =4994-COUNTBLANK(L7:L5000) -> 58 | V3: Total Sequences in Block Data | W3: =COUNTA(L7:L16) -> 10 | AA3: Total Sequences in Block Data | AB3: =COUNTA(L17:L25) -> 9 | AF3: Total Sequences in Block Data | AG3: =COUNTA(L26:L35) -> 10 | AK3: Total Sequences in Block Data | AL3: =COUNTA(L36:L45) -> 10 | AP3: Total Sequences in Block Data | AQ3: =COUNTA(L46:L54) -> 9 | AU3: Total Sequences in Block Data | AV3: =COUNTA(L55:L64) -> 10
P4: Total Sequences in Summary | Q4: =SUM(O7:O14) -> 58 | V4: Total Sequences in Block Summary | W4: =SUM(U7:U14) -> 10 | AA4: Total Sequences in Block Summary | AB4: =SUM(Z7:Z14) -> 9 | AF4: Total Sequences in Block Summary | AG4: =SUM(AE7:AE14) -> 10 | AK4: Total Sequences in Block Summary | AL4: =SUM(AJ7:AJ14) -> 10 | AP4: Total Sequences in Block Summary | AQ4: =SUM(AO7:AO14) -> 9 | AU4: Total Sequences in Block Summary | AV4: =SUM(AT7:AT14) -> 10
T5: Block 1 | Y5: Block 2 | AD5: Block 3 | AI5: Block 4 | AN5: Block 5 | AS5: Block 6
A6: Sequence Component 1 | B6: Time 1 | C6: Sequence Component 2 | D6: Time 2 | E6: Sequence Component 3 | F6: Time 3 | G6: Sequence Component 4 | H6: Time 4 | I6: Sequence Component 5 | J6: Time 5 | K6: Correct? 0=No 1=Yes | L6: Sequence | N6: Frequency | P6: Relative Frequency | Q6: Variability | T6: Frequency | V6: Relative Frequency | W6: Variability | Y6: Frequency | AA6: Relative Frequency | AB6: Variability | AD6: Frequency | AF6: Relative Frequency | AG6: Variability | AI6: Frequency | AK6: Relative Frequency | AL6: Variability | AN6: Frequency | AP6: Relative Frequency | AQ6: Variability | AS6: Frequency | AU6: Relative Frequency | AV6: Variability
A7: 22 | B7: 15 | C7: 14 | D7: 28 | E7: 23 | F7: 39 | K7: 0 | L7: 212 | N7: 111 | O7: =COUNTIF($L$7:$L$500,N7) -> 1 | P7: =O7/$Q$4 -> 0.01724137931 | Q7: =IF(P7=0,0,(P7*((LOG(P7))/LOG(2)))) -> -0.1009996723 | T7: =N7 -> 111 | U7: =COUNTIF(L7:L16,T7) -> 0 | V7: =U7/(W4-U10) -> 0 | W7: =IF(V7=0,0,(V7*((LOG(V7))/LOG(2)))) -> 0 | Y7: =N7 -> 111 | Z7: =COUNTIF(L17:L25,Y7) -> 0 | AA7: =Z7/(AB4-Z10) -> 0 | AB7: =IF(AA7=0,0,(AA7*((LOG(AA7))/LOG(2)))) -> 0 | AD7: =N7 -> 111 | AE7: =COUNTIF(L26:L35,AD7) -> 1 | AF7: =AE7/(AG4-AE10) -> 1 | AG7: =IF(AF7=0,0,(AF7*((LOG(AF7))/LOG(2)))) -> 0 | AI7: =N7 -> 111 | AJ7: =COUNTIF(L36:L45,AI7) -> 0 | AK7: =AJ7/(AL4-AJ10) -> 0 | AL7: =IF(AK7=0,0,(AK7*((LOG(AK7))/LOG(2)))) -> 0 | AN7: =N7 -> 111 | AO7: =COUNTIF(L46:L54,AN7) -> 0 | AP7: =AO7/(AQ4-AO10) -> 0 | AQ7: =IF(AP7=0,0,(AP7*((LOG(AP7))/LOG(2)))) -> 0 | AS7: =N7 -> 111 | AT7: =COUNTIF(L55:L64,AS7) -> 0 | AU7: =AT7/(AV4-AT10) -> 0 | AV7: =IF(AU7=0,0,(AU7*((LOG(AU7))/LOG(2)))) -> 0
A8: 11 | B8: 140 | C8: 21 | D8: 154 | E8: 21 | F8: 163 | K8: 0 | L8: 122 | N8: 112 | O8: =COUNTIF($L$7:$L$500,N8) -> 5 | P8: =O8/$Q$4 -> 0.08620689655 | Q8: =IF(P8=0,0,(P8*((LOG(P8))/LOG(2)))) -> -0.3048321466 | T8: =N8 -> 112 | U8: =COUNTIF(L7:L16,T8) -> 0 | V8: =U8/(W4-U10) -> 0 | W8: =IF(V8=0,0,(V8*((LOG(V8))/LOG(2)))) -> 0 | Y8: =N8 -> 112 | Z8: =COUNTIF(L17:L25,Y8) -> 1 | AA8: =Z8/(AB4-Z10) -> 0.25 | AB8: =IF(AA8=0,0,(AA8*((LOG(AA8))/LOG(2)))) -> -0.5 | AD8: =N8 -> 112 | AE8: =COUNTIF(L26:L35,AD8) -> 0 | AF8: =AE8/(AG4-AE10) -> 0 | AG8: =IF(AF8=0,0,(AF8*((LOG(AF8))/LOG(2)))) -> 0 | AI8: =N8 -> 112 | AJ8: =COUNTIF(L36:L45,AI8) -> 1 | AK8: =AJ8/(AL4-AJ10) -> 0.2 | AL8: =IF(AK8=0,0,(AK8*((LOG(AK8))/LOG(2)))) -> -0.464385619 | AN8: =N8 -> 112 | AO8: =COUNTIF(L46:L54,AN8) -> 2 | AP8: =AO8/(AQ4-AO10) -> 0.4 | AQ8: =IF(AP8=0,0,(AP8*((LOG(AP8))/LOG(2)))) -> -0.528771238 | AS8: =N8 -> 112 | AT8: =COUNTIF(L55:L64,AS8) -> 1 | AU8: =AT8/(AV4-AT10) -> 0.3333333333 | AV8: =IF(AU8=0,0,(AU8*((LOG(AU8))/LOG(2)))) -> -0.5283208336
A9: 11 | B9: 255 | C9: 21 | D9: 267 | E9: 21 | F9: 276 | K9: 0 | L9: 122 | N9: 121 | O9: =COUNTIF($L$7:$L$500,N9) -> 0 | P9: =O9/$Q$4 -> 0 | Q9: =IF(P9=0,0,(P9*((LOG(P9))/LOG(2)))) -> 0 | T9: =N9 -> 121 | U9: =COUNTIF(L7:L16,T9) -> 0 | V9: =U9/(W4-U10) -> 0 | W9: =IF(V9=0,0,(V9*((LOG(V9))/LOG(2)))) -> 0 | Y9: =N9 -> 121 | Z9: =COUNTIF(L17:L25,Y9) -> 0 | AA9: =Z9/(AB4-Z10) -> 0 | AB9: =IF(AA9=0,0,(AA9*((LOG(AA9))/LOG(2)))) -> 0 | AD9: =N9 -> 121 | AE9: =COUNTIF(L26:L35,AD9) -> 0 | AF9: =AE9/(AG4-AE10) -> 0 | AG9: =IF(AF9=0,0,(AF9*((LOG(AF9))/LOG(2)))) -> 0 | AI9: =N9 -> 121 | AJ9: =COUNTIF(L36:L45,AI9) -> 0 | AK9: =AJ9/(AL4-AJ10) -> 0 | AL9: =IF(AK9=0,0,(AK9*((LOG(AK9))/LOG(2)))) -> 0 | AN9: =N9 -> 121 | AO9: =COUNTIF(L46:L54,AN9) -> 0 | AP9: =AO9/(AQ4-AO10) -> 0 | AQ9: =IF(AP9=0,0,(AP9*((LOG(AP9))/LOG(2)))) -> 0 | AS9: =N9 -> 121 | AT9: =COUNTIF(L55:L64,AS9) -> 0 | AU9: =AT9/(AV4-AT10) -> 0 | AV9: =IF(AU9=0,0,(AU9*((LOG(AU9))/LOG(2)))) -> 0
A10: 11 | B10: 371 | C10: 21 | D10: 389 | E10: 21 | F10: 395 | K10: 0 | L10: 122 | N10: 122 | O10: =COUNTIF($L$7:$L$500,N10) -> 39 | P10: =O10/$Q$4 -> 0.6724137931 | Q10: =IF(P10=0,0,(P10*((LOG(P10))/LOG(2)))) -> -0.3850098668 | T10: =N10 -> 122 | U10: =COUNTIF(L7:L16,T10) -> 9 | Y10: =N10 -> 122 | Z10: =COUNTIF(L17:L25,Y10) -> 5 | AD10: =N10 -> 122 | AE10: =COUNTIF(L26:L35,AD10) -> 9 | AI10: =N10 -> 122 | AJ10: =COUNTIF(L36:L45,AI10) -> 5 | AN10: =N10 -> 122 | AO10: =COUNTIF(L46:L54,AN10) -> 4 | AS10: =N10 -> 122 | AT10: =COUNTIF(L55:L64,AS10) -> 7
A11: 11 | B11: 485 | C11: 21 | D11: 494 | E11: 21 | F11: 500 | K11: 0 | L11: 122 | N11: 211 | O11: =COUNTIF($L$7:$L$500,N11) -> 0 | P11: =O11/$Q$4 -> 0 | Q11: =IF(P11=0,0,(P11*((LOG(P11))/LOG(2)))) -> 0 | T11: =N11 -> 211 | U11: =COUNTIF(L7:L16,T11) -> 0 | V11: =U11/(W4-U10) -> 0 | W11: =IF(V11=0,0,(V11*((LOG(V11))/LOG(2)))) -> 0 | Y11: =N11 -> 211 | Z11: =COUNTIF(L17:L25,Y11) -> 0 | AA11: =Z11/(AB4-Z10) -> 0 | AB11: =IF(AA11=0,0,(AA11*((LOG(AA11))/LOG(2)))) -> 0 | AD11: =N11 -> 211 | AE11: =COUNTIF(L26:L35,AD11) -> 0 | AF11: =AE11/(AG4-AE10) -> 0 | AG11: =IF(AF11=0,0,(AF11*((LOG(AF11))/LOG(2)))) -> 0 | AI11: =N11 -> 211 | AJ11: =COUNTIF(L36:L45,AI11) -> 0 | AK11: =AJ11/(AL4-AJ10) -> 0 | AL11: =IF(AK11=0,0,(AK11*((LOG(AK11))/LOG(2)))) -> 0 | AN11: =N11 -> 211 | AO11: =COUNTIF(L46:L54,AN11) -> 0 | AP11: =AO11/(AQ4-AO10) -> 0 | AQ11: =IF(AP11=0,0,(AP11*((LOG(AP11))/LOG(2)))) -> 0 | AS11: =N11 -> 211 | AT11: =COUNTIF(L55:L64,AS11) -> 0 | AU11: =AT11/(AV4-AT10) -> 0 | AV11: =IF(AU11=0,0,(AU11*((LOG(AU11))/LOG(2)))) -> 0
A12: 11 | B12: 589 | C12: 21 | D12: 601 | E12: 21 | F12: 609 | K12: 0 | L12: 122 | N12: 212 | O12: =COUNTIF($L$7:$L$500,N12) -> 1 | P12: =O12/$Q$4 -> 0.01724137931 | Q12: =IF(P12=0,0,(P12*((LOG(P12))/LOG(2)))) -> -0.1009996723 | T12: =N12 -> 212 | U12: =COUNTIF(L7:L16,T12) -> 1 | V12: =U12/(W4-U10) -> 1 | W12: =IF(V12=0,0,(V12*((LOG(V12))/LOG(2)))) -> 0 | Y12: =N12 -> 212 | Z12: =COUNTIF(L17:L25,Y12) -> 0 | AA12: =Z12/(AB4-Z10) -> 0 | AB12: =IF(AA12=0,0,(AA12*((LOG(AA12))/LOG(2)))) -> 0 | AD12: =N12 -> 212 | AE12: =COUNTIF(L26:L35,AD12) -> 0 | AF12: =AE12/(AG4-AE10) -> 0 | AG12: =IF(AF12=0,0,(AF12*((LOG(AF12))/LOG(2)))) -> 0 | AI12: =N12 -> 212 | AJ12: =COUNTIF(L36:L45,AI12) -> 0 | AK12: =AJ12/(AL4-AJ10) -> 0 | AL12: =IF(AK12=0,0,(AK12*((LOG(AK12))/LOG(2)))) -> 0 | AN12: =N12 -> 212 | AO12: =COUNTIF(L46:L54,AN12) -> 0 | AP12: =AO12/(AQ4-AO10) -> 0 | AQ12: =IF(AP12=0,0,(AP12*((LOG(AP12))/LOG(2)))) -> 0 | AS12: =N12 -> 212 | AT12: =COUNTIF(L55:L64,AS12) -> 0 | AU12: =AT12/(AV4-AT10) -> 0 | AV12: =IF(AU12=0,0,(AU12*((LOG(AU12))/LOG(2)))) -> 0
A13: 11 | B13: 702 | C13: 21 | D13: 714 | E13: 21 | F13: 722 | K13: 0 | L13: 122 | N13: 221 | O13: =COUNTIF($L$7:$L$500,N13) -> 0 | P13: =O13/$Q$4 -> 0 | Q13: =IF(P13=0,0,(P13*((LOG(P13))/LOG(2)))) -> 0 | T13: =N13 -> 221 | U13: =COUNTIF(L7:L16,T13) -> 0 | V13: =U13/(W4-U10) -> 0 | W13: =IF(V13=0,0,(V13*((LOG(V13))/LOG(2)))) -> 0 | Y13: =N13 -> 221 | Z13: =COUNTIF(L17:L25,Y13) -> 0 | AA13: =Z13/(AB4-Z10) -> 0 | AB13: =IF(AA13=0,0,(AA13*((LOG(AA13))/LOG(2)))) -> 0 | AD13: =N13 -> 221 | AE13: =COUNTIF(L26:L35,AD13) -> 0 | AF13: =AE13/(AG4-AE10) -> 0 | AG13: =IF(AF13=0,0,(AF13*((LOG(AF13))/LOG(2)))) -> 0 | AI13: =N13 -> 221 | AJ13: =COUNTIF(L36:L45,AI13) -> 0 | AK13: =AJ13/(AL4-AJ10) -> 0 | AL13: =IF(AK13=0,0,(AK13*((LOG(AK13))/LOG(2)))) -> 0 | AN13: =N13 -> 221 | AO13: =COUNTIF(L46:L54,AN13) -> 0 | AP13: =AO13/(AQ4-AO10) -> 0 | AQ13: =IF(AP13=0,0,(AP13*((LOG(AP13))/LOG(2)))) -> 0 | AS13: =N13 -> 221 | AT13: =COUNTIF(L55:L64,AS13) -> 0 | AU13: =AT13/(AV4-AT10) -> 0 | AV13: =IF(AU13=0,0,(AU13*((LOG(AU13))/LOG(2)))) -> 0
A14: 11 | B14: 816 | C14: 21 | D14: 827 | E14: 21 | F14: 835 | K14: 0 | L14: 122 | N14: 222 | O14: =COUNTIF($L$7:$L$500,N14) -> 12 | P14: =O14/$Q$4 -> 0.2068965517 | Q14: =IF(P14=0,0,(P14*((LOG(P14))/LOG(2)))) -> -0.4702796885 | T14: =N14 -> 222 | U14: =COUNTIF(L7:L16,T14) -> 0 | V14: =U14/(W4-U10) -> 0 | W14: =IF(V14=0,0,(V14*((LOG(V14))/LOG(2)))) -> 0 | Y14: =N14 -> 222 | Z14: =COUNTIF(L17:L25,Y14) -> 3 | AA14: =Z14/(AB4-Z10) -> 0.75 | AB14: =IF(AA14=0,0,(AA14*((LOG(AA14))/LOG(2)))) -> -0.3112781245 | AD14: =N14 -> 222 | AE14: =COUNTIF(L26:L35,AD14) -> 0 | AF14: =AE14/(AG4-AE10) -> 0 | AG14: =IF(AF14=0,0,(AF14*((LOG(AF14))/LOG(2)))) -> 0 | AI14: =N14 -> 222 | AJ14: =COUNTIF(L36:L45,AI14) -> 4 | AK14: =AJ14/(AL4-AJ10) -> 0.8 | AL14: =IF(AK14=0,0,(AK14*((LOG(AK14))/LOG(2)))) -> -0.2575424759 | AN14: =N14 -> 222 | AO14: =COUNTIF(L46:L54,AN14) -> 3 | AP14: =AO14/(AQ4-AO10) -> 0.6 | AQ14: =IF(AP14=0,0,(AP14*((LOG(AP14))/LOG(2)))) -> -0.4421793565 | AS14: =N14 -> 222 | AT14: =COUNTIF(L55:L64,AS14) -> 2 | AU14: =AT14/(AV4-AT10) -> 0.6666666667 | AV14: =IF(AU14=0,0,(AU14*((LOG(AU14))/LOG(2)))) -> -0.3899750005
A15: 11 | B15: 925 | C15: 21 | D15: 937 | E15: 21 | F15: 945 | K15: 0 | L15: 122 | P15: =SUM(P7:P14) -> 1 | Q15: =-SUM(Q7:Q14) -> 1.362121047 | V15: =SUM(V7:V14) -> 1 | W15: =-SUM(W7:W14) -> 0 | AA15: =SUM(AA7:AA14) -> 1 | AB15: =-SUM(AB7:AB14) -> 0.8112781245 | AF15: =SUM(AF7:AF14) -> 1 | AG15: =-SUM(AG7:AG14) -> 0 | AK15: =SUM(AK7:AK14) -> 1 | AL15: =-SUM(AL7:AL14) -> 0.7219280949 | AP15: =SUM(AP7:AP14) -> 1 | AQ15: =-SUM(AQ7:AQ14) -> 0.9709505945 | AU15: =SUM(AU7:AU14) -> 1 | AV15: =-SUM(AV7:AV14) -> 0.9182958341
A16: 11 | B16: 1034 | C16: 21 | D16: 1046 | E16: 21 | F16: 1053 | K16: 0 | L16: 122 | P16: U= | Q16: =Q15/(LOG(Q4)/LOG(2)) -> 0.2325239784 | V16: U1= | W16: =W15/(LOG(W4)/LOG(2)) -> 0 | AA16: U2= | AB16: =AB15/(LOG(AB4)/LOG(2)) -> 0.2559297536 | AF16: U3= | AG16: =AG15/(LOG(AG4)/LOG(2)) -> 0 | AK16: U4= | AL16: =AL15/(LOG(AL4)/LOG(2)) -> 0.2173220113 | AP16: U5= | AQ16: =AQ15/(LOG(AQ4)/LOG(2)) -> 0.3063008096 | AU16: U6= | AV16: =AV15/(LOG(AV4)/LOG(2)) -> 0.2764345909
A17: 11 | B17: 1147 | C17: 21 | D17: 1160 | E17: 21 | F17: 1167 | K17: 0 | L17: 122
A18: 11 | B18: 1257 | C18: 21 | D18: 1269 | E18: 21 | F18: 1274 | K18: 0 | L18: 122
A19: 11 | B19: 1366 | C19: 21 | D19: 1377 | E19: 21 | F19: 1386 | K19: 0 | L19: 122 | N19: Total Target Seq
A20: 22 | B20: 1489 | C20: 23 | D20: 1497 | E20: 23 | F20: 1515 | K20: 0 | L20: 222 | N20: =COUNTIF(L7:L64,G3) -> 39 | P20: 10 | Q20: 9 | R20: 10 | S20: 10 | T20: 9 | U20: 10
A21: 11 | B21: 1605 | C21: 21 | D21: 1618 | E21: 21 | F21: 1624 | K21: 0 | L21: 122 | P21: % of reinforcement given in 6 equal intervals based on number of trials
A22: 22 | B22: 1729 | C22: 23 | D22: 1737 | E22: 23 | F22: 1745 | K22: 0 | L22: 222 | P22: %_1 | Q22: %_2 | R22: %_3 | S22: %_4 | T22: %_5 | U22: %_6
A23: 22 | B23: 1853 | C23: 23 | D23: 1860 | E23: 23 | F23: 1876 | K23: 0 | L23: 222 | O23: target sequence | P23: =$G$3 -> 122 | Q23: =$G$3 -> 122 | R23: =$G$3 -> 122 | S23: =$G$3 -> 122 | T23: =$G$3 -> 122 | U23: =$G$3 -> 122
A24: 11 | B24: 1978 | C24: 21 | D24: 1990 | E24: 21 | F24: 1999 | K24: 0 | L24: 122 | O24: total reinforcement | P24: =U10 -> 9 | Q24: =Z10 -> 5 | R24: =AE10 -> 9 | S24: =AJ10 -> 5 | T24: =AO10 -> 4 | U24: =AT10 -> 7
A25: 11 | B25: 2095 | C25: 12 | D25: 2105 | E25: 23 | F25: 2118 | K25: 0 | L25: 112 | O25: % target
A26: 11 | B26: 2216 | C26: 21 | D26: 2234 | E26: 21 | F26: 2241 | K26: 0 | L26: 122 | O26: CCRF
A27: 11 | B27: 2331 | C27: 21 | D27: 2343 | E27: 21 | F27: 2351 | K27: 0 | L27: 122 | O27: % CCRf
A28: 11 | B28: 2440 | C28: 21 | D28: 2452 | E28: 21 | F28: 2457 | K28: 0 | L28: 122 | O28: average response rate | P28: =F16/P20 -> 105.3 | Q28: =(F25-F16)/Q20 -> 118.3333333 | R28: =(F35-F25)/R20 -> 111.5 | S28: =(F45-F35)/S20 -> 118.8 | T28: =(F54-F45)/T20 -> 119.8888889 | U28: =(F64-F54)/U20 -> 114.2
A29: 11 | B29: 2552 | C29: 12 | D29: 2561 | E29: 14 | F29: 2573 | K29: 0 | L29: 111
A30: 11 | B30: 2669 | C30: 21 | D30: 2680 | E30: 21 | F30: 2687 | K30: 0 | L30: 122
A31: 11 | B31: 2775 | C31: 21 | D31: 2788 | E31: 21 | F31: 2796 | K31: 0 | L31: 122
A32: 11 | B32: 2883 | C32: 21 | D32: 2893 | E32: 21 | F32: 2900 | K32: 0 | L32: 122
A33: 11 | B33: 2989 | C33: 21 | D33: 3003 | E33: 21 | F33: 3012 | K33: 0 | L33: 122
A34: 11 | B34: 3100 | C34: 21 | D34: 3111 | E34: 21 | F34: 3127 | K34: 0 | L34: 122
A35: 11 | B35: 3213 | C35: 21 | D35: 3225 | E35: 21 | F35: 3233 | K35: 0 | L35: 122
A36: 22 | B36: 3334 | C36: 23 | D36: 3342 | E36: 23 | F36: 3353 | K36: 0 | L36: 222
A37: 22 | B37: 3463 | C37: 23 | D37: 3470 | E37: 23 | F37: 3484 | K37: 0 | L37: 222
A38: 11 | B38: 3580 | C38: 21 | D38: 3592 | E38: 21 | F38: 3596 | K38: 0 | L38: 122
A39: 22 | B39: 3705 | C39: 23 | D39: 3713 | E39: 23 | F39: 3723 | K39: 0 | L39: 222
A40: 11 | B40: 3819 | C40: 21 | D40: 3831 | E40: 21 | F40: 3837 | K40: 0 | L40: 122
A41: 11 | B41: 3926 | C41: 12 | D41: 3935 | E41: 23 | F41: 3947 | K41: 0 | L41: 112
A42: 11 | B42: 4043 | C42: 21 | D42: 4055 | E42: 21 | F42: 4083 | K42: 0 | L42: 122
A43: 11 | B43: 4176 | C43: 21 | D43: 4189 | E43: 21 | F43: 4196 | K43: 0 | L43: 122
A44: 11 | B44: 4286 | C44: 21 | D44: 4298 | E44: 21 | F44: 4306 | K44: 0 | L44: 122
A45: 22 | B45: 4405 | C45: 23 | D45: 4410 | E45: 23 | F45: 4421 | K45: 0 | L45: 222
A46: 22 | B46: 4528 | C46: 23 | D46: 4534 | E46: 23 | F46: 4542 | K46: 0 | L46: 222
A47: 11 | B47: 4639 | C47: 21 | D47: 4651 | E47: 21 | F47: 4659 | K47: 0 | L47: 122
A48: 11 | B48: 4751 | C48: 12 | D48: 4757 | E48: 23 | F48: 4769 | K48: 0 | L48: 112
A49: 22 | B49: 4879 | C49: 23 | D49: 4888 | E49: 23 | F49: 4912 | K49: 0 | L49: 222
A50: 11 | B50: 5010 | C50: 12 | D50: 5014 | E50: 23 | F50: 5026 | K50: 0 | L50: 112
A51: 11 | B51: 5125 | C51: 21 | D51: 5136 | E51: 21 | F51: 5141 | K51: 0 | L51: 122
A52: 22 | B52: 5244 | C52: 23 | D52: 5252 | E52: 23 | F52: 5260 | K52: 0 | L52: 222
A53: 11 | B53: 5357 | C53: 21 | D53: 5368 | E53: 21 | F53: 5387 | K53: 0 | L53: 122
A54: 11 | B54: 5475 | C54: 21 | D54: 5486 | E54: 21 | F54: 5500 | K54: 0 | L54: 122
A55: 11 | B55: 5587 | C55: 12 | D55: 5592 | E55: 23 | F55: 5604 | K55: 0 | L55: 112
A56: 22 | B56: 5711 | C56: 23 | D56: 5719 | E56: 23 | F56: 5727 | K56: 0 | L56: 222
A57: 11 | B57: 5823 | C57: 21 | D57: 5836 | E57: 21 | F57: 5851 | K57: 0 | L57: 122
A58: 11 | B58: 5939 | C58: 21 | D58: 5950 | E58: 21 | F58: 5955 | K58: 0 | L58: 122
A59: 22 | B59: 6057 | C59: 23 | D59: 6062 | E59: 23 | F59: 6072 | K59: 0 | L59: 222
A60: 11 | B60: 6167 | C60: 21 | D60: 6179 | E60: 21 | F60: 6200 | K60: 0 | L60: 122
A61: 11 | B61: 6289 | C61: 21 | D61: 6300 | E61: 21 | F61: 6307 | K61: 0 | L61: 122
A62: 11 | B62: 6394 | C62: 21 | D62: 6404 | E62: 21 | F62: 6412 | K62: 0 | L62: 122
A63: 11 | B63: 6503 | C63: 21 | D63: 6514 | E63: 21 | F63: 6523 | K63: 0 | L63: 122
A64: 11 | B64: 6611 | C64: 21 | D64: 6625 | E64: 21 | F64: 6642 | K64: 1 | L64: 122

Sheet !M729A40.104
A1: Report for:!M729A40.104
A2: Date: | B2: <date>
A3: Hen: | B3: <hen> | F3: Correct Sequence | G3: =Start!J2 -> 122 | P3: Total Sequences in Data | Q3: =4994-COUNTBLANK(L7:L5000) -> 56 | V3: Total Sequences in Block Data | W3: =COUNTA(L7:L15) -> 9 | AA3: Total Sequences in Block Data | AB3: =COUNTA(L16:L25) -> 10 | AF3: Total Sequences in Block Data | AG3: =COUNTA(L26:L34) -> 9 | AK3: Total Sequences in Block Data | AL3: =COUNTA(L35:L43) -> 9 | AP3: Total Sequences in Block Data | AQ3: =COUNTA(L44:L53) -> 10 | AU3: Total Sequences in Block Data | AV3: =COUNTA(L54:L62) -> 9
P4: Total Sequences in Summary | Q4: =SUM(O7:O14) -> 56 | V4: Total Sequences in Block Summary | W4: =SUM(U7:U14) -> 9 | AA4: Total Sequences in Block Summary | AB4: =SUM(Z7:Z14) -> 10 | AF4: Total Sequences in Block Summary | AG4: =SUM(AE7:AE14) -> 9 | AK4: Total Sequences in Block Summary | AL4: =SUM(AJ7:AJ14) -> 9 | AP4: Total Sequences in Block Summary | AQ4: =SUM(AO7:AO14) -> 10 | AU4: Total Sequences in Block Summary | AV4: =SUM(AT7:AT14) -> 9
T5: Block 1 | Y5: Block 2 | AD5: Block 3 | AI5: Block 4 | AN5: Block 5 | AS5: Block 6
A6: Sequence Component 1 | B6: Time 1 | C6: Sequence Component 2 | D6: Time 2 | E6: Sequence Component 3 | F6: Time 3 | G6: Sequence Component 4 | H6: Time 4 | I6: Sequence Component 5 | J6: Time 5 | K6: Correct? 0=No 1=Yes | L6: Sequence | N6: Frequency | P6: Relative Frequency | Q6: Variability | T6: Frequency | V6: Relative Frequency | W6: Variability | Y6: Frequency | AA6: Relative Frequency | AB6: Variability | AD6: Frequency | AF6: Relative Frequency | AG6: Variability | AI6: Frequency | AK6: Relative Frequency | AL6: Variability | AN6: Frequency | AP6: Relative Frequency | AQ6: Variability | AS6: Frequency | AU6: Relative Frequency | AV6: Variability
A7: 11 | B7: 11 | C7: 21 | D7: 23 | E7: 21 | F7: 30 | K7: 0 | L7: 122 | N7: 111 | O7: =COUNTIF($L$7:$L$500,N7) -> 1 | P7: =O7/$Q$4 -> 0.01785714286 | Q7: =IF(P7=0,0,(P7*((LOG(P7))/LOG(2)))) -> -0.1037027665 | T7: =N7 -> 111 | U7: =COUNTIF(L7:L15,T7) -> 0 | V7: =U7/(W4-U10) -> 0 | W7: =IF(V7=0,0,(V7*((LOG(V7))/LOG(2)))) -> 0 | Y7: =N7 -> 111 | Z7: =COUNTIF(L16:L25,Y7) -> 0 | AA7: =Z7/(AB4-Z10) -> 0 | AB7: =IF(AA7=0,0,(AA7*((LOG(AA7))/LOG(2)))) -> 0 | AD7: =N7 -> 111 | AE7: =COUNTIF(L26:L34,AD7) -> 0 | AF7: =AE7/(AG4-AE10) -> 0 | AG7: =IF(AF7=0,0,(AF7*((LOG(AF7))/LOG(2)))) -> 0 | AI7: =N7 -> 111 | AJ7: =COUNTIF(L35:L43,AI7) -> 0 | AK7: =AJ7/(AL4-AJ10) -> 0 | AL7: =IF(AK7=0,0,(AK7*((LOG(AK7))/LOG(2)))) -> 0 | AN7: =N7 -> 111 | AO7: =COUNTIF(L44:L53,AN7) -> 1 | AP7: =AO7/(AQ4-AO10) -> 0.25 | AQ7: =IF(AP7=0,0,(AP7*((LOG(AP7))/LOG(2)))) -> -0.5 | AS7: =N7 -> 111 | AT7: =COUNTIF(L54:L62,AS7) -> 0 | AU7: =AT7/(AV4-AT10) -> 0 | AV7: =IF(AU7=0,0,(AU7*((LOG(AU7))/LOG(2)))) -> 0
A8: 11 | B8: 119 | C8: 21 | D8: 131 | E8: 21 | F8: 138 | K8: 0 | L8: 122 | N8: 112 | O8: =COUNTIF($L$7:$L$500,N8) -> 2 | P8: =O8/$Q$4 -> 0.03571428571 | Q8: =IF(P8=0,0,(P8*((LOG(P8))/LOG(2)))) -> -0.1716912472 | T8: =N8 -> 112 | U8: =COUNTIF(L7:L15,T8) -> 0 | V8: =U8/(W4-U10) -> 0 | W8: =IF(V8=0,0,(V8*((LOG(V8))/LOG(2)))) -> 0 | Y8: =N8 -> 112 | Z8: =COUNTIF(L16:L25,Y8) -> 0 | AA8: =Z8/(AB4-Z10) -> 0 | AB8: =IF(AA8=0,0,(AA8*((LOG(AA8))/LOG(2)))) -> 0 | AD8: =N8 -> 112 | AE8: =COUNTIF(L26:L34,AD8) -> 0 | AF8: =AE8/(AG4-AE10) -> 0 | AG8: =IF(AF8=0,0,(AF8*((LOG(AF8))/LOG(2)))) -> 0 | AI8: =N8 -> 112 | AJ8: =COUNTIF(L35:L43,AI8) -> 0 | AK8: =AJ8/(AL4-AJ10) -> 0 | AL8: =IF(AK8=0,0,(AK8*((LOG(AK8))/LOG(2)))) -> 0 | AN8: =N8 -> 112 | AO8: =COUNTIF(L44:L53,AN8) -> 0 | AP8: =AO8/(AQ4-AO10) -> 0 | AQ8: =IF(AP8=0,0,(AP8*((LOG(AP8))/LOG(2)))) -> 0 | AS8: =N8 -> 112 | AT8: =COUNTIF(L54:L62,AS8) -> 2 | AU8: =AT8/(AV4-AT10) -> 0.5 | AV8: =IF(AU8=0,0,(AU8*((LOG(AU8))/LOG(2)))) -> -0.5
A9: 11 | B9: 225 | C9: 21 | D9: 234 | E9: 21 | F9: 241 | K9: 0 | L9: 122 | N9: 121 | O9: =COUNTIF($L$7:$L$500,N9) -> 0 | P9: =O9/$Q$4 -> 0 | Q9: =IF(P9=0,0,(P9*((LOG(P9))/LOG(2)))) -> 0 | T9: =N9 -> 121 | U9: =COUNTIF(L7:L15,T9) -> 0 | V9: =U9/(W4-U10) -> 0 | W9: =IF(V9=0,0,(V9*((LOG(V9))/LOG(2)))) -> 0 | Y9: =N9 -> 121 | Z9: =COUNTIF(L16:L25,Y9) -> 0 | AA9: =Z9/(AB4-Z10) -> 0 | AB9: =IF(AA9=0,0,(AA9*((LOG(AA9))/LOG(2)))) -> 0 | AD9: =N9 -> 121 | AE9: =COUNTIF(L26:L34,AD9) -> 0 | AF9: =AE9/(AG4-AE10) -> 0 | AG9: =IF(AF9=0,0,(AF9*((LOG(AF9))/LOG(2)))) -> 0 | AI9: =N9 -> 121 | AJ9: =COUNTIF(L35:L43,AI9) -> 0 | AK9: =AJ9/(AL4-AJ10) -> 0 | AL9: =IF(AK9=0,0,(AK9*((LOG(AK9))/LOG(2)))) -> 0 | AN9: =N9 -> 121 | AO9: =COUNTIF(L44:L53,AN9) -> 0 | AP9: =AO9/(AQ4-AO10) -> 0 | AQ9: =IF(AP9=0,0,(AP9*((LOG(AP9))/LOG(2)))) -> 0 | AS9: =N9 -> 121 | AT9: =COUNTIF(L54:L62,AS9) -> 0 | AU9: =AT9/(AV4-AT10) -> 0 | AV9: =IF(AU9=0,0,(AU9*((LOG(AU9))/LOG(2)))) -> 0
A10: 11 | B10: 331 | C10: 21 | D10: 344 | E10: 21 | F10: 352 | K10: 0 | L10: 122 | N10: 122 | O10: =COUNTIF($L$7:$L$500,N10) -> 39 | P10: =O10/$Q$4 -> 0.6964285714 | Q10: =IF(P10=0,0,(P10*((LOG(P10))/LOG(2)))) -> -0.3635027754 | T10: =N10 -> 122 | U10: =COUNTIF(L7:L15,T10) -> 8 | Y10: =N10 -> 122 | Z10: =COUNTIF(L16:L25,Y10) -> 8 | AD10: =N10 -> 122 | AE10: =COUNTIF(L26:L34,AD10) -> 5 | AI10: =N10 -> 122 | AJ10: =COUNTIF(L35:L43,AI10) -> 7 | AN10: =N10 -> 122 | AO10: =COUNTIF(L44:L53,AN10) -> 6 | AS10: =N10 -> 122 | AT10: =COUNTIF(L54:L62,AS10) -> 5
A11: 11 | B11: 450 | C11: 21 | D11: 461 | E11: 21 | F11: 469 | K11: 0 | L11: 122 | N11: 211 | O11: =COUNTIF($L$7:$L$500,N11) -> 0 | P11: =O11/$Q$4 -> 0 | Q11: =IF(P11=0,0,(P11*((LOG(P11))/LOG(2)))) -> 0 | T11: =N11 -> 211 | U11: =COUNTIF(L7:L15,T11) -> 0 | V11: =U11/(W4-U10) -> 0 | W11: =IF(V11=0,0,(V11*((LOG(V11))/LOG(2)))) -> 0 | Y11: =N11 -> 211 | Z11: =COUNTIF(L16:L25,Y11) -> 0 | AA11: =Z11/(AB4-Z10) -> 0 | AB11: =IF(AA11=0,0,(AA11*((LOG(AA11))/LOG(2)))) -> 0 | AD11: =N11 -> 211 | AE11: =COUNTIF(L26:L34,AD11) -> 0 | AF11: =AE11/(AG4-AE10) -> 0 | AG11: =IF(AF11=0,0,(AF11*((LOG(AF11))/LOG(2)))) -> 0 | AI11: =N11 -> 211 | AJ11: =COUNTIF(L35:L43,AI11) -> 0 | AK11: =AJ11/(AL4-AJ10) -> 0 | AL11: =IF(AK11=0,0,(AK11*((LOG(AK11))/LOG(2)))) -> 0 | AN11: =N11 -> 211 | AO11: =COUNTIF(L44:L53,AN11) -> 0 | AP11: =AO11/(AQ4-AO10) -> 0 | AQ11: =IF(AP11=0,0,(AP11*((LOG(AP11))/LOG(2)))) -> 0 | AS11: =N11 -> 211 | AT11: =COUNTIF(L54:L62,AS11) -> 0 | AU11: =AT11/(AV4-AT10) -> 0 | AV11: =IF(AU11=0,0,(AU11*((LOG(AU11))/LOG(2)))) -> 0
A12: 11 | B12: 555 | C12: 21 | D12: 564 | E12: 21 | F12: 570 | K12: 0 | L12: 122 | N12: 212 | O12: =COUNTIF($L$7:$L$500,N12) -> 1 | P12: =O12/$Q$4 -> 0.01785714286 | Q12: =IF(P12=0,0,(P12*((LOG(P12))/LOG(2)))) -> -0.1037027665 | T12: =N12 -> 212 | U12: =COUNTIF(L7:L15,T12) -> 0 | V12: =U12/(W4-U10) -> 0 | W12: =IF(V12=0,0,(V12*((LOG(V12))/LOG(2)))) -> 0 | Y12: =N12 -> 212 | Z12: =COUNTIF(L16:L25,Y12) -> 0 | AA12: =Z12/(AB4-Z10) -> 0 | AB12: =IF(AA12=0,0,(AA12*((LOG(AA12))/LOG(2)))) -> 0 | AD12: =N12 -> 212 | AE12: =COUNTIF(L26:L34,AD12) -> 0 | AF12: =AE12/(AG4-AE10) -> 0 | AG12: =IF(AF12=0,0,(AF12*((LOG(AF12))/LOG(2)))) -> 0 | AI12: =N12 -> 212 | AJ12: =COUNTIF(L35:L43,AI12) -> 0 | AK12: =AJ12/(AL4-AJ10) -> 0 | AL12: =IF(AK12=0,0,(AK12*((LOG(AK12))/LOG(2)))) -> 0 | AN12: =N12 -> 212 | AO12: =COUNTIF(L44:L53,AN12) -> 1 | AP12: =AO12/(AQ4-AO10) -> 0.25 | AQ12: =IF(AP12=0,0,(AP12*((LOG(AP12))/LOG(2)))) -> -0.5 | AS12: =N12 -> 212 | AT12: =COUNTIF(L54:L62,AS12) -> 0 | AU12: =AT12/(AV4-AT10) -> 0 | AV12: =IF(AU12=0,0,(AU12*((LOG(AU12))/LOG(2)))) -> 0
A13: 11 | B13: 673 | C13: 21 | D13: 685 | E13: 21 | F13: 693 | K13: 0 | L13: 122 | N13: 221 | O13: =COUNTIF($L$7:$L$500,N13) -> 0 | P13: =O13/$Q$4 -> 0 | Q13: =IF(P13=0,0,(P13*((LOG(P13))/LOG(2)))) -> 0 | T13: =N13 -> 221 | U13: =COUNTIF(L7:L15,T13) -> 0 | V13: =U13/(W4-U10) -> 0 | W13: =IF(V13=0,0,(V13*((LOG(V13))/LOG(2)))) -> 0 | Y13: =N13 -> 221 | Z13: =COUNTIF(L16:L25,Y13) -> 0 | AA13: =Z13/(AB4-Z10) -> 0 | AB13: =IF(AA13=0,0,(AA13*((LOG(AA13))/LOG(2)))) -> 0 | AD13: =N13 -> 221 | AE13: =COUNTIF(L26:L34,AD13) -> 0 | AF13: =AE13/(AG4-AE10) -> 0 | AG13: =IF(AF13=0,0,(AF13*((LOG(AF13))/LOG(2)))) -> 0 | AI13: =N13 -> 221 | AJ13: =COUNTIF(L35:L43,AI13) -> 0 | AK13: =AJ13/(AL4-AJ10) -> 0 | AL13: =IF(AK13=0,0,(AK13*((LOG(AK13))/LOG(2)))) -> 0 | AN13: =N13 -> 221 | AO13: =COUNTIF(L44:L53,AN13) -> 0 | AP13: =AO13/(AQ4-AO10) -> 0 | AQ13: =IF(AP13=0,0,(AP13*((LOG(AP13))/LOG(2)))) -> 0 | AS13: =N13 -> 221 | AT13: =COUNTIF(L54:L62,AS13) -> 0 | AU13: =AT13/(AV4-AT10) -> 0 | AV13: =IF(AU13=0,0,(AU13*((LOG(AU13))/LOG(2)))) -> 0
A14: 11 | B14: 781 | C14: 21 | D14: 791 | E14: 21 | F14: 810 | K14: 0 | L14: 122 | N14: 222 | O14: =COUNTIF($L$7:$L$500,N14) -> 13 | P14: =O14/$Q$4 -> 0.2321428571 | Q14: =IF(P14=0,0,(P14*((LOG(P14))/LOG(2)))) -> -0.4891053152 | T14: =N14 -> 222 | U14: =COUNTIF(L7:L15,T14) -> 1 | V14: =U14/(W4-U10) -> 1 | W14: =IF(V14=0,0,(V14*((LOG(V14))/LOG(2)))) -> 0 | Y14: =N14 -> 222 | Z14: =COUNTIF(L16:L25,Y14) -> 2 | AA14: =Z14/(AB4-Z10) -> 1 | AB14: =IF(AA14=0,0,(AA14*((LOG(AA14))/LOG(2)))) -> 0 | AD14: =N14 -> 222 | AE14: =COUNTIF(L26:L34,AD14) -> 4 | AF14: =AE14/(AG4-AE10) -> 1 | AG14: =IF(AF14=0,0,(AF14*((LOG(AF14))/LOG(2)))) -> 0 | AI14: =N14 -> 222 | AJ14: =COUNTIF(L35:L43,AI14) -> 2 | AK14: =AJ14/(AL4-AJ10) -> 1 | AL14: =IF(AK14=0,0,(AK14*((LOG(AK14))/LOG(2)))) -> 0 | AN14: =N14 -> 222 | AO14: =COUNTIF(L44:L53,AN14) -> 2 | AP14: =AO14/(AQ4-AO10) -> 0.5 | AQ14: =IF(AP14=0,0,(AP14*((LOG(AP14))/LOG(2)))) -> -0.5 | AS14: =N14 -> 222 | AT14: =COUNTIF(L54:L62,AS14) -> 2 | AU14: =AT14/(AV4-AT10) -> 0.5 | AV14: =IF(AU14=0,0,(AU14*((LOG(AU14))/LOG(2)))) -> -0.5
A15: 22 | B15: 913 | C15: 23 | D15: 921 | E15: 23 | F15: 928 | K15: 0 | L15: 222 | P15: =SUM(P7:P14) -> 1 | Q15: =-SUM(Q7:Q14) -> 1.231704871 | V15: =SUM(V7:V14) -> 1 | W15: =-SUM(W7:W14) -> 0 | AA15: =SUM(AA7:AA14) -> 1 | AB15: =-SUM(AB7:AB14) -> 0 | AF15: =SUM(AF7:AF14) -> 1 | AG15: =-SUM(AG7:AG14) -> 0 | AK15: =SUM(AK7:AK14) -> 1 | AL15: =-SUM(AL7:AL14) -> 0 | AP15: =SUM(AP7:AP14) -> 1 | AQ15: =-SUM(AQ7:AQ14) -> 1.5 | AU15: =SUM(AU7:AU14) -> 1 | AV15: =-SUM(AV7:AV14) -> 1
A16: 11 | B16: 1016 | C16: 21 | D16: 1029 | E16: 21 | F16: 1036 | K16: 0 | L16: 122 | P16: U= | Q16: =Q15/(LOG(Q4)/LOG(2)) -> 0.2120939545 | V16: U1= | W16: =W15/(LOG(W4)/LOG(2)) -> 0 | AA16: U2= | AB16: =AB15/(LOG(AB4)/LOG(2)) -> 0 | AF16: U3= | AG16: =AG15/(LOG(AG4)/LOG(2)) -> 0 | AK16: U4= | AL16: =AL15/(LOG(AL4)/LOG(2)) -> 0 | AP16: U5= | AQ16: =AQ15/(LOG(AQ4)/LOG(2)) -> 0.4515449935 | AU16: U6= | AV16: =AV15/(LOG(AV4)/LOG(2)) -> 0.3154648768
A17: 11 | B17: 1123 | C17: 21 | D17: 1134 | E17: 21 | F17: 1138 | K17: 0 | L17: 122
A18: 22 | B18: 1236 | C18: 23 | D18: 1241 | E18: 23 | F18: 1252 | K18: 0 | L18: 222
A19: 22 | B19: 1358 | C19: 23 | D19: 1363 | E19: 23 | F19: 1370 | K19: 0 | L19: 222 | N19: Total Target Seq
A20: 11 | B20: 1467 | C20: 21 | D20: 1478 | E20: 21 | F20: 1484 | K20: 0 | L20: 122 | N20: =COUNTIF(L7:L62,G3) -> 39 | P20: 9 | Q20: 10 | R20: 9 | S20: 9 | T20: 10 | U20: 9
A21: 11 | B21: 1572 | C21: 21 | D21: 1585 | E21: 21 | F21: 1595 | K21: 0 | L21: 122 | P21: % of reinforcement given in 6 equal intervals based on number of trials
A22: 11 | B22: 1685 | C22: 21 | D22: 1696 | E22: 21 | F22: 1705 | K22: 0 | L22: 122 | P22: %_1 | Q22: %_2 | R22: %_3 | S22: %_4 | T22: %_5 | U22: %_6
A23: 11 | B23: 1793 | C23: 21 | D23: 1805 | E23: 21 | F23: 1833 | K23: 0 | L23: 122 | O23: target sequence | P23: =$G$3 -> 122 | Q23: =$G$3 -> 122 | R23: =$G$3 -> 122 | S23: =$G$3 -> 122 | T23: =$G$3 -> 122 | U23: =$G$3 -> 122
A24: 11 | B24: 1921 | C24: 21 | D24: 1932 | E24: 21 | F24: 1940 | K24: 0 | L24: 122 | O24: total reinforcement | P24: =U10 -> 8 | Q24: =Z10 -> 8 | R24: =AE10 -> 5 | S24: =AJ10 -> 7 | T24: =AO10 -> 6 | U24: =AT10 -> 5
A25: 11 | B25: 2026 | C25: 21 | D25: 2042 | E25: 21 | F25: 2050 | K25: 0 | L25: 122 | O25: % target
A26: 11 | B26: 2140 | C26: 21 | D26: 2170 | E26: 21 | F26: 2177 | K26: 0 | L26: 122 | O26: CCRF
A27: 11 | B27: 2263 | C27: 21 | D27: 2275 | E27: 21 | F27: 2282 | K27: 0 | L27: 122 | O27: % CCRf
A28: 11 | B28: 2368 | C28: 21 | D28: 2379 | E28: 21 | F28: 2385 | K28: 0 | L28: 122 | O28: average response rate | P28: =F15/P20 -> 103.1111111 | Q28: =(F25-F15)/Q20 -> 112.2 | R28: =(F34-F25)/R20 -> 117.3333333 | S28: =(F43-F34)/S20 -> 107.4444444 | T28: =(F53-F43)/T20 -> 122.4 | U28: =(F62-F53)/U20 -> 114.4444444
A29: 22 | B29: 2485 | C29: 23 | D29: 2493 | E29: 23 | F29: 2503 | K29: 0 | L29: 222
A30: 22 | B30: 2610 | C30: 23 | D30: 2615 | E30: 23 | F30: 2632 | K30: 0 | L30: 222
A31: 22 | B31: 2739 | C31: 23 | D31: 2747 | E31: 23 | F31: 2764 | K31: 0 | L31: 222
A32: 22 | B32: 2870 | C32: 23 | D32: 2877 | E32: 23 | F32: 2885 | K32: 0 | L32: 222
A33: 11 | B33: 2983 | C33: 21 | D33: 2992 | E33: 21 | F33: 3000 | K33: 0 | L33: 122
A34: 11 | B34: 3090 | C34: 21 | D34: 3101 | E34: 21 | F34: 3106 | K34: 0 | L34: 122
A35: 11 | B35: 3193 | C35: 21 | D35: 3204 | E35: 21 | F35: 3212 | K35: 0 | L35: 122
A36: 11 | B36: 3298 | C36: 21 | D36: 3309 | E36: 21 | F36: 3316 | K36: 0 | L36: 122
A37: 11 | B37: 3402 | C37: 21 | D37: 3410 | E37: 21 | F37: 3416 | K37: 0 | L37: 122
A38: 11 | B38: 3506 | C38: 21 | D38: 3516 | E38: 21 | F38: 3521 | K38: 0 | L38: 122
A39: 22 | B39: 3613 | C39: 23 | D39: 3621 | E39: 23 | F39: 3629 | K39: 0 | L39: 222
A40: 11 | B40: 3727 | C40: 21 | D40: 3738 | E40: 21 | F40: 3746 | K40: 0 | L40: 122
A41: 11 | B41: 3832 | C41: 21 | D41: 3843 | E41: 21 | F41: 3849 | K41: 0 | L41: 122
A42: 22 | B42: 3947 | C42: 23 | D42: 3955 | E42: 23 | F42: 3963 | K42: 0 | L42: 222
A43: 11 | B43: 4059 | C43: 21 | D43: 4069 | E43: 21 | F43: 4073 | K43: 0 | L43: 122
A44: 22 | B44: 4179 | C44: 14 | D44: 4200 | E44: 23 | F44: 4215 | K44: 0 | L44: 212
A45: 22 | B45: 4321 | C45: 23 | D45: 4326 | E45: 23 | F45: 4336 | K45: 0 | L45: 222
A46: 22 | B46: 4444 | C46: 23 | D46: 4452 | E46: 23 | F46: 4503 | K46: 0 | L46: 222
A47: 11 | B47: 4614 | C47: 21 | D47: 4624 | E47: 21 | F47: 4638 | K47: 0 | L47: 122
